{"text_format":"1","workbook":"xlsx","n_sheets":6,"sheets":["Anexo Cuantitativo","Anexo Cualitativo","Hoja2","SECRETARIASYPROYECTOS","Pbr's","Hoja1"],"not_rendered":{"charts":0,"images":2,"macros":1,"external_links":0,"defined_names":37,"comments":0,"pivot_tables":0},"unopened":[],"bounds":{"document_bytes":16777216,"sheet_cells":100000,"rows_first":2000,"rows_last":500,"rows_between":2000,"halvings":0,"cell_chars":16384,"cell_head_chars":4096},"cells_cut":0,"cells_raw":0,"read":"whole","date_system":"1900"}

{"sheet":"Anexo Cuantitativo","index":0,"n_rows":37,"n_cols":14,"rows_kept":37,"cut":false,"hidden":false,"merged":[[37,1,37,14],[3,2,3,13],[10,5,11,5],[10,7,11,7],[10,4,11,4],[5,2,5,5],[4,2,4,5],[7,2,9,13],[6,2,6,5],[10,8,11,8],[10,6,11,6],[10,3,11,3],[10,2,11,2],[10,13,11,13],[6,9,6,11]]}
[]
[]
[]
[null,null,"ANEXO 3 AVANCE CUANTITATIVO"]
[null,null,"NOMBRE DE LA SECRETARIA: ",null,null,null,"OPD"]
[null,null,"NOMBRE DE LA DIRECCIÓN O JEFATURA: ",null,null,null,"IMMUJERES"]
[null,null,"TRIMESTRE REPORTADO:",null,null,null,"Del 1 de Octubre al 31 de Diciembre del 2024",null,"Fecha de Elaboración:",{"$f":"TODAY()","v":"2025-01-07"}]
[null,null,"Registro de avances de PbR 2025"]
[]
[]
[null,null,null,"NOMBRE DE LA PROPUESTA","DIMENSIÓN A MEDIR (Eficiencia/Eficacia/  Economía/Calidad)","Nombre Indicador (Indicador Operativo)","UNIDAD DE MEDIDA ","LÍNEA BASE"," META ANUAL (ABSOLUTA)","AVANCE 1","AVANCE 2","AVANCE 3","AVANCE 4","AVANCE ACUMULADO EN PORCENTAJE"]
[null,null,null,null,null,null,null,null,null,"Primer Trimestre             (octubre-diciembre 2024)                        "," Segundo Trimestre           (enero-marzo 2025)                       ","Tercer Trimestre    (abril-junio 2025)                       "," Cuarto Trimestre (julio-septiembre 2025)                       "]
[null,null,1,{"$f":"IFERROR(VLOOKUP($G$5&$G$6&C13,'Pbr''s'!B:J,5,0),\" \")","v":"Enfoque Transversal con Perspectiva de Género"},"Eficacia",{"$f":"IFERROR(VLOOKUP($G$5&$G$6&C13&D13,'Pbr''s'!A:M,7,0),\" \")","v":"Porcentaje de acciones con perspectiva de genero reportadas"},{"$f":"IFERROR(VLOOKUP($G$5&$G$6&C13&D13,'Pbr''s'!A:N,8,0),\" \")","v":"Numero de Acciones"},{"$f":"IFERROR(VLOOKUP($G$5&$G$6&C13&D13,'Pbr''s'!A:O,9,0),\" \")","v":52},{"$f":"IFERROR(VLOOKUP($G$5&$G$6&C13&D13,'Pbr''s'!A:P,10,0),\" \")","v":52},5,null,null,null,{"$f":"IFERROR(SUM(J13:M13)/I13,\" \")","v":9.6153846153846159E-2}]
[null,null,{"$f":"C13+1","v":2},{"$f":"IFERROR(VLOOKUP($G$5&$G$6&C14,'Pbr''s'!B:J,5,0),\" \")","v":"Enfoque Transversal con Perspectiva de Género"},"Eficacia",{"$f":"IFERROR(VLOOKUP($G$5&$G$6&C14&D14,'Pbr''s'!A:M,7,0),\" \")","v":"Instrumentos normativos y programáticos Observados para incorporar la perspectiva de Genero"},{"$f":"IFERROR(VLOOKUP($G$5&$G$6&C14&D14,'Pbr''s'!A:N,8,0),\" \")","v":"Numero de instrumentos"},{"$f":"IFERROR(VLOOKUP($G$5&$G$6&C14&D14,'Pbr''s'!A:O,9,0),\" \")","v":3},{"$f":"IFERROR(VLOOKUP($G$5&$G$6&C14&D14,'Pbr''s'!A:P,10,0),\" \")","v":4},1,null,null,null,{"$f":"IFERROR(SUM(J14:M14)/I14,\" \")","v":0.25}]
[null,null,{"$f":"C14+1","v":3},{"$f":"IFERROR(VLOOKUP($G$5&$G$6&C15,'Pbr''s'!B:J,5,0),\" \")","v":"Enfoque Transversal con Perspectiva de Género"},"Eficacia",{"$f":"IFERROR(VLOOKUP($G$5&$G$6&C15&D15,'Pbr''s'!A:M,7,0),\" \")","v":"Porcentaje formatos prestablecidos y utilizados en planeación de la APM con perspectiva de Genero y lenguaje incluyente"},{"$f":"IFERROR(VLOOKUP($G$5&$G$6&C15&D15,'Pbr''s'!A:N,8,0),\" \")","v":"Numero de Formatos (Anexos PBR)"},{"$f":"IFERROR(VLOOKUP($G$5&$G$6&C15&D15,'Pbr''s'!A:O,9,0),\" \")","v":80},{"$f":"IFERROR(VLOOKUP($G$5&$G$6&C15&D15,'Pbr''s'!A:P,10,0),\" \")","v":80},5,null,null,null,6.25E-2]
[null,null,4,{"$f":"IFERROR(VLOOKUP($G$5&$G$6&C16,'Pbr''s'!B:J,5,0),\" \")","v":"Enfoque Transversal con Perspectiva de Género"},"Eficacia",{"$f":"IFERROR(VLOOKUP($G$5&$G$6&C16&D16,'Pbr''s'!A:M,7,0),\" \")","v":"Porcentaje mujeres beneficiadas por incorporación de  perspectiva de genero a los anexos de planeación"},{"$f":"IFERROR(VLOOKUP($G$5&$G$6&C16&D16,'Pbr''s'!A:N,8,0),\" \")","v":"Personas Beneficiadas"},{"$f":"IFERROR(VLOOKUP($G$5&$G$6&C16&D16,'Pbr''s'!A:O,9,0),\" \")","v":30000},{"$f":"IFERROR(VLOOKUP($G$5&$G$6&C16&D16,'Pbr''s'!A:P,10,0),\" \")","v":30100},203,null,null,null,6.744186046511628E-3]
[null,null,5,{"$f":"IFERROR(VLOOKUP($G$5&$G$6&C17,'Pbr''s'!B:J,5,0),\" \")","v":"Libres por la igualdad"},"Eficacia",{"$f":"IFERROR(VLOOKUP($G$5&$G$6&C17&D17,'Pbr''s'!A:M,7,0),\" \")","v":"Porcentaje acciones de promoción de la igualdad Sustantiva"},{"$f":"IFERROR(VLOOKUP($G$5&$G$6&C17&D17,'Pbr''s'!A:N,8,0),\" \")","v":"Numero de Acciones"},{"$f":"IFERROR(VLOOKUP($G$5&$G$6&C17&D17,'Pbr''s'!A:O,9,0),\" \")","v":21},{"$f":"IFERROR(VLOOKUP($G$5&$G$6&C17&D17,'Pbr''s'!A:P,10,0),\" \")","v":25},5,null,null,null,0.2]
[null,null,6,{"$f":"IFERROR(VLOOKUP($G$5&$G$6&C18,'Pbr''s'!B:J,5,0),\" \")","v":"Libres por la igualdad"},"Eficacia",{"$f":"IFERROR(VLOOKUP($G$5&$G$6&C18&D18,'Pbr''s'!A:M,7,0),\" \")","v":"Porcentaje de personas beneficiadas por las acciones de promoción"},{"$f":"IFERROR(VLOOKUP($G$5&$G$6&C18&D18,'Pbr''s'!A:N,8,0),\" \")","v":"Numero de personas Beneficiadas"},{"$f":"IFERROR(VLOOKUP($G$5&$G$6&C18&D18,'Pbr''s'!A:O,9,0),\" \")","v":21000},{"$f":"IFERROR(VLOOKUP($G$5&$G$6&C18&D18,'Pbr''s'!A:P,10,0),\" \")","v":1500},161,null,null,null,0.10733333333333334]
[null,null,{"$f":"C18+1","v":7},{"$f":"IFERROR(VLOOKUP($G$5&$G$6&C19,'Pbr''s'!B:J,5,0),\" \")","v":"Libres por la igualdad"},"Eficacia",{"$f":"IFERROR(VLOOKUP($G$5&$G$6&C19&D19,'Pbr''s'!A:M,7,0),\" \")","v":"Eventos Conmemorativos para promover y reconocer los derechos de las mujeres en sus diversidad"},{"$f":"IFERROR(VLOOKUP($G$5&$G$6&C19&D19,'Pbr''s'!A:N,8,0),\" \")","v":"Numero de eventos"},{"$f":"IFERROR(VLOOKUP($G$5&$G$6&C19&D19,'Pbr''s'!A:O,9,0),\" \")","v":2},{"$f":"IFERROR(VLOOKUP($G$5&$G$6&C19&D19,'Pbr''s'!A:P,10,0),\" \")","v":2},0,null,null,null,0]
[null,null,8,{"$f":"IFERROR(VLOOKUP($G$5&$G$6&C20,'Pbr''s'!B:J,5,0),\" \")","v":"Vivir sin violencia"},"Eficacia",{"$f":"IFERROR(VLOOKUP($G$5&$G$6&C20&D20,'Pbr''s'!A:M,7,0),\" \")","v":"Porcentaje de atenciones de primer contacto"},{"$f":"IFERROR(VLOOKUP($G$5&$G$6&C20&D20,'Pbr''s'!A:N,8,0),\" \")","v":"Numero de Mujeres Atendidas"},{"$f":"IFERROR(VLOOKUP($G$5&$G$6&C20&D20,'Pbr''s'!A:O,9,0),\" \")","v":425},{"$f":"IFERROR(VLOOKUP($G$5&$G$6&C20&D20,'Pbr''s'!A:P,10,0),\" \")","v":430},159,null,null,null,0.36976744186046512]
[null,null,9,{"$f":"IFERROR(VLOOKUP($G$5&$G$6&C21,'Pbr''s'!B:J,5,0),\" \")","v":"Vivir sin violencia"},"Eficacia",{"$f":"IFERROR(VLOOKUP($G$5&$G$6&C21&D21,'Pbr''s'!A:M,7,0),\" \")","v":"Porcentaje de Acciones de prevención de la violencia de generó en la comunidad"},{"$f":"IFERROR(VLOOKUP($G$5&$G$6&C21&D21,'Pbr''s'!A:N,8,0),\" \")","v":"Numero de Acciones"},{"$f":"IFERROR(VLOOKUP($G$5&$G$6&C21&D21,'Pbr''s'!A:O,9,0),\" \")","v":30},{"$f":"IFERROR(VLOOKUP($G$5&$G$6&C21&D21,'Pbr''s'!A:P,10,0),\" \")","v":40},10,null,null,null,0.25]
[null,null,10,{"$f":"IFERROR(VLOOKUP($G$5&$G$6&C22,'Pbr''s'!B:J,5,0),\" \")","v":"Vivir sin violencia"},"Eficacia",{"$f":"IFERROR(VLOOKUP($G$5&$G$6&C22&D22,'Pbr''s'!A:M,7,0),\" \")","v":"Porcentaje de acciones de actualización o profesionalización para personal del servicio publico en materia de atención a victimas"},{"$f":"IFERROR(VLOOKUP($G$5&$G$6&C22&D22,'Pbr''s'!A:N,8,0),\" \")","v":"Numero de Acciones"},{"$f":"IFERROR(VLOOKUP($G$5&$G$6&C22&D22,'Pbr''s'!A:O,9,0),\" \")","v":12},{"$f":"IFERROR(VLOOKUP($G$5&$G$6&C22&D22,'Pbr''s'!A:P,10,0),\" \")","v":15},0,null,null,null,0]
[null,null,11,{"$f":"IFERROR(VLOOKUP($G$5&$G$6&C23,'Pbr''s'!B:J,5,0),\" \")","v":"Vivir sin violencia"},"Eficacia",{"$f":"IFERROR(VLOOKUP($G$5&$G$6&C23&D23,'Pbr''s'!A:M,7,0),\" \")","v":"Porcentaje de personas Beneficiadas con las acciones de prevención, atención y profesionalización en Materia de Violencia contra las mujeres"},{"$f":"IFERROR(VLOOKUP($G$5&$G$6&C23&D23,'Pbr''s'!A:N,8,0),\" \")","v":"Numero de personas Beneficiadas"},{"$f":"IFERROR(VLOOKUP($G$5&$G$6&C23&D23,'Pbr''s'!A:O,9,0),\" \")","v":3000},{"$f":"IFERROR(VLOOKUP($G$5&$G$6&C23&D23,'Pbr''s'!A:P,10,0),\" \")","v":3450},357,null,null,null,0.10347826086956521]
[null,null,12,{"$f":"IFERROR(VLOOKUP($G$5&$G$6&C24,'Pbr''s'!B:J,5,0),\" \")","v":"Vivir sin violencia"},"Eficacia",{"$f":"IFERROR(VLOOKUP($G$5&$G$6&C24&D24,'Pbr''s'!A:M,7,0),\" \")","v":"Porcentaje de eventos conmemorativos de fechas o acciones contra la violencia de genero"},{"$f":"IFERROR(VLOOKUP($G$5&$G$6&C24&D24,'Pbr''s'!A:N,8,0),\" \")","v":"Número de Eventos"},{"$f":"IFERROR(VLOOKUP($G$5&$G$6&C24&D24,'Pbr''s'!A:O,9,0),\" \")","v":1},{"$f":"IFERROR(VLOOKUP($G$5&$G$6&C24&D24,'Pbr''s'!A:P,10,0),\" \")","v":1},1,null,null,null,1]
[null,null,13,{"$f":"IFERROR(VLOOKUP($G$5&$G$6&C25,'Pbr''s'!B:J,5,0),\" \")","v":" "},null,{"$f":"IFERROR(VLOOKUP($G$5&$G$6&C25&D25,'Pbr''s'!A:M,7,0),\" \")","v":" "},{"$f":"IFERROR(VLOOKUP($G$5&$G$6&C25&D25,'Pbr''s'!A:N,8,0),\" \")","v":" "},{"$f":"IFERROR(VLOOKUP($G$5&$G$6&C25&D25,'Pbr''s'!A:O,9,0),\" \")","v":" "},{"$f":"IFERROR(VLOOKUP($G$5&$G$6&C25&D25,'Pbr''s'!A:P,10,0),\" \")","v":" "},null,null,null,null," "]
[null,null,14,{"$f":"IFERROR(VLOOKUP($G$5&$G$6&C26,'Pbr''s'!B:J,5,0),\" \")","v":" "},null,{"$f":"IFERROR(VLOOKUP($G$5&$G$6&C26&D26,'Pbr''s'!A:M,7,0),\" \")","v":" "},{"$f":"IFERROR(VLOOKUP($G$5&$G$6&C26&D26,'Pbr''s'!A:N,8,0),\" \")","v":" "},{"$f":"IFERROR(VLOOKUP($G$5&$G$6&C26&D26,'Pbr''s'!A:O,9,0),\" \")","v":" "},{"$f":"IFERROR(VLOOKUP($G$5&$G$6&C26&D26,'Pbr''s'!A:P,10,0),\" \")","v":" "},null,null,null,null," "]
[null,null,15,{"$f":"IFERROR(VLOOKUP($G$5&$G$6&C27,'Pbr''s'!B:J,5,0),\" \")","v":" "},null,{"$f":"IFERROR(VLOOKUP($G$5&$G$6&C27&D27,'Pbr''s'!A:M,7,0),\" \")","v":" "},{"$f":"IFERROR(VLOOKUP($G$5&$G$6&C27&D27,'Pbr''s'!A:N,8,0),\" \")","v":" "},{"$f":"IFERROR(VLOOKUP($G$5&$G$6&C27&D27,'Pbr''s'!A:O,9,0),\" \")","v":" "},{"$f":"IFERROR(VLOOKUP($G$5&$G$6&C27&D27,'Pbr''s'!A:P,10,0),\" \")","v":" "},null,null,null,null," "]
[null,null,16,{"$f":"IFERROR(VLOOKUP($G$5&$G$6&C28,'Pbr''s'!B:J,5,0),\" \")","v":" "},null,{"$f":"IFERROR(VLOOKUP($G$5&$G$6&C28&D28,'Pbr''s'!A:M,7,0),\" \")","v":" "},{"$f":"IFERROR(VLOOKUP($G$5&$G$6&C28&D28,'Pbr''s'!A:N,8,0),\" \")","v":" "},{"$f":"IFERROR(VLOOKUP($G$5&$G$6&C28&D28,'Pbr''s'!A:O,9,0),\" \")","v":" "},{"$f":"IFERROR(VLOOKUP($G$5&$G$6&C28&D28,'Pbr''s'!A:P,10,0),\" \")","v":" "},null,null,null,null," "]
[null,null,17,{"$f":"IFERROR(VLOOKUP($G$5&$G$6&C29,'Pbr''s'!B:J,5,0),\" \")","v":" "},null,{"$f":"IFERROR(VLOOKUP($G$5&$G$6&C29&D29,'Pbr''s'!A:M,7,0),\" \")","v":" "},{"$f":"IFERROR(VLOOKUP($G$5&$G$6&C29&D29,'Pbr''s'!A:N,8,0),\" \")","v":" "},{"$f":"IFERROR(VLOOKUP($G$5&$G$6&C29&D29,'Pbr''s'!A:O,9,0),\" \")","v":" "},{"$f":"IFERROR(VLOOKUP($G$5&$G$6&C29&D29,'Pbr''s'!A:P,10,0),\" \")","v":" "},null,null,null,null," "]
[null,null,18,{"$f":"IFERROR(VLOOKUP($G$5&$G$6&C30,'Pbr''s'!B:J,5,0),\" \")","v":" "},null,{"$f":"IFERROR(VLOOKUP($G$5&$G$6&C30&D30,'Pbr''s'!A:M,7,0),\" \")","v":" "},{"$f":"IFERROR(VLOOKUP($G$5&$G$6&C30&D30,'Pbr''s'!A:N,8,0),\" \")","v":" "},{"$f":"IFERROR(VLOOKUP($G$5&$G$6&C30&D30,'Pbr''s'!A:O,9,0),\" \")","v":" "},{"$f":"IFERROR(VLOOKUP($G$5&$G$6&C30&D30,'Pbr''s'!A:P,10,0),\" \")","v":" "},null,null,null,null," "]
[null,null,19,{"$f":"IFERROR(VLOOKUP($G$5&$G$6&C31,'Pbr''s'!B:J,5,0),\" \")","v":" "},null,{"$f":"IFERROR(VLOOKUP($G$5&$G$6&C31&D31,'Pbr''s'!A:M,7,0),\" \")","v":" "},{"$f":"IFERROR(VLOOKUP($G$5&$G$6&C31&D31,'Pbr''s'!A:N,8,0),\" \")","v":" "},{"$f":"IFERROR(VLOOKUP($G$5&$G$6&C31&D31,'Pbr''s'!A:O,9,0),\" \")","v":" "},{"$f":"IFERROR(VLOOKUP($G$5&$G$6&C31&D31,'Pbr''s'!A:P,10,0),\" \")","v":" "},null,null,null,null," "]
[null,null,20,{"$f":"IFERROR(VLOOKUP($G$5&$G$6&C32,'Pbr''s'!B:J,5,0),\" \")","v":" "},null,{"$f":"IFERROR(VLOOKUP($G$5&$G$6&C32&D32,'Pbr''s'!A:M,7,0),\" \")","v":" "},{"$f":"IFERROR(VLOOKUP($G$5&$G$6&C32&D32,'Pbr''s'!A:N,8,0),\" \")","v":" "},{"$f":"IFERROR(VLOOKUP($G$5&$G$6&C32&D32,'Pbr''s'!A:O,9,0),\" \")","v":" "},{"$f":"IFERROR(VLOOKUP($G$5&$G$6&C32&D32,'Pbr''s'!A:P,10,0),\" \")","v":" "},null,null,null,null," "]
[null,null,21,{"$f":"IFERROR(VLOOKUP($G$5&$G$6&C33,'Pbr''s'!B:J,5,0),\" \")","v":" "},null,{"$f":"IFERROR(VLOOKUP($G$5&$G$6&C33&D33,'Pbr''s'!A:M,7,0),\" \")","v":" "},{"$f":"IFERROR(VLOOKUP($G$5&$G$6&C33&D33,'Pbr''s'!A:N,8,0),\" \")","v":" "},{"$f":"IFERROR(VLOOKUP($G$5&$G$6&C33&D33,'Pbr''s'!A:O,9,0),\" \")","v":" "},{"$f":"IFERROR(VLOOKUP($G$5&$G$6&C33&D33,'Pbr''s'!A:P,10,0),\" \")","v":" "},null,null,null,null," "]
[null,null,22,{"$f":"IFERROR(VLOOKUP($G$5&$G$6&C34,'Pbr''s'!B:J,5,0),\" \")","v":" "},null,{"$f":"IFERROR(VLOOKUP($G$5&$G$6&C34&D34,'Pbr''s'!A:M,7,0),\" \")","v":" "},{"$f":"IFERROR(VLOOKUP($G$5&$G$6&C34&D34,'Pbr''s'!A:N,8,0),\" \")","v":" "},{"$f":"IFERROR(VLOOKUP($G$5&$G$6&C34&D34,'Pbr''s'!A:O,9,0),\" \")","v":" "},{"$f":"IFERROR(VLOOKUP($G$5&$G$6&C34&D34,'Pbr''s'!A:P,10,0),\" \")","v":" "},null,null,null,null," "]
[null,null,23,{"$f":"IFERROR(VLOOKUP($G$5&$G$6&C35,'Pbr''s'!B:J,5,0),\" \")","v":" "},null,{"$f":"IFERROR(VLOOKUP($G$5&$G$6&C35&D35,'Pbr''s'!A:M,7,0),\" \")","v":" "},{"$f":"IFERROR(VLOOKUP($G$5&$G$6&C35&D35,'Pbr''s'!A:N,8,0),\" \")","v":" "},{"$f":"IFERROR(VLOOKUP($G$5&$G$6&C35&D35,'Pbr''s'!A:O,9,0),\" \")","v":" "},{"$f":"IFERROR(VLOOKUP($G$5&$G$6&C35&D35,'Pbr''s'!A:P,10,0),\" \")","v":" "},null,null,null,null," "]
[null,null,24,{"$f":"IFERROR(VLOOKUP($G$5&$G$6&C36,'Pbr''s'!B:J,5,0),\" \")","v":" "},null,{"$f":"IFERROR(VLOOKUP($G$5&$G$6&C36&D36,'Pbr''s'!A:M,7,0),\" \")","v":" "},{"$f":"IFERROR(VLOOKUP($G$5&$G$6&C36&D36,'Pbr''s'!A:N,8,0),\" \")","v":" "},{"$f":"IFERROR(VLOOKUP($G$5&$G$6&C36&D36,'Pbr''s'!A:O,9,0),\" \")","v":" "},{"$f":"IFERROR(VLOOKUP($G$5&$G$6&C36&D36,'Pbr''s'!A:P,10,0),\" \")","v":" "},null,null,null,null," "]
[null,null,25,{"$f":"IFERROR(VLOOKUP($G$5&$G$6&C37,'Pbr''s'!B:J,5,0),\" \")","v":" "},null,{"$f":"IFERROR(VLOOKUP($G$5&$G$6&C37&D37,'Pbr''s'!A:M,7,0),\" \")","v":" "},{"$f":"IFERROR(VLOOKUP($G$5&$G$6&C37&D37,'Pbr''s'!A:N,8,0),\" \")","v":" "},{"$f":"IFERROR(VLOOKUP($G$5&$G$6&C37&D37,'Pbr''s'!A:O,9,0),\" \")","v":" "},{"$f":"IFERROR(VLOOKUP($G$5&$G$6&C37&D37,'Pbr''s'!A:P,10,0),\" \")","v":" "},null,null,null,null," "]

{"sheet":"Anexo Cualitativo","index":1,"n_rows":110,"n_cols":12,"rows_kept":110,"cut":false,"hidden":false,"merged":[[102,6,102,10],[103,6,103,10],[104,6,104,10],[105,6,105,10],[102,5,105,5],[106,4,109,4],[106,5,109,5],[106,6,106,10],[107,6,107,10],[108,6,108,10],[109,6,109,10],[98,4,101,4],[98,5,101,5],[98,6,98,10],[99,6,99,10],[100,6,100,10],[101,6,101,10],[94,4,97,4],[94,5,97,5],[94,6,94,10],[95,6,95,10],[96,6,96,10],[97,6,97,10],[90,4,93,4],[90,5,93,5],[90,6,90,10],[91,6,91,10],[92,6,92,10],[93,6,93,10],[86,4,89,4],[86,5,89,5],[86,6,86,10],[87,6,87,10],[88,6,88,10],[89,6,89,10],[82,4,85,4],[82,5,85,5],[82,6,82,10],[83,6,83,10],[84,6,84,10],[85,6,85,10],[78,4,81,4],[78,5,81,5],[78,6,78,10],[79,6,79,10],[80,6,80,10],[81,6,81,10],[74,4,77,4],[74,5,77,5],[74,6,74,10],[75,6,75,10],[76,6,76,10],[77,6,77,10],[70,4,73,4],[70,5,73,5],[70,6,70,10],[71,6,71,10],[72,6,72,10],[73,6,73,10],[66,4,69,4],[66,5,69,5],[66,6,66,10],[67,6,67,10],[68,6,68,10],[69,6,69,10],[62,4,65,4],[62,5,65,5],[62,6,62,10],[63,6,63,10],[64,6,64,10],[65,6,65,10],[58,4,61,4],[58,5,61,5],[58,6,58,10],[59,6,59,10],[60,6,60,10],[61,6,61,10],[54,4,57,4],[54,5,57,5],[54,6,54,10],[55,6,55,10],[56,6,56,10],[57,6,57,10],[50,4,53,4],[50,5,53,5],[50,6,50,10],[51,6,51,10],[52,6,52,10],[53,6,53,10],[46,4,49,4],[46,5,49,5],[46,6,46,10],[47,6,47,10],[48,6,48,10],[49,6,49,10],[42,4,45,4],[42,5,45,5],[42,6,42,10],[43,6,43,10],[44,6,44,10],[45,6,45,10],[38,4,41,4],[38,5,41,5],[38,6,38,10],[39,6,39,10],[40,6,40,10],[41,6,41,10],[22,6,22,10],[23,6,23,10],[24,6,24,10],[25,6,25,10],[34,4,37,4],[34,5,37,5],[34,6,34,10],[35,6,35,10],[36,6,36,10],[37,6,37,10],[30,4,33,4],[30,5,33,5],[30,6,30,10],[31,6,31,10],[32,6,32,10],[33,6,33,10],[112,4,122,10],[4,4,4,7],[4,8,4,11],[5,8,5,11],[10,4,13,4],[10,5,13,5],[13,6,13,10],[14,5,17,5],[14,6,14,10],[15,6,15,10],[16,6,16,10],[17,6,17,10],[18,4,21,4],[18,5,21,5],[18,6,18,10],[19,6,19,10],[26,4,29,4],[26,5,29,5],[26,6,26,10],[27,6,27,10],[28,6,28,10],[29,6,29,10],[22,4,25,4],[22,5,25,5],[20,6,20,10],[21,6,21,10],[14,4,17,4],[2,4,2,10],[5,4,5,7],[9,6,9,10],[3,4,3,7],[3,8,3,11],[10,6,10,10],[11,6,11,10],[12,6,12,10]]}
[]
[]
[null,null,null,null,"ANEXO 4 EVALUACIÓN DE PROGRAMAS Y/O PROYECTOS (AVANCE CUALITATIVO)"]
[null,null,null,null,"NOMBRE DE LA SECRETARIA: ",null,null,null,{"$f":"'Anexo Cuantitativo'!G5","v":"OPD"}]
[null,null,null,null,"NOMBRE DE LA ENTIDAD PÚBLICA: ",null,null,null,{"$f":"'Anexo Cuantitativo'!G6","v":"IMMUJERES"}]
[null,null,null,null,"TRIMESTRE REPORTADO:",null,null,null,{"$f":"'Anexo Cuantitativo'!G7","v":"Del 1 de Octubre al 31 de Diciembre del 2024"}]
[]
[]
[null,null,null,null,null,null,"DESCRIPCIÓN"]
[null,null,null,null,"NO.","NOMBRE DE LA PROPUESTA","DESCRIPCIÓN DE LAS ACTIVIDADES REALIZADAS                                                                                                                    (REDACTAR SÓLO LO REALIZADO EN TIEMPO PASADO)                                                                                                                                                  "]
[null,null,null,null,1,{"$f":"IFERROR('Anexo Cuantitativo'!D13,\" \")","v":"Enfoque Transversal con Perspectiva de Género"},"Se realizó un convenio con Casa Calera, que atiende a mujeres con situaciones de vulnerabilidad enfocadas en las adicciones o temas conductuales. Se asistió a una reunión de trabajo en la Comisaría de Seguridad Municipal de Tlaquepaque sobre el Programa Sendero Seguro, que buscaba garantizar la seguridad de las escuelas y sus estudiantes. Se llevó a cabo de manera interinstitucional la colaboración del Instituto en jornadas de salud junto a otras dependencias y OPDs, en las que se buscaba tener mayor cercanía con la ciudadanía. De igual manera, se asistió a la Comisaría de Seguridad de Tlaquepaque referente a la Mesa de Construcción de Paz y Seguridad, en la que se buscó unir esfuerzos de coordinación entre los tres niveles de gobierno para la lucha contra la violencia y la impunidad. Finalmente, se realizó un foro con la temática \"Retos y Oportunidades en la Defensa de Derechos Humanos de Mujeres Víctimas de Violencia\" con invitadas especialistas en dicho tema.",null,null,null,null,"qa "]
[null,null,null,null,null,null,"Narrativa de trimestre Enero-marzo:                                                                                                                                                                                                                                                                                                                                                                                                                                                                                                                                                                                                         "]
[null,null,null,null,null,null,"Narrativa de trimestre Abril-junio:                                                                                                                                                                                                                                                                                                                                                                                                                                                                                                                                                                                                                                                                                                                                                                                                                                                                                                                                                                                                                                               "]
[null,null,null,null,null,null,"Narrativa de trimestre Julio-sept:"]
[null,null,null,null,{"$f":"E11+1","v":2},{"$f":"IFERROR('Anexo Cuantitativo'!D14,\" \")","v":"Enfoque Transversal con Perspectiva de Género"},"Narrativa de trimestre Octubre-diciembre: Se observó la falta de actualización sobre el Reglamento Interno del propio Instituto, por lo que se atendió para su pronta finalización."]
[null,null,null,null,null,null,"Narrativa de trimestre Enero-marzo:                                                                                                                                                                                                                                                                                                                                                                                                                                                                                                                                                                                                         "]
[null,null,null,null,null,null,"Narrativa de trimestre Abril-junio:                                                                                                                                                                                                                                                                                                                                                                                                                                                                                                                                                                                                                                                                                                                                                                                                                                                                                                                                                                                                                                               "]
[null,null,null,null,null,null,"Narrativa de trimestre Julio-sept:"]
[null,null,null,null,{"$f":"E15+1","v":3},{"$f":"IFERROR('Anexo Cuantitativo'!D15,\" \")","v":"Enfoque Transversal con Perspectiva de Género"},"Narrativa de trimestre Octubre-diciembre: Se realizaron formatos de invitaciones y oficios que incluyeron la perspectiva de género con lenguaje incluyente, así como en formatos de publicidad interna del Instituto."]
[null,null,null,null,null,null,"Narrativa de trimestre Enero-marzo:                                                                                                                                                                                                                                                                                                                                                                                                                                                                                                                                                                                                         "]
[null,null,null,null,null,null,"Narrativa de trimestre Abril-junio:                                                                                                                                                                                                                                                                                                                                                                                                                                                                                                                                                                                                                                                                                                                                                                                                                                                                                                                                                                                                                                               "]
[null,null,null,null,null,null,"Narrativa de trimestre Julio-sept:"]
[null,null,null,null,{"$f":"E19+1","v":4},{"$f":"IFERROR('Anexo Cuantitativo'!D16,\" \")","v":"Enfoque Transversal con Perspectiva de Género"},"Narrativa de trimestre Octubre-diciembre:  Se realizaron diversos eventos sobre la temática de la perspectiva de género, así como sobre la eliminación de la violencia hacia las mujeres, en los que se obtuvo una buena respuesta por parte de las mujeres asistentes."]
[null,null,null,null,null,null,"Narrativa de trimestre Enero-marzo:                                                                                                                                                                                                                                                                                                                                                                                                                                                                                                                                                                                                         "]
[null,null,null,null,null,null,"Narrativa de trimestre Abril-junio:                                                                                                                                                                                                                                                                                                                                                                                                                                                                                                                                                                                                                                                                                                                                                                                                                                                                                                                                                                                                                                               "]
[null,null,null,null,null,null,"Narrativa de trimestre Julio-sept:"]
[null,null,null,null,{"$f":"E23+1","v":5},{"$f":"IFERROR('Anexo Cuantitativo'!D17,\" \")","v":"Libres por la igualdad"},"Narrativa de trimestre Octubre-diciembre: Se realizaron campañas de difusión a través de las diversas herramientas de comunicación interna del propio Instituto, como por ejemplo Facebook, Instagram y Twitter. Se tomaron en cuenta acciones en la comunidad, en donde el Instituto asistió a diversas delegaciones, como Santa Anita, Santa María Tequepexpan, Toluquilla, Loma Bonita, San Sebastianito, San Martín de las Flores y  San Pedrito.\nSe implementó, en apoyo a las mujeres víctimas de violencia que se atienden en el propio Instituto, el Programa de Ludoteca, en el que todas aquellas mujeres que lleguen solicitando atención y vengan con bebés o niños, también puedan tener un espacio digno con ambiente a cargo de personal especializado mientras se le brinda la atención a la madre.\nSe implementó la participación política de un grupo de mujeres activistas en uno de los eventos que realizó el Instituto, a modo de que intervinieran con una pinta de graffiti artístico conmemorando la eliminación de la violencia de género.\nSe llevó a cabo la colaboración en conjunto con grandes empresas importantes para consolidar la autonomía económica de las mujeres víctimas de violencia que atiende el Instituto, en donde se les ofrece una amplia bolsa de trabajo con las distintas empresas, como por ejemplo: Sello Rojo, LALA, Kellogg's y algunas franquicias de la cadena de gasolineras PEMEX."]
[null,null,null,null,null,null,"Narrativa de trimestre Enero-marzo:                                                                                                                                                                                                                                                                                                                                                                                                                                                                                                                                                                                                         "]
[null,null,null,null,null,null,"Narrativa de trimestre Abril-junio:                                                                                                                                                                                                                                                                                                                                                                                                                                                                                                                                                                                                                                                                                                                                                                                                                                                                                                                                                                                                                                               "]
[null,null,null,null,null,null,"Narrativa de trimestre Julio-sept:"]
[null,null,null,null,{"$f":"E27+1","v":6},{"$f":"IFERROR('Anexo Cuantitativo'!D18,\" \")","v":"Libres por la igualdad"},"Narrativa de trimestre Octubre-diciembre:Con las acciones realizadas por el Instituto en colaboración con empresas y personal del propio instituto, se logró impactar en todas estas mujeres que, de alguna manera, fueron víctimas de violencia, por lo que se buscó apoyarlas en su desarrollo economíco. ."]
[null,null,null,null,null,null,"Narrativa de trimestre Enero-marzo:                                                                                                                                                                                                                                                                                                                                                                                                                                                                                                                                                                                                         "]
[null,null,null,null,null,null,"Narrativa de trimestre Abril-junio:                                                                                                                                                                                                                                                                                                                                                                                                                                                                                                                                                                                                                                                                                                                                                                                                                                                                                                                                                                                                                                               "]
[null,null,null,null,null,null,"Narrativa de trimestre Julio-sept:"]
[null,null,null,null,{"$f":"E31+1","v":7},{"$f":"IFERROR('Anexo Cuantitativo'!D19,\" \")","v":"Libres por la igualdad"},"Narrativa de trimestre Octubre-diciembre: "]
[null,null,null,null,null,null,"Narrativa de trimestre Enero-marzo:                                                                                                                                                                                                                                                                                                                                                                                                                                                                                                                                                                                                         "]
[null,null,null,null,null,null,"Narrativa de trimestre Abril-junio:                                                                                                                                                                                                                                                                                                                                                                                                                                                                                                                                                                                                                                                                                                                                                                                                                                                                                                                                                                                                                                               "]
[null,null,null,null,null,null,"Narrativa de trimestre Julio-sept:"]
[null,null,null,null,{"$f":"E35+1","v":8},{"$f":"IFERROR('Anexo Cuantitativo'!D20,\" \")","v":"Vivir sin violencia"},"Narrativa de trimestre Octubre-diciembre:  Todas aquellas mujeres que llegaron a nuestro Instituto buscando ayuda de asesoramiento legal y psicológico, las cuales fueron víctimas de algún tipo de violencia de género ocasionada por el género masculino."]
[null,null,null,null,null,null,"Narrativa de trimestre Enero-marzo:                                                                                                                                                                                                                                                                                                                                                                                                                                                                                                                                                                                                         "]
[null,null,null,null,null,null,"Narrativa de trimestre Abril-junio:                                                                                                                                                                                                                                                                                                                                                                                                                                                                                                                                                                                                                                                                                                                                                                                                                                                                                                                                                                                                                                               "]
[null,null,null,null,null,null,"Narrativa de trimestre Julio-sept:"]
[null,null,null,null,{"$f":"E39+1","v":9},{"$f":"IFERROR('Anexo Cuantitativo'!D21,\" \")","v":"Vivir sin violencia"},"Narrativa de trimestre Octubre-diciembre: Se realizaron caravanas de salud en las distintas delegaciones del municipio, en donde se brindó asesoramiento y orientación a mujeres sobre los lugares a los que debían acudir para recibir atención y seguimiento de su caso. En eventos como un cineforo, se proyectó una película llamada \"Desde mi Cielo\" que abordaba la violencia y la concientización de cómo la experimentan las mujeres.\nSe llevó a cabo un cambaceo en dichos eventos y caravanas, en donde se proporcionó publicidad sobre cómo prevenir la violencia y se ofrecieron números de contacto para que las mujeres puedan acudir en caso de estar viviendo algún tipo de violencia. También se realizaron talleres de prevención y concientización sobre la violencia de género.\nAdemás, se establecieron juntas de trabajo con la directora de UVI para fortalecer lazos colaborativos en beneficio de las mujeres, así como con la comisaria de seguridad de Tlaquepaque en conjunto con los tres niveles de gobierno. En estas juntas, se previó la prevención de delitos que atenten contra la integridad de las estudiantes, y se promovió la concientización sobre la eliminación de la violencia de género a través de la jornada del 25 de noviembre, en la que se desarrollaron temas para la prevención de violencias hacia las mujeres."]
[null,null,null,null,null,null,"Narrativa de trimestre Enero-marzo:                                                                                                                                                                                                                                                                                                                                                                                                                                                                                                                                                                                                         "]
[null,null,null,null,null,null,"Narrativa de trimestre Abril-junio:                                                                                                                                                                                                                                                                                                                                                                                                                                                                                                                                                                                                                                                                                                                                                                                                                                                                                                                                                                                                                                               "]
[null,null,null,null,null,null,"Narrativa de trimestre Julio-sept:"]
[null,null,null,null,{"$f":"E43+1","v":10},{"$f":"IFERROR('Anexo Cuantitativo'!D22,\" \")","v":"Vivir sin violencia"},"Narrativa de trimestre Octubre-diciembre: "]
[null,null,null,null,null,null,"Narrativa de trimestre Enero-marzo:                                                                                                                                                                                                                                                                                                                                                                                                                                                                                                                                                                                                         "]
[null,null,null,null,null,null,"Narrativa de trimestre Abril-junio:                                                                                                                                                                                                                                                                                                                                                                                                                                                                                                                                                                                                                                                                                                                                                                                                                                                                                                                                                                                                                                               "]
[null,null,null,null,null,null,"Narrativa de trimestre Julio-sept:"]
[null,null,null,null,{"$f":"E47+1","v":11},{"$f":"IFERROR('Anexo Cuantitativo'!D23,\" \")","v":"Vivir sin violencia"},"Narrativa de trimestre Octubre-diciembre:Con todas las acciones realizadas por el Instituto, divididas en otros campos relativos a los diversos Programas y Proyectos (PbR) con los que se cuenta, se han obtenido estos resultados, ya que ambos PbR contribuyen a la prevención de la violencia y a la perspectiva de género desde distintos temas, como la transversalidad, la igualdad y la violencia de género."]
[null,null,null,null,null,null,"Narrativa de trimestre Enero-marzo:                                                                                                                                                                                                                                                                                                                                                                                                                                                                                                                                                                                                         "]
[null,null,null,null,null,null,"Narrativa de trimestre Abril-junio:                                                                                                                                                                                                                                                                                                                                                                                                                                                                                                                                                                                                                                                                                                                                                                                                                                                                                                                                                                                                                                               "]
[null,null,null,null,null,null,"Narrativa de trimestre Julio-sept:"]
[null,null,null,null,{"$f":"E51+1","v":12},{"$f":"IFERROR('Anexo Cuantitativo'!D24,\" \")","v":"Vivir sin violencia"},"Narrativa de trimestre Octubre-diciembre: Se realizo el evento conmemorativo del 25N \"Día de la Eliminación de la Violencia de Género\" llamado \" Huellas con Historia\" contando con participación de activistas, mujeres de la comunidad de San Pedro Tlaquepaque,  regidores, directivos y perosnal de distintas dependencias y OPDs, teniendo un impacto de mas de 100 mujeres asistentes. "]
[null,null,null,null,null,null,"Narrativa de trimestre Enero-marzo:                                                                                                                                                                                                                                                                                                                                                                                                                                                                                                                                                                                                         "]
[null,null,null,null,null,null,"Narrativa de trimestre Abril-junio:                                                                                                                                                                                                                                                                                                                                                                                                                                                                                                                                                                                                                                                                                                                                                                                                                                                                                                                                                                                                                                               "]
[null,null,null,null,null,null,"Narrativa de trimestre Julio-sept:"]
[null,null,null,null,{"$f":"E55+1","v":13},{"$f":"IFERROR('Anexo Cuantitativo'!D25,\" \")","v":" "},"Narrativa de trimestre Octubre-diciembre: "]
[null,null,null,null,null,null,"Narrativa de trimestre Enero-marzo:                                                                                                                                                                                                                                                                                                                                                                                                                                                                                                                                                                                                         "]
[null,null,null,null,null,null,"Narrativa de trimestre Abril-junio:                                                                                                                                                                                                                                                                                                                                                                                                                                                                                                                                                                                                                                                                                                                                                                                                                                                                                                                                                                                                                                               "]
[null,null,null,null,null,null,"Narrativa de trimestre Julio-sept:"]
[null,null,null,null,{"$f":"E59+1","v":14},{"$f":"IFERROR('Anexo Cuantitativo'!D26,\" \")","v":" "},"Narrativa de trimestre Octubre-diciembre: "]
[null,null,null,null,null,null,"Narrativa de trimestre Enero-marzo:                                                                                                                                                                                                                                                                                                                                                                                                                                                                                                                                                                                                         "]
[null,null,null,null,null,null,"Narrativa de trimestre Abril-junio:                                                                                                                                                                                                                                                                                                                                                                                                                                                                                                                                                                                                                                                                                                                                                                                                                                                                                                                                                                                                                                               "]
[null,null,null,null,null,null,"Narrativa de trimestre Julio-sept:"]
[null,null,null,null,{"$f":"E63+1","v":15},{"$f":"IFERROR('Anexo Cuantitativo'!D27,\" \")","v":" "},"Narrativa de trimestre Octubre-diciembre: "]
[null,null,null,null,null,null,"Narrativa de trimestre Enero-marzo:                                                                                                                                                                                                                                                                                                                                                                                                                                                                                                                                                                                                         "]
[null,null,null,null,null,null,"Narrativa de trimestre Abril-junio:                                                                                                                                                                                                                                                                                                                                                                                                                                                                                                                                                                                                                                                                                                                                                                                                                                                                                                                                                                                                                                               "]
[null,null,null,null,null,null,"Narrativa de trimestre Julio-sept:"]
[null,null,null,null,{"$f":"E67+1","v":16},{"$f":"IFERROR('Anexo Cuantitativo'!D28,\" \")","v":" "},"Narrativa de trimestre Octubre-diciembre: "]
[null,null,null,null,null,null,"Narrativa de trimestre Enero-marzo:                                                                                                                                                                                                                                                                                                                                                                                                                                                                                                                                                                                                         "]
[null,null,null,null,null,null,"Narrativa de trimestre Abril-junio:                                                                                                                                                                                                                                                                                                                                                                                                                                                                                                                                                                                                                                                                                                                                                                                                                                                                                                                                                                                                                                               "]
[null,null,null,null,null,null,"Narrativa de trimestre Julio-sept:"]
[null,null,null,null,{"$f":"E71+1","v":17},{"$f":"IFERROR('Anexo Cuantitativo'!D29,\" \")","v":" "},"Narrativa de trimestre Octubre-diciembre: "]
[null,null,null,null,null,null,"Narrativa de trimestre Enero-marzo:                                                                                                                                                                                                                                                                                                                                                                                                                                                                                                                                                                                                         "]
[null,null,null,null,null,null,"Narrativa de trimestre Abril-junio:                                                                                                                                                                                                                                                                                                                                                                                                                                                                                                                                                                                                                                                                                                                                                                                                                                                                                                                                                                                                                                               "]
[null,null,null,null,null,null,"Narrativa de trimestre Julio-sept:"]
[null,null,null,null,{"$f":"E75+1","v":18},{"$f":"IFERROR('Anexo Cuantitativo'!D30,\" \")","v":" "},"Narrativa de trimestre Octubre-diciembre: "]
[null,null,null,null,null,null,"Narrativa de trimestre Enero-marzo:                                                                                                                                                                                                                                                                                                                                                                                                                                                                                                                                                                                                         "]
[null,null,null,null,null,null,"Narrativa de trimestre Abril-junio:                                                                                                                                                                                                                                                                                                                                                                                                                                                                                                                                                                                                                                                                                                                                                                                                                                                                                                                                                                                                                                               "]
[null,null,null,null,null,null,"Narrativa de trimestre Julio-sept:"]
[null,null,null,null,{"$f":"E79+1","v":19},{"$f":"IFERROR('Anexo Cuantitativo'!D31,\" \")","v":" "},"Narrativa de trimestre Octubre-diciembre: "]
[null,null,null,null,null,null,"Narrativa de trimestre Enero-marzo:                                                                                                                                                                                                                                                                                                                                                                                                                                                                                                                                                                                                         "]
[null,null,null,null,null,null,"Narrativa de trimestre Abril-junio:                                                                                                                                                                                                                                                                                                                                                                                                                                                                                                                                                                                                                                                                                                                                                                                                                                                                                                                                                                                                                                               "]
[null,null,null,null,null,null,"Narrativa de trimestre Julio-sept:"]
[null,null,null,null,{"$f":"E83+1","v":20},{"$f":"IFERROR('Anexo Cuantitativo'!D32,\" \")","v":" "},"Narrativa de trimestre Octubre-diciembre: "]
[null,null,null,null,null,null,"Narrativa de trimestre Enero-marzo:                                                                                                                                                                                                                                                                                                                                                                                                                                                                                                                                                                                                         "]
[null,null,null,null,null,null,"Narrativa de trimestre Abril-junio:                                                                                                                                                                                                                                                                                                                                                                                                                                                                                                                                                                                                                                                                                                                                                                                                                                                                                                                                                                                                                                               "]
[null,null,null,null,null,null,"Narrativa de trimestre Julio-sept:"]
[null,null,null,null,{"$f":"E87+1","v":21},{"$f":"IFERROR('Anexo Cuantitativo'!D33,\" \")","v":" "},"Narrativa de trimestre Octubre-diciembre: "]
[null,null,null,null,null,null,"Narrativa de trimestre Enero-marzo:                                                                                                                                                                                                                                                                                                                                                                                                                                                                                                                                                                                                         "]
[null,null,null,null,null,null,"Narrativa de trimestre Abril-junio:                                                                                                                                                                                                                                                                                                                                                                                                                                                                                                                                                                                                                                                                                                                                                                                                                                                                                                                                                                                                                                               "]
[null,null,null,null,null,null,"Narrativa de trimestre Julio-sept:"]
[null,null,null,null,{"$f":"E91+1","v":22},{"$f":"IFERROR('Anexo Cuantitativo'!D34,\" \")","v":" "},"Narrativa de trimestre Octubre-diciembre: "]
[null,null,null,null,null,null,"Narrativa de trimestre Enero-marzo:                                                                                                                                                                                                                                                                                                                                                                                                                                                                                                                                                                                                         "]
[null,null,null,null,null,null,"Narrativa de trimestre Abril-junio:                                                                                                                                                                                                                                                                                                                                                                                                                                                                                                                                                                                                                                                                                                                                                                                                                                                                                                                                                                                                                                               "]
[null,null,null,null,null,null,"Narrativa de trimestre Julio-sept:"]
[null,null,null,null,{"$f":"E95+1","v":23},{"$f":"IFERROR('Anexo Cuantitativo'!D35,\" \")","v":" "},"Narrativa de trimestre Octubre-diciembre: "]
[null,null,null,null,null,null,"Narrativa de trimestre Enero-marzo:                                                                                                                                                                                                                                                                                                                                                                                                                                                                                                                                                                                                         "]
[null,null,null,null,null,null,"Narrativa de trimestre Abril-junio:                                                                                                                                                                                                                                                                                                                                                                                                                                                                                                                                                                                                                                                                                                                                                                                                                                                                                                                                                                                                                                               "]
[null,null,null,null,null,null,"Narrativa de trimestre Julio-sept:"]
[null,null,null,null,null,{"$f":"IFERROR('Anexo Cuantitativo'!D36,\" \")","v":" "},"Narrativa de trimestre Octubre-diciembre: "]
[null,null,null,null,null,null,"Narrativa de trimestre Enero-marzo:                                                                                                                                                                                                                                                                                                                                                                                                                                                                                                                                                                                                         "]
[null,null,null,null,null,null,"Narrativa de trimestre Abril-junio:                                                                                                                                                                                                                                                                                                                                                                                                                                                                                                                                                                                                                                                                                                                                                                                                                                                                                                                                                                                                                                               "]
[null,null,null,null,null,null,"Narrativa de trimestre Julio-sept:"]
[null,null,null,null,{"$f":"E99+1","v":24},{"$f":"IFERROR('Anexo Cuantitativo'!D36,\" \")","v":" "},"Narrativa de trimestre Octubre-diciembre: "]
[null,null,null,null,null,null,"Narrativa de trimestre Enero-marzo:                                                                                                                                                                                                                                                                                                                                                                                                                                                                                                                                                                                                         "]
[null,null,null,null,null,null,"Narrativa de trimestre Abril-junio:                                                                                                                                                                                                                                                                                                                                                                                                                                                                                                                                                                                                                                                                                                                                                                                                                                                                                                                                                                                                                                               "]
[null,null,null,null,null,null,"Narrativa de trimestre Julio-sept:"]

{"sheet":"Hoja2","index":2,"n_rows":7,"n_cols":2,"rows_kept":7,"cut":false,"hidden":true,"merged":[]}
[]
[]
[]
[]
[]
[null,"ESTRATÉGICO"]
[null,"GESTIÓN"]

{"sheet":"SECRETARIASYPROYECTOS","index":3,"n_rows":56,"n_cols":31,"rows_kept":56,"cut":false,"hidden":true,"merged":[[0,0,0,14],[0,16,0,30]]}
["SECRETARIAS / DIRECCIONES /SUBDIRECCIONES",null,null,null,null,null,null,null,null,null,null,null,null,null,null,null,"SECRETARIAS / PROYECTOS"]
["OFICINA_DE_PRESIDENCIA","SINDICATURA","SECRETARIA_DE_LA_CONSEJERIA_JURIDICA","SECRETARIA_DE_GOBERNANZA_Y_TERRITORIO","SECRETARIA_DE_ADMINISTRACION_Y_FINANZAS","SECRETARIA_DE_CONTRALORIA_MUNICIPAL_Y_COMBATE_A_LA_CORRUPCION","OFICIALIA_MAYOR","SECRETARIA_DE_PLANIFICACION_ANALISIS_Y_GESTION_URBANA","SECRETARIA_DE_BIENESTAR","SECRETARIA_DE_FOMENTO_ECONOMICO_Y_CULTURAL","SECRETARIA_DE_SERVICIOS_PUBLICOS_Y_MEDIO_AMBIENTE","SECRETARIA_DE_SALUD","SECRETARIA_DE_OBRAS_PUBLICAS","SECRETARIA_DE_SEGURIDAD_Y_PROTECCION_CIUDADANA","OPD",null,"PRESIDENCIA","SINDICATURA_PROYECTO","CONSEJERIA_JURIDICA","GOBERNANZA_Y_TERRITORIO"," ADMINISTRACION_Y_FINANZAS"," CONTRALORIA_MUNICIPAL_Y_COMBATE_A_LA_CORRUPCION","OFICIALIA","PLANIFICACION_ANALISIS_Y_GESTION_URBANA","BIENESTAR","FOMENTO_ECONOMICO_Y_CULTURAL","SERVICIOS_PUBLICOS_Y_MEDIO_AMBIENTE","SALUD","OBRAS_PUBLICAS","SEGURIDAD_Y_PROTECCION_CIUDADANA","OPD_PROYECTO"]
["DIRECCION DE ATENCION Y VINCULACION CIUDADANA","DEPARTAMENTO DE CONTRATOS Y CONVENIOS","DEPARTAMENTO DE RECLUTAMIENTO MILITAR","DELEGACION SAN SEBASTIANITO","DEPARTAMENTO DE BIENES MUEBLES","DIRECCION DE AUDITORIA A OBRA PUBLICA Y SERVICIOS","DEPARTAMENTO DE CAPACITACION Y SERVICIO SOCIAL","DEPARTAMENTO DE EVALUACION DE PROYECTOS Y PROGRAMAS","DIRECCION DE EDUCACION","DIRECCIÓN DE CEMENTERIOS","DEPARTAMENTO DE REGULACION AMBIENTAL","DEPARTAMENTO DE TRABAJO SOCIAL","DIRECCION DE CONSTRUCCION Y MANTENIMIENTO","DEPARTAMENTO DE AREA DE PREVENCION","COMUCAT",null,"Atención a Reportesde Servicios Públicos, Información sobre Ayudas Sociales y Reportes en General","Servicios de asesoramiento legal y jurídico a la población que presenta vulnerabilidad legal e indefención de su patrimonio","Opiniones jurídicas","Actividades Administrativas","Programa de Apoyo a Adultos Mayores","Análisis documental de expedientes de obras ","Elaboración de Manuales Administrativos","Coordinación de actividades de los departamentos de la Dirección de Desempeño, Resultados y Tablero de Control","Alas de Esperanza","Formacion Continua","Trabajos emergentes de redes hidrosanitarias ","Soporte Ventilatorio ","Programa de Urbanización ","Gestión Adquisición de Uniformes","Capacitaciones Preventivas en Adicciones "]
["DIRECCION DE COMUNICACION ESTRATEGICA","DEPARTAMENTO DE MEJORA REGULATORIA","DIRECCION DE APOYO A CABILDO","DEPARTAMENTO DE ASUNTOS RELIGIOSOS","DEPARTAMENTO DE REDES Y TELECOMUNICACIONES","DIRECCION DE AUDITORIA GUBERNAMENTAL Y COMBATE A LA CORRUPCION","DEPARTAMENTO DE INCIDENCIAS Y CALCULO DE NOMINA","DEPARTAMENTO DE GESTION TERRITORIAL SUELO Y VIVIENDA","DIRECCION DE PROGRAMAS SOCIALES PARA EL BIENESTAR","DIRECCION DE CULTURA","DIRECCION DE AGUA POTABLE, DRENAJE Y ALCANTARILLADO","DIRECCION DE SALUD PUBLICA","DIRECCION DE PRESUPUESTOS Y CONTRATACION DE OBRA PUBLICA","DIRECCION ADMINISTRATIVA","COMUDE",null,"Atencion y capacitacion a organizaciones vecinales en materia de participacion ciudadana","Catálogo Municipal de Trámites y Servicios","Consultas y asesoría jurídica","Atención a Solicitudes Ciudadanas","Programa de Convenios","Control documental de expedientes de obras ","Armonización Organizativa ","Servicio de Acompañamiento para la gestión del sistema de Planeación Municipal ","Aprendiendo bien ","Ferias, Festivales y Exposiciones","Servicio  Medido ","Atención Urgente en Sala de Choque","Señalización Horizontal y Vertical ","Programa permanente de seguimiento para la administración eficiente de los recursos humanos y materiales de la Secretaría ","Atención Terapeútica "]
["SUBDIRECCION DE GESTION DE PARTICIPACION TERRITORIAL","DIRECCION JURIDICA","DIRECCION DE DERECHOS HUMANOS","DEPARTAMENTO DE OFICINA DE PASAPORTES","DEPARTAMENTO DE SERVICIOS GENERALES","DIRECCION DE RESPONSABILIDADES Y EVOLUCION PATRIMONIAL","DIRECCION DE DESARROLLO ORGANIZACIONAL","DEPARTAMENTO DE INDICADORES Y METAS PARA RESULTADOS","SUBDIRECCION DE DESARROLLO Y ATENCION AL SECTOR AGROPECUARIO","DIRECCION DE DESARROLLO ARTESANAL Y TURISTICO","DIRECCION DE ALUMBRADO PUBLICO","DIRECCION DE URGENCIAS MEDICAS","SUBDIRECCION DE INSPECCION DE CONTROL DE LA EDIFICACION Y ORDENAMIENTO TERRITORIAL","DIRECCION DE ATENCION A LA VIOLENCIA DE GENERO","IMJUVET",null,"Conformacion de Organizaciones Vecinales","Servicio de Revisión Contratos ","Cartillas Militares","Brigadas de Mantenimiento y Recuperación de Espacios Públicos ","Programa Integral de Recaudación","Auditorías ","Certificación en el ECO385","Seguimiento y Evaluación a la Administración Pública Municipal","Unidos en Corazón ","Cultura por la Paz","Recepción, Distribución, Dosificación, Monitoreo de cloro residual de Agua Potable","Enseñanza Continua","Intervenciones al Entorno Urbano","Material para el desempeño de las actividades de la Unidad de Proximidad Social ","Espacios COMUCAT"]
["UNIDAD DE TRANSPARENCIA","SINDICATURA","DIRECCION DE MEDIACION Y JUZGADOS CIVICOS MUNICIPALES","DIRECCION DE ARCHIVO MUNICIPAL","DEPARTAMENTO DE SOPORTE Y MANTENIMIENTO","SUBDIRECCION DE AUDITORIA FINANCIERA Y DE DESEMPEÑO","","DEPARTAMENTO DE PLANEACION URBANA",null,"DIRECCION DE GESTION EMPRESARIAL E INDUSTRIAL","DIRECCION DE ASEO PUBLICO","SUBDIRECCION DE ENSEÑANZA","SUBDIRECCION DE MANTENIMIENTO","DIRECCION DE BOMBEROS Y PROTECCION CIVIL","IMMUJERES",null,"Socializando y perifoneando para la cuidadania","Actualización de los instrumentos de control de Archivo de Tramite de la Sindicatura","Campaña de Integración Familiar 2025","Festividades Tradicionales Cívicas","Administración y control de los Recursos Materiales  ","Visitas de Inspección ","Capacitación en materia de Derechos Humanos","Seguimiento y Evaluación a los Programas Sociales","Cuidando tu Esperanza","Cultura en tu colonia ","Padrón Único de Usuarios","Monitores al Área de Urgencias (Choque)","Mtto. a Edificios y Espacios Públicos","Certificación de personal y oficiales caninos K-9","Red de Apoyo para Establecimientos especializado en Adicciones "]
["","","DIRECCION DE REGISTRO CIVIL","DIRECCION DE DELEGACIONES Y AGENCIAS","DEPARTAMENTO DE TALLER MUNICIPAL","","","DEPARTAMENTO DEL SISTEMA DE EVALUACION DEL DESEMPEÑO",null,"DIRECCION DEL CENTRO HISTORICO","DIRECCION DE RASTRO","SUBDIRECCION DE SALUD ANIMAL","","DIRECCION OPERATIVA","PREMIO NACIONAL DE LA CERÁMICA",null,"Campañas en Redes Sociales ","Presentación de Iniciativas de modificación de normatividad","Celebracion de Matrimonios en Lugares emblemáticos ","Visitas a Colonias ","Administracion de Bienes Inmuebles","Auditorías ","Desarrollo Académico Básico de las y los servidores públicos de la Secretaría de Servicios Públicos y Medio Ambiente ","Banco integrado de proyectos y programas","Esperanza Joven ","Amigos de Refugio ","Gestión y puesta en marcha del laboratorio de análisis de Agua Potable","Camillas al Área de Urgencias (Choque)","Programa Permanente de Mantenimiento de Vialidades ","Equipamiento para el desarrollo del centro de unidades policiales especializadas de Tlaquepaque (C.U.P.E.T.)","Área Alimentaria "]
["","","DIRECCION LEGAL-CONSULTIVA","DIRECCION DE INSPECCION Y VIGILANCIA","DIRECCION DE CATASTRO","","","DIRECCION DE GESTION DEL DESEMPEÑO, EVALUACION DE RESULTADOS Y TABLERO DE CONTROL",null,"SUBDIRECCION DE BIBLIOTECAS","DIRECCION DE SALUD AMBIENTAL Y CAMBIO CLIMATICO",null,"","SUBDIRECCION DE GESTION GENERAL DEL RIESGO","Sistema de Desarrollo Integral de la Familia (DIF) de Tlaquepaque",null,"Atención a Reportesde Servicios Públicos, Información sobre Ayudas Sociales y Reportes en General",null,"Calificacion de Actas de Infraccion ","Servicio eficaz de trámite de licencias municipal precensial y en línea","Actualización y control de los inventarios de los bienes muebles.","Procedimientos de aclaración derivados de entrega recepción ","Difusión de Protocolos ","Seguimiento de  Mesas de gestión Metropolitana ante el IMEPLAN ","Inclusión con Esperanza","Equipamiento de talleres y Administrativo de Artes, Artesanías y Oficios","Estudio de Factibiloidades de Redes Hidrosanitarias ","Terapia de Infusión Intravenosa","Mantenimiento a Escuelas ","Proyecto de adapatación de espacio para entrenamiento de oficiales caninos  ","Psicología "]
["","","OFICINA DEL REGISTRO CIVIL NO. 1","DIRECCION DE PADRON Y LICENCIAS","DIRECCION DE CONTABILIDAD Y GLOSA","","","DIRECCION DE GESTION TERRITORIAL Y PLANEACION URBANA","","SUBDIRECCION DE MUSEOS","SUBDIRECCION DE\nPARQUES, JARDINES Y GESTIÓN\nDEL CAMBIO CLIMÁTICO DE SERVICIOS ECOSISTEMICOS Y GESTION DEL CAMBIO CLIMATICO",null,"","SUBDIRECCION DE PLANEACION ESTRATEGICA","",null,"Atencion y capacitacion a organizaciones vecinales en materia de participacion ciudadana",null,"Restablecer el servicio de trabajo social y psicología a Juzgados Cívicos Municipales ","Regularizacion de licencias en base a la ley de hacienda","Implementar Sistema de Inventarios  ","Visitas de Inspección ","Fortalecimiento y Desarrollo de Habilidades Blandas y Desarrollo Humano","Gestión de recursos para la adquisición de vehículos para el seguimiento de programas de los tres niveles de gobierno ","Legados de Esperanza ","Equipamiento para las Bibliotecas","Equipamiento de Parque Vehicular para el Suministro de Agua Potable","Prevención de riesgo de caidas ","Programa para la gestión sustentable de la infraestructura y movilidad segura.","Unidad de Proximidad Policial ","Talleres de Esperanza "]
["","","SECRETARIA DE LA CONSEJERIA JURIDICA","DIRECCION DE PADRON Y LICENCIAS 1","DIRECCION DE EGRESOS","","","DIRECCION DEL BANCO INTEGRADO DE PROYECTOS Y PROGRAMAS","",null,"SUBDIRECCION DE SERVICIOS ECOSISTEMICOS Y GESTION DEL CAMBIO CLIMATICO DE\nPARQUES, JARDINES Y GESTIÓN\nDEL CAMBIO CLIMÁTICO",null,"","SUBDIRECCION DE PREVENCION AL DELITO","",null,"Conformacion de Organizaciones Vecinales",null,"Construcción y habilitación del espacio digno y seguro para la atención a mujeres víctimas de violencia ","Verificación de giros comerciales rezagados en el municipio de San Pedro Tlaquepaque","Recursos Humanos eficiente ","Educación e Innovación Técnológica","Fortalecimiento y Desarrollo de Habilidades Técnicas","Dictamen de evaluación de solicitud de obras","Líderes de Esperanza","Mantenimiento de la infraestructura de las Bibliotecas","Entrega del Vital Líquido ","Ferías de la Salud Tlaquepaque","Programa para la gestión sustentable de la infraestructura básica.","Atención a las violencias en el ámbito familiar y seguimiento a Medidas/Ordenes de Protercción emitidas en razón de Género.","Programa de Atención a la Discapacidad "]
["","",null,"SUBDIRECCION DE ATENCION E INSPECCION A TIANGUIS Y ESPACIOS ABIERTOS","DIRECCION DE INGRESOS","","","SECRETARIA DE PLANIFICACION, ANALISIS Y GESTION URBANA","",null,null,null,"","SUBDIRECCION DE PROFESIONALIZACION Y ACREDITACION POLICIAL","",null,"Socializando y perifoneando para la cuidadania",null,"Difusión de la Cultura de Paz en conflictos comunitarios ","Verificación y regularización de residuos peligrosos y emisiones en talleres de laminado y pintura ","Mantenimiento preventivo y correctivo del parque vehicular ",null,"Promoción de estilos de vida y entornos laboral, alimentaria y físicamente saludable para el personal","Coordinación de actividades de las direcciones que integran la Secretaría de Planificación, Análisis y Gestión Urbana ","Mujeres Colibrí","Talleres de Fomento a Cultura","Actualización de Datos de Redes Hidrosanitarias ","Reinstauracion de Unidad Medica La Guadalupana","Programa para la recuperación del espacio público y regeneración del tejido social","Prevención Comunitaria de las Violencias en el ámbito familiar y por razón de género.","Inclusión y Derechos Humanos de las Personas con Discapacidad"]
["","","","SUBDIRECCION DE ATENCION E INSPECCION DE MERCADOS","DIRECCION DE RECURSOS MATERIALES","","",null,"",null,null,null,"","SUBDIRECCION DE VIALIDAD","",null,"Campañas en Redes Sociales ",null,"Atención primaria a problemas de adicción ","Regularizar comercio en espacio abierto en la colonia San Martín de las Flores ","Licitaciones Ejecutadas ",null,"Tlaquepaque Universitario ",null,"Nutriendo Esperanza ","XVLVII Premio Nacional de la Cerámica","Servicio de dictaminación ambiental","Vinculación de Asistencia Social","Programa Fortalecimiento institucional financiero y operativo, para la provisión de los servicios públicos municipales bajo criterios de calidad, eficiencia y oportunidad.","Programa Volanta","Protección y Atención ante casos de Violencia Familia"]
["","","","SUBDIRECCION DE INSPECCION AMBIENTAL","SUBDIRECCION DE COMPRAS Y ADQUISICIONES","","","","","",null,"","","SUBDIRECCION DE VINCULACION CIUDADANA","",null,null,null,"Orientación y Asesoría Jurídica ","Actualizar los padrones de los comerciantes de tianguis ","Capacitación para Adquisiciones ",null,"Pago de Nóminas ",null,"Ojos mirando al Futuro ","Museos a la Calle ","Retiro de bienes en estado de abandono en la vía pública","Campañas de esterilización y vacunación antirrábica gratuitas ","Programa de Inspección y Vigilancia de Tramites y Licencias de Construcción.","Gestión y adquisición de vehículo,  equipos de computo y material, para una mejor atención eficiente y efizaz a los ciudadanos de San Pedro Tlaquepaque ","Procuraduría de Protección de NNA"]
["","","",null,"SUBDIRECCION DE CONTROL DE PAGOS","","","","","","","","","SUBDIRECCION JURIDICA Y DE DERECHOS HUMANOS","",null,null,null,"Diplomado en MASC","Recuperación de locales abandonados en merados municipales ","Porcentaje de presupuesto ejercido de acuerdo con criterios de eficiencia, austeridad y ahorro",null,null,null,"Peques, Estancias de Esperanza","Museo Itinerante ","Registro de ladrilleros","Atención Médica a Paciente Encamado a Domicilio ","Trámites y Servicios","Gestión, adquisición y entrega de uniformes","Albergue Vista Hermosa "]
["","","",null,"SUBDIRECCION DE PATRIMONIO","","","","","","","","","SUBDIRECCION OPERATIVA","",null,null,null,"La Mediación con rumbo a tu Colonia","Creación de un libro sobre la historia del Archivo Municipal ","Optimizar el proceso de pagos ",null,null,null,"Raíces Jóvenes ","Exposiciones Temporales","Registro de fuentes fijas municipales",null,null,"Gestión, adquisición y entrega de vehículos ","Protección y Restitución de Derechos de Niñas. Niños y Adolescentes "]
["","","",null,null,"","","","","","","","",null,"",null,null,null,"Atención y desahogo de los MASC ","Programa de Apoyo a la Infraestructura Cultural de los Estados PAICE ","Programa de elaboración y presentación de Cuentas Públicas",null,null,null,"Semilleros de la Esperanza","Acondicionamiento y Equipamiento del Centro Cultural El Refugio","Denuncia ambiental ciudadana",null,null,"Evaluaciones de Control de Confianza","Área Médica "]
["","","","",null,"","","","","","","","",null,"",null,null,null,"Apoyo Asuntos derivados por Secretaría","Programa de capacitación para la clasificación, organización, transferencia, resguardo y consulta de información oficial ","Normalización e identificación de la TI",null,null,null,"Tlaquepasos ","Equipamiento del Departamento Promoción y Difusión Cultural","Adopta un árbol y dale vida al planeta",null,null,"Credencialización de Personal Operativo ","Laboratorio Clínico "]
["","","","",null,"","","","","","","","",null,"",null,null,null,"Consolidar el Sistema de Información de Acuerdos del Pleno","Proyecto de digitalización para el Archivo Municipal ","Sistema de control de servicios ",null,null,null,"Tu Esperanza Vale","Rescatando nuestras Tradiciones ","Operativo de Reforestación",null,null,"Mantenimiento Preventivo de Armas ","Por una Gestión Responsable "]
[null,null,null,null,null,null,null,null,null,null,null,null,null,null,null,null,null,null,"Integración, Dictaminación de Iniciativas ","Campaña de divulgación cultural histórica del Archivo Muicipal a escuelas de educación básica en Tlaquepaque ","Instalación de Cámaras de Seguridad ",null,null,null,"Actividades Extraescolares ","Permanencia Pueblo Mágico ","Trituración de material organico para la elaboración de composta",null,null,"Compra de armamento ","Rehabilitación "]
[null,null,null,null,null,null,null,null,null,null,null,null,null,null,null,null,null,null,"Participación en Sesiones del Ayuntamiento","Coadyuvar en la creación de un convenio tripartita entre la A.C. Vifac, el Gobierno Municipal y Asociaciones religiosas de San Pedro Tlaquepaque  ","Reingeniería Ciudadanía Digital",null,null,null,"Re-conociendo a la labor docente y entrega de medalla al merito","Padrón Artesanal y Credencialización ","Operativo Mantenimiento de áreas verdes",null,null,"Compra de municiones ","Atención a la Población en Condiciones de Emergencia"]
[null,null,null,null,null,null,null,null,null,null,null,null,null,null,null,null,null,null,"Sitio Web de Actas y Acuerdos","Servicio de atención a las necesidades de las distintas asociaciones religiosas del municipio ","Tramites y Servicios ",null,null,null,"Re-conociendo con bienestar","Festivales, Eventos, Ferías y Exposiciones","Operativo de podas preventivas",null,null,"Compra de chalecos balísticos ","Fortalecimiento Sociofamiliar "]
[null,"Del 1 de Octubre al 31 de Diciembre del 2024",null,null,null,null,null,null,null,null,null,null,null,null,null,null,null,null,"Reconstruccion del tejido social. Atencion a los grupos vulnerables.","Trámite de Pasaporte Mexicano en Oficinas de Enlace de Tlaquepaque",null,null,null,null,"Profesionalización Docente ","Ferías y Exposiciones","Operativos de derribos secos",null,null,"Elaboración de documentos y/o diagnósticos basados en evidencias ","Atención Integral a personas a Adultos Mayores "]
[null,"Del 1 de Enero al 31 de Marzo del 2025",null,null,null,null,null,null,null,null,null,null,null,null,null,null,null,"Revisión documentos para firma Presidenta",null,null,null,null,null,"Alerta con la diversidad funcional ","Capacitación ","Parque Vehicular",null,null,"Coordinación de la Politica Transversal de Recontsrucción del Tejido Social ","CDC"]
[null,"Del 1 de Abril al 30 de Junio del 2025",null,null,null,null,null,null,null,null,null,null,null,null,null,null,null,"Atención y orientación jurídica a la ciudadanía",null,null,null,null,null,"Feria de la oferta educativa media superior y superior ","Mujeres Empresarias en Tlaquepaque","Sembrando Esperanza",null,null,"Sendero Seguro ","Clinica Deportiva Prevención de Adicciones "]
[null,"Del 1 de Julio al 31 de Septiembre del 2025",null,null,null,null,null,null,null,null,null,null,null,null,null,null,null,"Capacitación Jurídica al Gobierno Municipal",null,null,null,null,null,"Educación y capacitación para el medio ambiente","Expo Emprende y Transforma 2025","Creadores de Esperanza para el Medio Ambiente",null,null,"Programa de Participación Ciudadana (Línea Segura)","Prevención de Embarazo Adolescente "]
[null,null,null,null,null,null,null,null,null,null,null,null,null,null,null,null,null,null,"Participación comisiones, comités y grupos de trabajo",null,null,null,null,null,"Cabildo infantil y juvenil","Empleo a Tu Alcance","Gobierno con Buen Papel",null,null,"Actualización de Requisitos de Permanencia ","Crecer sin Violencia "]
[null,null,null,null,null,null,null,null,null,null,null,null,null,null,null,null,null,null,null,null,null,null,null,null,"Aulas tecnológicas e interáctivas","Capacitación Permanente Empresarial, Cooperativas bienes y/o Servicios y Talleres Autoempleo","Trueque",null,null,"Becas para Cadetes en Formación Inicial Policía de Proximidad","Situación de Calle "]
[null,null,null,null,null,null,null,null,null,null,null,null,null,null,null,null,null,null,null,null,null,null,null,null,"Abrigando tu bienestar","Vinculación directa con empresas","El Mercadito ",null,null,"Formación de docentes e instructores certificados","Mejoramiento Educativo "]
[null,null,null,null,null,null,null,null,null,null,null,null,null,null,null,null,null,null,null,null,null,null,null,null,"Escuelas para el bienestar","Mantenimiento y Conservación del Centro Histórico ","Hacía un futuro más limpio",null,null,"Convocatoria para Selección de Personal Operativo ","Prevención y Detención de abuso Sexual "]
[null,null,null,null,null,null,null,null,null,null,null,null,null,null,null,null,null,null,null,null,null,null,null,null,"Graduaciones del bienestar ","Exposiciones Casa Morelos ","Servicio de recolección de residuos urbanos",null,null,"Formación Inicial Policía de Proximidad","Beca Joven"]
[null,null,null,null,null,null,null,null,null,null,null,null,null,null,null,null,null,null,null,null,null,null,null,null,"Adecuaciones de acceso","Agenda del Espacio Público ","Fortalecimiento y adiestramiento al personal operativo ",null,null,"Profesionalización Continua ","Cabildo Juvenil "]
[null,null,null,null,null,null,null,null,null,null,null,null,null,null,null,null,null,null,null,null,null,null,null,null,"Expanción de delagaciónes del bienestar ",null,"Plataforma de Atención Ciudadana (Reportes)",null,null,"Selección y Reclutamiento para plazas operativas","Cine en tu Barrio "]
[null,null,null,null,null,null,null,null,null,null,null,null,null,null,null,null,null,null,null,null,null,null,null,null,"Bienestar Tla-li",null,"Programa de operativos de limpieza",null,null,"Centro de Atención a Niños, Niñas y Adolescentes de Tlaquepaque","Coloquios Juveniles "]
[null,null,null,null,null,null,null,null,null,null,null,null,null,null,null,null,null,null,null,null,null,null,null,null,"Bienestar sin fronteras",null,"Acciones para el ahorro del parque vehícular",null,null,"Programas Preventivos","Ciltiva-T"]
[null,null,null,null,null,null,null,null,null,null,null,null,null,null,null,null,null,null,null,null,null,null,null,null,"Bienestar con Orgullo",null,"Rehabilitación de las instalaciones de atención de aseo público",null,null,"Gabinete Psicológico","Cultura en tu escuela"]
[null,null,null,null,null,null,null,null,null,null,null,null,null,null,null,null,null,null,null,null,null,null,null,null,"Rehabilitación Permanente de Caminos Rurales",null,"Compra de unidades",null,null,"ASIPT","Enchula tu barrio "]
[null,null,null,null,null,null,null,null,null,null,null,null,null,null,null,null,null,null,null,null,null,null,null,null,"Procesadora de composta orgánica. ",null,"Servicio de fumigación para prevención del dengue y otras plagas",null,null,"Cascareando por la prevención","Festival Juventudes Tlaquepaque"]
[null,null,null,null,null,null,null,null,null,null,null,null,null,null,null,null,null,null,null,null,null,null,null,null,"Pozos de absorción Tecnificados.",null,"Sustitucion de luminarias a la red de alumbrado publico.",null,null,"Trotando ando por la vida y la familia","Jóvenes con arte"]
[null,null,null,null,null,null,null,null,null,null,null,null,null,null,null,null,null,null,null,null,null,null,null,null,"Conservación y mejoramiento de suelos agrícolas ",null,"Mantenimiento y reparación de luminarias a la red de alumbrado publico.",null,null,"Programa del consejo municipal de Proteccion Civil de San Pedro Tlaquepaque","Jóvenes Con-Ciencia "]
[null,null,null,null,null,null,null,null,null,null,null,null,null,null,null,null,null,null,null,null,null,null,null,null,"Compra de Balastre  o Gravilla",null,"Obtención de contenedores de basura ",null,null,"Programa permanente de operativos de prevencion de accidentes","Juventudes Emprendedoras "]
[null,null,null,null,null,null,null,null,null,null,null,null,null,null,null,null,null,null,null,null,null,null,null,null,"Mantenimiento Dron Agricola Agras T 30 Mark DJI mod. 2023",null,"Digitalizacion administrativa ",null,null,"Programa permanente de auxilio a la poblacion para casos de emergencia y/o desastres en San Pedro Tlaquepaque","Juventudes con historia "]
[null,null,null,null,null,null,null,null,null,null,null,null,null,null,null,null,null,null,null,null,null,null,null,null,"Detección y Vacunación de Ganado Rumiante contra la Tuberculosis y Brucela. ",null,"Compra venta de espacios",null,null,"Programa de evaluacion y dictaminacion de riesgos hidrometeorologicos","Juventudes a la cancha "]
[null,null,null,null,null,null,null,null,null,null,null,null,null,null,null,null,null,null,null,null,null,null,null,null,"Hidroponía ",null,"Ampliacion y adecuacion del area de archivo de catastro de cementerios",null,null,"Programa de Gestion Inetrgal del Riesgo mediante visitas de inspeccion a inmuebles","Oportunidad joven "]
[null,null,null,null,null,null,null,null,null,null,null,null,null,null,null,null,null,null,null,null,null,null,null,null,null,null,"Mejora en las instalaciones",null,null,"Programa de Dictaminacion de Programas Internos de Protección Civil, Estudios Generales de Riesgos y Dictaminación y Evaluación de Riesgos","Conoce tus derechos"]
[null,null,null,null,null,null,null,null,null,null,null,null,null,null,null,null,null,null,null,null,null,null,null,null,null,null,"Capacitación Continua",null,null,"Programa permanente de prevencion de riesgos mediante la capacitacion a la poblacion en general","Premio de las juventudes"]
[null,null,null,null,null,null,null,null,null,null,null,null,null,null,null,null,null,null,null,null,null,null,null,null,null,null,"Inspección Carnica",null,null,"Ampliación y remodelación de Bases operativas, Base Central, Base 2 (El Sauz) y Base 4 (Parques de la Victoria)","Servicio Social Integral "]
[null,null,null,null,null,null,null,null,null,null,null,null,null,null,null,null,null,null,null,null,null,null,null,null,null,null,"Participación en campañas",null,null,"Equipamiento de la Base de Bomberos","Suetertón & Jugetón"]
[null,null,null,null,null,null,null,null,null,null,null,null,null,null,null,null,null,null,null,null,null,null,null,null,null,null,null,null,null,"Programa de Actualización del Atlas Municipal de Riesgos de San Pedro Tlaquepaque","Tlaque-Can"]
[null,null,null,null,null,null,null,null,null,null,null,null,null,null,null,null,null,null,null,null,null,null,null,null,null,null,null,null,null,"Programa de profecionalización, actualización, especializada y salud integral para el personal de la Dirección de Bomberos y Protección Civil","Enfoque Transversal con Perspectiva de Género"]
[null,null,null,null,null,null,null,null,null,null,null,null,null,null,null,null,null,null,null,null,null,null,null,null,null,null,null,null,null,null,"Libres por la igualdad "]
[null,null,null,null,null,null,null,null,null,null,null,null,null,null,null,null,null,null,null,null,null,null,null,null,null,null,null,null,null,null,"Vivir sin violencia"]
[null,null,null,null,null,null,null,null,null,null,null,null,null,null,null,null,null,null,null,null,null,null,null,null,null,null,null,null,null,null,"Administración y Gestión Institucional"]
[null,null,null,null,null,null,null,null,null,null,null,null,null,null,null,null,null,null,null,null,null,null,null,null,null,null,null,null,null,null,"Macro Eventos"]
[null,null,null,null,null,null,null,null,null,null,null,null,null,null,null,null,null,null,null,null,null,null,null,null,null,null,null,null,null,null,"Via recreactiva metropolitana san pedro tlaquepaque "]
[null,null,null,null,null,null,null,null,null,null,null,null,null,null,null,null,null,null,null,null,null,null,null,null,null,null,null,null,null,null,"Infraestructura"]
[null,null,null,null,null,null,null,null,null,null,null,null,null,null,null,null,null,null,null,null,null,null,null,null,null,null,null,null,null,null,"Tlaquepaque Acude"]

{"sheet":"Pbr's","index":4,"n_rows":333,"n_cols":13,"rows_kept":333,"cut":false,"hidden":true,"merged":[]}
[null,null,352724141]
[null,null,352724141,null,null,336,"Indicador Operativo"]
[null,null,"Secretaria","Dependencia","NO.","Proyecto","Nombre de indicador","Unidad de medida","Línea Base","Meta"]
[{"$f":"B4&F4","v":"OFICINA_DE_PRESIDENCIADIRECCION DE COMUNICACION ESTRATEGICA1Campañas en Redes Sociales"},{"$f":"C4&D4&E4","v":"OFICINA_DE_PRESIDENCIADIRECCION DE COMUNICACION ESTRATEGICA1"},"OFICINA_DE_PRESIDENCIA","DIRECCION DE COMUNICACION ESTRATEGICA",{"$f":"COUNTIF($D$4:D4,D4:D4)","v":1},"Campañas en Redes Sociales","Porcentaje de campañas realizadas en Redes Sociales","Número de campañas realizadas",0,35,"GRISELDA MEDRANO CRUZ","33 10 57 60 08","mgriselda672@gmail.com Y daniela.neri@tlaquepaque.gob.mx"]
[{"$f":"B5&F5","v":"OFICINA_DE_PRESIDENCIADIRECCION DE ATENCION Y VINCULACION CIUDADANA1Atención a Reportes de Servicios Públicos, Información sobre Ayudas Sociales y Reportes en General"},"OFICINA_DE_PRESIDENCIADIRECCION DE ATENCION Y VINCULACION CIUDADANA1","OFICINA_DE_PRESIDENCIA","DIRECCION DE ATENCION Y VINCULACION CIUDADANA",{"$f":"COUNTIF($D$4:D5,D5:D5)","v":1},"Atención a Reportes de Servicios Públicos, Información sobre Ayudas Sociales y Reportes en General","Porcentaje de reportes atendidos mediante la plataforma de ciudadanía digital, así como de manera presencial y vía telefónica.","Reportes atendidos tanto en plataforma de ciudadanía digital, vía telefónica, así como en ventanilla",7500,9500,"Lourdes Hernández Rojas","33.28.10.66.00","luhrojas.shadday@gmail.com"]
["OFICINA_DE_PRESIDENCIASUBDIRECCION DE GESTION DE PARTICIPACION TERRITORIAL1Atención y capacitación a organizaciones vecinales en materia de participación ciudadana","OFICINA_DE_PRESIDENCIASUBDIRECCION DE GESTION DE PARTICIPACION TERRITORIAL1","OFICINA_DE_PRESIDENCIA","SUBDIRECCION DE GESTION DE PARTICIPACION TERRITORIAL",{"$f":"COUNTIF($D$4:D6,D6:D6)","v":1},"Atención y capacitación a organizaciones vecinales en materia de participación ciudadana","Atención y capacitación a organizaciones vecinales en materia de participación ciudadana","Numero atenciones y capacitaciones",80,80,"Octavio Cesar Huerta Diaz",3313085238,"hudo77@hotmail.com"]
["OFICINA_DE_PRESIDENCIASUBDIRECCION DE GESTION DE PARTICIPACION TERRITORIAL2Actualización de Organizaciones Vecinales","OFICINA_DE_PRESIDENCIASUBDIRECCION DE GESTION DE PARTICIPACION TERRITORIAL2","OFICINA_DE_PRESIDENCIA","SUBDIRECCION DE GESTION DE PARTICIPACION TERRITORIAL",{"$f":"COUNTIF($D$4:D7,D7:D7)","v":2},"Actualización de Organizaciones Vecinales","Porcentaje de avance en la conformación de organizaciones vecinales de participación ciudadana","Numero de Conformaciones de Organizaciones Vecinales, realizadas",60,65,"Octavio Cesar Huerta Diaz",3313085238,"hudo77@hotmail.com"]
["OFICINA_DE_PRESIDENCIASUBDIRECCION DE GESTION DE PARTICIPACION TERRITORIAL3Socializando y perifoneando para la ciudadanía","OFICINA_DE_PRESIDENCIASUBDIRECCION DE GESTION DE PARTICIPACION TERRITORIAL3","OFICINA_DE_PRESIDENCIA","SUBDIRECCION DE GESTION DE PARTICIPACION TERRITORIAL",{"$f":"COUNTIF($D$4:D8,D8:D8)","v":3},"Socializando y perifoneando para la ciudadanía","Socializando y perifoneando para la ciudadanía","Numero de socializaciones",500,350,"Octavio Cesar Huerta Diaz",3313085238,"hudo77@hotmail.com"]
["OFICINA_DE_PRESIDENCIASUBDIRECCION DE GESTION DE PARTICIPACION TERRITORIAL4Socializando y perifoneando para la ciudadanía","OFICINA_DE_PRESIDENCIASUBDIRECCION DE GESTION DE PARTICIPACION TERRITORIAL4","OFICINA_DE_PRESIDENCIA","SUBDIRECCION DE GESTION DE PARTICIPACION TERRITORIAL",{"$f":"COUNTIF($D$4:D9,D9:D9)","v":4},"Socializando y perifoneando para la ciudadanía","Socializando y perifoneando para la ciudadanía","Numero de perifoneó",300,250,"Octavio Cesar Huerta Diaz",3313085238,"hudo77@hotmail.com"]
["OFICINA_DE_PRESIDENCIAUNIDAD DE TRANSPARENCIA1Programa de Transparencia y Atención de solicitudes de acceso a la información y protección de datos personales","OFICINA_DE_PRESIDENCIAUNIDAD DE TRANSPARENCIA1","OFICINA_DE_PRESIDENCIA","UNIDAD DE TRANSPARENCIA",{"$f":"COUNTIF($D$4:D10,D10:D10)","v":1},"Programa de Transparencia y Atención de solicitudes de acceso a la información y protección de datos personales","Porcentaje de atención de solicitudes de acceso a la información y protección de datos personales,","total de solicitudes atendidas",1800,2000,"Cesar Ignacio Bocanegra Alvarado",3310576030,"tlaquepaque.transparencia@gmail.com"]
["SINDICATURASINDICATURA1Actualización de los instrumentos de control de Archivo de Tramite de la Sindicatura","SINDICATURASINDICATURA1","SINDICATURA","SINDICATURA",{"$f":"COUNTIF($D$4:D11,D11:D11)","v":1},"Actualización de los instrumentos de control de Archivo de Tramite de la Sindicatura","Instrumentos de Control de Archivo","Unidad",0,1,"Juan Manuel Rodríguez Patiño",3338386294,"juan.rodriguez@tlaquepaque.gob.mx"]
["SINDICATURASINDICATURA2Presentación de Iniciativas de modificación de normatividad","SINDICATURASINDICATURA2","SINDICATURA","SINDICATURA",{"$f":"COUNTIF($D$4:D12,D12:D12)","v":2},"Presentación de Iniciativas de modificación de normatividad","Iniciativas presentadas","Unidad",0,3,"Juan Manuel Rodríguez Patiño",3338386294,"juan.rodriguez@tlaquepaque.gob.mx"]
["SINDICATURADIRECCION JURIDICA1Servicios de asesoramiento legal y jurídico a la población que presenta vulnerabilidad legal e indefensión de su patrimonio","SINDICATURADIRECCION JURIDICA1","SINDICATURA","DIRECCION JURIDICA",{"$f":"COUNTIF($D$4:D13,D13:D13)","v":1},"Servicios de asesoramiento legal y jurídico a la población que presenta vulnerabilidad legal e indefensión de su patrimonio","Porcentaje de asesorías gratuitas en materia legal otorgadas a la población que lo requiera y solicite","número de asesorías otorgadas",45,50,"Lic. José Luis de la Mora Gálvez",3310576022,"maria.gomez@tlaquepaque.gob.mx"]
["SINDICATURADEPARTAMENTO DE MEJORA REGULATORIA1Catálogo Municipal de Trámites y Servicios",{"$f":"C14&D14&E14","v":"SINDICATURADEPARTAMENTO DE MEJORA REGULATORIA1"},"SINDICATURA","DEPARTAMENTO DE MEJORA REGULATORIA",{"$f":"COUNTIF($D$4:D14,D14:D14)","v":1},"Catálogo Municipal de Trámites y Servicios","Requerimientos para la actualización del Catálogo Municipal de Trámites y Servicios","Porcentaje de Requerimientos realizados a las dependencias.",0,57,"Leticia Cuellar Mena",null,"mejoraregulatoriatlaquepaque@gmail.com"]
["OFICINA_DE_PRESIDENCIAUNIDAD DE TRANSPARENCIA2Programa de Transparencia y Atención de solicitudes de acceso a la información y protección de datos personales","OFICINA_DE_PRESIDENCIAUNIDAD DE TRANSPARENCIA2","OFICINA_DE_PRESIDENCIA","UNIDAD DE TRANSPARENCIA",{"$f":"COUNTIF($D$4:D15,D15:D15)","v":2},"Programa de Transparencia y Atención de solicitudes de acceso a la información y protección de datos personales","Porcentaje de etapas de gestión realizadas para el fortalecimiento del equipamiento de la Unidad de Transparencia","Número de etapas de gestión",0,5,"Cesar Ignacio Bocanegra Alvarado",3310576030,"tlaquepaque.transparencia@gmail.com"]
["SINDICATURADEPARTAMENTO DE CONTRATOS Y CONVENIOS1Servicio de Revisión Contratos","SINDICATURADEPARTAMENTO DE CONTRATOS Y CONVENIOS1","SINDICATURA","DEPARTAMENTO DE CONTRATOS Y CONVENIOS",{"$f":"COUNTIF($D$4:D16,D16:D16)","v":1},"Servicio de Revisión Contratos","Porcentaje de solicitudes de revisión de contratos para firma de la Sindicatura requerido por las áreas para la continuación y eficacia de la actividad municipal, realizadas","Número de solicitudes de revisión de contratos realizadas",300,350,"IRMA ROCIO VALDEZ GONZÁLEZ"]
["SECRETARIA_DE_LA_CONSEJERIA_JURIDICASECRETARIA DE LA CONSEJERIA JURIDICA1Revisión Documentos Para Firma Presidenta","SECRETARIA_DE_LA_CONSEJERIA_JURIDICASECRETARIA DE LA CONSEJERIA JURIDICA1","SECRETARIA_DE_LA_CONSEJERIA_JURIDICA","SECRETARIA DE LA CONSEJERIA JURIDICA",{"$f":"COUNTIF($D$4:D17,D17:D17)","v":1},"Revisión Documentos Para Firma Presidenta","Porcentaje de documentos revisados para firma Presidenta","Número de documentos revisados",550,600,"Lic. Mario Arturo corona Guillén",null,"mario.corona@tlaquepaque,gob.mx"]
["SECRETARIA_DE_LA_CONSEJERIA_JURIDICASECRETARIA DE LA CONSEJERIA JURIDICA2Atención Y Orientación Jurídica A La Ciudadanía","SECRETARIA_DE_LA_CONSEJERIA_JURIDICASECRETARIA DE LA CONSEJERIA JURIDICA2","SECRETARIA_DE_LA_CONSEJERIA_JURIDICA","SECRETARIA DE LA CONSEJERIA JURIDICA",{"$f":"COUNTIF($D$4:D18,D18:D18)","v":2},"Atención Y Orientación Jurídica A La Ciudadanía","Porcentaje de solicitudes de atención y orientación a la ciudadanía","Numero de atenciones y orientaciones",0,18,"Lic. Mario Arturo corona Guillén",null,"mario.corona@tlaquepaque,gob.mx"]
["SECRETARIA_DE_LA_CONSEJERIA_JURIDICASECRETARIA DE LA CONSEJERIA JURIDICA3Capacitación Jurídica Al Gobierno Municipal","SECRETARIA_DE_LA_CONSEJERIA_JURIDICASECRETARIA DE LA CONSEJERIA JURIDICA3","SECRETARIA_DE_LA_CONSEJERIA_JURIDICA","SECRETARIA DE LA CONSEJERIA JURIDICA",{"$f":"COUNTIF($D$4:D19,D19:D19)","v":3},"Capacitación Jurídica Al Gobierno Municipal","Porcentaje de Capacitaciones solicitadas","Número de Capacitaciones realizadas",0,6,"Lic. Mario Arturo corona Guillén",null,"mario.corona@tlaquepaque,gob.mx"]
["SECRETARIA_DE_LA_CONSEJERIA_JURIDICASECRETARIA DE LA CONSEJERIA JURIDICA4Participación Comisiones, Comités Y Grupos De Trabajo","SECRETARIA_DE_LA_CONSEJERIA_JURIDICASECRETARIA DE LA CONSEJERIA JURIDICA4","SECRETARIA_DE_LA_CONSEJERIA_JURIDICA","SECRETARIA DE LA CONSEJERIA JURIDICA",{"$f":"COUNTIF($D$4:D20,D20:D20)","v":4},"Participación Comisiones, Comités Y Grupos De Trabajo","Porcentaje de atención a comisiones, comités, grupos de trabajo y reuniones","Número de asistencia a comisiones, comités, grupos de trabajo y reuniones",0,10,"Lic. Mario Arturo Corona Guillén",null,"gerardo.hernandez@tlaquepaque.gob.mx"]
["SECRETARIA_DE_LA_CONSEJERIA_JURIDICADIRECCION LEGAL-CONSULTIVA1Opiniones Jurídicas","SECRETARIA_DE_LA_CONSEJERIA_JURIDICADIRECCION LEGAL-CONSULTIVA1","SECRETARIA_DE_LA_CONSEJERIA_JURIDICA","DIRECCION LEGAL-CONSULTIVA",{"$f":"COUNTIF($D$4:D21,D21:D21)","v":1},"Opiniones Jurídicas","Porcentaje de opiniones jurídicas que se emiten","Número de opiniones jurídicas que se emiten",0,10,"Mtro. Gerardo Natanael Hernández Ortiz"]
["SECRETARIA_DE_LA_CONSEJERIA_JURIDICADIRECCION LEGAL-CONSULTIVA2Consultas Y Asesoría Jurídica","SECRETARIA_DE_LA_CONSEJERIA_JURIDICADIRECCION LEGAL-CONSULTIVA2","SECRETARIA_DE_LA_CONSEJERIA_JURIDICA","DIRECCION LEGAL-CONSULTIVA",{"$f":"COUNTIF($D$4:D22,D22:D22)","v":2},"Consultas Y Asesoría Jurídica","Porcentaje de atención a consultas y asesoría jurídica","Número de atenciones a consultas y asesorías jurídicas",0,10,"Mtro. Gerardo Natanael Hernández Ortiz",null,"gerardo.hernandez@tlaquepaque.gob.mx"]
["SECRETARIA_DE_LA_CONSEJERIA_JURIDICADEPARTAMENTO DE RECLUTAMIENTO MILITAR1Cartillas Militares","SECRETARIA_DE_LA_CONSEJERIA_JURIDICADEPARTAMENTO DE RECLUTAMIENTO MILITAR1","SECRETARIA_DE_LA_CONSEJERIA_JURIDICA","DEPARTAMENTO DE RECLUTAMIENTO MILITAR",{"$f":"COUNTIF($D$4:D23,D23:D23)","v":1},"Cartillas Militares","Agencias y Delegaciones Municipales y colonias que se encuentren en las orillas del municipio de San Pedro Tlaquepaque","Cartillas Militares",1200,1500,"Arnulfo Piceno Rodríguez","3310571912 y 3338371379","juntamunicipaltlq@gmail.com"]
["SECRETARIA_DE_LA_CONSEJERIA_JURIDICADIRECCION DE REGISTRO CIVIL1Celebración de Matrimonios en Lugares emblemáticos","SECRETARIA_DE_LA_CONSEJERIA_JURIDICADIRECCION DE REGISTRO CIVIL1","SECRETARIA_DE_LA_CONSEJERIA_JURIDICA","DIRECCION DE REGISTRO CIVIL",{"$f":"COUNTIF($D$4:D24,D24:D24)","v":1},"Celebración de Matrimonios en Lugares emblemáticos","Cantidad de matrimonios a celebrar en lugares emblemáticos","Número de actas realizadas",0,100,"Lic. Jorge Mendoza Ruíz/ Diana Belén Gutiérrez Muñoz",3338371378,"registro.direccion98@gmail.com"]
["SECRETARIA_DE_LA_CONSEJERIA_JURIDICADIRECCION DE REGISTRO CIVIL2Celebración de Matrimonios en Lugares emblemáticos","SECRETARIA_DE_LA_CONSEJERIA_JURIDICADIRECCION DE REGISTRO CIVIL2","SECRETARIA_DE_LA_CONSEJERIA_JURIDICA","DIRECCION DE REGISTRO CIVIL",{"$f":"COUNTIF($D$4:D25,D25:D25)","v":2},"Celebración de Matrimonios en Lugares emblemáticos","Captación de recurso con la ejecución del proyecto","Recaudación por concepto de derechos",0,500000,"Lic. Jorge Mendoza Ruíz/ Diana Belén Gutiérrez Muñoz",3338371378,"registro.direccion98@gmail.com"]
["SECRETARIA_DE_LA_CONSEJERIA_JURIDICAOFICINA DEL REGISTRO CIVIL NO. 11Campaña de Integración Familiar 2025","SECRETARIA_DE_LA_CONSEJERIA_JURIDICAOFICINA DEL REGISTRO CIVIL NO. 11","SECRETARIA_DE_LA_CONSEJERIA_JURIDICA","OFICINA DEL REGISTRO CIVIL NO. 1",{"$f":"COUNTIF($D$4:D26,D26:D26)","v":1},"Campaña de Integración Familiar 2025","Porcentaje de actas de matrimonio realizadas en la Campaña de Integración Familiar 2025","Número de actas realizadas",0,100,"Licenciado Jorge Mendoza Ruiz / Diana Belén Gutiérrez Muñoz","3837 1378","registro.direccion98@gmail.com"]
["SECRETARIA_DE_LA_CONSEJERIA_JURIDICAOFICINA DEL REGISTRO CIVIL NO. 12Campaña de Integración Familiar 2025","SECRETARIA_DE_LA_CONSEJERIA_JURIDICAOFICINA DEL REGISTRO CIVIL NO. 12","SECRETARIA_DE_LA_CONSEJERIA_JURIDICA","OFICINA DEL REGISTRO CIVIL NO. 1",{"$f":"COUNTIF($D$4:D27,D27:D27)","v":2},"Campaña de Integración Familiar 2025","Reducción en la generación de actas de nacimiento extemporáneas de las niñas, niños, adolescentes, adultos y adultos mayores en la Campaña de Integración Familiar 2025","Número de actas realizadas",222,200,"Licenciado Jorge Mendoza Ruiz / Diana Belén Gutiérrez Muñoz","3837 1378","registro.direccion98@gmail.com"]
["SECRETARIA_DE_LA_CONSEJERIA_JURIDICAOFICINA DEL REGISTRO CIVIL NO. 13Campaña de Integración Familiar 2025","SECRETARIA_DE_LA_CONSEJERIA_JURIDICAOFICINA DEL REGISTRO CIVIL NO. 13","SECRETARIA_DE_LA_CONSEJERIA_JURIDICA","OFICINA DEL REGISTRO CIVIL NO. 1",{"$f":"COUNTIF($D$4:D28,D28:D28)","v":3},"Campaña de Integración Familiar 2025","Porcentaje de actas de reconocimiento de hijos en la Campaña de Integración Familiar 2025","Número de actas realizadas",65,70,"Licenciado Jorge Mendoza Ruiz / Diana Belén Gutiérrez Muñoz","3837 1378","registro.direccion98@gmail.com"]
["SECRETARIA_DE_LA_CONSEJERIA_JURIDICADIRECCION DE MEDIACION Y JUZGADOS CIVICOS MUNICIPALES1Calificación de Actas de Infracción","SECRETARIA_DE_LA_CONSEJERIA_JURIDICADIRECCION DE MEDIACION Y JUZGADOS CIVICOS MUNICIPALES1","SECRETARIA_DE_LA_CONSEJERIA_JURIDICA","DIRECCION DE MEDIACION Y JUZGADOS CIVICOS MUNICIPALES",{"$f":"COUNTIF($D$4:D29,D29:D29)","v":1},"Calificación de Actas de Infracción","Calificación de las actas de Infracción","calificaciones",1770,"No podemos dar meta ya que dependemos de las oficinas de inspección y vigilancia","Lic. Juan Manuel Martínez Orozco","33-35-98-21-11","jmabogadosjuris@gmail.com"]
["SECRETARIA_DE_LA_CONSEJERIA_JURIDICADIRECCION DE MEDIACION Y JUZGADOS CIVICOS MUNICIPALES2Difusión de la Cultura de Paz en conflictos comunitarios","SECRETARIA_DE_LA_CONSEJERIA_JURIDICADIRECCION DE MEDIACION Y JUZGADOS CIVICOS MUNICIPALES2","SECRETARIA_DE_LA_CONSEJERIA_JURIDICA","DIRECCION DE MEDIACION Y JUZGADOS CIVICOS MUNICIPALES",{"$f":"COUNTIF($D$4:D30,D30:D30)","v":2},"Difusión de la Cultura de Paz en conflictos comunitarios","Número de colonias visitadas","Colonias",0,20,"CLAUDIA LARA GARZA",3310576279,"municipaljuez@gmail.com"]
["SECRETARIA_DE_LA_CONSEJERIA_JURIDICADIRECCION DE MEDIACION Y JUZGADOS CIVICOS MUNICIPALES3Orientación y Asesoría Jurídica","SECRETARIA_DE_LA_CONSEJERIA_JURIDICADIRECCION DE MEDIACION Y JUZGADOS CIVICOS MUNICIPALES3","SECRETARIA_DE_LA_CONSEJERIA_JURIDICA","DIRECCION DE MEDIACION Y JUZGADOS CIVICOS MUNICIPALES",{"$f":"COUNTIF($D$4:D31,D31:D31)","v":3},"Orientación y Asesoría Jurídica","Desarrollo de Orientación y Asesoría Jurídica","Asesoría Jurídica.",1000,1000,"Lic. Luis Eduardo López Ramírez",3338423000,"lic_eduardo19@hotmail.com"]
["SECRETARIA_DE_LA_CONSEJERIA_JURIDICADIRECCION DE MEDIACION Y JUZGADOS CIVICOS MUNICIPALES4La Mediación Con Rumbo A Tu Colonia","SECRETARIA_DE_LA_CONSEJERIA_JURIDICADIRECCION DE MEDIACION Y JUZGADOS CIVICOS MUNICIPALES4","SECRETARIA_DE_LA_CONSEJERIA_JURIDICA","DIRECCION DE MEDIACION Y JUZGADOS CIVICOS MUNICIPALES",{"$f":"COUNTIF($D$4:D32,D32:D32)","v":4},"La Mediación Con Rumbo A Tu Colonia","LA MEDIACIÓN Y CONCILIACION CON RUMBO A TU COLONIA”","Capacitaciones",0,12,"Lic. Luis Eduardo López Ramírez",3338423000,"lic_eduardo19@hotmail.com"]
["SECRETARIA_DE_LA_CONSEJERIA_JURIDICADIRECCION DE MEDIACION Y JUZGADOS CIVICOS MUNICIPALES5Atención y desahogo de los MASC","SECRETARIA_DE_LA_CONSEJERIA_JURIDICADIRECCION DE MEDIACION Y JUZGADOS CIVICOS MUNICIPALES5","SECRETARIA_DE_LA_CONSEJERIA_JURIDICA","DIRECCION DE MEDIACION Y JUZGADOS CIVICOS MUNICIPALES",{"$f":"COUNTIF($D$4:D33,D33:D33)","v":5},"Atención y desahogo de los MASC","Desarrollo de expedientes de mediación","Expedientes",700,700,"Lic. Luis Eduardo López Ramírez",3338423000,"lic_eduardo19@hotmail.com"]
["SECRETARIA_DE_LA_CONSEJERIA_JURIDICADIRECCION DE MEDIACION Y JUZGADOS CIVICOS MUNICIPALES6Atención y desahogo de los MASC","SECRETARIA_DE_LA_CONSEJERIA_JURIDICADIRECCION DE MEDIACION Y JUZGADOS CIVICOS MUNICIPALES6","SECRETARIA_DE_LA_CONSEJERIA_JURIDICA","DIRECCION DE MEDIACION Y JUZGADOS CIVICOS MUNICIPALES",{"$f":"COUNTIF($D$4:D34,D34:D34)","v":6},"Atención y desahogo de los MASC","Conclusión de procedimientos en Convenio final","Convenios",350,350,"Lic. Luis Eduardo López Ramírez",3338423000,"lic_eduardo19@hotmail.com"]
["SECRETARIA_DE_LA_CONSEJERIA_JURIDICADIRECCION DE MEDIACION Y JUZGADOS CIVICOS MUNICIPALES7Servicio de trabajo social y psicología a Juzgados Cívicos Municipales","SECRETARIA_DE_LA_CONSEJERIA_JURIDICADIRECCION DE MEDIACION Y JUZGADOS CIVICOS MUNICIPALES7","SECRETARIA_DE_LA_CONSEJERIA_JURIDICA","DIRECCION DE MEDIACION Y JUZGADOS CIVICOS MUNICIPALES",{"$f":"COUNTIF($D$4:D35,D35:D35)","v":7},"Servicio de trabajo social y psicología a Juzgados Cívicos Municipales","Porcentaje de etapas de gestión para incorporar personal de Trabajo Social y/o Psicología a los Juzgados Cívicos","Eficacia",0,3,"Lic. Claudia Lara Garza",null,"municipaljuez@gmail.com"]
["SECRETARIA_DE_LA_CONSEJERIA_JURIDICADIRECCION DE APOYO A CABILDO1Sitio Web de Actas y Acuerdos","SECRETARIA_DE_LA_CONSEJERIA_JURIDICADIRECCION DE APOYO A CABILDO1","SECRETARIA_DE_LA_CONSEJERIA_JURIDICA","DIRECCION DE APOYO A CABILDO",{"$f":"COUNTIF($D$4:D36,D36:D36)","v":1},"Sitio Web de Actas y Acuerdos","Porcentaje de avance en las etapas de actualización del Sitio Web de Actas y Acuerdos","Número de etapas realizadas",4,5,"Marisol Martínez Quiroz",3310576035,"apoyoacomisiones@gmail.com"]
["SECRETARIA_DE_LA_CONSEJERIA_JURIDICADIRECCION DE APOYO A CABILDO2Participación En Sesiones Del Ayuntamiento","SECRETARIA_DE_LA_CONSEJERIA_JURIDICADIRECCION DE APOYO A CABILDO2","SECRETARIA_DE_LA_CONSEJERIA_JURIDICA","DIRECCION DE APOYO A CABILDO",{"$f":"COUNTIF($D$4:D37,D37:D37)","v":2},"Participación En Sesiones Del Ayuntamiento","Porcentaje de Sesiones del Pleno realizadas","Sesiones realizadas",0,12,"Marisol Martínez Quiroz",3310576035,"apoyoacomisiones@gmail.com"]
["SECRETARIA_DE_LA_CONSEJERIA_JURIDICADIRECCION DE APOYO A CABILDO3Integración, Dictaminación de Iniciativas","SECRETARIA_DE_LA_CONSEJERIA_JURIDICADIRECCION DE APOYO A CABILDO3","SECRETARIA_DE_LA_CONSEJERIA_JURIDICA","DIRECCION DE APOYO A CABILDO",{"$f":"COUNTIF($D$4:D38,D38:D38)","v":3},"Integración, Dictaminación de Iniciativas","Porcentaje de Iniciativas elaboradas","Número de iniciativas elaboradas",0,40,"Marisol Martínez Quiroz",3310576035,"apoyoacomisiones@gmail.com"]
["SECRETARIA_DE_LA_CONSEJERIA_JURIDICADIRECCION DE APOYO A CABILDO4Consolidar El Sistema De Información De Acuerdos Del Pleno","SECRETARIA_DE_LA_CONSEJERIA_JURIDICADIRECCION DE APOYO A CABILDO4","SECRETARIA_DE_LA_CONSEJERIA_JURIDICA","DIRECCION DE APOYO A CABILDO",{"$f":"COUNTIF($D$4:D39,D39:D39)","v":4},"Consolidar El Sistema De Información De Acuerdos Del Pleno","Porcentaje de avance en la identificación del estatus que guardan los puntos de acuerdo aprobados por el pleno del ayuntamiento","Número de puntos de acuerdo identificados en estatus de seguimiento",0,40,"Marisol Martínez Quiroz",3310576035,"apoyoacomisiones@gmail.com"]
["SECRETARIA_DE_LA_CONSEJERIA_JURIDICADIRECCION DE APOYO A CABILDO5Apoyo Asuntos derivados por Secretaría","SECRETARIA_DE_LA_CONSEJERIA_JURIDICADIRECCION DE APOYO A CABILDO5","SECRETARIA_DE_LA_CONSEJERIA_JURIDICA","DIRECCION DE APOYO A CABILDO",{"$f":"COUNTIF($D$4:D40,D40:D40)","v":5},"Apoyo Asuntos derivados por Secretaría","Porcentaje de avance en la identificación del estatus que guardan los puntos de acuerdo aprobados por el pleno del ayuntamiento","Número de puntos de acuerdo identificados en estatus de seguimiento",0,40,"Marisol Martínez Quiroz",3310576035,"apoyoacomisiones@gmail.com"]
["SECRETARIA_DE_LA_CONSEJERIA_JURIDICADIRECCION DE DERECHOS HUMANOS1Atención a los grupos vulnerables.","SECRETARIA_DE_LA_CONSEJERIA_JURIDICADIRECCION DE DERECHOS HUMANOS1","SECRETARIA_DE_LA_CONSEJERIA_JURIDICA","DIRECCION DE DERECHOS HUMANOS",{"$f":"COUNTIF($D$4:D41,D41:D41)","v":1},"Atención a los grupos vulnerables.","Porcentaje de Secretarías con personal capacitado en materia de Derechos Humanos","Número de Secretarías capacitadas",0,10,"Bertha Castellanos",null,"bertha.castellanos@tlaquepaque.gob.mx"]
["SECRETARIA_DE_LA_CONSEJERIA_JURIDICADIRECCION DE DERECHOS HUMANOS2Atención a los grupos vulnerables.","SECRETARIA_DE_LA_CONSEJERIA_JURIDICADIRECCION DE DERECHOS HUMANOS2","SECRETARIA_DE_LA_CONSEJERIA_JURIDICA","DIRECCION DE DERECHOS HUMANOS",{"$f":"COUNTIF($D$4:D42,D42:D42)","v":2},"Atención a los grupos vulnerables.","Porcentaje de colonias intervenidas en atención a servicios generales, protección de sus derechos y administración eficiente de los recursos.","No. de colonias intervenidas",40,60,"Bertha Castellanos",null,"bertha.castellanos@tlaquepaque.gob.mx"]
["SECRETARIA_DE_GOBERNANZA_Y_TERRITORIODIRECCION DE DELEGACIONES Y AGENCIAS1Atención a Solicitudes Ciudadanas","SECRETARIA_DE_GOBERNANZA_Y_TERRITORIODIRECCION DE DELEGACIONES Y AGENCIAS1","SECRETARIA_DE_GOBERNANZA_Y_TERRITORIO","DIRECCION DE DELEGACIONES Y AGENCIAS",{"$f":"COUNTIF($D$4:D43,D43:D43)","v":1},"Atención a Solicitudes Ciudadanas","PORCENTAJE DE SOLICITUDES CANALIZADAS PARA SU ATENCION","PORCENTAJE DE SOLICITUDES CALALIZADAS",1740,2000,"JOSE ALFREDO ZAPATA SILVA",3336572403,"direccion.delegaciones@tlaquepaque.gob.mx"]
["SECRETARIA_DE_GOBERNANZA_Y_TERRITORIODIRECCION DE DELEGACIONES Y AGENCIAS2Brigadas de Mantenimiento y Recuperación de Espacios Públicos","SECRETARIA_DE_GOBERNANZA_Y_TERRITORIODIRECCION DE DELEGACIONES Y AGENCIAS2","SECRETARIA_DE_GOBERNANZA_Y_TERRITORIO","DIRECCION DE DELEGACIONES Y AGENCIAS",{"$f":"COUNTIF($D$4:D44,D44:D44)","v":2},"Brigadas de Mantenimiento y Recuperación de Espacios Públicos","PORCENTAJE DE BRIGADAS Y RECUPERACION DE ESPACIOS","NUMERO DE BRIGADAS Y RECUERACION DE ESPACIOS",77,85,"JOSE ALFREDO ZAPATA SILVA",3336572403,"direccion.delegaciones@tlaquepaque.gob.mx"]
["SECRETARIA_DE_GOBERNANZA_Y_TERRITORIODIRECCION DE DELEGACIONES Y AGENCIAS3Festividades Tradicionales Cívicas","SECRETARIA_DE_GOBERNANZA_Y_TERRITORIODIRECCION DE DELEGACIONES Y AGENCIAS3","SECRETARIA_DE_GOBERNANZA_Y_TERRITORIO","DIRECCION DE DELEGACIONES Y AGENCIAS",{"$f":"COUNTIF($D$4:D45,D45:D45)","v":3},"Festividades Tradicionales Cívicas","PORCENTAJE DE ASISTENTES A LAS FESTIVIDADES REALIZADAS","NUMERO DE ASISTENTES",3550,4200,"JOSE ALFREDO ZAPATA SILVA",3336572403,"direccion.delegaciones@tlaquepaque.gob.mx"]
["SECRETARIA_DE_GOBERNANZA_Y_TERRITORIODIRECCION DE DELEGACIONES Y AGENCIAS4Actividades Administrativas","SECRETARIA_DE_GOBERNANZA_Y_TERRITORIODIRECCION DE DELEGACIONES Y AGENCIAS4","SECRETARIA_DE_GOBERNANZA_Y_TERRITORIO","DIRECCION DE DELEGACIONES Y AGENCIAS",{"$f":"COUNTIF($D$4:D46,D46:D46)","v":4},"Actividades Administrativas","PORCENTAJE DE SOLICITUDES DE COMPROBANTES DE DOMICILIO","NUMERO DE SOLICITUDES DE COMPROBANTES DE DOMICILIO",4300,4650,"JOSE ALFREDO ZAPATA SILVA",3336572403,"direccion.delegaciones@tlaquepaque.gob.mx"]
["SECRETARIA_DE_GOBERNANZA_Y_TERRITORIODELEGACION SAN SEBASTIANITO1VISITAS A COLONIAS","SECRETARIA_DE_GOBERNANZA_Y_TERRITORIODELEGACION SAN SEBASTIANITO1","SECRETARIA_DE_GOBERNANZA_Y_TERRITORIO","DELEGACION SAN SEBASTIANITO",{"$f":"COUNTIF($D$4:D47,D47:D47)","v":1},"VISITAS A COLONIAS","PORCENTAJE DE RECORRIDOS PARA LA DETECCION DE LA PROBLEMATICA","NUMERO DE RECORRIDOS",955,1200,"JOSE ALFREDO ZAPATA SILVA",3336572403,"direccion.delegaciones@tlaquepaque.gob.mx"]
["SECRETARIA_DE_GOBERNANZA_Y_TERRITORIODIRECCION DE PADRON Y LICENCIAS1Servicio eficaz de trámite de licencias municipal presencial y en línea","SECRETARIA_DE_GOBERNANZA_Y_TERRITORIODIRECCION DE PADRON Y LICENCIAS1","SECRETARIA_DE_GOBERNANZA_Y_TERRITORIO","DIRECCION DE PADRON Y LICENCIAS",{"$f":"COUNTIF($D$4:D48,D48:D48)","v":1},"Servicio eficaz de trámite de licencias municipal presencial y en línea","Porcentaje de licencias municipales de giro y/o anuncio entregadas de forma presencial.","Numero de licencias entregadas",2200,2300,"Kevin Daniel Vázquez Rodríguez",3317443315,"vkevindaniel@gmail.com"]
["SECRETARIA_DE_GOBERNANZA_Y_TERRITORIODIRECCION DE PADRON Y LICENCIAS 11Regularización de licencias en base a la ley de hacienda","SECRETARIA_DE_GOBERNANZA_Y_TERRITORIODIRECCION DE PADRON Y LICENCIAS 11","SECRETARIA_DE_GOBERNANZA_Y_TERRITORIO","DIRECCION DE PADRON Y LICENCIAS 1",{"$f":"COUNTIF($D$4:D49,D49:D49)","v":1},"Regularización de licencias en base a la ley de hacienda","porcentajes de licencias emitidas como giro anexo a licencia principal.","Numero de licencias de giro anexo emitidas",0,500,"Kevin Daniel Vázquez Rodríguez",3317443315,"vkevindaniel@gmail.com"]
["SECRETARIA_DE_GOBERNANZA_Y_TERRITORIODIRECCION DE INSPECCION Y VIGILANCIA1Verificación De Giros Comerciales Rezagados En El Municipio De San Pedro Tlaquepaque","SECRETARIA_DE_GOBERNANZA_Y_TERRITORIODIRECCION DE INSPECCION Y VIGILANCIA1","SECRETARIA_DE_GOBERNANZA_Y_TERRITORIO","DIRECCION DE INSPECCION Y VIGILANCIA",{"$f":"COUNTIF($D$4:D50,D50:D50)","v":1},"Verificación De Giros Comerciales Rezagados En El Municipio De San Pedro Tlaquepaque","Porcentaje de avance en la regularización de talleres de laminado y pintura que se encuentren fuera de Norma.","Número de giros regularizados",136,136,"ING. BENITO ROJAS GUERRERO (ELABORA FORMATO GPE. MAGALY VELAZQUEZ FIGUEROA)","33-38-37-03-42","magalyvelazquez3008@gmail.com"]
["SECRETARIA_DE_GOBERNANZA_Y_TERRITORIOSUBDIRECCION DE INSPECCION AMBIENTAL1Verificación y regularización de residuos peligrosos y emisiones en talleres de laminado y pintura","SECRETARIA_DE_GOBERNANZA_Y_TERRITORIOSUBDIRECCION DE INSPECCION AMBIENTAL1","SECRETARIA_DE_GOBERNANZA_Y_TERRITORIO","SUBDIRECCION DE INSPECCION AMBIENTAL",{"$f":"COUNTIF($D$4:D51,D51:D51)","v":1},"Verificación y regularización de residuos peligrosos y emisiones en talleres de laminado y pintura","Porcentaje de avance en la realización de acciones para el fortalecimiento de inspección ambiental para regularizar la disposición final de los residuos peligrosos en giros de talleres que se encuentren fuera de Norma.","Número de giros (talleres de laminado y pintura) programadas pendientes a regularizar la disposición final de residuos peligrosos en talleres",136,136,"ING. BENITO ROJAS GUERRERO (ELABORA FORMATO GPE. MAGALY VELAZQUEZ FIGUEROA)","33-38-37-03-42","magalyvelazquez3008@gmail.com"]
["SECRETARIA_DE_GOBERNANZA_Y_TERRITORIOSUBDIRECCION DE ATENCION E INSPECCION A TIANGUIS Y ESPACIOS ABIERTOS1Actualizar los padrones de los comerciantes de tianguis","SECRETARIA_DE_GOBERNANZA_Y_TERRITORIOSUBDIRECCION DE ATENCION E INSPECCION A TIANGUIS Y ESPACIOS ABIERTOS1","SECRETARIA_DE_GOBERNANZA_Y_TERRITORIO","SUBDIRECCION DE ATENCION E INSPECCION A TIANGUIS Y ESPACIOS ABIERTOS",{"$f":"COUNTIF($D$4:D52,D52:D52)","v":1},"Actualizar los padrones de los comerciantes de tianguis","PORCENTAJE DE TIANGUIS PARA LA REGULARIZAR A LOS COMERCIANTES","NUMERO DE COMERCIANTES REGULARIZADOS",200,null,"LORENA PEREZ CARDENAS","333837-0346","mercados@tlaquepaque.gob.mx"]
["SECRETARIA_DE_GOBERNANZA_Y_TERRITORIOSUBDIRECCION DE ATENCION E INSPECCION A TIANGUIS Y ESPACIOS ABIERTOS2Regularizar comercio en espacio abierto en la colonia San Martín de las Flores","SECRETARIA_DE_GOBERNANZA_Y_TERRITORIOSUBDIRECCION DE ATENCION E INSPECCION A TIANGUIS Y ESPACIOS ABIERTOS2","SECRETARIA_DE_GOBERNANZA_Y_TERRITORIO","SUBDIRECCION DE ATENCION E INSPECCION A TIANGUIS Y ESPACIOS ABIERTOS",{"$f":"COUNTIF($D$4:D53,D53:D53)","v":2},"Regularizar comercio en espacio abierto en la colonia San Martín de las Flores","PORCENTAJE DE OPERATIVOS PARA LA REGULARIZACIÓN DE COMERCIANTES","NUMERO DE COMERCIANTES REGULARIZADOS",150,0,"LORENA PEREZ CARDENAS","333837-0346","mercados@tlaquepaque.gob.mx"]
["SECRETARIA_DE_GOBERNANZA_Y_TERRITORIOSUBDIRECCION DE ATENCION E INSPECCION DE MERCADOS1Recuperación de locales abandonados en merados municipales","SECRETARIA_DE_GOBERNANZA_Y_TERRITORIOSUBDIRECCION DE ATENCION E INSPECCION DE MERCADOS1","SECRETARIA_DE_GOBERNANZA_Y_TERRITORIO","SUBDIRECCION DE ATENCION E INSPECCION DE MERCADOS",{"$f":"COUNTIF($D$4:D54,D54:D54)","v":1},"Recuperación de locales abandonados en merados municipales","PORCENTAJE EN LA REALIZACION DE ACCIONES TENDIENTES A LA RECUPERACION DE LOCALES COMERCIALES EN ESTADO DE ABANDONO","Número de visitas realizadas",108,108,"LIC. JORGE ALBERTO DURAN CRUZ","33 25 37 92 13","jorgeduran1@hotmail.com"]
["SECRETARIA_DE_GOBERNANZA_Y_TERRITORIODIRECCION DE ARCHIVO MUNICIPAL1Programa de capacitación para la clasificación, organización, transferencia, resguardo y consulta de información oficial","SECRETARIA_DE_GOBERNANZA_Y_TERRITORIODIRECCION DE ARCHIVO MUNICIPAL1","SECRETARIA_DE_GOBERNANZA_Y_TERRITORIO","DIRECCION DE ARCHIVO MUNICIPAL",{"$f":"COUNTIF($D$4:D55,D55:D55)","v":1},"Programa de capacitación para la clasificación, organización, transferencia, resguardo y consulta de información oficial","Porcentaje de Personas que acuden a la capacitación archivística respecto al total de personas citadas.","Porcentaje",0.7,0.9,"Omar Agustín Gutiérrez Arana",3317662514,"omar.gtza@gmail.com"]
["SECRETARIA_DE_GOBERNANZA_Y_TERRITORIODIRECCION DE ARCHIVO MUNICIPAL2Proyecto de digitalización para el Archivo Municipal","SECRETARIA_DE_GOBERNANZA_Y_TERRITORIODIRECCION DE ARCHIVO MUNICIPAL2","SECRETARIA_DE_GOBERNANZA_Y_TERRITORIO","DIRECCION DE ARCHIVO MUNICIPAL",{"$f":"COUNTIF($D$4:D56,D56:D56)","v":2},"Proyecto de digitalización para el Archivo Municipal","Porcentaje de documentos digitalizados respecto al total de documentos seleccionados para el proyecto","Porcentaje",0,0.4,"Omar Agustín Gutiérrez Arana",3317662514,"omar.gtza@gmail.com"]
["SECRETARIA_DE_GOBERNANZA_Y_TERRITORIODIRECCION DE ARCHIVO MUNICIPAL3Campaña de divulgación cultural histórica del Archivo Municipal a escuelas de educación básica en Tlaquepaque","SECRETARIA_DE_GOBERNANZA_Y_TERRITORIODIRECCION DE ARCHIVO MUNICIPAL3","SECRETARIA_DE_GOBERNANZA_Y_TERRITORIO","DIRECCION DE ARCHIVO MUNICIPAL",{"$f":"COUNTIF($D$4:D57,D57:D57)","v":3},"Campaña de divulgación cultural histórica del Archivo Municipal a escuelas de educación básica en Tlaquepaque","Número de escuelas de educación básica en el municipio de San Pedro Tlaquepaque que han participado en las actividades de divulgación cultural e histórica del Archivo Municipal","Número de escuelas",0,6,"Omar Agustín Gutiérrez Arana",3317662514,"omar.gtza@gmail.com"]
["SECRETARIA_DE_GOBERNANZA_Y_TERRITORIODEPARTAMENTO DE ASUNTOS RELIGIOSOS1Servicio de atención a las necesidades de las distintas asociaciones religiosas del municipio","SECRETARIA_DE_GOBERNANZA_Y_TERRITORIODEPARTAMENTO DE ASUNTOS RELIGIOSOS1","SECRETARIA_DE_GOBERNANZA_Y_TERRITORIO","DEPARTAMENTO DE ASUNTOS RELIGIOSOS",{"$f":"COUNTIF($D$4:D58,D58:D58)","v":1},"Servicio de atención a las necesidades de las distintas asociaciones religiosas del municipio","Número de asociaciones religiosas atendidas","Cifra",0,8,"Omar Agustín Gutiérrez Arana",3317662514,"omar.gtza@gmail.com"]
["SECRETARIA_DE_GOBERNANZA_Y_TERRITORIODEPARTAMENTO DE OFICINA DE PASAPORTES1Trámite de Pasaporte Mexicano en Oficinas de Enlace de Tlaquepaque","SECRETARIA_DE_GOBERNANZA_Y_TERRITORIODEPARTAMENTO DE OFICINA DE PASAPORTES1","SECRETARIA_DE_GOBERNANZA_Y_TERRITORIO","DEPARTAMENTO DE OFICINA DE PASAPORTES",{"$f":"COUNTIF($D$4:D59,D59:D59)","v":1},"Trámite de Pasaporte Mexicano en Oficinas de Enlace de Tlaquepaque","Porcentaje de trámites de expedición de pasaportes realizados.","Número de pasaportes expedidos.",0,20000,"Francisco Isaac Jiménez","3335627014 ext. 2217","ometlaquepaque@hotmail.com"]
["SECRETARIA_DE_ADMINISTRACION_Y_FINANZASDIRECCION DE EGRESOS1Porcentaje De Presupuesto Ejercido De Acuerdo Con Criterios De Eficiencia, Austeridad Y Ahorro","SECRETARIA_DE_ADMINISTRACION_Y_FINANZASDIRECCION DE EGRESOS1","SECRETARIA_DE_ADMINISTRACION_Y_FINANZAS","DIRECCION DE EGRESOS",{"$f":"COUNTIF($D$4:D60,D60:D60)","v":1},"Porcentaje De Presupuesto Ejercido De Acuerdo Con Criterios De Eficiencia, Austeridad Y Ahorro","Porcentaje de presupuesto ejercido de acuerdo con criterios de eficiencia, austeridad y ahorro","Porcentaje de presupuesto ejercido de acuerdo con criterios de eficiencia, austeridad y ahorro",2624511115,2624511116,"Dr. Carlos Raúl Magaña Ramírez","33-14-52-65-88","carlos.magana@univa.mx y carlosgdl_vd@hotmail.com"]
["SECRETARIA_DE_ADMINISTRACION_Y_FINANZASSUBDIRECCION DE CONTROL DE PAGOS1Optimizar el proceso de pagos","SECRETARIA_DE_ADMINISTRACION_Y_FINANZASSUBDIRECCION DE CONTROL DE PAGOS1","SECRETARIA_DE_ADMINISTRACION_Y_FINANZAS","SUBDIRECCION DE CONTROL DE PAGOS",{"$f":"COUNTIF($D$4:D61,D61:D61)","v":1},"Optimizar el proceso de pagos","Optimizar el proceso de pago a proveedores y de prestaciones a Servidores Públicos.","Número de transacciones (suma de cheques y transferencias realizadas en el trimestre de Julio a Septiembre)","Transferencias 1061 Cheques 713","Incrementar en un 5% el número de transacciones.","JORGE ARMANDO MAGALLÓN LOMELÍ","3338520471 EXT. 107","jorge.magallon@tlaquepaque.gob.mx"]
["SECRETARIA_DE_ADMINISTRACION_Y_FINANZASDIRECCION DE INGRESOS1Programa De Apoyo A Adultos Mayores","SECRETARIA_DE_ADMINISTRACION_Y_FINANZASDIRECCION DE INGRESOS1","SECRETARIA_DE_ADMINISTRACION_Y_FINANZAS","DIRECCION DE INGRESOS",{"$f":"COUNTIF($D$4:D62,D62:D62)","v":1},"Programa De Apoyo A Adultos Mayores","Incremento en el número de descuentos y exenciones realizadas al adulto mayor.","Número de descuentos aplicados.",20000,22000,"Julio Gutiérrez Martínez","33-31-24-42-22","julio_gutierrez18@hotmail.com"]
["SECRETARIA_DE_ADMINISTRACION_Y_FINANZASDIRECCION DE INGRESOS2Programa de Convenios","SECRETARIA_DE_ADMINISTRACION_Y_FINANZASDIRECCION DE INGRESOS2","SECRETARIA_DE_ADMINISTRACION_Y_FINANZAS","DIRECCION DE INGRESOS",{"$f":"COUNTIF($D$4:D63,D63:D63)","v":2},"Programa de Convenios","Incremento en el número de convenios realizados.","Número de convenios realizados.",300,320,"Julio Gutiérrez Martínez","33-31-24-42-22","julio_gutierrez18@hotmail.com"]
["SECRETARIA_DE_ADMINISTRACION_Y_FINANZASDIRECCION DE INGRESOS3Programa Integral de Recaudación","SECRETARIA_DE_ADMINISTRACION_Y_FINANZASDIRECCION DE INGRESOS3","SECRETARIA_DE_ADMINISTRACION_Y_FINANZAS","DIRECCION DE INGRESOS",{"$f":"COUNTIF($D$4:D64,D64:D64)","v":3},"Programa Integral de Recaudación","Porcentaje",null,32400000000,33600000000,"Julio Gutiérrez Martínez","33-31-24-42-22","julio_gutierrez18@hotmail.com"]
["SECRETARIA_DE_ADMINISTRACION_Y_FINANZASDIRECCION DE RECURSOS MATERIALES1Administración y control de los Recursos Materiales","SECRETARIA_DE_ADMINISTRACION_Y_FINANZASDIRECCION DE RECURSOS MATERIALES1","SECRETARIA_DE_ADMINISTRACION_Y_FINANZAS","DIRECCION DE RECURSOS MATERIALES",{"$f":"COUNTIF($D$4:D65,D65:D65)","v":1},"Administración y control de los Recursos Materiales","PORCENTAJE DE SOLICITUDES ATENDIDAS PARA LA ADQUISICIÓN DE BIENES E INSUMOS","NÚMERO DE SOLICITUDES ATENDIDAS",4000,5000,"BLANCA ISELA EVANGELISTA AGUILAR",3336665995,"di.recursosmateriales@gmail.com"]
["SECRETARIA_DE_ADMINISTRACION_Y_FINANZASSUBDIRECCION DE PATRIMONIO1Administración de Bienes Inmuebles","SECRETARIA_DE_ADMINISTRACION_Y_FINANZASSUBDIRECCION DE PATRIMONIO1","SECRETARIA_DE_ADMINISTRACION_Y_FINANZAS","SUBDIRECCION DE PATRIMONIO",{"$f":"COUNTIF($D$4:D66,D66:D66)","v":1},"Administración de Bienes Inmuebles","1-Porcentaje de avance y seguimiento de la administración y control de bienes inmuebles","1) Bienes Inmuebles revisados",1030,1100,"Martha Olivia Venegas Chavarín","33 3562 7000 ext. 2307","martha.venegas@tlaquepaque.gob.mx"]
["SECRETARIA_DE_ADMINISTRACION_Y_FINANZASSUBDIRECCION DE PATRIMONIO2Administración de Bienes Inmuebles","SECRETARIA_DE_ADMINISTRACION_Y_FINANZASSUBDIRECCION DE PATRIMONIO2","SECRETARIA_DE_ADMINISTRACION_Y_FINANZAS","SUBDIRECCION DE PATRIMONIO",{"$f":"COUNTIF($D$4:D67,D67:D67)","v":2},"Administración de Bienes Inmuebles","2- Numero de predios municipales con delimitación (enmallado)","2) Numero de predios delimitados",15,11,"Martha Olivia Venegas Chavarín","33 3562 7000 ext. 2307","martha.venegas@tlaquepaque.gob.mx"]
["SECRETARIA_DE_ADMINISTRACION_Y_FINANZASSUBDIRECCION DE PATRIMONIO3Administración de Bienes Inmuebles","SECRETARIA_DE_ADMINISTRACION_Y_FINANZASSUBDIRECCION DE PATRIMONIO3","SECRETARIA_DE_ADMINISTRACION_Y_FINANZAS","SUBDIRECCION DE PATRIMONIO",{"$f":"COUNTIF($D$4:D68,D68:D68)","v":3},"Administración de Bienes Inmuebles","3-Porcentaje de letreros instalados en predios municipales","3) Numero de letreros instalados",65,20,"Martha Olivia Venegas Chavarín","33 3562 7000 ext. 2307","martha.venegas@tlaquepaque.gob.mx"]
[{"$f":"B69&F69","v":"SECRETARIA_DE_ADMINISTRACION_Y_FINANZASDEPARTAMENTO DE BIENES MUEBLES1Actualización y control de los inventarios de los bienes muebles."},"SECRETARIA_DE_ADMINISTRACION_Y_FINANZASDEPARTAMENTO DE BIENES MUEBLES1","SECRETARIA_DE_ADMINISTRACION_Y_FINANZAS","DEPARTAMENTO DE BIENES MUEBLES",{"$f":"COUNTIF($D$4:D69,D69:D69)","v":1},"Actualización y control de los inventarios de los bienes muebles.","Porcentaje de avance en la administración y control de los bienes muebles","Porcentaje del número de bienes revisados",29800,12500,"Fernando Villa Martínez",3314619220,"fernando.villa@tlaquepaque.gob.mx"]
["SECRETARIA_DE_ADMINISTRACION_Y_FINANZASDEPARTAMENTO DE SERVICIOS GENERALES1Recursos Humanos eficiente","SECRETARIA_DE_ADMINISTRACION_Y_FINANZASDEPARTAMENTO DE SERVICIOS GENERALES1","SECRETARIA_DE_ADMINISTRACION_Y_FINANZAS","DEPARTAMENTO DE SERVICIOS GENERALES",{"$f":"COUNTIF($D$4:D70,D70:D70)","v":1},"Recursos Humanos eficiente","Porcentaje de contratación de personal operativo para fortalecer el Departamento de Servicios Generales","Personal",0,30,"LIC. JOSE CARLOS MORENO ARELLANO",3338091176,"lcp.charliemoreno@gmail.com"]
["SECRETARIA_DE_ADMINISTRACION_Y_FINANZASDEPARTAMENTO DE TALLER MUNICIPAL1Mantenimiento preventivo y correctivo del parque vehicular","SECRETARIA_DE_ADMINISTRACION_Y_FINANZASDEPARTAMENTO DE TALLER MUNICIPAL1","SECRETARIA_DE_ADMINISTRACION_Y_FINANZAS","DEPARTAMENTO DE TALLER MUNICIPAL",{"$f":"COUNTIF($D$4:D71,D71:D71)","v":1},"Mantenimiento preventivo y correctivo del parque vehicular","PORCENTAJE DE UNIDADES ATENDIDAS Y REPARADAS","NÚMERO DE UNIDADES",0,800,"JOSE LUIS APARICIO GARCÍA",3320663142,"jl.aparicio.g73@gmail.com"]
["SECRETARIA_DE_ADMINISTRACION_Y_FINANZASSUBDIRECCION DE COMPRAS Y ADQUISICIONES1Licitaciones Ejecutadas","SECRETARIA_DE_ADMINISTRACION_Y_FINANZASSUBDIRECCION DE COMPRAS Y ADQUISICIONES1","SECRETARIA_DE_ADMINISTRACION_Y_FINANZAS","SUBDIRECCION DE COMPRAS Y ADQUISICIONES",{"$f":"COUNTIF($D$4:D72,D72:D72)","v":1},"Licitaciones Ejecutadas","PORCENTAJE DE LICITACIONES EJECUTADAS PARA LA ADQUISICIÓN DE BIENES Y SERVICIOS","NÚMERO DE LICITICIONES EJECUTADAS",35,50,"EDGAR JASIEL ESTRADA CASIMIRO",3336665995,"sub.cya@gmail.com"]
["SECRETARIA_DE_ADMINISTRACION_Y_FINANZASSUBDIRECCION DE COMPRAS Y ADQUISICIONES2Capacitación para Adquisiciones","SECRETARIA_DE_ADMINISTRACION_Y_FINANZASSUBDIRECCION DE COMPRAS Y ADQUISICIONES2","SECRETARIA_DE_ADMINISTRACION_Y_FINANZAS","SUBDIRECCION DE COMPRAS Y ADQUISICIONES",{"$f":"COUNTIF($D$4:D73,D73:D73)","v":2},"Capacitación para Adquisiciones","PORCENTAJE DE CAPACITACIONES REALIZADAS","NÚMERO DE CAPACITACIONES",0,4,"EDGAR JASIEL ESTRADA CASIMIRO",3336665995,"sub.cya@gmail.com"]
["SECRETARIA_DE_ADMINISTRACION_Y_FINANZASDIRECCION DE CATASTRO1Tramites y Servicios","SECRETARIA_DE_ADMINISTRACION_Y_FINANZASDIRECCION DE CATASTRO1","SECRETARIA_DE_ADMINISTRACION_Y_FINANZAS","DIRECCION DE CATASTRO",{"$f":"COUNTIF($D$4:D74,D74:D74)","v":1},"Tramites y Servicios","PORCENTAJE DE TRAMITES Y SERVICIOS EN LA DIRECCION DE CATASTRO ATENDIDOS Y SOLUCIONADOS.","NUMERO DE TRAMITES Y SERVCIOS ATENDIDOS",21000,21500,"JOSE GUADALUPE CUZ BRISEÑO",3338379393,"catastro@tlaquepaque.gob.mx"]
["SECRETARIA_DE_ADMINISTRACION_Y_FINANZASDEPARTAMENTO DE SOPORTE Y MANTENIMIENTO1Sistema de control de servicios","SECRETARIA_DE_ADMINISTRACION_Y_FINANZASDEPARTAMENTO DE SOPORTE Y MANTENIMIENTO1","SECRETARIA_DE_ADMINISTRACION_Y_FINANZAS","DEPARTAMENTO DE SOPORTE Y MANTENIMIENTO",{"$f":"COUNTIF($D$4:D75,D75:D75)","v":1},"Sistema de control de servicios","Porcentaje de avance de etapas realizadas","Etapas",0,5,"Marcela Escobedo",3338379008,"marcela.escobedo@tlaquepaque.gob.mx"]
["SECRETARIA_DE_ADMINISTRACION_Y_FINANZASDEPARTAMENTO DE REDES Y TELECOMUNICACIONES1Instalación de Cámaras de Seguridad","SECRETARIA_DE_ADMINISTRACION_Y_FINANZASDEPARTAMENTO DE REDES Y TELECOMUNICACIONES1","SECRETARIA_DE_ADMINISTRACION_Y_FINANZAS","DEPARTAMENTO DE REDES Y TELECOMUNICACIONES",{"$f":"COUNTIF($D$4:D76,D76:D76)","v":1},"Instalación de Cámaras de Seguridad","Porcentaje de avance de etapas realizadas","Etapas",0,6,"Marcela Escobedo",3338379008,"marcela.escobedo@tlaquepaque.gob.mx"]
["SECRETARIA_DE_ADMINISTRACION_Y_FINANZASDIRECCION DE CONTABILIDAD Y GLOSA1Programa de elaboración y presentación de Cuentas Públicas","SECRETARIA_DE_ADMINISTRACION_Y_FINANZASDIRECCION DE CONTABILIDAD Y GLOSA1","SECRETARIA_DE_ADMINISTRACION_Y_FINANZAS","DIRECCION DE CONTABILIDAD Y GLOSA",{"$f":"COUNTIF($D$4:D77,D77:D77)","v":1},"Programa de elaboración y presentación de Cuentas Públicas","Porcentaje de avance en la elaboración y presentación puntual de las Cuentas Públicas.","Número de Cuentas Públicas Elaboradas y Presentadas",0,14]
["SECRETARIA_DE_CONTRALORIA_MUNICIPAL_Y_COMBATE_A_LA_CORRUPCIONDIRECCION DE AUDITORIA A OBRA PUBLICA Y SERVICIOS1Control documental de expedientes de obras",{"$f":"C78&D78&E78","v":"SECRETARIA_DE_CONTRALORIA_MUNICIPAL_Y_COMBATE_A_LA_CORRUPCIONDIRECCION DE AUDITORIA A OBRA PUBLICA Y SERVICIOS1"},"SECRETARIA_DE_CONTRALORIA_MUNICIPAL_Y_COMBATE_A_LA_CORRUPCION","DIRECCION DE AUDITORIA A OBRA PUBLICA Y SERVICIOS",{"$f":"COUNTIF($D$4:D78,D78:D78)","v":1},"Control documental de expedientes de obras","RECEPCIÓN DE EXPEDIENTES","PZA",150,150,"HÉCTOR NICODEMO TREJO ROMERO","33.3662.0575"]
["SECRETARIA_DE_CONTRALORIA_MUNICIPAL_Y_COMBATE_A_LA_CORRUPCIONDIRECCION DE AUDITORIA A OBRA PUBLICA Y SERVICIOS2Análisis documental de expedientes de obras","SECRETARIA_DE_CONTRALORIA_MUNICIPAL_Y_COMBATE_A_LA_CORRUPCIONDIRECCION DE AUDITORIA A OBRA PUBLICA Y SERVICIOS2","SECRETARIA_DE_CONTRALORIA_MUNICIPAL_Y_COMBATE_A_LA_CORRUPCION","DIRECCION DE AUDITORIA A OBRA PUBLICA Y SERVICIOS",{"$f":"COUNTIF($D$4:D79,D79:D79)","v":2},"Análisis documental de expedientes de obras","RECEPCIÓN DE EXPEDIENTES","PZA",150,150,"HÉCTOR NICODEMO TREJO ROMERO","33.3662.0575"]
["SECRETARIA_DE_CONTRALORIA_MUNICIPAL_Y_COMBATE_A_LA_CORRUPCIONDIRECCION DE AUDITORIA GUBERNAMENTAL Y COMBATE A LA CORRUPCION1Auditorías","SECRETARIA_DE_CONTRALORIA_MUNICIPAL_Y_COMBATE_A_LA_CORRUPCIONDIRECCION DE AUDITORIA GUBERNAMENTAL Y COMBATE A LA CORRUPCION1","SECRETARIA_DE_CONTRALORIA_MUNICIPAL_Y_COMBATE_A_LA_CORRUPCION","DIRECCION DE AUDITORIA GUBERNAMENTAL Y COMBATE A LA CORRUPCION",{"$f":"COUNTIF($D$4:D80,D80:D80)","v":1},"Auditorías","Auditorias Realizadas","Número de auditorías",10,8,"Ana Rosa Guzmán Peña",3314176115,"anarosa.guzman@tlaquepaque.gob.mx"]
["SECRETARIA_DE_CONTRALORIA_MUNICIPAL_Y_COMBATE_A_LA_CORRUPCIONDIRECCION DE AUDITORIA GUBERNAMENTAL Y COMBATE A LA CORRUPCION2Visitas de Inspección","SECRETARIA_DE_CONTRALORIA_MUNICIPAL_Y_COMBATE_A_LA_CORRUPCIONDIRECCION DE AUDITORIA GUBERNAMENTAL Y COMBATE A LA CORRUPCION2","SECRETARIA_DE_CONTRALORIA_MUNICIPAL_Y_COMBATE_A_LA_CORRUPCION","DIRECCION DE AUDITORIA GUBERNAMENTAL Y COMBATE A LA CORRUPCION",{"$f":"COUNTIF($D$4:D81,D81:D81)","v":2},"Visitas de Inspección","Visitas de inspección realizadas","Número de visitas de inspección",3,10,"Itzel Adriana Trejo Corona",3310723898,"itzel.trejo@tlaquepaque.gob.mx"]
["SECRETARIA_DE_CONTRALORIA_MUNICIPAL_Y_COMBATE_A_LA_CORRUPCIONSUBDIRECCION DE AUDITORIA FINANCIERA Y DE DESEMPEÑO1Auditorías","SECRETARIA_DE_CONTRALORIA_MUNICIPAL_Y_COMBATE_A_LA_CORRUPCIONSUBDIRECCION DE AUDITORIA FINANCIERA Y DE DESEMPEÑO1","SECRETARIA_DE_CONTRALORIA_MUNICIPAL_Y_COMBATE_A_LA_CORRUPCION","SUBDIRECCION DE AUDITORIA FINANCIERA Y DE DESEMPEÑO",{"$f":"COUNTIF($D$4:D82,D82:D82)","v":1},"Auditorías","Auditorias financieras y de desempeño realizadas","Número de auditorias",10,9,"Itzel Adriana Trejo Corona",3310723898,"itzel.trejo@tlaquepaque.gob.mx"]
["SECRETARIA_DE_CONTRALORIA_MUNICIPAL_Y_COMBATE_A_LA_CORRUPCIONSUBDIRECCION DE AUDITORIA FINANCIERA Y DE DESEMPEÑO2Procedimientos de aclaración derivados de entrega recepción","SECRETARIA_DE_CONTRALORIA_MUNICIPAL_Y_COMBATE_A_LA_CORRUPCIONSUBDIRECCION DE AUDITORIA FINANCIERA Y DE DESEMPEÑO2","SECRETARIA_DE_CONTRALORIA_MUNICIPAL_Y_COMBATE_A_LA_CORRUPCION","SUBDIRECCION DE AUDITORIA FINANCIERA Y DE DESEMPEÑO",{"$f":"COUNTIF($D$4:D83,D83:D83)","v":2},"Procedimientos de aclaración derivados de entrega recepción","Procedimientos de aclaración derivados de entrega recepción","Número de procedimientos de aclaración",66,30,"Itzel Adriana Trejo Corona",3310723898,"itzel,trejo@tlaquepaque.gob.mx"]
["SECRETARIA_DE_CONTRALORIA_MUNICIPAL_Y_COMBATE_A_LA_CORRUPCIONSUBDIRECCION DE AUDITORIA FINANCIERA Y DE DESEMPEÑO3Visitas de Inspección","SECRETARIA_DE_CONTRALORIA_MUNICIPAL_Y_COMBATE_A_LA_CORRUPCIONSUBDIRECCION DE AUDITORIA FINANCIERA Y DE DESEMPEÑO3","SECRETARIA_DE_CONTRALORIA_MUNICIPAL_Y_COMBATE_A_LA_CORRUPCION","SUBDIRECCION DE AUDITORIA FINANCIERA Y DE DESEMPEÑO",{"$f":"COUNTIF($D$4:D84,D84:D84)","v":3},"Visitas de Inspección","Visitas de Inspección realizadas","Número de visitas de inspección",3,10,"Itzel Adriana Trejo Corona",3310723898,"itzel,trejo@tlaquepaque.gob.mx"]
["SECRETARIA_DE_CONTRALORIA_MUNICIPAL_Y_COMBATE_A_LA_CORRUPCIONDIRECCION DE RESPONSABILIDADES Y EVOLUCION PATRIMONIAL1Educación e Innovación Tecnológica","SECRETARIA_DE_CONTRALORIA_MUNICIPAL_Y_COMBATE_A_LA_CORRUPCIONDIRECCION DE RESPONSABILIDADES Y EVOLUCION PATRIMONIAL1","SECRETARIA_DE_CONTRALORIA_MUNICIPAL_Y_COMBATE_A_LA_CORRUPCION","DIRECCION DE RESPONSABILIDADES Y EVOLUCION PATRIMONIAL",{"$f":"COUNTIF($D$4:D85,D85:D85)","v":1},"Educación e Innovación Tecnológica","Porcentaje de personas que hayan cumplido con su declaración patrimonial y de disminución de incumplimientos","Numero de personas que hayan cumplido con su declaración patrimonial y de disminución de incumplimientos",0,1,"Felipe Rivas Rivera",3314179257,"felipe.rivas@tlaquepaque.gob.mx"]
["OFICIALIA_MAYORDIRECCION DE DESARROLLO ORGANIZACIONAL1Elaboración de Manuales Administrativos","OFICIALIA_MAYORDIRECCION DE DESARROLLO ORGANIZACIONAL1","OFICIALIA_MAYOR","DIRECCION DE DESARROLLO ORGANIZACIONAL",{"$f":"COUNTIF($D$4:D86,D86:D86)","v":1},"Elaboración de Manuales Administrativos","Porcentaje de la elaboración de manuales que representen la actualidad de la estructura de las Dependencias","Numero de manuales elaborados",45,45,"Lic. José Luis Barba Reynoso","'3338078864","Sdelatorrev.Stgo@gmail.com"]
["OFICIALIA_MAYORDIRECCION DE DESARROLLO ORGANIZACIONAL2Armonización Organizativa","OFICIALIA_MAYORDIRECCION DE DESARROLLO ORGANIZACIONAL2","OFICIALIA_MAYOR","DIRECCION DE DESARROLLO ORGANIZACIONAL",{"$f":"COUNTIF($D$4:D87,D87:D87)","v":2},"Armonización Organizativa","Porcentaje de la elaboración de manuales que representen la actualidad de la estructura de las Dependencias","Numero de manuales elaborados",15,15,"Lic. José Luis Barba Reynoso","'3338078864","Sdelatorrev.Stgo@gmail.com"]
["OFICIALIA_MAYORDEPARTAMENTO DE CAPACITACION Y SERVICIO SOCIAL1Certificación en el ECO385","OFICIALIA_MAYORDEPARTAMENTO DE CAPACITACION Y SERVICIO SOCIAL1","OFICIALIA_MAYOR","DEPARTAMENTO DE CAPACITACION Y SERVICIO SOCIAL",{"$f":"COUNTIF($D$4:D88,D88:D88)","v":1},"Certificación en el ECO385","Porcentaje de servidoras y servidores públicos certificados","Número de personas certificadas",0,51,"Lic. José Antonio Aceves Reynoso","33 12 00 39 80 al 83","capacitaciónyserviciosocial@gmail.com"]
["OFICIALIA_MAYORDEPARTAMENTO DE CAPACITACION Y SERVICIO SOCIAL2Capacitación en materia de Derechos Humanos","OFICIALIA_MAYORDEPARTAMENTO DE CAPACITACION Y SERVICIO SOCIAL2","OFICIALIA_MAYOR","DEPARTAMENTO DE CAPACITACION Y SERVICIO SOCIAL",{"$f":"COUNTIF($D$4:D89,D89:D89)","v":2},"Capacitación en materia de Derechos Humanos","Porcentaje de avance en la capacitación a servidoras y servidores públicos en materia de DDHH","Número de personas capacitadas",0,800,"Lic. José Antonio Aceves Reynoso","33 12 00 39 80 al 83","capacitaciónyserviciosocial@gmail.com"]
["OFICIALIA_MAYORDEPARTAMENTO DE CAPACITACION Y SERVICIO SOCIAL3Desarrollo Académico Básico de las y los servidores públicos de la Secretaría de Servicios Públicos y Medio Ambiente","OFICIALIA_MAYORDEPARTAMENTO DE CAPACITACION Y SERVICIO SOCIAL3","OFICIALIA_MAYOR","DEPARTAMENTO DE CAPACITACION Y SERVICIO SOCIAL",{"$f":"COUNTIF($D$4:D90,D90:D90)","v":3},"Desarrollo Académico Básico de las y los servidores públicos de la Secretaría de Servicios Públicos y Medio Ambiente","Porcentaje de servidoras y servidores públicos certificados","Número de personas certificadas",0,80,"Lic. José Antonio Aceves Reynoso","33 12 00 39 80 al 83","capacitaciónyserviciosocial@gmail.com"]
["OFICIALIA_MAYORDEPARTAMENTO DE CAPACITACION Y SERVICIO SOCIAL4Difusión de Protocolos","OFICIALIA_MAYORDEPARTAMENTO DE CAPACITACION Y SERVICIO SOCIAL4","OFICIALIA_MAYOR","DEPARTAMENTO DE CAPACITACION Y SERVICIO SOCIAL",{"$f":"COUNTIF($D$4:D91,D91:D91)","v":4},"Difusión de Protocolos","Porcentaje de personas capacitadas","Número de personas capacitadas",0,1200,"Lic. José Antonio Aceves Reynoso","33 12 00 39 80 al 83","capacitaciónyserviciosocial@gmail.com"]
["OFICIALIA_MAYORDEPARTAMENTO DE CAPACITACION Y SERVICIO SOCIAL5Fortalecimiento y Desarrollo de Habilidades Blandas y Desarrollo Humano","OFICIALIA_MAYORDEPARTAMENTO DE CAPACITACION Y SERVICIO SOCIAL5","OFICIALIA_MAYOR","DEPARTAMENTO DE CAPACITACION Y SERVICIO SOCIAL",{"$f":"COUNTIF($D$4:D92,D92:D92)","v":5},"Fortalecimiento y Desarrollo de Habilidades Blandas y Desarrollo Humano","Porcentaje de personas capacitadas","Número de personas capacitadas",0,1200,"Lic. José Antonio Aceves Reynoso","33 12 00 39 80 al 83","capacitaciónyserviciosocial@gmail.com"]
["OFICIALIA_MAYORDEPARTAMENTO DE CAPACITACION Y SERVICIO SOCIAL6Fortalecimiento y Desarrollo de Habilidades Técnicas","OFICIALIA_MAYORDEPARTAMENTO DE CAPACITACION Y SERVICIO SOCIAL6","OFICIALIA_MAYOR","DEPARTAMENTO DE CAPACITACION Y SERVICIO SOCIAL",{"$f":"COUNTIF($D$4:D93,D93:D93)","v":6},"Fortalecimiento y Desarrollo de Habilidades Técnicas","Porcentaje de servidoras y servidores públicos capacitados","Número de personas capacitadas",0,1400,"Lic. José Antonio Aceves Reynoso","33 12 00 39 80 al 83","capacitaciónyserviciosocial@gmail.com"]
["OFICIALIA_MAYORDEPARTAMENTO DE CAPACITACION Y SERVICIO SOCIAL7Promoción de estilos de vida y entornos laboral, alimentaria y físicamente saludable para el personal","OFICIALIA_MAYORDEPARTAMENTO DE CAPACITACION Y SERVICIO SOCIAL7","OFICIALIA_MAYOR","DEPARTAMENTO DE CAPACITACION Y SERVICIO SOCIAL",{"$f":"COUNTIF($D$4:D94,D94:D94)","v":7},"Promoción de estilos de vida y entornos laboral, alimentaria y físicamente saludable para el personal","Porcentaje de edificios certificados","Número de edificios certificados",0,16,"Lic. José Antonio Aceves Reynoso","33 12 00 39 80 al 83","capacitaciónyserviciosocial@gmail.com"]
["OFICIALIA_MAYORDEPARTAMENTO DE CAPACITACION Y SERVICIO SOCIAL8Tlaquepaque Universitario","OFICIALIA_MAYORDEPARTAMENTO DE CAPACITACION Y SERVICIO SOCIAL8","OFICIALIA_MAYOR","DEPARTAMENTO DE CAPACITACION Y SERVICIO SOCIAL",{"$f":"COUNTIF($D$4:D95,D95:D95)","v":8},"Tlaquepaque Universitario","Porcentaje de apoyos brindados a practicantes profesionales y pasantes.","Número de apoyos económicos brindados a los practicantes y pasantes.",533,2000,"Lic. José Antonio Aceves Reynoso","33 12 00 39 80 al 83","capacitaciónyserviciosocial@gmail.com"]
["OFICIALIA_MAYORDEPARTAMENTO DE INCIDENCIAS Y CALCULO DE NOMINA1Pago de Nóminas","OFICIALIA_MAYORDEPARTAMENTO DE INCIDENCIAS Y CALCULO DE NOMINA1","OFICIALIA_MAYOR","DEPARTAMENTO DE INCIDENCIAS Y CALCULO DE NOMINA",{"$f":"COUNTIF($D$4:D96,D96:D96)","v":1},"Pago de Nóminas","Porcentaje en la generación y expedición eficiente y puntual de la nómina municipal, apoyada en procesos de actualización y digitalización de sistemas para la gestión de Recursos Humanos.","Número de nóminas generadas",0,24,"Sergio Lara Gutiérrez",null,"sergio.lara@tlaquepaque.gob.mx"]
["SECRETARIA_DE_PLANIFICACION_ANALISIS_Y_GESTION_URBANASECRETARIA DE PLANIFICACION, ANALISIS Y GESTION URBANA1Coordinación de actividades de las direcciones que integran la Secretaría de Planificación, Análisis y Gestión Urbana","SECRETARIA_DE_PLANIFICACION_ANALISIS_Y_GESTION_URBANASECRETARIA DE PLANIFICACION, ANALISIS Y GESTION URBANA1","SECRETARIA_DE_PLANIFICACION_ANALISIS_Y_GESTION_URBANA","SECRETARIA DE PLANIFICACION, ANALISIS Y GESTION URBANA",{"$f":"COUNTIF($D$4:D97,D97:D97)","v":1},"Coordinación de actividades de las direcciones que integran la Secretaría de Planificación, Análisis y Gestión Urbana","Porcentaje de avance en la supervisión y seguimiento de las actividades de la dirección de Desempeño, Resultados y Tablero de control realizadas","Numero de Actividades supervisadas",0,3]
["SECRETARIA_DE_PLANIFICACION_ANALISIS_Y_GESTION_URBANADIRECCION DE GESTION TERRITORIAL Y PLANEACION URBANA1Regularización de predios efectiva","SECRETARIA_DE_PLANIFICACION_ANALISIS_Y_GESTION_URBANADIRECCION DE GESTION TERRITORIAL Y PLANEACION URBANA1","SECRETARIA_DE_PLANIFICACION_ANALISIS_Y_GESTION_URBANA","DIRECCION DE GESTION TERRITORIAL Y PLANEACION URBANA",{"$f":"COUNTIF($D$4:D98,D98:D98)","v":1},"Regularización de predios efectiva","Porcentaje de títulos entregados a personas que viven en predios irregulares de San Pedro Tlaquepaque","Títulos entregados",500,800,"DALIA RAMIREZ RAMOS","3335 62 7054 al 60 extensión 2428 y 2413","DALIA.RAMIREZ@TLAQUEPAQUE.GOB.MX"]
["SECRETARIA_DE_PLANIFICACION_ANALISIS_Y_GESTION_URBANADEPARTAMENTO DE GESTION TERRITORIAL SUELO Y VIVIENDA1Mejoramiento de la atención al publico así como fiscalización de la Auditoria Superior del Estado","SECRETARIA_DE_PLANIFICACION_ANALISIS_Y_GESTION_URBANADEPARTAMENTO DE GESTION TERRITORIAL SUELO Y VIVIENDA1","SECRETARIA_DE_PLANIFICACION_ANALISIS_Y_GESTION_URBANA","DEPARTAMENTO DE GESTION TERRITORIAL SUELO Y VIVIENDA",{"$f":"COUNTIF($D$4:D99,D99:D99)","v":1},"Mejoramiento de la atención al publico así como fiscalización de la Auditoria Superior del Estado","Porcentaje de Etapas de Trámites y servicios emitidos","personas atendidas",9500,10500,"DALIA RAMIREZ RAMOS","3335 62 7054 al 60 extensión 2428 y 2413","DALIA.RAMIREZ@TLAQUEPAQUE.GOB.MX"]
["SECRETARIA_DE_PLANIFICACION_ANALISIS_Y_GESTION_URBANADEPARTAMENTO DE PLANEACION URBANA1Planes parciales y reglamentos municipales actualizados","SECRETARIA_DE_PLANIFICACION_ANALISIS_Y_GESTION_URBANADEPARTAMENTO DE PLANEACION URBANA1","SECRETARIA_DE_PLANIFICACION_ANALISIS_Y_GESTION_URBANA","DEPARTAMENTO DE PLANEACION URBANA",{"$f":"COUNTIF($D$4:D100,D100:D100)","v":1},"Planes parciales y reglamentos municipales actualizados","ACTUALIZACION A PLANES PARCIALES Y REGLAMENTOS","PROYECTO TERMINADO",0,0,"DALIA RAMIREZ RAMOS","3335 62 7054 al 60 extensión 2428 y 2413","DALIA.RAMIREZ@TLAQUEPAQUE.GOB.MX"]
["SECRETARIA_DE_PLANIFICACION_ANALISIS_Y_GESTION_URBANADIRECCION DE GESTION DEL DESEMPEÑO, EVALUACION DE RESULTADOS Y TABLERO DE CONTROL1Coordinación de actividades de los departamentos de la Dirección de Desempeño, Resultados y Tablero de Control","SECRETARIA_DE_PLANIFICACION_ANALISIS_Y_GESTION_URBANADIRECCION DE GESTION DEL DESEMPEÑO, EVALUACION DE RESULTADOS Y TABLERO DE CONTROL1","SECRETARIA_DE_PLANIFICACION_ANALISIS_Y_GESTION_URBANA","DIRECCION DE GESTION DEL DESEMPEÑO, EVALUACION DE RESULTADOS Y TABLERO DE CONTROL",{"$f":"COUNTIF($D$4:D101,D101:D101)","v":1},"Coordinación de actividades de los departamentos de la Dirección de Desempeño, Resultados y Tablero de Control","Porcentaje de avance en la supervisión y seguimiento de las actividades de la dirección de Desempeño, Resultados y Tablero de control realizadas","Numero de Actividades supervisadas",0,3,"Ing. Raúl Pérez y Pérez",3316921707,"Raul.perez@tlaquepaque.gob.mx"]
["SECRETARIA_DE_PLANIFICACION_ANALISIS_Y_GESTION_URBANADIRECCION DE GESTION DEL DESEMPEÑO, EVALUACION DE RESULTADOS Y TABLERO DE CONTROL2Gestión para el sistema integral para la planeación y evaluación de la auditoria publica municipal","SECRETARIA_DE_PLANIFICACION_ANALISIS_Y_GESTION_URBANADIRECCION DE GESTION DEL DESEMPEÑO, EVALUACION DE RESULTADOS Y TABLERO DE CONTROL2","SECRETARIA_DE_PLANIFICACION_ANALISIS_Y_GESTION_URBANA","DIRECCION DE GESTION DEL DESEMPEÑO, EVALUACION DE RESULTADOS Y TABLERO DE CONTROL",{"$f":"COUNTIF($D$4:D102,D102:D102)","v":2},"Gestión para el sistema integral para la planeación y evaluación de la auditoria publica municipal","Porcentaje de avance en la gestión para la implementación del sistema que permita monitorear y evaluar la planeación operativa 2024-2025","Número de etapas realizadas",0,8,"Ing. Raúl Pérez y Pérez",3316921707,"Raul.perez@tlaquepaque.gob.mx"]
["SECRETARIA_DE_PLANIFICACION_ANALISIS_Y_GESTION_URBANADIRECCION DE GESTION DEL DESEMPEÑO, EVALUACION DE RESULTADOS Y TABLERO DE CONTROL3Seguimiento y Evaluación a los Fondos de Origen Federal","SECRETARIA_DE_PLANIFICACION_ANALISIS_Y_GESTION_URBANADIRECCION DE GESTION DEL DESEMPEÑO, EVALUACION DE RESULTADOS Y TABLERO DE CONTROL3","SECRETARIA_DE_PLANIFICACION_ANALISIS_Y_GESTION_URBANA","DIRECCION DE GESTION DEL DESEMPEÑO, EVALUACION DE RESULTADOS Y TABLERO DE CONTROL",{"$f":"COUNTIF($D$4:D103,D103:D103)","v":3},"Seguimiento y Evaluación a los Fondos de Origen Federal","Porcentaje de avance en la supervisión y seguimiento las actividades realizadas de la dirección de Desempeño, Resultados y Tablero de control 2024-2025","Número de actividades supervisadas",0,3,"Ing. Raúl Pérez y Pérez",3316921707,"raul.perez@tlaquepaque.gob.mx"]
["SECRETARIA_DE_PLANIFICACION_ANALISIS_Y_GESTION_URBANADEPARTAMENTO DEL SISTEMA DE EVALUACION DEL DESEMPEÑO1Seguimiento y Evaluación a la Administración Pública Municipal","SECRETARIA_DE_PLANIFICACION_ANALISIS_Y_GESTION_URBANADEPARTAMENTO DEL SISTEMA DE EVALUACION DEL DESEMPEÑO1","SECRETARIA_DE_PLANIFICACION_ANALISIS_Y_GESTION_URBANA","DEPARTAMENTO DEL SISTEMA DE EVALUACION DEL DESEMPEÑO",{"$f":"COUNTIF($D$4:D104,D104:D104)","v":1},"Seguimiento y Evaluación a la Administración Pública Municipal","Porcentaje de PBR.s de la Planeación Operativa con seguimiento","PBR.s con seguimiento",398,347,"Ing. Juan Enrique Acevedo Acevedo",3325745322,"juan.aceves@tlaquepaque.gob.mx"]
["SECRETARIA_DE_PLANIFICACION_ANALISIS_Y_GESTION_URBANADEPARTAMENTO DEL SISTEMA DE EVALUACION DEL DESEMPEÑO2Seguimiento y Evaluación a los Programas Sociales","SECRETARIA_DE_PLANIFICACION_ANALISIS_Y_GESTION_URBANADEPARTAMENTO DEL SISTEMA DE EVALUACION DEL DESEMPEÑO2","SECRETARIA_DE_PLANIFICACION_ANALISIS_Y_GESTION_URBANA","DEPARTAMENTO DEL SISTEMA DE EVALUACION DEL DESEMPEÑO",{"$f":"COUNTIF($D$4:D105,D105:D105)","v":2},"Seguimiento y Evaluación a los Programas Sociales","Porcentaje de diagnóstico de dictámenes de evaluación de solicitud de obras","Número de dictámenes de evaluación de solicitud de obras",0,80,"María Guadalupe Saldaña Duarte","33-13-49-10-90","mgsd2909@gmail.com"]
["SECRETARIA_DE_PLANIFICACION_ANALISIS_Y_GESTION_URBANADEPARTAMENTO DE INDICADORES Y METAS PARA RESULTADOS1Servicio de Acompañamiento para la gestión del sistema de Planeación Municipal","SECRETARIA_DE_PLANIFICACION_ANALISIS_Y_GESTION_URBANADEPARTAMENTO DE INDICADORES Y METAS PARA RESULTADOS1","SECRETARIA_DE_PLANIFICACION_ANALISIS_Y_GESTION_URBANA","DEPARTAMENTO DE INDICADORES Y METAS PARA RESULTADOS",{"$f":"COUNTIF($D$4:D106,D106:D106)","v":1},"Servicio de Acompañamiento para la gestión del sistema de Planeación Municipal","Porcentaje de avance en las etapas de acompañamiento/asesorías para generar la planeación operativa 2024-2025 e integración del Sistema de Indicadores del Desempeño 2024 de las áreas y direcciones municipales","Etapas realizadas",13,13,"Liliana Delfín Jiménez",9981604015,"liliana.delfin@tlaquepaque.gob.mx"]
["SECRETARIA_DE_PLANIFICACION_ANALISIS_Y_GESTION_URBANADIRECCION DEL BANCO INTEGRADO DE PROYECTOS Y PROGRAMAS1Seguimiento de Mesas de gestión Metropolitana ante el IMEPLAN","SECRETARIA_DE_PLANIFICACION_ANALISIS_Y_GESTION_URBANADIRECCION DEL BANCO INTEGRADO DE PROYECTOS Y PROGRAMAS1","SECRETARIA_DE_PLANIFICACION_ANALISIS_Y_GESTION_URBANA","DIRECCION DEL BANCO INTEGRADO DE PROYECTOS Y PROGRAMAS",{"$f":"COUNTIF($D$4:D107,D107:D107)","v":1},"Seguimiento de Mesas de gestión Metropolitana ante el IMEPLAN","Vistas de mapa por proyecto y/o programas que postulan financiamiento municipal","Vista de mapa",0,10,"Jonathan Octavio García Martínez",3310622577,"jonathan.garcia@tlaquepaque.gob.mx"]
["SECRETARIA_DE_PLANIFICACION_ANALISIS_Y_GESTION_URBANADIRECCION DEL BANCO INTEGRADO DE PROYECTOS Y PROGRAMAS2Banco integrado de proyectos y programas","SECRETARIA_DE_PLANIFICACION_ANALISIS_Y_GESTION_URBANADIRECCION DEL BANCO INTEGRADO DE PROYECTOS Y PROGRAMAS2","SECRETARIA_DE_PLANIFICACION_ANALISIS_Y_GESTION_URBANA","DIRECCION DEL BANCO INTEGRADO DE PROYECTOS Y PROGRAMAS",{"$f":"COUNTIF($D$4:D108,D108:D108)","v":2},"Banco integrado de proyectos y programas","Porcentaje de avance en las etapas de gestión para la implementación del sistema de información geográfica","número de etapas de gestión realizadas",0,7,"Jonathan Octavio García Martínez",3310622577,"jonathan.garcia@tlaquepaque.gob.mx"]
["SECRETARIA_DE_PLANIFICACION_ANALISIS_Y_GESTION_URBANADEPARTAMENTO DE EVALUACION DE PROYECTOS Y PROGRAMAS1Dictamen de evaluación de solicitud de obras","SECRETARIA_DE_PLANIFICACION_ANALISIS_Y_GESTION_URBANADEPARTAMENTO DE EVALUACION DE PROYECTOS Y PROGRAMAS1","SECRETARIA_DE_PLANIFICACION_ANALISIS_Y_GESTION_URBANA","DEPARTAMENTO DE EVALUACION DE PROYECTOS Y PROGRAMAS",{"$f":"COUNTIF($D$4:D109,D109:D109)","v":1},"Dictamen de evaluación de solicitud de obras","Porcentaje de diagnóstico de dictámenes de evaluación de solicitud de obras","Número de dictámenes de evaluación de solicitud de obras",0,80,"María Guadalupe Saldaña Duarte","33-13-49-10-90","mgsd2909@gmail.com"]
["SECRETARIA_DE_BIENESTARDIRECCION DE PROGRAMAS SOCIALES PARA EL BIENESTAR1Bienestar Incluyente","SECRETARIA_DE_BIENESTARDIRECCION DE PROGRAMAS SOCIALES PARA EL BIENESTAR1","SECRETARIA_DE_BIENESTAR","DIRECCION DE PROGRAMAS SOCIALES PARA EL BIENESTAR",{"$f":"COUNTIF($D$4:D110,D110:D110)","v":1},"Bienestar Incluyente","Apoyo en especie para personas con diversidad funcional con aparatos auxiliares de movilidad y desarrollo","500 beneficiarios",0,500,"Yessica Lizeth Castellanos Carrillo",3318435959,"carrilloyessica791@gmail.com"]
["SECRETARIA_DE_BIENESTARDIRECCION DE PROGRAMAS SOCIALES PARA EL BIENESTAR2Aprendiendo con Bienestar","SECRETARIA_DE_BIENESTARDIRECCION DE PROGRAMAS SOCIALES PARA EL BIENESTAR2","SECRETARIA_DE_BIENESTAR","DIRECCION DE PROGRAMAS SOCIALES PARA EL BIENESTAR",{"$f":"COUNTIF($D$4:D111,D111:D111)","v":2},"Aprendiendo con Bienestar","Útiles y uniformes","Número de alumnos",0,"100 % de todos los estudiantes","Yessica Lizeth Castellanos Carrillo",3318435959,"carrilloyessica791@gmail.com"]
["SECRETARIA_DE_BIENESTARDIRECCION DE PROGRAMAS SOCIALES PARA EL BIENESTAR3Raíces de Esperanza","SECRETARIA_DE_BIENESTARDIRECCION DE PROGRAMAS SOCIALES PARA EL BIENESTAR3","SECRETARIA_DE_BIENESTAR","DIRECCION DE PROGRAMAS SOCIALES PARA EL BIENESTAR",{"$f":"COUNTIF($D$4:D112,D112:D112)","v":3},"Raíces de Esperanza","Artesanas y artesanos de San Pedro Tlaquepaque inscritos en el programa",428,0,428,"Araceli Hernández",3312954027,"tsaracelihernandez18@gmail.com"]
["SECRETARIA_DE_BIENESTARDIRECCION DE PROGRAMAS SOCIALES PARA EL BIENESTAR4Líderes de Esperanza","SECRETARIA_DE_BIENESTARDIRECCION DE PROGRAMAS SOCIALES PARA EL BIENESTAR4","SECRETARIA_DE_BIENESTAR","DIRECCION DE PROGRAMAS SOCIALES PARA EL BIENESTAR",{"$f":"COUNTIF($D$4:D113,D113:D113)","v":4},"Líderes de Esperanza","Apoyar a mujeres y hombres líderes del hogar de San Pedro Tlaquepaque","Cantidad de personas beneficiarias en base a un padrón",0,1500,"Yessica Lizeth Castellanos Carrillo",3318435959,"carrilloyessica791@gmail.com"]
["SECRETARIA_DE_BIENESTARDIRECCION DE EDUCACION1Feria de la oferta educativa media superior y superior","SECRETARIA_DE_BIENESTARDIRECCION DE EDUCACION1","SECRETARIA_DE_BIENESTAR","DIRECCION DE EDUCACION",{"$f":"COUNTIF($D$4:D114,D114:D114)","v":1},"Feria de la oferta educativa media superior y superior","Porcentaje de charlas sobre ofertas educativas a estudiantes de secundaria","número de charlas impartidas",0,5000,"Julio Ornelas Camacho",3313049438,"julio.ornelas@tlaquepaque.gob.mx"]
["SECRETARIA_DE_BIENESTARDIRECCION DE EDUCACION2Educación Y Capacitación Para El Medio Ambiente","SECRETARIA_DE_BIENESTARDIRECCION DE EDUCACION2","SECRETARIA_DE_BIENESTAR","DIRECCION DE EDUCACION",{"$f":"COUNTIF($D$4:D115,D115:D115)","v":2},"Educación Y Capacitación Para El Medio Ambiente","Porcentaje de planteles intervenidos mediante capacitaciones sobre cuidado al medio ambiente","Número de planteles intervenidos",0,80,"Julio Ornelas Camacho",3313049438,"julio.ornelas@tlaquepaque.gob.mx"]
["SECRETARIA_DE_BIENESTARDIRECCION DE EDUCACION3Cabildo Infantil Y Juvenil","SECRETARIA_DE_BIENESTARDIRECCION DE EDUCACION3","SECRETARIA_DE_BIENESTAR","DIRECCION DE EDUCACION",{"$f":"COUNTIF($D$4:D116,D116:D116)","v":3},"Cabildo Infantil Y Juvenil","Porcentaje de procesos de elección para el Cabildo Infantil y Juvenil","número de procesos realizados",0,60,"Julio Ornelas Camacho",3336576890,"julio.ornelas@tlaquepaque.gob.mx"]
["SECRETARIA_DE_BIENESTARDIRECCION DE EDUCACION4Abrigando Tu Bienestar","SECRETARIA_DE_BIENESTARDIRECCION DE EDUCACION4","SECRETARIA_DE_BIENESTAR","DIRECCION DE EDUCACION",{"$f":"COUNTIF($D$4:D117,D117:D117)","v":4},"Abrigando Tu Bienestar","Porcentaje de personas beneficiadas mediante la campaña abrigando tu bienestar","Número de personas beneficiadas",0,1000,"Julio Ornelas Camacho",3313049438,"julio.ornelas@tlaquepaque.gob.mx"]
["SECRETARIA_DE_BIENESTARDIRECCION DE EDUCACION5Actividades Extraescolares","SECRETARIA_DE_BIENESTARDIRECCION DE EDUCACION5","SECRETARIA_DE_BIENESTAR","DIRECCION DE EDUCACION",{"$f":"COUNTIF($D$4:D118,D118:D118)","v":5},"Actividades Extraescolares","Porcentaje de alumnos beneficiados, mediante cursos extraescolares","número de alumnos beneficiados",0,200,"Julio Ornelas Camacho",3313049438,"julio.ornelas@tlaquepaque.gob.mx"]
["SECRETARIA_DE_BIENESTARDIRECCION DE EDUCACION6Actividades Extraescolares","SECRETARIA_DE_BIENESTARDIRECCION DE EDUCACION6","SECRETARIA_DE_BIENESTAR","DIRECCION DE EDUCACION",{"$f":"COUNTIF($D$4:D119,D119:D119)","v":6},"Actividades Extraescolares","Porcentaje de cursos extraescolares impartidos","números de cursos impartidos",0,0,"Julio Ornelas Camacho",3313049438,"julio.ornelas@tlaquepaque.gob.mx"]
["SECRETARIA_DE_BIENESTARSUBDIRECCION DE DESARROLLO Y ATENCION AL SECTOR AGROPECUARIO1Rehabilitación Permanente De Caminos Rurales","SECRETARIA_DE_BIENESTARSUBDIRECCION DE DESARROLLO Y ATENCION AL SECTOR AGROPECUARIO1","SECRETARIA_DE_BIENESTAR","SUBDIRECCION DE DESARROLLO Y ATENCION AL SECTOR AGROPECUARIO",{"$f":"COUNTIF($D$4:D120,D120:D120)","v":1},"Rehabilitación Permanente De Caminos Rurales","Porcentaje de etapas de gestión para la adquisición de una moto conformadora","número de etapas de gestión realizadas",0,4,"Jorge Eduardo Luján Gómez","33-36-01-14-05","agropecuariotlaquepaque@gmail.com"]
["SECRETARIA_DE_BIENESTARSUBDIRECCION DE DESARROLLO Y ATENCION AL SECTOR AGROPECUARIO2Procesadora de composta orgánica.","SECRETARIA_DE_BIENESTARSUBDIRECCION DE DESARROLLO Y ATENCION AL SECTOR AGROPECUARIO2","SECRETARIA_DE_BIENESTAR","SUBDIRECCION DE DESARROLLO Y ATENCION AL SECTOR AGROPECUARIO",{"$f":"COUNTIF($D$4:D121,D121:D121)","v":2},"Procesadora de composta orgánica.","Porcentaje de etapas de gestión para el equipamiento de la dirección","número de etapas realizadas",0,7,"Jorge Eduardo Luján Gómez","33-36-01-14-05","agropecuariotlaquepaque@gmail.com"]
["SECRETARIA_DE_BIENESTARSUBDIRECCION DE DESARROLLO Y ATENCION AL SECTOR AGROPECUARIO3Pozos de absorción Tecnificados.","SECRETARIA_DE_BIENESTARSUBDIRECCION DE DESARROLLO Y ATENCION AL SECTOR AGROPECUARIO3","SECRETARIA_DE_BIENESTAR","SUBDIRECCION DE DESARROLLO Y ATENCION AL SECTOR AGROPECUARIO",{"$f":"COUNTIF($D$4:D122,D122:D122)","v":3},"Pozos de absorción Tecnificados.","Porcentaje de pozos de absorción tecnificados construidos.","Pozos de absorción construidos.",10,10,"Jorge Eduardo Luján Gómez","33-36-01-14-05","agropecuariotlaquepaque@gmail.com"]
["SECRETARIA_DE_BIENESTARSUBDIRECCION DE DESARROLLO Y ATENCION AL SECTOR AGROPECUARIO4Conservación y mejoramiento de suelos agrícolas","SECRETARIA_DE_BIENESTARSUBDIRECCION DE DESARROLLO Y ATENCION AL SECTOR AGROPECUARIO4","SECRETARIA_DE_BIENESTAR","SUBDIRECCION DE DESARROLLO Y ATENCION AL SECTOR AGROPECUARIO",{"$f":"COUNTIF($D$4:D123,D123:D123)","v":4},"Conservación y mejoramiento de suelos agrícolas","Porcentaje de toneladas de cal y minerales incorporados mediante el Programa de conservación y mejora de los suelos agrícolas","Número de Toneladas incorporadas al suelo (Cal)",300,300,"Jorge Eduardo Luján Gómez","33-36-01-14-05","agropecuariotlaquepaque@gmail.com"]
["SECRETARIA_DE_BIENESTARSUBDIRECCION DE DESARROLLO Y ATENCION AL SECTOR AGROPECUARIO5Conservación y mejoramiento de suelos agrícolas","SECRETARIA_DE_BIENESTARSUBDIRECCION DE DESARROLLO Y ATENCION AL SECTOR AGROPECUARIO5","SECRETARIA_DE_BIENESTAR","SUBDIRECCION DE DESARROLLO Y ATENCION AL SECTOR AGROPECUARIO",{"$f":"COUNTIF($D$4:D124,D124:D124)","v":5},"Conservación y mejoramiento de suelos agrícolas","Porcentaje de toneladas de cal y minerales incorporados mediante el Programa de conservación y mejora de los suelos agrícolas","Número de Toneladas incorporadas al suelo (Minerales)",200,200,"Jorge Eduardo Luján Gómez","33-36-01-14-05","agropecuariotlaquepaque@gmail.com"]
["SECRETARIA_DE_BIENESTARSUBDIRECCION DE DESARROLLO Y ATENCION AL SECTOR AGROPECUARIO6Hidroponía","SECRETARIA_DE_BIENESTARSUBDIRECCION DE DESARROLLO Y ATENCION AL SECTOR AGROPECUARIO6","SECRETARIA_DE_BIENESTAR","SUBDIRECCION DE DESARROLLO Y ATENCION AL SECTOR AGROPECUARIO",{"$f":"COUNTIF($D$4:D125,D125:D125)","v":6},"Hidroponía","Porcentaje de capacitaciones en Hidroponía realizadas","Número de capacitaciones realizadas",0,150,"Juan Pablo Santana Moya","33-36-01-14-05","agropecuariotlaquepaque@gmail.com"]
["SECRETARIA_DE_FOMENTO_ECONOMICO_Y_CULTURALDIRECCION DE CULTURA1Cultura en tu colonia","SECRETARIA_DE_FOMENTO_ECONOMICO_Y_CULTURALDIRECCION DE CULTURA1","SECRETARIA_DE_FOMENTO_ECONOMICO_Y_CULTURAL","DIRECCION DE CULTURA",{"$f":"COUNTIF($D$4:D126,D126:D126)","v":1},"Cultura en tu colonia","Porcentaje de artistas contratados para llevar actividades culturales a las colonias vulnerables","Número de artistas contratados",53,50,"Vázquez Sandoval Arianna Janeth","´'3316018010","oscar.carrillo.cultura@gmail.com"]
["SECRETARIA_DE_FOMENTO_ECONOMICO_Y_CULTURALDIRECCION DE CULTURA2Cultura Por La Paz","SECRETARIA_DE_FOMENTO_ECONOMICO_Y_CULTURALDIRECCION DE CULTURA2","SECRETARIA_DE_FOMENTO_ECONOMICO_Y_CULTURAL","DIRECCION DE CULTURA",{"$f":"COUNTIF($D$4:D127,D127:D127)","v":2},"Cultura Por La Paz","Porcentaje de colonias beneficiadas con actividades culturales.","Numero de colonias beneficiadas",186,80,"Vázquez Sandoval Arianna Janeth","´'3316018010","oscar.carrillo.cultura@gmail.com"]
["SECRETARIA_DE_FOMENTO_ECONOMICO_Y_CULTURALDIRECCION DE CULTURA3Ferias, Festivales Y Exposiciones","SECRETARIA_DE_FOMENTO_ECONOMICO_Y_CULTURALDIRECCION DE CULTURA3","SECRETARIA_DE_FOMENTO_ECONOMICO_Y_CULTURAL","DIRECCION DE CULTURA",{"$f":"COUNTIF($D$4:D128,D128:D128)","v":3},"Ferias, Festivales Y Exposiciones","Porcentaje de avances en Festivales o Ferias","Festivales y/o Ferias realizados",4,3,"Vázquez Sandoval Arianna Janeth","´'3316018010","oscar.carrillo.cultura@gmail.com"]
["SECRETARIA_DE_FOMENTO_ECONOMICO_Y_CULTURALDIRECCION DE CULTURA4Formación Continua","SECRETARIA_DE_FOMENTO_ECONOMICO_Y_CULTURALDIRECCION DE CULTURA4","SECRETARIA_DE_FOMENTO_ECONOMICO_Y_CULTURAL","DIRECCION DE CULTURA",{"$f":"COUNTIF($D$4:D129,D129:D129)","v":4},"Formación Continua","Numero de talleres impartidos en colonias","Talleres impartidos en colonias",0,10,"Vázquez Sandoval Arianna Janeth","´'3316018010","oscar.carrillo.cultura@gmail.com"]
["SECRETARIA_DE_FOMENTO_ECONOMICO_Y_CULTURALDIRECCION DE CULTURA5Amigos de Refugio","SECRETARIA_DE_FOMENTO_ECONOMICO_Y_CULTURALDIRECCION DE CULTURA5","SECRETARIA_DE_FOMENTO_ECONOMICO_Y_CULTURAL","DIRECCION DE CULTURA",{"$f":"COUNTIF($D$4:D130,D130:D130)","v":5},"Amigos de Refugio","Porcentaje de visitas al recinto cultural","Numero de visitas al recinto cultural",43,30,"Vázquez Sandoval Arianna Janeth",3316018010,"oscar.carrillo.cultura@gmail.com"]
["SECRETARIA_DE_FOMENTO_ECONOMICO_Y_CULTURALSUBDIRECCION DE BIBLIOTECAS1Talleres De Fomento A Cultura","SECRETARIA_DE_FOMENTO_ECONOMICO_Y_CULTURALSUBDIRECCION DE BIBLIOTECAS1","SECRETARIA_DE_FOMENTO_ECONOMICO_Y_CULTURAL","SUBDIRECCION DE BIBLIOTECAS",{"$f":"COUNTIF($D$4:D131,D131:D131)","v":1},"Talleres De Fomento A Cultura","Porcentaje de etapas de gestión para la adquisición de un vehículo para equipar la jefatura de bibliotecas","Número de etapas realizadas",0,2,"Christian René García Gutiérrez","33-10-97-20-56","libroscoordinacion@gmail.com"]
["SECRETARIA_DE_FOMENTO_ECONOMICO_Y_CULTURALSUBDIRECCION DE MUSEOS1Exposiciones Temporales","SECRETARIA_DE_FOMENTO_ECONOMICO_Y_CULTURALSUBDIRECCION DE MUSEOS1","SECRETARIA_DE_FOMENTO_ECONOMICO_Y_CULTURAL","SUBDIRECCION DE MUSEOS",{"$f":"COUNTIF($D$4:D132,D132:D132)","v":1},"Exposiciones Temporales","Porcentaje de exposiciones temporales y adecuación de las salas",null,0,4,"DAVID GALLEGOS","33-36-39-56-46","pantaleonpanduromuseo@gmail.com"]
[{"$f":"B133&F133","v":"SECRETARIA_DE_FOMENTO_ECONOMICO_Y_CULTURALSUBDIRECCION DE MUSEOS2Museo Itinerante"},"SECRETARIA_DE_FOMENTO_ECONOMICO_Y_CULTURALSUBDIRECCION DE MUSEOS2","SECRETARIA_DE_FOMENTO_ECONOMICO_Y_CULTURAL","SUBDIRECCION DE MUSEOS",{"$f":"COUNTIF($D$4:D133,D133:D133)","v":2},"Museo Itinerante","MOSTRAR EL TALENTO ARTÍSTICO DE NUESTROS ARTESANOS DE TIDA LA REPÚBLICA",null,0,2,"DAVID GALLEGOS","33-36-39-56-46","pantaleonpanduromuseo@gmail.com"]
["SECRETARIA_DE_FOMENTO_ECONOMICO_Y_CULTURALSUBDIRECCION DE MUSEOS3Museos a la Calle","SECRETARIA_DE_FOMENTO_ECONOMICO_Y_CULTURALSUBDIRECCION DE MUSEOS3","SECRETARIA_DE_FOMENTO_ECONOMICO_Y_CULTURAL","SUBDIRECCION DE MUSEOS",{"$f":"COUNTIF($D$4:D134,D134:D134)","v":3},"Museos a la Calle","EXPOSICIONES ITINERANTES EN COLONIAS MARGINADAS DEL MUNICIPIO","NÚMERO DE COLONIAS EN LAS QUE SE LLEVARÁN LAS EXPOSICIONES",0,5,"DAVID GALLEGOS","33-36-39-56-46","pantaleonpanduromuseo@gmail.com"]
["SECRETARIA_DE_FOMENTO_ECONOMICO_Y_CULTURALSUBDIRECCION DE MUSEOS4Xvlvii Premio Nacional De La Cerámica","SECRETARIA_DE_FOMENTO_ECONOMICO_Y_CULTURALSUBDIRECCION DE MUSEOS4","SECRETARIA_DE_FOMENTO_ECONOMICO_Y_CULTURAL","SUBDIRECCION DE MUSEOS",{"$f":"COUNTIF($D$4:D135,D135:D135)","v":4},"Xvlvii Premio Nacional De La Cerámica","CONVOCAR A LOS ARTESANOS DE TODA LA REPÙBLICA, PARA DAR A CONOCER SU TALENTO E INSPIRACIÒN AL PARTICIPAR CON SUS OBRAS EN EL CERTAMEN DEL PREMIO NACIONAL DE LA CERÀMICA",0,null,1,"DAVID GALLEGOS","33-36-39-56-46","pantaleonpanduromuseo@gmail.com"]
["SECRETARIA_DE_FOMENTO_ECONOMICO_Y_CULTURALDIRECCION DE DESARROLLO ARTESANAL Y TURISTICO1Capacitación","SECRETARIA_DE_FOMENTO_ECONOMICO_Y_CULTURALDIRECCION DE DESARROLLO ARTESANAL Y TURISTICO1","SECRETARIA_DE_FOMENTO_ECONOMICO_Y_CULTURAL","DIRECCION DE DESARROLLO ARTESANAL Y TURISTICO",{"$f":"COUNTIF($D$4:D136,D136:D136)","v":1},"Capacitación","Participación de artesanos beneficiados con talleres y capacitaciones","Numero de personas beneficiadas",150,150,"Mtro. Arwin Armando Matanael Ramos Casas",3310576212,"patricia.cano@tlaquepaque.gob.mx"]
["SECRETARIA_DE_FOMENTO_ECONOMICO_Y_CULTURALDIRECCION DE DESARROLLO ARTESANAL Y TURISTICO2Padrón Artesanal y Credencialización","SECRETARIA_DE_FOMENTO_ECONOMICO_Y_CULTURALDIRECCION DE DESARROLLO ARTESANAL Y TURISTICO2","SECRETARIA_DE_FOMENTO_ECONOMICO_Y_CULTURAL","DIRECCION DE DESARROLLO ARTESANAL Y TURISTICO",{"$f":"COUNTIF($D$4:D137,D137:D137)","v":2},"Padrón Artesanal y Credencialización","Artesanos Beneficiados","Numero de artesanos registrados",426,426,"Mtro. Arwin Armando Matanael Ramos Casas",3310576212,"patricia.cano@tlaquepaque.gob.mx"]
["SECRETARIA_DE_FOMENTO_ECONOMICO_Y_CULTURALDIRECCION DE DESARROLLO ARTESANAL Y TURISTICO3Rescatando nuestras Tradiciones","SECRETARIA_DE_FOMENTO_ECONOMICO_Y_CULTURALDIRECCION DE DESARROLLO ARTESANAL Y TURISTICO3","SECRETARIA_DE_FOMENTO_ECONOMICO_Y_CULTURAL","DIRECCION DE DESARROLLO ARTESANAL Y TURISTICO",{"$f":"COUNTIF($D$4:D138,D138:D138)","v":3},"Rescatando nuestras Tradiciones","Talleres impartidos","Numero de Talleres realizados",95,100,"Mtro. Arwin Armando Matanael Ramos Casas",3310576212,"patricia.cano@tlaquepaque.gob.mx"]
["SECRETARIA_DE_FOMENTO_ECONOMICO_Y_CULTURALDIRECCION DE DESARROLLO ARTESANAL Y TURISTICO4Festivales, Eventos, Ferias y Exposiciones","SECRETARIA_DE_FOMENTO_ECONOMICO_Y_CULTURALDIRECCION DE DESARROLLO ARTESANAL Y TURISTICO4","SECRETARIA_DE_FOMENTO_ECONOMICO_Y_CULTURAL","DIRECCION DE DESARROLLO ARTESANAL Y TURISTICO",{"$f":"COUNTIF($D$4:D139,D139:D139)","v":4},"Festivales, Eventos, Ferias y Exposiciones","Festivales, eventos y exposiciones.","Número de festivales, eventos y exposiciones.",12,17,"Jessica Lizbeth Gallardo González / Arwin Armando Matanael Ramos Casas","33 1057 6212 / 33 1206960","desarrolloartesanalyturistico@tlaquepaque.gob.mx"]
["SECRETARIA_DE_FOMENTO_ECONOMICO_Y_CULTURALDIRECCION DE DESARROLLO ARTESANAL Y TURISTICO5Permanencia Pueblo Mágico","SECRETARIA_DE_FOMENTO_ECONOMICO_Y_CULTURALDIRECCION DE DESARROLLO ARTESANAL Y TURISTICO5","SECRETARIA_DE_FOMENTO_ECONOMICO_Y_CULTURAL","DIRECCION DE DESARROLLO ARTESANAL Y TURISTICO",{"$f":"COUNTIF($D$4:D140,D140:D140)","v":5},"Permanencia Pueblo Mágico","Afluencia turística","Número de personas que visitan el municipio registrados en módulos de información, tour-operadores y hoteles.",319000,400000,"Jessica Lizbeth Gallardo González / Arwin Armando Matanael Ramos Casas","33 1057 6212 / 33 1206960","desarrolloartesanalyturistico@tlaquepaque.gob.mx"]
["SECRETARIA_DE_FOMENTO_ECONOMICO_Y_CULTURALDIRECCION DE GESTION EMPRESARIAL E INDUSTRIAL1Vinculación directa con empresas","SECRETARIA_DE_FOMENTO_ECONOMICO_Y_CULTURALDIRECCION DE GESTION EMPRESARIAL E INDUSTRIAL1","SECRETARIA_DE_FOMENTO_ECONOMICO_Y_CULTURAL","DIRECCION DE GESTION EMPRESARIAL E INDUSTRIAL",{"$f":"COUNTIF($D$4:D141,D141:D141)","v":1},"Vinculación directa con empresas","Vinculación con empresas","empresarios atendidos",0,30,"Lcdo. José Antonio Álvarez Hernández","3336591599/3336590901","antonioempresarialindustrial@gmail.com"]
["SECRETARIA_DE_FOMENTO_ECONOMICO_Y_CULTURALDIRECCION DE GESTION EMPRESARIAL E INDUSTRIAL2Expo Emprende y Transforma 2025",{"$f":"C142&D142&E142","v":"SECRETARIA_DE_FOMENTO_ECONOMICO_Y_CULTURALDIRECCION DE GESTION EMPRESARIAL E INDUSTRIAL2"},"SECRETARIA_DE_FOMENTO_ECONOMICO_Y_CULTURAL","DIRECCION DE GESTION EMPRESARIAL E INDUSTRIAL",{"$f":"COUNTIF($D$4:D142,D142:D142)","v":2},"Expo Emprende y Transforma 2025","Personas atendas en general y vinculación empresarial","Número de personas atendidas y vinculación empresarial",0,1000,"Lcdo. José Antonio Álvarez Hernández","3336591599/3336590901","antonioempresarialindustrial@gmail.com"]
["SECRETARIA_DE_FOMENTO_ECONOMICO_Y_CULTURALDIRECCION DE GESTION EMPRESARIAL E INDUSTRIAL3Empleo a Tu Alcance","SECRETARIA_DE_FOMENTO_ECONOMICO_Y_CULTURALDIRECCION DE GESTION EMPRESARIAL E INDUSTRIAL3","SECRETARIA_DE_FOMENTO_ECONOMICO_Y_CULTURAL","DIRECCION DE GESTION EMPRESARIAL E INDUSTRIAL",{"$f":"COUNTIF($D$4:D143,D143:D143)","v":3},"Empleo a Tu Alcance","Porcentaje de personas beneficiadas con alguna vacante, mediante el programa Empleo a tu Alcance","Número de personas beneficiarias",0,300,"Lcdo. José Antonio Álvarez Hernández","3336591599/3336590901","antonioempresarialindustrial@gmail.com"]
["SECRETARIA_DE_FOMENTO_ECONOMICO_Y_CULTURALDIRECCION DE GESTION EMPRESARIAL E INDUSTRIAL4Capacitación Permanente Empresarial, Cooperativas bienes y/o Servicios y Talleres Autoempleo","SECRETARIA_DE_FOMENTO_ECONOMICO_Y_CULTURALDIRECCION DE GESTION EMPRESARIAL E INDUSTRIAL4","SECRETARIA_DE_FOMENTO_ECONOMICO_Y_CULTURAL","DIRECCION DE GESTION EMPRESARIAL E INDUSTRIAL",{"$f":"COUNTIF($D$4:D144,D144:D144)","v":4},"Capacitación Permanente Empresarial, Cooperativas bienes y/o Servicios y Talleres Autoempleo","Porcentaje de personas capacitadas en temas empresariales.","Número de personas capacitadas en temas empresariales",0,100,"Lcdo. José Antonio Álvarez Hernández","3336591599/3336590901","antonioempresarialindustrial@gmail.com"]
["SECRETARIA_DE_FOMENTO_ECONOMICO_Y_CULTURALDIRECCION DE GESTION EMPRESARIAL E INDUSTRIAL5Capacitación Permanente Empresarial, Cooperativas bienes y/o Servicios y Talleres Autoempleo","SECRETARIA_DE_FOMENTO_ECONOMICO_Y_CULTURALDIRECCION DE GESTION EMPRESARIAL E INDUSTRIAL5","SECRETARIA_DE_FOMENTO_ECONOMICO_Y_CULTURAL","DIRECCION DE GESTION EMPRESARIAL E INDUSTRIAL",{"$f":"COUNTIF($D$4:D145,D145:D145)","v":5},"Capacitación Permanente Empresarial, Cooperativas bienes y/o Servicios y Talleres Autoempleo","Porcentaje de personas capacitadas en talleres de autoempleo.","Número de personas capacitadas en talleres de autoempleo y autosuficiencia alimentaria",0,100,"Lcdo. José Antonio Álvarez Hernández","3336591599/3336590901","antonioempresarialindustrial@gmail.com"]
["SECRETARIA_DE_FOMENTO_ECONOMICO_Y_CULTURALDIRECCION DE GESTION EMPRESARIAL E INDUSTRIAL6Capacitación Permanente Empresarial, Cooperativas bienes y/o Servicios y Talleres Autoempleo","SECRETARIA_DE_FOMENTO_ECONOMICO_Y_CULTURALDIRECCION DE GESTION EMPRESARIAL E INDUSTRIAL6","SECRETARIA_DE_FOMENTO_ECONOMICO_Y_CULTURAL","DIRECCION DE GESTION EMPRESARIAL E INDUSTRIAL",{"$f":"COUNTIF($D$4:D146,D146:D146)","v":6},"Capacitación Permanente Empresarial, Cooperativas bienes y/o Servicios y Talleres Autoempleo","Porcentaje de personas capacitadas en talleres de tema de cooperativismo.","Número de personas capacitadas en talleres de autoempleo y autosuficiencia alimentaria",0,100,"Lcdo. José Antonio Álvarez Hernández","3336591599/3336590901","antonioempresarialindustrial@gmail.com"]
["SECRETARIA_DE_FOMENTO_ECONOMICO_Y_CULTURALDIRECCION DE GESTION EMPRESARIAL E INDUSTRIAL7Mujeres Empresarias en Tlaquepaque","SECRETARIA_DE_FOMENTO_ECONOMICO_Y_CULTURALDIRECCION DE GESTION EMPRESARIAL E INDUSTRIAL7","SECRETARIA_DE_FOMENTO_ECONOMICO_Y_CULTURAL","DIRECCION DE GESTION EMPRESARIAL E INDUSTRIAL",{"$f":"COUNTIF($D$4:D147,D147:D147)","v":7},"Mujeres Empresarias en Tlaquepaque","Porcentaje de etapas realizadas para el evento MUJERES EMPRESARIAS","Número de etapas realizadas",1,1,"Lcdo. José Antonio Álvarez Hernández","3336591599/3336590901","antonioempresarialindustrial@gmail.com"]
["SECRETARIA_DE_FOMENTO_ECONOMICO_Y_CULTURALDIRECCION DEL CENTRO HISTORICO1Mantenimiento y Conservación del Centro Histórico","SECRETARIA_DE_FOMENTO_ECONOMICO_Y_CULTURALDIRECCION DEL CENTRO HISTORICO1","SECRETARIA_DE_FOMENTO_ECONOMICO_Y_CULTURAL","DIRECCION DEL CENTRO HISTORICO",{"$f":"COUNTIF($D$4:D148,D148:D148)","v":1},"Mantenimiento y Conservación del Centro Histórico","Porcentaje de actividades de mantenimiento y conservación del Centro Histórico","Número de actividades realizadas",0,60,"JOSÉ ALONSO FLORES RAMÍREZ",3322354310,"floresalonso.lcop@gmail.com"]
["SECRETARIA_DE_FOMENTO_ECONOMICO_Y_CULTURALDIRECCION DEL CENTRO HISTORICO2Agenda del Espacio Público","SECRETARIA_DE_FOMENTO_ECONOMICO_Y_CULTURALDIRECCION DEL CENTRO HISTORICO2","SECRETARIA_DE_FOMENTO_ECONOMICO_Y_CULTURAL","DIRECCION DEL CENTRO HISTORICO",{"$f":"COUNTIF($D$4:D149,D149:D149)","v":2},"Agenda del Espacio Público","Porcentaje de autorizaciones para el uso del espacio público del Centro Histórico","Número de autorizaciones emitidas",0,60,"JOSÉ ALONSO FLORES RAMÍREZ",3322354310,"floresalonso.lcop@gmail.com"]
["SECRETARIA_DE_FOMENTO_ECONOMICO_Y_CULTURALDIRECCIÓN DE CEMENTERIOS1Digitalización Administrativa","SECRETARIA_DE_FOMENTO_ECONOMICO_Y_CULTURALDIRECCIÓN DE CEMENTERIOS1","SECRETARIA_DE_FOMENTO_ECONOMICO_Y_CULTURAL","DIRECCIÓN DE CEMENTERIOS",{"$f":"COUNTIF($D$4:D150,D150:D150)","v":1},"Digitalización Administrativa","porcentaje de personas atendidas","numero de personas atendidas",0,100,"Alma Griselda Mercado Espinoza",3319186129,"spinozamercad@gmail.com"]
["SECRETARIA_DE_SERVICIOS_PUBLICOS_Y_MEDIO_AMBIENTEDEPARTAMENTO DE REGULACION AMBIENTAL1Creadores De Esperanza Para El Medio Ambiente","SECRETARIA_DE_SERVICIOS_PUBLICOS_Y_MEDIO_AMBIENTEDEPARTAMENTO DE REGULACION AMBIENTAL1","SECRETARIA_DE_SERVICIOS_PUBLICOS_Y_MEDIO_AMBIENTE","DEPARTAMENTO DE REGULACION AMBIENTAL",{"$f":"COUNTIF($D$4:D151,D151:D151)","v":1},"Creadores De Esperanza Para El Medio Ambiente","contenedores instalados","kilos obtenidos de PET",0,0,"Carlos Iván Vázquez Muñoz",3334577356,"carlosambiental2024@gmail.com"]
["SECRETARIA_DE_SERVICIOS_PUBLICOS_Y_MEDIO_AMBIENTEDEPARTAMENTO DE REGULACION AMBIENTAL2Gobierno Con Buen Papel","SECRETARIA_DE_SERVICIOS_PUBLICOS_Y_MEDIO_AMBIENTEDEPARTAMENTO DE REGULACION AMBIENTAL2","SECRETARIA_DE_SERVICIOS_PUBLICOS_Y_MEDIO_AMBIENTE","DEPARTAMENTO DE REGULACION AMBIENTAL",{"$f":"COUNTIF($D$4:D152,D152:D152)","v":2},"Gobierno Con Buen Papel","PORCENTAJE DE PAPEL RECOLECTADO","KILOGRAMOS DE PAPEL",3500,4000,"Carlos Iván Vázquez Muñoz",3334577356,"carlosambiental2024@gmail.com"]
["SECRETARIA_DE_SERVICIOS_PUBLICOS_Y_MEDIO_AMBIENTEDEPARTAMENTO DE REGULACION AMBIENTAL3Sembrando Esperanza","SECRETARIA_DE_SERVICIOS_PUBLICOS_Y_MEDIO_AMBIENTEDEPARTAMENTO DE REGULACION AMBIENTAL3","SECRETARIA_DE_SERVICIOS_PUBLICOS_Y_MEDIO_AMBIENTE","DEPARTAMENTO DE REGULACION AMBIENTAL",{"$f":"COUNTIF($D$4:D153,D153:D153)","v":3},"Sembrando Esperanza","Huertos o espacios reforestados","Arboles o espacios verdes plantados",100,200,"Carlos Iván Vázquez Muñoz",3334577356,"carlosambiental2024@gmail.com"]
["SECRETARIA_DE_SERVICIOS_PUBLICOS_Y_MEDIO_AMBIENTEDIRECCION DE AGUA POTABLE, DRENAJE Y ALCANTARILLADO1Padrón Único de Usuarios","SECRETARIA_DE_SERVICIOS_PUBLICOS_Y_MEDIO_AMBIENTEDIRECCION DE AGUA POTABLE, DRENAJE Y ALCANTARILLADO1","SECRETARIA_DE_SERVICIOS_PUBLICOS_Y_MEDIO_AMBIENTE","DIRECCION DE AGUA POTABLE, DRENAJE Y ALCANTARILLADO",{"$f":"COUNTIF($D$4:D154,D154:D154)","v":1},"Padrón Único de Usuarios","Porcentaje de viviendas agregadas al padrón único de usuarios.","Número de Viviendas",522,1200,"ANTONIO GUADALUPE HURTADO NUÑEZ",3338370430,"aghn1980@gmail.com"]
["SECRETARIA_DE_SERVICIOS_PUBLICOS_Y_MEDIO_AMBIENTEDIRECCION DE AGUA POTABLE, DRENAJE Y ALCANTARILLADO2Servicio Medido","SECRETARIA_DE_SERVICIOS_PUBLICOS_Y_MEDIO_AMBIENTEDIRECCION DE AGUA POTABLE, DRENAJE Y ALCANTARILLADO2","SECRETARIA_DE_SERVICIOS_PUBLICOS_Y_MEDIO_AMBIENTE","DIRECCION DE AGUA POTABLE, DRENAJE Y ALCANTARILLADO",{"$f":"COUNTIF($D$4:D155,D155:D155)","v":2},"Servicio Medido","Porcentaje de gestiones realizadas para la adquisición e Instalación de medidor de agua y piezas especiales","Número de Gestiones Realizadas",0,3,"ANTONIO GUADALUPE HURTADO NUÑEZ",3338370430,"aghn1980@gmail.com"]
["SECRETARIA_DE_SERVICIOS_PUBLICOS_Y_MEDIO_AMBIENTEDIRECCION DE AGUA POTABLE, DRENAJE Y ALCANTARILLADO3Servicio Medido","SECRETARIA_DE_SERVICIOS_PUBLICOS_Y_MEDIO_AMBIENTEDIRECCION DE AGUA POTABLE, DRENAJE Y ALCANTARILLADO3","SECRETARIA_DE_SERVICIOS_PUBLICOS_Y_MEDIO_AMBIENTE","DIRECCION DE AGUA POTABLE, DRENAJE Y ALCANTARILLADO",{"$f":"COUNTIF($D$4:D156,D156:D156)","v":3},"Servicio Medido","Porcentaje de adquisición e Instalación de medidor de agua y piezas especiales","Número de Medidores Instalados",0,1200,"ANTONIO GUADALUPE HURTADO NUÑEZ",3338370430,"aghn1980@gmail.com"]
["SECRETARIA_DE_SERVICIOS_PUBLICOS_Y_MEDIO_AMBIENTEDIRECCION DE AGUA POTABLE, DRENAJE Y ALCANTARILLADO4Trabajos emergentes de redes hidrosanitarias","SECRETARIA_DE_SERVICIOS_PUBLICOS_Y_MEDIO_AMBIENTEDIRECCION DE AGUA POTABLE, DRENAJE Y ALCANTARILLADO4","SECRETARIA_DE_SERVICIOS_PUBLICOS_Y_MEDIO_AMBIENTE","DIRECCION DE AGUA POTABLE, DRENAJE Y ALCANTARILLADO",{"$f":"COUNTIF($D$4:D157,D157:D157)","v":4},"Trabajos emergentes de redes hidrosanitarias","Porcentaje de Reportes Atendidos para el Mantenimiento de Redes Hidrosanitarias","Número de Reportes Ciudadanos Atendidos",1750,1800,"ANTONIO GUADALUPE HURTADO NUÑEZ",3338370430,"aghn1980@gmail.com"]
["SECRETARIA_DE_SERVICIOS_PUBLICOS_Y_MEDIO_AMBIENTEDIRECCION DE AGUA POTABLE, DRENAJE Y ALCANTARILLADO5Entrega del Vital Líquido","SECRETARIA_DE_SERVICIOS_PUBLICOS_Y_MEDIO_AMBIENTEDIRECCION DE AGUA POTABLE, DRENAJE Y ALCANTARILLADO5","SECRETARIA_DE_SERVICIOS_PUBLICOS_Y_MEDIO_AMBIENTE","DIRECCION DE AGUA POTABLE, DRENAJE Y ALCANTARILLADO",{"$f":"COUNTIF($D$4:D158,D158:D158)","v":5},"Entrega del Vital Líquido","PORCENTAJE DE VIAJES PARA EL SUMINISTRO DE AGUA REALIZADOS","NUMERO DE VIAJES REALIZADOS",12000,14000,"ANTONIO GUADALUPE HURTADO NUÑEZ",3338370430,"aghn1980@gmail.com"]
["SECRETARIA_DE_SERVICIOS_PUBLICOS_Y_MEDIO_AMBIENTEDIRECCION DE AGUA POTABLE, DRENAJE Y ALCANTARILLADO6Gestión Y Puesta En Marcha Del Laboratorio De Análisis De Agua Potable","SECRETARIA_DE_SERVICIOS_PUBLICOS_Y_MEDIO_AMBIENTEDIRECCION DE AGUA POTABLE, DRENAJE Y ALCANTARILLADO6","SECRETARIA_DE_SERVICIOS_PUBLICOS_Y_MEDIO_AMBIENTE","DIRECCION DE AGUA POTABLE, DRENAJE Y ALCANTARILLADO",{"$f":"COUNTIF($D$4:D159,D159:D159)","v":6},"Gestión Y Puesta En Marcha Del Laboratorio De Análisis De Agua Potable","Porcentaje de etapas de gestión para la conclusión y puesta en marcha del laboratorio de análisis del Agua Potable","Número de etapas realizadas",0,10,"ANTONIO GUADALUPE HURTADO NUÑEZ",3338370430,"aghn1980@gmail.com"]
["SECRETARIA_DE_SERVICIOS_PUBLICOS_Y_MEDIO_AMBIENTEDIRECCION DE AGUA POTABLE, DRENAJE Y ALCANTARILLADO7Estudio de Factibilidades de Redes Hidrosanitarias","SECRETARIA_DE_SERVICIOS_PUBLICOS_Y_MEDIO_AMBIENTEDIRECCION DE AGUA POTABLE, DRENAJE Y ALCANTARILLADO7","SECRETARIA_DE_SERVICIOS_PUBLICOS_Y_MEDIO_AMBIENTE","DIRECCION DE AGUA POTABLE, DRENAJE Y ALCANTARILLADO",{"$f":"COUNTIF($D$4:D160,D160:D160)","v":7},"Estudio de Factibilidades de Redes Hidrosanitarias","Porcentaje de etapas de gestión para obtención de factibilidades","Número de etapas de gestión realizadas",0,3,"ANTONIO GUADALUPE HURTADO NUÑEZ",3338370430,"aghn1980@gmail.com"]
["SECRETARIA_DE_SERVICIOS_PUBLICOS_Y_MEDIO_AMBIENTEDIRECCION DE AGUA POTABLE, DRENAJE Y ALCANTARILLADO8Estudio de Factibilidades de Redes Hidrosanitarias","SECRETARIA_DE_SERVICIOS_PUBLICOS_Y_MEDIO_AMBIENTEDIRECCION DE AGUA POTABLE, DRENAJE Y ALCANTARILLADO8","SECRETARIA_DE_SERVICIOS_PUBLICOS_Y_MEDIO_AMBIENTE","DIRECCION DE AGUA POTABLE, DRENAJE Y ALCANTARILLADO",{"$f":"COUNTIF($D$4:D161,D161:D161)","v":8},"Estudio de Factibilidades de Redes Hidrosanitarias","Porcentaje de Expedientes y Supervisiones de redes hidrosanitarias para factibilidades","Número de Supervisiones y Expedientes",0,80,"ANTONIO GUADALUPE HURTADO NUÑEZ",3338370430,"aghn1980@gmail.com"]
["SECRETARIA_DE_SERVICIOS_PUBLICOS_Y_MEDIO_AMBIENTEDIRECCION DE AGUA POTABLE, DRENAJE Y ALCANTARILLADO9Actualización de Datos de Redes Hidrosanitarias","SECRETARIA_DE_SERVICIOS_PUBLICOS_Y_MEDIO_AMBIENTEDIRECCION DE AGUA POTABLE, DRENAJE Y ALCANTARILLADO9","SECRETARIA_DE_SERVICIOS_PUBLICOS_Y_MEDIO_AMBIENTE","DIRECCION DE AGUA POTABLE, DRENAJE Y ALCANTARILLADO",{"$f":"COUNTIF($D$4:D162,D162:D162)","v":9},"Actualización de Datos de Redes Hidrosanitarias","Porcentaje de etapas de gestión para el proyecto de Actualización de datos de redes hidrosanitarias/Porcentaje en la Actualización de datos de kilómetros de redes hidrosanitarias","Número de etapas de gestión realizadas /",0,3,"ANTONIO GUADALUPE HURTADO NUÑEZ",3338370430,"aghn1980@gmail.com"]
["SECRETARIA_DE_SERVICIOS_PUBLICOS_Y_MEDIO_AMBIENTEDIRECCION DE AGUA POTABLE, DRENAJE Y ALCANTARILLADO10Actualización de Datos de Redes Hidrosanitarias","SECRETARIA_DE_SERVICIOS_PUBLICOS_Y_MEDIO_AMBIENTEDIRECCION DE AGUA POTABLE, DRENAJE Y ALCANTARILLADO10","SECRETARIA_DE_SERVICIOS_PUBLICOS_Y_MEDIO_AMBIENTE","DIRECCION DE AGUA POTABLE, DRENAJE Y ALCANTARILLADO",{"$f":"COUNTIF($D$4:D163,D163:D163)","v":10},"Actualización de Datos de Redes Hidrosanitarias","Porcentaje en la Actualización de datos de kilómetros de redes hidrosanitarias","Número de Kilómetros actualizados",0,121,"ANTONIO GUADALUPE HURTADO NUÑEZ",3338370430,"aghn1980@gmail.com"]
["SECRETARIA_DE_SERVICIOS_PUBLICOS_Y_MEDIO_AMBIENTEDIRECCION DE AGUA POTABLE, DRENAJE Y ALCANTARILLADO11Recepción, Distribución, Dosificación, Monitoreo de cloro residual de Agua Potable","SECRETARIA_DE_SERVICIOS_PUBLICOS_Y_MEDIO_AMBIENTEDIRECCION DE AGUA POTABLE, DRENAJE Y ALCANTARILLADO11","SECRETARIA_DE_SERVICIOS_PUBLICOS_Y_MEDIO_AMBIENTE","DIRECCION DE AGUA POTABLE, DRENAJE Y ALCANTARILLADO",{"$f":"COUNTIF($D$4:D164,D164:D164)","v":11},"Recepción, Distribución, Dosificación, Monitoreo de cloro residual de Agua Potable","Porcentaje de distribución, dosificación y monitoreo de cloro residual en el agua potable.","Número de monitoreos de cloro residual",23000,24000,"ANTONIO GUADALUPE HURTADO NUÑEZ",3338370430,"aghn1980@gmail.com"]
["SECRETARIA_DE_SERVICIOS_PUBLICOS_Y_MEDIO_AMBIENTEDIRECCION DE ALUMBRADO PUBLICO1Sustitución de luminarias a la red de alumbrado publico.","SECRETARIA_DE_SERVICIOS_PUBLICOS_Y_MEDIO_AMBIENTEDIRECCION DE ALUMBRADO PUBLICO1","SECRETARIA_DE_SERVICIOS_PUBLICOS_Y_MEDIO_AMBIENTE","DIRECCION DE ALUMBRADO PUBLICO",{"$f":"COUNTIF($D$4:D165,D165:D165)","v":1},"Sustitución de luminarias a la red de alumbrado publico.","Porcentaje de seguimiento y aporte a la prestación del servicio de Alumbrado Público mediante el mantenimiento y sustitución de luminarias con tecnología LED, para otorgar seguridad a los habitantes del municipio","Número de luminarias sustituidas y/o reparadas en el municipio",2000,5000,"Luz Adriana Arellano Lomelí","33 38388392","alumbrado.tlq@gmail.co"]
["SECRETARIA_DE_SERVICIOS_PUBLICOS_Y_MEDIO_AMBIENTEDIRECCION DE ALUMBRADO PUBLICO2Mantenimiento y reparación de luminarias a la red de alumbrado publico.","SECRETARIA_DE_SERVICIOS_PUBLICOS_Y_MEDIO_AMBIENTEDIRECCION DE ALUMBRADO PUBLICO2","SECRETARIA_DE_SERVICIOS_PUBLICOS_Y_MEDIO_AMBIENTE","DIRECCION DE ALUMBRADO PUBLICO",{"$f":"COUNTIF($D$4:D166,D166:D166)","v":2},"Mantenimiento y reparación de luminarias a la red de alumbrado publico.","Porcentaje de seguimiento y aporte a la prestación del servicio de Alumbrado Público mediante el mantenimiento de las luminarias para otorgar seguridad a los habitantes del municipio","Número de reportes atendidos en el municipio",9000,9000,"Luz Adriana Arellano Lomelí","33 38388392","alumbrado.tlq@gmail.co"]
["SECRETARIA_DE_SERVICIOS_PUBLICOS_Y_MEDIO_AMBIENTEDIRECCION DE ASEO PUBLICO1Programa De Operativos De Limpieza","SECRETARIA_DE_SERVICIOS_PUBLICOS_Y_MEDIO_AMBIENTEDIRECCION DE ASEO PUBLICO1","SECRETARIA_DE_SERVICIOS_PUBLICOS_Y_MEDIO_AMBIENTE","DIRECCION DE ASEO PUBLICO",{"$f":"COUNTIF($D$4:D167,D167:D167)","v":1},"Programa De Operativos De Limpieza","PORCENTAJE DE AVANCE DEL PROGRAMA OPERATIVOS DE LIMPIEZA","NÚMERO DE OPERATIVOS REALIZADOS",1270,1270,"Claudia Ivón Hernández Arriaga","33 36 90 04 08","cieloaseopublico@gmail.com claudiaaseopublico@gmail.com"]
["SECRETARIA_DE_SERVICIOS_PUBLICOS_Y_MEDIO_AMBIENTEDIRECCION DE ASEO PUBLICO2Servicio de recolección de residuos urbanos","SECRETARIA_DE_SERVICIOS_PUBLICOS_Y_MEDIO_AMBIENTEDIRECCION DE ASEO PUBLICO2","SECRETARIA_DE_SERVICIOS_PUBLICOS_Y_MEDIO_AMBIENTE","DIRECCION DE ASEO PUBLICO",{"$f":"COUNTIF($D$4:D168,D168:D168)","v":2},"Servicio de recolección de residuos urbanos","PORCENTAJE DE AVANCE EN LA COBERTURA DEL SERVICIO DE RECOLECCIÓN DE RESIDUOS SÓLIDOS URBANOS","NÚMERO DE COLONIAS ATENDIDAS",319,319,"Claudia Ivón Hernández Arriaga","33 36 90 04 08","cieloaseopublico@gmail.com claudiaaseopublico@gmail.com"]
["SECRETARIA_DE_SERVICIOS_PUBLICOS_Y_MEDIO_AMBIENTEDIRECCION DE ASEO PUBLICO3Fortalecimiento y adiestramiento al personal operativo","SECRETARIA_DE_SERVICIOS_PUBLICOS_Y_MEDIO_AMBIENTEDIRECCION DE ASEO PUBLICO3","SECRETARIA_DE_SERVICIOS_PUBLICOS_Y_MEDIO_AMBIENTE","DIRECCION DE ASEO PUBLICO",{"$f":"COUNTIF($D$4:D169,D169:D169)","v":3},"Fortalecimiento y adiestramiento al personal operativo","PORCENTAJE DE ACCIONES DE CAPACITACIÓN DEL PERSONAL","NÚMERO DE ACCIONES DE CAPACITACIÓN REALIZADAS",0,4,"Claudia Ivón Hernández Arriaga","33 36 90 04 08","cieloaseopublico@gmail.com claudiaaseopublico@gmail.com"]
["SECRETARIA_DE_SERVICIOS_PUBLICOS_Y_MEDIO_AMBIENTEDIRECCION DE ASEO PUBLICO4Plataforma de Atención Ciudadana (Reportes)","SECRETARIA_DE_SERVICIOS_PUBLICOS_Y_MEDIO_AMBIENTEDIRECCION DE ASEO PUBLICO4","SECRETARIA_DE_SERVICIOS_PUBLICOS_Y_MEDIO_AMBIENTE","DIRECCION DE ASEO PUBLICO",{"$f":"COUNTIF($D$4:D170,D170:D170)","v":4},"Plataforma de Atención Ciudadana (Reportes)","PORCENTAJE DE REPORTES ATENDIDOS DENTRO DE LAS 24 HORAS","NÚMERO DE REPORTES ATENDIDOS",0,1550,"Claudia Ivón Hernández Arriaga","33 36 90 04 08","cieloaseopublico@gmail.com claudiaaseopublico@gmail.com"]
["SECRETARIA_DE_SERVICIOS_PUBLICOS_Y_MEDIO_AMBIENTEDIRECCION DE ASEO PUBLICO5Servicio de fumigación para prevención del dengue y otras plagas","SECRETARIA_DE_SERVICIOS_PUBLICOS_Y_MEDIO_AMBIENTEDIRECCION DE ASEO PUBLICO5","SECRETARIA_DE_SERVICIOS_PUBLICOS_Y_MEDIO_AMBIENTE","DIRECCION DE ASEO PUBLICO",{"$f":"COUNTIF($D$4:D171,D171:D171)","v":5},"Servicio de fumigación para prevención del dengue y otras plagas","PORCENTAJE DE AVANCE DE LAS CAMPAÑAS DE FUMIGACIÓN PARA LA PREVENCIÓN DEL DENGUE Y OTRAS PLAGAS","NÚMERO DE DESCACHARRIZACIONES REALIZADAS",0,400,"Claudia Ivón Hernández Arriaga","33 36 90 04 08","cieloaseopublico@gmail.com claudiaaseopublico@gmail.com"]
["SECRETARIA_DE_SERVICIOS_PUBLICOS_Y_MEDIO_AMBIENTEDIRECCION DE RASTRO1Capacitación Continua","SECRETARIA_DE_SERVICIOS_PUBLICOS_Y_MEDIO_AMBIENTEDIRECCION DE RASTRO1","SECRETARIA_DE_SERVICIOS_PUBLICOS_Y_MEDIO_AMBIENTE","DIRECCION DE RASTRO",{"$f":"COUNTIF($D$4:D172,D172:D172)","v":1},"Capacitación Continua","Porcentaje de capacitaciones impartidas al personal","Número de capacitaciones",4,2,"Montserrat Carolina Corona Pérez",3335627069,"administracion.rastro@tlaquepaque.gob.mx"]
["SECRETARIA_DE_SERVICIOS_PUBLICOS_Y_MEDIO_AMBIENTEDIRECCION DE RASTRO2Inspección Cárnica","SECRETARIA_DE_SERVICIOS_PUBLICOS_Y_MEDIO_AMBIENTEDIRECCION DE RASTRO2","SECRETARIA_DE_SERVICIOS_PUBLICOS_Y_MEDIO_AMBIENTE","DIRECCION DE RASTRO",{"$f":"COUNTIF($D$4:D173,D173:D173)","v":2},"Inspección Cárnica","Porcentaje de inspección a giros y tianguis realizadas","Número de inspecciones",4500,13000,"Montserrat Carolina Corona Pérez",3335627069,"administracion.rastro@tlaquepaque.gob.mx"]
["SECRETARIA_DE_SERVICIOS_PUBLICOS_Y_MEDIO_AMBIENTEDIRECCION DE RASTRO3Participación en campañas","SECRETARIA_DE_SERVICIOS_PUBLICOS_Y_MEDIO_AMBIENTEDIRECCION DE RASTRO3","SECRETARIA_DE_SERVICIOS_PUBLICOS_Y_MEDIO_AMBIENTE","DIRECCION DE RASTRO",{"$f":"COUNTIF($D$4:D174,D174:D174)","v":3},"Participación en campañas","Porcentaje de Campanas realizadas para detección de enfermedades en Ganado","Numero de Campanas realizadas",3,12,"Montserrat Carolina Corona Pérez",3335627069,"administracion.rastro@tlaquepaque.gob.mx"]
["SECRETARIA_DE_SERVICIOS_PUBLICOS_Y_MEDIO_AMBIENTEDIRECCION DE SALUD AMBIENTAL Y CAMBIO CLIMATICO1Registro de ladrilleros","SECRETARIA_DE_SERVICIOS_PUBLICOS_Y_MEDIO_AMBIENTEDIRECCION DE SALUD AMBIENTAL Y CAMBIO CLIMATICO1","SECRETARIA_DE_SERVICIOS_PUBLICOS_Y_MEDIO_AMBIENTE","DIRECCION DE SALUD AMBIENTAL Y CAMBIO CLIMATICO",{"$f":"COUNTIF($D$4:D175,D175:D175)","v":1},"Registro de ladrilleros","Porcentaje de ladrilleras registradas.","Número de ladrilleras registradas.",185,200,"Lenin Torres Mondragón",3314697407,"Ltmondragon@hotmail.com"]
["SECRETARIA_DE_SERVICIOS_PUBLICOS_Y_MEDIO_AMBIENTEDIRECCION DE SALUD AMBIENTAL Y CAMBIO CLIMATICO2Registro de ladrilleros","SECRETARIA_DE_SERVICIOS_PUBLICOS_Y_MEDIO_AMBIENTEDIRECCION DE SALUD AMBIENTAL Y CAMBIO CLIMATICO2","SECRETARIA_DE_SERVICIOS_PUBLICOS_Y_MEDIO_AMBIENTE","DIRECCION DE SALUD AMBIENTAL Y CAMBIO CLIMATICO",{"$f":"COUNTIF($D$4:D176,D176:D176)","v":2},"Registro de ladrilleros","Porcentaje de ladrilleras que renuevan convenio.","Número de ladrilleras con renovación",426,450,"Lenin Torres Mondragón",3314697407,"Ltmondragon@hotmail.com"]
["SECRETARIA_DE_SERVICIOS_PUBLICOS_Y_MEDIO_AMBIENTEDIRECCION DE SALUD AMBIENTAL Y CAMBIO CLIMATICO3Registro De Fuentes Fijas Municipales","SECRETARIA_DE_SERVICIOS_PUBLICOS_Y_MEDIO_AMBIENTEDIRECCION DE SALUD AMBIENTAL Y CAMBIO CLIMATICO3","SECRETARIA_DE_SERVICIOS_PUBLICOS_Y_MEDIO_AMBIENTE","DIRECCION DE SALUD AMBIENTAL Y CAMBIO CLIMATICO",{"$f":"COUNTIF($D$4:D177,D177:D177)","v":3},"Registro De Fuentes Fijas Municipales","Porcentaje de avance en el registro de fuentes fijas","Número de fuentes fijas registradas",14,20,"Lenin Torres Mondragón",3314697407,"Ltmondragon@hotmail.com"]
["SECRETARIA_DE_SERVICIOS_PUBLICOS_Y_MEDIO_AMBIENTEDIRECCION DE SALUD AMBIENTAL Y CAMBIO CLIMATICO4Servicio de dictaminación ambiental","SECRETARIA_DE_SERVICIOS_PUBLICOS_Y_MEDIO_AMBIENTEDIRECCION DE SALUD AMBIENTAL Y CAMBIO CLIMATICO4","SECRETARIA_DE_SERVICIOS_PUBLICOS_Y_MEDIO_AMBIENTE","DIRECCION DE SALUD AMBIENTAL Y CAMBIO CLIMATICO",{"$f":"COUNTIF($D$4:D178,D178:D178)","v":4},"Servicio de dictaminación ambiental","Porcentaje de dictaminaciones ambientales ingresadas","Número de dictaminaciones evaluadas",115,130,"Lenin Torres Mondragón",3314697407,"Ltmondragon@hotmail.com"]
["SECRETARIA_DE_SERVICIOS_PUBLICOS_Y_MEDIO_AMBIENTEDIRECCION DE SALUD AMBIENTAL Y CAMBIO CLIMATICO5Denuncia Ambiental Ciudadana","SECRETARIA_DE_SERVICIOS_PUBLICOS_Y_MEDIO_AMBIENTEDIRECCION DE SALUD AMBIENTAL Y CAMBIO CLIMATICO5","SECRETARIA_DE_SERVICIOS_PUBLICOS_Y_MEDIO_AMBIENTE","DIRECCION DE SALUD AMBIENTAL Y CAMBIO CLIMATICO",{"$f":"COUNTIF($D$4:D179,D179:D179)","v":5},"Denuncia Ambiental Ciudadana","Porcentaje de denuncias recibidas y atendidas","Número de denuncias atendidas",24,20,"Lenin Torres Mondragón",3314697407,"Ltmondragon@hotmail.com"]
["SECRETARIA_DE_SERVICIOS_PUBLICOS_Y_MEDIO_AMBIENTEDIRECCION DE SALUD AMBIENTAL Y CAMBIO CLIMATICO6Retiro de bienes en estado de abandono en la vía pública","SECRETARIA_DE_SERVICIOS_PUBLICOS_Y_MEDIO_AMBIENTEDIRECCION DE SALUD AMBIENTAL Y CAMBIO CLIMATICO6","SECRETARIA_DE_SERVICIOS_PUBLICOS_Y_MEDIO_AMBIENTE","DIRECCION DE SALUD AMBIENTAL Y CAMBIO CLIMATICO",{"$f":"COUNTIF($D$4:D180,D180:D180)","v":6},"Retiro de bienes en estado de abandono en la vía pública","Número de reportes recibidos","Número de vehículos retirados",45,50,"Lenin Torres Mondragón",3314697407,"Ltmondragon@hotmail.com"]
["SECRETARIA_DE_SERVICIOS_PUBLICOS_Y_MEDIO_AMBIENTESUBDIRECCION DE\nPARQUES, JARDINES Y GESTIÓN\nDEL CAMBIO CLIMÁTICO DE SERVICIOS ECOSISTEMICOS Y GESTION DEL CAMBIO CLIMATICO1Operativo Mantenimiento De Áreas Verdes","SECRETARIA_DE_SERVICIOS_PUBLICOS_Y_MEDIO_AMBIENTESUBDIRECCION DE\nPARQUES, JARDINES Y GESTIÓN\nDEL CAMBIO CLIMÁTICO DE SERVICIOS ECOSISTEMICOS Y GESTION DEL CAMBIO CLIMATICO1","SECRETARIA_DE_SERVICIOS_PUBLICOS_Y_MEDIO_AMBIENTE","SUBDIRECCION DE\nPARQUES, JARDINES Y GESTIÓN\nDEL CAMBIO CLIMÁTICO DE SERVICIOS ECOSISTEMICOS Y GESTION DEL CAMBIO CLIMATICO",{"$f":"COUNTIF($D$4:D181,D181:D181)","v":1},"Operativo Mantenimiento De Áreas Verdes","Porcentaje de áreas verdes pertenecientes al Municipio de San Pedro Tlaquepaque.","Número de áreas verdes intervenidas en m2",900000000,950000000,"Maricruz Martínez Macias",3314446874,"maricruzm057@gmail.com"]
["SECRETARIA_DE_SERVICIOS_PUBLICOS_Y_MEDIO_AMBIENTESUBDIRECCION DE SERVICIOS ECOSISTEMICOS Y GESTION DEL CAMBIO CLIMATICO DE\nPARQUES, JARDINES Y GESTIÓN\nDEL CAMBIO CLIMÁTICO1Operativo De Podas Preventivas","SECRETARIA_DE_SERVICIOS_PUBLICOS_Y_MEDIO_AMBIENTESUBDIRECCION DE SERVICIOS ECOSISTEMICOS Y GESTION DEL CAMBIO CLIMATICO DE\nPARQUES, JARDINES Y GESTIÓN\nDEL CAMBIO CLIMÁTICO1","SECRETARIA_DE_SERVICIOS_PUBLICOS_Y_MEDIO_AMBIENTE","SUBDIRECCION DE SERVICIOS ECOSISTEMICOS Y GESTION DEL CAMBIO CLIMATICO DE\nPARQUES, JARDINES Y GESTIÓN\nDEL CAMBIO CLIMÁTICO",{"$f":"COUNTIF($D$4:D182,D182:D182)","v":1},"Operativo De Podas Preventivas","Con el operativo de podas preventivas serán beneficiadas los habitantes de esta Municipio de San Pedro Tlaquepaque así como toda aquella persona que visite nuestro municipio","Numeró total de podas realizadas",6000,6000,"Maricruz Martínez Macias",3314446874,"maricruzm057@gmail.com"]
["SECRETARIA_DE_SERVICIOS_PUBLICOS_Y_MEDIO_AMBIENTESUBDIRECCION DE SERVICIOS ECOSISTEMICOS Y GESTION DEL CAMBIO CLIMATICO DE\nPARQUES, JARDINES Y GESTIÓN\nDEL CAMBIO CLIMÁTICO2Operativo de Reforestación","SECRETARIA_DE_SERVICIOS_PUBLICOS_Y_MEDIO_AMBIENTESUBDIRECCION DE SERVICIOS ECOSISTEMICOS Y GESTION DEL CAMBIO CLIMATICO DE\nPARQUES, JARDINES Y GESTIÓN\nDEL CAMBIO CLIMÁTICO2","SECRETARIA_DE_SERVICIOS_PUBLICOS_Y_MEDIO_AMBIENTE","SUBDIRECCION DE SERVICIOS ECOSISTEMICOS Y GESTION DEL CAMBIO CLIMATICO DE\nPARQUES, JARDINES Y GESTIÓN\nDEL CAMBIO CLIMÁTICO",{"$f":"COUNTIF($D$4:D183,D183:D183)","v":2},"Operativo de Reforestación","Porcentaje de árboles reforestados en áreas verdes, camellones, parques y jardines.","Número de árboles reforestados",2000,2000,"Maricruz Martínez Macias",3314446874,"maricruzm057@gmail.com"]
["SECRETARIA_DE_SERVICIOS_PUBLICOS_Y_MEDIO_AMBIENTESUBDIRECCION DE SERVICIOS ECOSISTEMICOS Y GESTION DEL CAMBIO CLIMATICO DE\nPARQUES, JARDINES Y GESTIÓN\nDEL CAMBIO CLIMÁTICO3Trituración de material orgánico para la elaboración de composta","SECRETARIA_DE_SERVICIOS_PUBLICOS_Y_MEDIO_AMBIENTESUBDIRECCION DE SERVICIOS ECOSISTEMICOS Y GESTION DEL CAMBIO CLIMATICO DE\nPARQUES, JARDINES Y GESTIÓN\nDEL CAMBIO CLIMÁTICO3","SECRETARIA_DE_SERVICIOS_PUBLICOS_Y_MEDIO_AMBIENTE","SUBDIRECCION DE SERVICIOS ECOSISTEMICOS Y GESTION DEL CAMBIO CLIMATICO DE\nPARQUES, JARDINES Y GESTIÓN\nDEL CAMBIO CLIMÁTICO",{"$f":"COUNTIF($D$4:D184,D184:D184)","v":3},"Trituración de material orgánico para la elaboración de composta","Porcentaje de viajes de ramas resultantes de podas y derribos.","Número de viajes realizados y triturados",900,900,"Maricruz Martínez Macias",3314446874,"maricruzm057@gmail.com"]
["SECRETARIA_DE_SERVICIOS_PUBLICOS_Y_MEDIO_AMBIENTESUBDIRECCION DE SERVICIOS ECOSISTEMICOS Y GESTION DEL CAMBIO CLIMATICO DE\nPARQUES, JARDINES Y GESTIÓN\nDEL CAMBIO CLIMÁTICO4Adopta un árbol y dale vida al planeta","SECRETARIA_DE_SERVICIOS_PUBLICOS_Y_MEDIO_AMBIENTESUBDIRECCION DE SERVICIOS ECOSISTEMICOS Y GESTION DEL CAMBIO CLIMATICO DE\nPARQUES, JARDINES Y GESTIÓN\nDEL CAMBIO CLIMÁTICO4","SECRETARIA_DE_SERVICIOS_PUBLICOS_Y_MEDIO_AMBIENTE","SUBDIRECCION DE SERVICIOS ECOSISTEMICOS Y GESTION DEL CAMBIO CLIMATICO DE\nPARQUES, JARDINES Y GESTIÓN\nDEL CAMBIO CLIMÁTICO",{"$f":"COUNTIF($D$4:D185,D185:D185)","v":4},"Adopta un árbol y dale vida al planeta","Porcentaje de árboles donados","Número de árboles donados",7000,7000,"Maricruz Martínez Macias",3314446874,"maricruzm057@gmail.com"]
["SECRETARIA_DE_SERVICIOS_PUBLICOS_Y_MEDIO_AMBIENTESUBDIRECCION DE SERVICIOS ECOSISTEMICOS Y GESTION DEL CAMBIO CLIMATICO DE\nPARQUES, JARDINES Y GESTIÓN\nDEL CAMBIO CLIMÁTICO5Adopta un árbol y dale vida al planeta","SECRETARIA_DE_SERVICIOS_PUBLICOS_Y_MEDIO_AMBIENTESUBDIRECCION DE SERVICIOS ECOSISTEMICOS Y GESTION DEL CAMBIO CLIMATICO DE\nPARQUES, JARDINES Y GESTIÓN\nDEL CAMBIO CLIMÁTICO5","SECRETARIA_DE_SERVICIOS_PUBLICOS_Y_MEDIO_AMBIENTE","SUBDIRECCION DE SERVICIOS ECOSISTEMICOS Y GESTION DEL CAMBIO CLIMATICO DE\nPARQUES, JARDINES Y GESTIÓN\nDEL CAMBIO CLIMÁTICO",{"$f":"COUNTIF($D$4:D186,D186:D186)","v":5},"Adopta un árbol y dale vida al planeta","Porcentaje de escuelas visitadas","Número de escuelas visitadas",30,30,"Maricruz Martínez Macias",3314446874,"maricruzm057@gmail.com"]
["SECRETARIA_DE_SERVICIOS_PUBLICOS_Y_MEDIO_AMBIENTESUBDIRECCION DE SERVICIOS ECOSISTEMICOS Y GESTION DEL CAMBIO CLIMATICO DE\nPARQUES, JARDINES Y GESTIÓN\nDEL CAMBIO CLIMÁTICO6Operativos de derribos secos","SECRETARIA_DE_SERVICIOS_PUBLICOS_Y_MEDIO_AMBIENTESUBDIRECCION DE SERVICIOS ECOSISTEMICOS Y GESTION DEL CAMBIO CLIMATICO DE\nPARQUES, JARDINES Y GESTIÓN\nDEL CAMBIO CLIMÁTICO6","SECRETARIA_DE_SERVICIOS_PUBLICOS_Y_MEDIO_AMBIENTE","SUBDIRECCION DE SERVICIOS ECOSISTEMICOS Y GESTION DEL CAMBIO CLIMATICO DE\nPARQUES, JARDINES Y GESTIÓN\nDEL CAMBIO CLIMÁTICO",{"$f":"COUNTIF($D$4:D187,D187:D187)","v":6},"Operativos de derribos secos","Porcentaje de arboles secos con riesgo latente","Número de árboles seccionados y retirados.",300,300,"Maricruz Martínez Macias",3314446874,"maricruzm057@gmail.com"]
["SECRETARIA_DE_SALUDDIRECCION DE URGENCIAS MEDICAS1Atención Urgente En Sala De Choque","SECRETARIA_DE_SALUDDIRECCION DE URGENCIAS MEDICAS1","SECRETARIA_DE_SALUD","DIRECCION DE URGENCIAS MEDICAS",{"$f":"COUNTIF($D$4:D188,D188:D188)","v":1},"Atención Urgente En Sala De Choque","Porcentaje de etapas de gestión para el equipamiento de sala de choques","número de etapas de gestión realizadas",0,6,"FRANCISCO SANCHEZ IBARRA",3310620656,"lic.fcosanchezi@gmail.com"]
["SECRETARIA_DE_SALUDSUBDIRECCION DE ENSEÑANZA1Enseñanza Continua","SECRETARIA_DE_SALUDSUBDIRECCION DE ENSEÑANZA1","SECRETARIA_DE_SALUD","SUBDIRECCION DE ENSEÑANZA",{"$f":"COUNTIF($D$4:D189,D189:D189)","v":1},"Enseñanza Continua","NUMERO DE SECIONES PROGRAMADAS","NUMERO DE SECIONES REALIZADAS.",1,5,"MARIA YOLANDA GUIZAR TORRES",3311108422,"drayolanda2@gmail.com"]
["SECRETARIA_DE_SALUDDIRECCION DE SALUD PUBLICA1Ferias de la Salud Tlaquepaque","SECRETARIA_DE_SALUDDIRECCION DE SALUD PUBLICA1","SECRETARIA_DE_SALUD","DIRECCION DE SALUD PUBLICA",{"$f":"COUNTIF($D$4:D190,D190:D190)","v":1},"Ferias de la Salud Tlaquepaque","Porcentaje de Ferias de la Salud para llegar a la población sin acceso a la seguridad social, realizadas","número de ferias realizadas",0,43,"MARIO ARTURO SALINAS HERNANDEZ",3321233710,"saludpublicatlaq@gmail.com"]
["SECRETARIA_DE_SALUDDEPARTAMENTO DE TRABAJO SOCIAL1Vinculación De Asistencia Social","SECRETARIA_DE_SALUDDEPARTAMENTO DE TRABAJO SOCIAL1","SECRETARIA_DE_SALUD","DEPARTAMENTO DE TRABAJO SOCIAL",{"$f":"COUNTIF($D$4:D191,D191:D191)","v":1},"Vinculación De Asistencia Social","Personas de escasos recursos","personas canalizadas","75% personas de bajo recursos","canalización y seguimiento a cada una","YENICA ODALIS MARTINEZ DELGADILLO",3326674946,"yenikaodalys0808@icloud.com"]
["SECRETARIA_DE_SALUDSUBDIRECCION DE SALUD ANIMAL1Campañas de esterilización y vacunación antirrábica gratuitas","SECRETARIA_DE_SALUDSUBDIRECCION DE SALUD ANIMAL1","SECRETARIA_DE_SALUD","SUBDIRECCION DE SALUD ANIMAL",{"$f":"COUNTIF($D$4:D192,D192:D192)","v":1},"Campañas de esterilización y vacunación antirrábica gratuitas","Esterilización Gratuita 1 vez al mes en cada Delegación","Bienestar animal",12,30,"M.V.Z. Sandra Guadalupe León Becerra","3336007145- 3333679060","saludanimaltlq@gmail.com"]
["SECRETARIA_DE_OBRAS_PUBLICASDIRECCION DE CONSTRUCCION Y MANTENIMIENTO1Programa De Urbanización","SECRETARIA_DE_OBRAS_PUBLICASDIRECCION DE CONSTRUCCION Y MANTENIMIENTO1","SECRETARIA_DE_OBRAS_PUBLICAS","DIRECCION DE CONSTRUCCION Y MANTENIMIENTO",{"$f":"COUNTIF($D$4:D193,D193:D193)","v":1},"Programa De Urbanización","Realización y Ejecución de obra pública, para mejoras del Municipio,","obras",240,45000000000,"Lic. Gabriel Sánchez Niño",3311346549,"gabsan0202@gmail.com"]
["SECRETARIA_DE_OBRAS_PUBLICASSUBDIRECCION DE MANTENIMIENTO1Intervenciones Al Entorno Urbano","SECRETARIA_DE_OBRAS_PUBLICASSUBDIRECCION DE MANTENIMIENTO1","SECRETARIA_DE_OBRAS_PUBLICAS","SUBDIRECCION DE MANTENIMIENTO",{"$f":"COUNTIF($D$4:D194,D194:D194)","v":1},"Intervenciones Al Entorno Urbano","Porcentaje de colonias intervenidas en atención a servicios generales al entorno urbano","N° colonias intervenidas",60,40,"ING. ABEL CASILLAS BENITES","33 38 38 82 60","mejoramiento.urbano.tlaquepaque@gmail.com"]
["SECRETARIA_DE_OBRAS_PUBLICASSUBDIRECCION DE MANTENIMIENTO2Señalización Horizontal y Vertical","SECRETARIA_DE_OBRAS_PUBLICASSUBDIRECCION DE MANTENIMIENTO2","SECRETARIA_DE_OBRAS_PUBLICAS","SUBDIRECCION DE MANTENIMIENTO",{"$f":"COUNTIF($D$4:D195,D195:D195)","v":2},"Señalización Horizontal y Vertical","Porcentaje de colonias intervenidas con señalización horizontal y vertical","N° colonias intervenidas",380,200,"ING. ABEL CASILLAS BENITES","33 38 38 82 60","mejoramiento.urbano.tlaquepaque@gmail.com"]
["SECRETARIA_DE_OBRAS_PUBLICASSUBDIRECCION DE MANTENIMIENTO3Programa Permanente De Mantenimiento De Vialidades","SECRETARIA_DE_OBRAS_PUBLICASSUBDIRECCION DE MANTENIMIENTO3","SECRETARIA_DE_OBRAS_PUBLICAS","SUBDIRECCION DE MANTENIMIENTO",{"$f":"COUNTIF($D$4:D196,D196:D196)","v":3},"Programa Permanente De Mantenimiento De Vialidades","Programa de mantenimiento permanente de mantenimiento","metros cuadrados reparados en vialidades",90000,90000,"Julio Geovanni Pamplona Nuño",3322856233,"mantenimientovialidadestlaq@gmail.com"]
[{"$f":"B197&F197","v":"SECRETARIA_DE_OBRAS_PUBLICASSUBDIRECCION DE MANTENIMIENTO4Mantenimiento A Escuelas"},"SECRETARIA_DE_OBRAS_PUBLICASSUBDIRECCION DE MANTENIMIENTO4","SECRETARIA_DE_OBRAS_PUBLICAS","SUBDIRECCION DE MANTENIMIENTO",{"$f":"COUNTIF($D$4:D197,D197:D197)","v":4},"Mantenimiento A Escuelas","Programa de mantenimiento a planteles educativos","solicitudes atendidas",0.25,0.25,"Lucio Roberto Terrones Padilla",3320201117,"lucio.terronespadilla@gmail.com"]
["SECRETARIA_DE_OBRAS_PUBLICASSUBDIRECCION DE MANTENIMIENTO5Mantenimiento a Edificios y Espacios Públicos","SECRETARIA_DE_OBRAS_PUBLICASSUBDIRECCION DE MANTENIMIENTO5","SECRETARIA_DE_OBRAS_PUBLICAS","SUBDIRECCION DE MANTENIMIENTO",{"$f":"COUNTIF($D$4:D198,D198:D198)","v":5},"Mantenimiento a Edificios y Espacios Públicos","porcentaje de solicitudes atendidas al Mantenimiento de Edificios y espacios públicos .","Solicitudes Atendidas",900,1000,"Francisco Velázquez Hernández",3316021128,"pakovel78@hotmail.com"]
["SECRETARIA_DE_OBRAS_PUBLICASDIRECCION DE PRESUPUESTOS Y CONTRATACION DE OBRA PUBLICA1Programa para la gestión sustentable de la infraestructura y movilidad segura.","SECRETARIA_DE_OBRAS_PUBLICASDIRECCION DE PRESUPUESTOS Y CONTRATACION DE OBRA PUBLICA1","SECRETARIA_DE_OBRAS_PUBLICAS","DIRECCION DE PRESUPUESTOS Y CONTRATACION DE OBRA PUBLICA",{"$f":"COUNTIF($D$4:D199,D199:D199)","v":1},"Programa para la gestión sustentable de la infraestructura y movilidad segura.","Número de estudios preliminares para la elaboración de anteproyectos para la gestión sustentable de la infraestructura básica y movilidad en colonias prioritarias","Espacios analizados",0,140,"ING. EDMUNDO CANCINO PEREZ",3311514285,"edmundo.cancino@tlaquepaque.gob.mx / edcancino1010@gmail.com"]
["SECRETARIA_DE_OBRAS_PUBLICASDIRECCION DE PRESUPUESTOS Y CONTRATACION DE OBRA PUBLICA2Programa para la gestión sustentable de la infraestructura básica.","SECRETARIA_DE_OBRAS_PUBLICASDIRECCION DE PRESUPUESTOS Y CONTRATACION DE OBRA PUBLICA2","SECRETARIA_DE_OBRAS_PUBLICAS","DIRECCION DE PRESUPUESTOS Y CONTRATACION DE OBRA PUBLICA",{"$f":"COUNTIF($D$4:D200,D200:D200)","v":2},"Programa para la gestión sustentable de la infraestructura básica.","Número de estudios preliminares para la elaboración de proyectos para la gestión sustentable de la infraestructura básica en colonias prioritarias","Espacios analizados",0,170,"ING. EDMUNDO CANCINO PEREZ",3311514285,"edmundo.cancino@tlaquepaque.gob.mx / edcancino1010@gmail.com"]
["SECRETARIA_DE_OBRAS_PUBLICASDIRECCION DE PRESUPUESTOS Y CONTRATACION DE OBRA PUBLICA3Programa para la recuperación del espacio público y regeneración del tejido social","SECRETARIA_DE_OBRAS_PUBLICASDIRECCION DE PRESUPUESTOS Y CONTRATACION DE OBRA PUBLICA3","SECRETARIA_DE_OBRAS_PUBLICAS","DIRECCION DE PRESUPUESTOS Y CONTRATACION DE OBRA PUBLICA",{"$f":"COUNTIF($D$4:D201,D201:D201)","v":3},"Programa para la recuperación del espacio público y regeneración del tejido social","Número de espacios analizados y estudios preliminares para la reconstrucción del tejido social en colonias prioritarias","Espacios analizados",0,16,"ING. EDMUNDO CANCINO PEREZ",3311514285,"edmundo.cancino@tlaquepaque.gob.mx / edcancino1010@gmail.com"]
["SECRETARIA_DE_OBRAS_PUBLICASDIRECCION DE PRESUPUESTOS Y CONTRATACION DE OBRA PUBLICA4Programa Fortalecimiento institucional financiero y operativo, para la provisión de los servicios públicos municipales bajo criterios de calidad, eficiencia y oportunidad.","SECRETARIA_DE_OBRAS_PUBLICASDIRECCION DE PRESUPUESTOS Y CONTRATACION DE OBRA PUBLICA4","SECRETARIA_DE_OBRAS_PUBLICAS","DIRECCION DE PRESUPUESTOS Y CONTRATACION DE OBRA PUBLICA",{"$f":"COUNTIF($D$4:D202,D202:D202)","v":4},"Programa Fortalecimiento institucional financiero y operativo, para la provisión de los servicios públicos municipales bajo criterios de calidad, eficiencia y oportunidad.","Proyectos de Infraestructura Urbana de la más diversa índole","proyectos",0,6,"ING. EDMUNDO CANCINO PEREZ",3311514285,"edmundo.cancino@tlaquepaque.gob.mx / edcancino1010@gmail.com"]
["SECRETARIA_DE_OBRAS_PUBLICASSUBDIRECCION DE INSPECCION DE CONTROL DE LA EDIFICACION Y ORDENAMIENTO TERRITORIAL1Programa de Inspección y Vigilancia de Tramites y Licencias de Construcción.","SECRETARIA_DE_OBRAS_PUBLICASSUBDIRECCION DE INSPECCION DE CONTROL DE LA EDIFICACION Y ORDENAMIENTO TERRITORIAL1","SECRETARIA_DE_OBRAS_PUBLICAS","SUBDIRECCION DE INSPECCION DE CONTROL DE LA EDIFICACION Y ORDENAMIENTO TERRITORIAL",{"$f":"COUNTIF($D$4:D203,D203:D203)","v":1},"Programa de Inspección y Vigilancia de Tramites y Licencias de Construcción.","Número de visitas realizadas para verificar que cuenten con licencias de construcción, y lo establecido en el Reglamento de Construcción","Número de Visitas",3000,3100,"Lic. María Rosalía Castillo Chávez","33-35-62-70-54 Extensión 2418","mercedesrobles162@gmail.com"]
["SECRETARIA_DE_OBRAS_PUBLICASSUBDIRECCION DE INSPECCION DE CONTROL DE LA EDIFICACION Y ORDENAMIENTO TERRITORIAL2Trámites y Servicios","SECRETARIA_DE_OBRAS_PUBLICASSUBDIRECCION DE INSPECCION DE CONTROL DE LA EDIFICACION Y ORDENAMIENTO TERRITORIAL2","SECRETARIA_DE_OBRAS_PUBLICAS","SUBDIRECCION DE INSPECCION DE CONTROL DE LA EDIFICACION Y ORDENAMIENTO TERRITORIAL",{"$f":"COUNTIF($D$4:D204,D204:D204)","v":2},"Trámites y Servicios","Número de trámites concluidos","Trámites",1800,1850,"Lic. María Rosalía Castillo Chávez","33-35-62-70-54 Extensión 2418","mercedesrobles162@gmail.com"]
["SECRETARIA_DE_SEGURIDAD_Y_PROTECCION_CIUDADANADIRECCION ADMINISTRATIVA1Programa permanente de seguimiento para la administración eficiente de los recursos humanos y materiales de la Secretaría","SECRETARIA_DE_SEGURIDAD_Y_PROTECCION_CIUDADANADIRECCION ADMINISTRATIVA1","SECRETARIA_DE_SEGURIDAD_Y_PROTECCION_CIUDADANA","DIRECCION ADMINISTRATIVA",{"$f":"COUNTIF($D$4:D205,D205:D205)","v":1},"Programa permanente de seguimiento para la administración eficiente de los recursos humanos y materiales de la Secretaría","PORCENTAJE DE ETAPAS REALIZADAS PARA EL PROGRAMA PERMANENTE DE SEGUIMIENTO PARA LA ADMINISTRACION EFICIENTE DE LOS RECURSOS HUMANOS Y MATERIALES DE LA COMISARIA","NUMERO DE ETAPAS REALIZADAS",0,24,"Mtra. Juana Esmeralda Zamorano Pelayo",3329291913,"juana.zamorano@tlaquepaque.gob.mx"]
["SECRETARIA_DE_SEGURIDAD_Y_PROTECCION_CIUDADANADIRECCION OPERATIVA1Certificación De Personal Y Oficiales Caninos K-9",{"$f":"C206&D206&E206","v":"SECRETARIA_DE_SEGURIDAD_Y_PROTECCION_CIUDADANADIRECCION OPERATIVA1"},"SECRETARIA_DE_SEGURIDAD_Y_PROTECCION_CIUDADANA","DIRECCION OPERATIVA",{"$f":"COUNTIF($D$4:D206,D206:D206)","v":1},"Certificación De Personal Y Oficiales Caninos K-9","Porcentaje de personal operativo y oficiales caninos certificados ante la Secretaría de Seguridad Pública con Cedula Profesional.","Número de personal operativo y oficiales caninos certificados",0,4,"JUAN CARLOS ROMO DAVALOS","33-33-45-59-24","cpm.operativo.tlq@gmail.com"]
["SECRETARIA_DE_SEGURIDAD_Y_PROTECCION_CIUDADANADIRECCION OPERATIVA2Unidad de Proximidad Policial","SECRETARIA_DE_SEGURIDAD_Y_PROTECCION_CIUDADANADIRECCION OPERATIVA2","SECRETARIA_DE_SEGURIDAD_Y_PROTECCION_CIUDADANA","DIRECCION OPERATIVA",{"$f":"COUNTIF($D$4:D207,D207:D207)","v":2},"Unidad de Proximidad Policial","1.- Porcentaje de patrullajes de vigilancia y proximidad ciudadana en colonias con mayor incidencia delictiva, realizados","1.- Número de patrullajes de vigilancia y proximidad ciudadana realizados",60,120,"JUAN CARLOS ROMO DAVALOS","33-33-45-59-24","cpm.operativo.tlq@gmail.com"]
["SECRETARIA_DE_SEGURIDAD_Y_PROTECCION_CIUDADANADIRECCION DE ATENCION A LA VIOLENCIA DE GENERO1Atención a las violencias en el ámbito familiar y seguimiento a Medidas/Ordenes de Protección emitidas en razón de Género.","SECRETARIA_DE_SEGURIDAD_Y_PROTECCION_CIUDADANADIRECCION DE ATENCION A LA VIOLENCIA DE GENERO1","SECRETARIA_DE_SEGURIDAD_Y_PROTECCION_CIUDADANA","DIRECCION DE ATENCION A LA VIOLENCIA DE GENERO",{"$f":"COUNTIF($D$4:D208,D208:D208)","v":1},"Atención a las violencias en el ámbito familiar y seguimiento a Medidas/Ordenes de Protección emitidas en razón de Género.","Porcentaje de incremento en las denuncias.","Número de pulsos de vida otorgados a las víctimas de violencia que denoten que las víctimas ya denuncian.",218,230,"Irma Araceli Gálvez Espinoza",3336000899,"uvi.opertivo@hotmail.com"]
["SECRETARIA_DE_SEGURIDAD_Y_PROTECCION_CIUDADANADIRECCION DE ATENCION A LA VIOLENCIA DE GENERO2Prevención Comunitaria de las Violencias en el ámbito familiar y por razón de género.","SECRETARIA_DE_SEGURIDAD_Y_PROTECCION_CIUDADANADIRECCION DE ATENCION A LA VIOLENCIA DE GENERO2","SECRETARIA_DE_SEGURIDAD_Y_PROTECCION_CIUDADANA","DIRECCION DE ATENCION A LA VIOLENCIA DE GENERO",{"$f":"COUNTIF($D$4:D209,D209:D209)","v":2},"Prevención Comunitaria de las Violencias en el ámbito familiar y por razón de género.","Porcentaje de etapas de ejecución del programa con la población tlaquepaquense.","Total de mujeres y hombres, niños, niñas y adolescentes con conocimiento de las violencias, para su prevención.",1500,1550,"Irma Araceli Gálvez Espinoza",3336000899,"uvi.opertivo@hotmail.com"]
["SECRETARIA_DE_SEGURIDAD_Y_PROTECCION_CIUDADANASUBDIRECCION DE VIALIDAD1Programa Volanta","SECRETARIA_DE_SEGURIDAD_Y_PROTECCION_CIUDADANASUBDIRECCION DE VIALIDAD1","SECRETARIA_DE_SEGURIDAD_Y_PROTECCION_CIUDADANA","SUBDIRECCION DE VIALIDAD",{"$f":"COUNTIF($D$4:D210,D210:D210)","v":1},"Programa Volanta","Estratégico","Unidades",0,300,"Rafael Cristóbal Orozco Miramontes",3333455908,"rafael.orozco@tlaquepaque.gob.mx"]
["SECRETARIA_DE_SEGURIDAD_Y_PROTECCION_CIUDADANASUBDIRECCION DE VIALIDAD2Programa Volanta","SECRETARIA_DE_SEGURIDAD_Y_PROTECCION_CIUDADANASUBDIRECCION DE VIALIDAD2","SECRETARIA_DE_SEGURIDAD_Y_PROTECCION_CIUDADANA","SUBDIRECCION DE VIALIDAD",{"$f":"COUNTIF($D$4:D211,D211:D211)","v":2},"Programa Volanta","Porcentaje de revisión de los estudios generales de riesgos","Revisión de estudios generales de riesgos",25,30,"Lic. Irma Alcántara Soto",3344490369,"alcantarairma71@gmail.com"]
["SECRETARIA_DE_SEGURIDAD_Y_PROTECCION_CIUDADANADIRECCION DE BOMBEROS Y PROTECCION CIVIL1Programa del consejo municipal de Protección Civil de San Pedro Tlaquepaque","SECRETARIA_DE_SEGURIDAD_Y_PROTECCION_CIUDADANADIRECCION DE BOMBEROS Y PROTECCION CIVIL1","SECRETARIA_DE_SEGURIDAD_Y_PROTECCION_CIUDADANA","DIRECCION DE BOMBEROS Y PROTECCION CIVIL",{"$f":"COUNTIF($D$4:D212,D212:D212)","v":1},"Programa del consejo municipal de Protección Civil de San Pedro Tlaquepaque","Sesión del Consejo Municipal de Protección Civil","Sesiones realizadas",4,4,"Dr. Luis Enrique Mederos Flores",3338372284,"pcyb.tlaquepaque@gmail.com"]
["SECRETARIA_DE_SEGURIDAD_Y_PROTECCION_CIUDADANADIRECCION DE BOMBEROS Y PROTECCION CIVIL2Programa De Actualización Del Atlas Municipal De Riesgos De San Pedro Tlaquepaque","SECRETARIA_DE_SEGURIDAD_Y_PROTECCION_CIUDADANADIRECCION DE BOMBEROS Y PROTECCION CIVIL2","SECRETARIA_DE_SEGURIDAD_Y_PROTECCION_CIUDADANA","DIRECCION DE BOMBEROS Y PROTECCION CIVIL",{"$f":"COUNTIF($D$4:D213,D213:D213)","v":2},"Programa De Actualización Del Atlas Municipal De Riesgos De San Pedro Tlaquepaque","1. Gestión de actualización del Atlas municipal de riesgos","1. Porcentaje de avance de las etapas de gestión, actualización del Atlas de riesgos",0,14,"Lic. José Luis López Vizcarra",3317454286,"jluislvizcarra2015@gmail.com"]
["SECRETARIA_DE_SEGURIDAD_Y_PROTECCION_CIUDADANASUBDIRECCION OPERATIVA1Programa permanente de operativos de prevención de accidentes","SECRETARIA_DE_SEGURIDAD_Y_PROTECCION_CIUDADANASUBDIRECCION OPERATIVA1","SECRETARIA_DE_SEGURIDAD_Y_PROTECCION_CIUDADANA","SUBDIRECCION OPERATIVA",{"$f":"COUNTIF($D$4:D214,D214:D214)","v":1},"Programa permanente de operativos de prevención de accidentes","Operativos de prevención diseñados e implementados para la prevención de accidentes","Total de operativos implementados",555,400,"Cmte. Edgardo Poe Morales",3318286148,"ninopoe@hotmail.com"]
["SECRETARIA_DE_SEGURIDAD_Y_PROTECCION_CIUDADANASUBDIRECCION DE GESTION GENERAL DEL RIESGO1Programa permanente de auxilio a la población para casos de emergencia y/o desastres en San Pedro Tlaquepaque","SECRETARIA_DE_SEGURIDAD_Y_PROTECCION_CIUDADANASUBDIRECCION DE GESTION GENERAL DEL RIESGO1","SECRETARIA_DE_SEGURIDAD_Y_PROTECCION_CIUDADANA","SUBDIRECCION DE GESTION GENERAL DEL RIESGO",{"$f":"COUNTIF($D$4:D215,D215:D215)","v":1},"Programa permanente de auxilio a la población para casos de emergencia y/o desastres en San Pedro Tlaquepaque","Porcentaje de atención a emergencias ordinarias","Servicios atendidos",0,10000,"Cmte. Edgardo Poe Morales",3318286148,"ninopoe@hotmail.com"]
["SECRETARIA_DE_SEGURIDAD_Y_PROTECCION_CIUDADANASUBDIRECCION DE GESTION GENERAL DEL RIESGO2Programa permanente de auxilio a la población para casos de emergencia y/o desastres en San Pedro Tlaquepaque","SECRETARIA_DE_SEGURIDAD_Y_PROTECCION_CIUDADANASUBDIRECCION DE GESTION GENERAL DEL RIESGO2","SECRETARIA_DE_SEGURIDAD_Y_PROTECCION_CIUDADANA","SUBDIRECCION DE GESTION GENERAL DEL RIESGO",{"$f":"COUNTIF($D$4:D216,D216:D216)","v":2},"Programa permanente de auxilio a la población para casos de emergencia y/o desastres en San Pedro Tlaquepaque","Porcentaje de solicitudes realizadas","Servicios atendidos",1000,850,"Cmte. Edgardo Poe Morales",3318286148,"ninopoe@hotmail.com"]
["SECRETARIA_DE_SEGURIDAD_Y_PROTECCION_CIUDADANASUBDIRECCION DE GESTION GENERAL DEL RIESGO3Programa de evaluación y dictaminación de riesgos hidrometeorológicos","SECRETARIA_DE_SEGURIDAD_Y_PROTECCION_CIUDADANASUBDIRECCION DE GESTION GENERAL DEL RIESGO3","SECRETARIA_DE_SEGURIDAD_Y_PROTECCION_CIUDADANA","SUBDIRECCION DE GESTION GENERAL DEL RIESGO",{"$f":"COUNTIF($D$4:D217,D217:D217)","v":3},"Programa de evaluación y dictaminación de riesgos hidrometeorológicos","Informes para la preparación censo de población","Numero de informes",0,5,"Arq. Jorge Casarrubias Segura",3312191677,"casarrubiassegurajorge@gmail.com"]
["SECRETARIA_DE_SEGURIDAD_Y_PROTECCION_CIUDADANASUBDIRECCION DE GESTION GENERAL DEL RIESGO4Programa de evaluación y dictaminación de riesgos hidrometeorológicos","SECRETARIA_DE_SEGURIDAD_Y_PROTECCION_CIUDADANASUBDIRECCION DE GESTION GENERAL DEL RIESGO4","SECRETARIA_DE_SEGURIDAD_Y_PROTECCION_CIUDADANA","SUBDIRECCION DE GESTION GENERAL DEL RIESGO",{"$f":"COUNTIF($D$4:D218,D218:D218)","v":4},"Programa de evaluación y dictaminación de riesgos hidrometeorológicos","Informes de puntos y polígonos de zonas con riesgo de inundación","Numero de informes",0,5,"Arq. Jorge Casarrubias Segura",3312191677,"casarrubiassegurajorge@gmail.com"]
["SECRETARIA_DE_SEGURIDAD_Y_PROTECCION_CIUDADANASUBDIRECCION DE GESTION GENERAL DEL RIESGO5Programa de Gestión Integral del Riesgo mediante visitas de inspección a inmuebles","SECRETARIA_DE_SEGURIDAD_Y_PROTECCION_CIUDADANASUBDIRECCION DE GESTION GENERAL DEL RIESGO5","SECRETARIA_DE_SEGURIDAD_Y_PROTECCION_CIUDADANA","SUBDIRECCION DE GESTION GENERAL DEL RIESGO",{"$f":"COUNTIF($D$4:D219,D219:D219)","v":5},"Programa de Gestión Integral del Riesgo mediante visitas de inspección a inmuebles","Porcentaje de visitas de inspección realizadas al ámbito publico, privado y social por solicitud","Inmuebles en el ámbito publico, privado y social del Municipio inspeccionado",1170,1000,"Arq. Jorge Casarrubias Segura",3312191677,"casarrubiassegurajorge@gmail.com"]
["SECRETARIA_DE_SEGURIDAD_Y_PROTECCION_CIUDADANASUBDIRECCION DE GESTION GENERAL DEL RIESGO6Programa de Gestión Integral del Riesgo mediante visitas de inspección a inmuebles","SECRETARIA_DE_SEGURIDAD_Y_PROTECCION_CIUDADANASUBDIRECCION DE GESTION GENERAL DEL RIESGO6","SECRETARIA_DE_SEGURIDAD_Y_PROTECCION_CIUDADANA","SUBDIRECCION DE GESTION GENERAL DEL RIESGO",{"$f":"COUNTIF($D$4:D220,D220:D220)","v":6},"Programa de Gestión Integral del Riesgo mediante visitas de inspección a inmuebles","Informe de visitas de inspección realizadas por operativos extraordinarios","Informe por cada operativo extraordinario",0,7,"Arq. Jorge Casarrubias Segura",3312191677,"casarrubiassegurajorge@gmail.com"]
["SECRETARIA_DE_SEGURIDAD_Y_PROTECCION_CIUDADANASUBDIRECCION DE GESTION GENERAL DEL RIESGO7Programa de Gestión Integral del Riesgo mediante visitas de inspección a inmuebles","SECRETARIA_DE_SEGURIDAD_Y_PROTECCION_CIUDADANASUBDIRECCION DE GESTION GENERAL DEL RIESGO7","SECRETARIA_DE_SEGURIDAD_Y_PROTECCION_CIUDADANA","SUBDIRECCION DE GESTION GENERAL DEL RIESGO",{"$f":"COUNTIF($D$4:D221,D221:D221)","v":7},"Programa de Gestión Integral del Riesgo mediante visitas de inspección a inmuebles","Porcentaje de asesoría técnicas brindadas en materia de gestión integral del riesgo, mediante la atención la ciudadanía","Asesorías técnicas a la ciudadanía",2457,2800,"Arq. Jorge Casarrubias Segura",3312191677,"casarrubiassegurajorge@gmail.com"]
["SECRETARIA_DE_SEGURIDAD_Y_PROTECCION_CIUDADANADEPARTAMENTO DE AREA DE PREVENCION1Programa permanente de prevención de riesgos mediante la capacitación a la población en general","SECRETARIA_DE_SEGURIDAD_Y_PROTECCION_CIUDADANADEPARTAMENTO DE AREA DE PREVENCION1","SECRETARIA_DE_SEGURIDAD_Y_PROTECCION_CIUDADANA","DEPARTAMENTO DE AREA DE PREVENCION",{"$f":"COUNTIF($D$4:D222,D222:D222)","v":1},"Programa permanente de prevención de riesgos mediante la capacitación a la población en general","Programas de protección civil en mi escuela","Alumnos y personal docente capacitados",17550,15000,"José Cruz Velazco Curiel",3326299149,"velazcocuriel@gmail.com"]
["SECRETARIA_DE_SEGURIDAD_Y_PROTECCION_CIUDADANADEPARTAMENTO DE AREA DE PREVENCION2Programa permanente de prevención de riesgos mediante la capacitación a la población en general","SECRETARIA_DE_SEGURIDAD_Y_PROTECCION_CIUDADANADEPARTAMENTO DE AREA DE PREVENCION2","SECRETARIA_DE_SEGURIDAD_Y_PROTECCION_CIUDADANA","DEPARTAMENTO DE AREA DE PREVENCION",{"$f":"COUNTIF($D$4:D223,D223:D223)","v":2},"Programa permanente de prevención de riesgos mediante la capacitación a la población en general","Programa de formación de brigadas internas de protección civil en los centros de trabajo","Personas capacitadas de los sectores públicos y privados",1531,1000,"José Cruz Velazco Curiel",3326299149,"velazcocuriel@gmail.com"]
["SECRETARIA_DE_SEGURIDAD_Y_PROTECCION_CIUDADANADEPARTAMENTO DE AREA DE PREVENCION3Programa permanente de prevención de riesgos mediante la capacitación a la población en general","SECRETARIA_DE_SEGURIDAD_Y_PROTECCION_CIUDADANADEPARTAMENTO DE AREA DE PREVENCION3","SECRETARIA_DE_SEGURIDAD_Y_PROTECCION_CIUDADANA","DEPARTAMENTO DE AREA DE PREVENCION",{"$f":"COUNTIF($D$4:D224,D224:D224)","v":3},"Programa permanente de prevención de riesgos mediante la capacitación a la población en general","Programa de capacitación a comunidades","Personas capacitadas",2420,200,"José Cruz Velazco Curiel",3326299149,"velazcocuriel@gmail.com"]
["SECRETARIA_DE_SEGURIDAD_Y_PROTECCION_CIUDADANADEPARTAMENTO DE AREA DE PREVENCION4Programa permanente de prevención de riesgos mediante la capacitación a la población en general","SECRETARIA_DE_SEGURIDAD_Y_PROTECCION_CIUDADANADEPARTAMENTO DE AREA DE PREVENCION4","SECRETARIA_DE_SEGURIDAD_Y_PROTECCION_CIUDADANA","DEPARTAMENTO DE AREA DE PREVENCION",{"$f":"COUNTIF($D$4:D225,D225:D225)","v":4},"Programa permanente de prevención de riesgos mediante la capacitación a la población en general","Programa de simulacros para evaluar la capacidad de respuesta de la población","Simulacros evaluados",164,200,"José Cruz Velazco Curiel",3326299149,"velazcocuriel@gmail.com"]
["SECRETARIA_DE_SEGURIDAD_Y_PROTECCION_CIUDADANADEPARTAMENTO DE AREA DE PREVENCION5Programa permanente de prevención de riesgos mediante la capacitación a la población en general","SECRETARIA_DE_SEGURIDAD_Y_PROTECCION_CIUDADANADEPARTAMENTO DE AREA DE PREVENCION5","SECRETARIA_DE_SEGURIDAD_Y_PROTECCION_CIUDADANA","DEPARTAMENTO DE AREA DE PREVENCION",{"$f":"COUNTIF($D$4:D226,D226:D226)","v":5},"Programa permanente de prevención de riesgos mediante la capacitación a la población en general","Programa de capacitación de manejo de pirotecnia","Personas capacitadas",2500,2000,"José Cruz Velazco Curiel",3326299149,"velazcocuriel@gmail.com"]
["SECRETARIA_DE_SEGURIDAD_Y_PROTECCION_CIUDADANADIRECCION DE BOMBEROS Y PROTECCION CIVIL3Programa de profesionalización, actualización, especializada y salud integral para el personal de la Dirección de Bomberos y Protección Civil","SECRETARIA_DE_SEGURIDAD_Y_PROTECCION_CIUDADANADIRECCION DE BOMBEROS Y PROTECCION CIVIL3","SECRETARIA_DE_SEGURIDAD_Y_PROTECCION_CIUDADANA","DIRECCION DE BOMBEROS Y PROTECCION CIVIL",{"$f":"COUNTIF($D$4:D227,D227:D227)","v":3},"Programa de profesionalización, actualización, especializada y salud integral para el personal de la Dirección de Bomberos y Protección Civil","Porcentaje de recursos recibidos del personal adscrito a la Dirección de Bomberos y Protección Civil","Recursos recibidos",0,36,"Lic. José Luis López Vizcarra",3317454286,"jluislvizcarra2015@gmail.com"]
["SECRETARIA_DE_SEGURIDAD_Y_PROTECCION_CIUDADANADIRECCION DE BOMBEROS Y PROTECCION CIVIL4Programa de profesionalización, actualización, especializada y salud integral para el personal de la Dirección de Bomberos y Protección Civil","SECRETARIA_DE_SEGURIDAD_Y_PROTECCION_CIUDADANADIRECCION DE BOMBEROS Y PROTECCION CIVIL4","SECRETARIA_DE_SEGURIDAD_Y_PROTECCION_CIUDADANA","DIRECCION DE BOMBEROS Y PROTECCION CIVIL",{"$f":"COUNTIF($D$4:D228,D228:D228)","v":4},"Programa de profesionalización, actualización, especializada y salud integral para el personal de la Dirección de Bomberos y Protección Civil","Porcentajes de recursos especializantes del personal adscrito a la Dirección de bomberos y Protección Civil.","Cursos especializantes recibidos",0,5,"Lic. José Luis López Vizcarra",3317454286,"jluislvizcarra2015@gmail.com"]
["SECRETARIA_DE_SEGURIDAD_Y_PROTECCION_CIUDADANADIRECCION DE BOMBEROS Y PROTECCION CIVIL5Programa de profesionalización, actualización, especializada y salud integral para el personal de la Dirección de Bomberos y Protección Civil","SECRETARIA_DE_SEGURIDAD_Y_PROTECCION_CIUDADANADIRECCION DE BOMBEROS Y PROTECCION CIVIL5","SECRETARIA_DE_SEGURIDAD_Y_PROTECCION_CIUDADANA","DIRECCION DE BOMBEROS Y PROTECCION CIVIL",{"$f":"COUNTIF($D$4:D229,D229:D229)","v":5},"Programa de profesionalización, actualización, especializada y salud integral para el personal de la Dirección de Bomberos y Protección Civil","Porcentaje de atenciones y actividades de salud integral","Número de atenciones y actividades",0,300,"Lic. José Luis López Vizcarra",3317454286,"jluislvizcarra2015@gmail.com"]
["SECRETARIA_DE_SEGURIDAD_Y_PROTECCION_CIUDADANADIRECCION DE BOMBEROS Y PROTECCION CIVIL6Programa de profesionalización, actualización, especializada y salud integral para el personal de la Dirección de Bomberos y Protección Civil","SECRETARIA_DE_SEGURIDAD_Y_PROTECCION_CIUDADANADIRECCION DE BOMBEROS Y PROTECCION CIVIL6","SECRETARIA_DE_SEGURIDAD_Y_PROTECCION_CIUDADANA","DIRECCION DE BOMBEROS Y PROTECCION CIVIL",{"$f":"COUNTIF($D$4:D230,D230:D230)","v":6},"Programa de profesionalización, actualización, especializada y salud integral para el personal de la Dirección de Bomberos y Protección Civil","Porcentaje de preparación de alimentos para los elementos","Alimentos preparados",1095,1095,"Lic. José Luis López Vizcarra",3317454286,"jluislvizcarra2015@gmail.com"]
["SECRETARIA_DE_SEGURIDAD_Y_PROTECCION_CIUDADANASUBDIRECCION JURIDICA Y DE DERECHOS HUMANOS1Evaluaciones De Control De Confianza","SECRETARIA_DE_SEGURIDAD_Y_PROTECCION_CIUDADANASUBDIRECCION JURIDICA Y DE DERECHOS HUMANOS1","SECRETARIA_DE_SEGURIDAD_Y_PROTECCION_CIUDADANA","SUBDIRECCION JURIDICA Y DE DERECHOS HUMANOS",{"$f":"COUNTIF($D$4:D231,D231:D231)","v":1},"Evaluaciones De Control De Confianza","Examen de control y confianza","Aritmético, dando el valor de (1) por cada elemento evaluado",300,300,"MIGUEL ANGEL ESPINOZA PADILLA",3310979314,"miguelangelespinozapadilla93@gmail.com"]
["SECRETARIA_DE_SEGURIDAD_Y_PROTECCION_CIUDADANASUBDIRECCION DE PLANEACION ESTRATEGICA1Credencialización de Personal Operativo","SECRETARIA_DE_SEGURIDAD_Y_PROTECCION_CIUDADANASUBDIRECCION DE PLANEACION ESTRATEGICA1","SECRETARIA_DE_SEGURIDAD_Y_PROTECCION_CIUDADANA","SUBDIRECCION DE PLANEACION ESTRATEGICA",{"$f":"COUNTIF($D$4:D232,D232:D232)","v":1},"Credencialización de Personal Operativo","Porcentaje en el cumplimiento de los procesos de credencialización y captura de asignación de armas para el personal operativo de la Comisaría Municipal","Credenciales de portación de arma de fuego impresas.",1200,1300,"Viridiana Alejandra Córdova Osorio",3315759466,"areatecnica17@live.com.mx"]
["SECRETARIA_DE_SEGURIDAD_Y_PROTECCION_CIUDADANASUBDIRECCION DE PLANEACION ESTRATEGICA2Mantenimiento Preventivo de Armas","SECRETARIA_DE_SEGURIDAD_Y_PROTECCION_CIUDADANASUBDIRECCION DE PLANEACION ESTRATEGICA2","SECRETARIA_DE_SEGURIDAD_Y_PROTECCION_CIUDADANA","SUBDIRECCION DE PLANEACION ESTRATEGICA",{"$f":"COUNTIF($D$4:D233,D233:D233)","v":2},"Mantenimiento Preventivo de Armas","Porcentaje de mantenimiento de armamento","Número de armas que reciben mantenimiento",0,"Total de armas","Viridiana Alejandra Córdova Osorio",3315759466,"areatecnica17@live.com.mx"]
["SECRETARIA_DE_SEGURIDAD_Y_PROTECCION_CIUDADANASUBDIRECCION DE PLANEACION ESTRATEGICA3Elaboración de documentos y/o diagnósticos basados en evidencias","SECRETARIA_DE_SEGURIDAD_Y_PROTECCION_CIUDADANASUBDIRECCION DE PLANEACION ESTRATEGICA3","SECRETARIA_DE_SEGURIDAD_Y_PROTECCION_CIUDADANA","SUBDIRECCION DE PLANEACION ESTRATEGICA",{"$f":"COUNTIF($D$4:D234,D234:D234)","v":3},"Elaboración de documentos y/o diagnósticos basados en evidencias","Documentos y/o diagnósticos elaborados, solicitados y/o propuestos.","Número de documentos y/o diagnósticos elaborados",0,5,"Mario Alberto Collazo Valdez","33 33 45 59 00 ext. 5990","seguciutlaq@gmail.com"]
["SECRETARIA_DE_SEGURIDAD_Y_PROTECCION_CIUDADANASUBDIRECCION DE PLANEACION ESTRATEGICA4Coordinación de la Política Transversal de Reconstrucción del Tejido Social","SECRETARIA_DE_SEGURIDAD_Y_PROTECCION_CIUDADANASUBDIRECCION DE PLANEACION ESTRATEGICA4","SECRETARIA_DE_SEGURIDAD_Y_PROTECCION_CIUDADANA","SUBDIRECCION DE PLANEACION ESTRATEGICA",{"$f":"COUNTIF($D$4:D235,D235:D235)","v":4},"Coordinación de la Política Transversal de Reconstrucción del Tejido Social","Acciones realizadas en la preparación de la política transversal","Número de acciones",2,2,"Gerardo Flores Gutiérrez","33 33 45 59 00 ext. 5990","tejidosocialtlaquepaque@gmail.com"]
["SECRETARIA_DE_SEGURIDAD_Y_PROTECCION_CIUDADANASUBDIRECCION DE PLANEACION ESTRATEGICA5Actualización de Requisitos de Permanencia","SECRETARIA_DE_SEGURIDAD_Y_PROTECCION_CIUDADANASUBDIRECCION DE PLANEACION ESTRATEGICA5","SECRETARIA_DE_SEGURIDAD_Y_PROTECCION_CIUDADANA","SUBDIRECCION DE PLANEACION ESTRATEGICA",{"$f":"COUNTIF($D$4:D236,D236:D236)","v":5},"Actualización de Requisitos de Permanencia","ACTUALIZACION DE COMPETENCIAS BASICAS DE LA FUNCION POLICIAL","NUMERO DE POLICIAS ACTUALIZADOS",0,410,"FABIOLA ARACELI HERNÁNDEZ ARRIAGA","33 35 62 70 74","cpm.academia.tlq@gmail.com"]
["SECRETARIA_DE_SEGURIDAD_Y_PROTECCION_CIUDADANASUBDIRECCION DE PLANEACION ESTRATEGICA6Sendero Seguro","SECRETARIA_DE_SEGURIDAD_Y_PROTECCION_CIUDADANASUBDIRECCION DE PLANEACION ESTRATEGICA6","SECRETARIA_DE_SEGURIDAD_Y_PROTECCION_CIUDADANA","SUBDIRECCION DE PLANEACION ESTRATEGICA",{"$f":"COUNTIF($D$4:D237,D237:D237)","v":6},"Sendero Seguro","Número de dependencias participantes","Número de dependencias",10,18,"Emmanuel Hernández López","33 33 45 59 00 ext. 5990","sendero.seguro.tlaquepaque@gmail.com"]
["SECRETARIA_DE_SEGURIDAD_Y_PROTECCION_CIUDADANASUBDIRECCION DE VINCULACION CIUDADANA1Programa De Participación Ciudadana (Línea Segura)","SECRETARIA_DE_SEGURIDAD_Y_PROTECCION_CIUDADANASUBDIRECCION DE VINCULACION CIUDADANA1","SECRETARIA_DE_SEGURIDAD_Y_PROTECCION_CIUDADANA","SUBDIRECCION DE VINCULACION CIUDADANA",{"$f":"COUNTIF($D$4:D238,D238:D238)","v":1},"Programa De Participación Ciudadana (Línea Segura)","porcentaje de personas asistentes que se capacitan para realizar sus reportes a las áreas correspondientes.","Número de asistentes",3700,3750,"Mario Sergio Gama Apodaca",3333455940,"vinculacioncuidadanatlaq@gmail.com"]
["SECRETARIA_DE_SEGURIDAD_Y_PROTECCION_CIUDADANASUBDIRECCION DE PROFESIONALIZACION Y ACREDITACION POLICIAL1Profesionalización Continua","SECRETARIA_DE_SEGURIDAD_Y_PROTECCION_CIUDADANASUBDIRECCION DE PROFESIONALIZACION Y ACREDITACION POLICIAL1","SECRETARIA_DE_SEGURIDAD_Y_PROTECCION_CIUDADANA","SUBDIRECCION DE PROFESIONALIZACION Y ACREDITACION POLICIAL",{"$f":"COUNTIF($D$4:D239,D239:D239)","v":1},"Profesionalización Continua","Curso de especialización para la formación de mandos medios","Número de policías (mandos) incorporados al curso",0,50,"Fabiola Araceli Hernández Arriaga","33 35 62 70 74","cpm.academia.tlq@gmail.com"]
["SECRETARIA_DE_SEGURIDAD_Y_PROTECCION_CIUDADANASUBDIRECCION DE PROFESIONALIZACION Y ACREDITACION POLICIAL2Selección Y Reclutamiento Para Plazas Operativas","SECRETARIA_DE_SEGURIDAD_Y_PROTECCION_CIUDADANASUBDIRECCION DE PROFESIONALIZACION Y ACREDITACION POLICIAL2","SECRETARIA_DE_SEGURIDAD_Y_PROTECCION_CIUDADANA","SUBDIRECCION DE PROFESIONALIZACION Y ACREDITACION POLICIAL",{"$f":"COUNTIF($D$4:D240,D240:D240)","v":2},"Selección Y Reclutamiento Para Plazas Operativas","Selección y Reclutamiento para plazas operativas","0/80",0,80,"Fabiola Araceli Hernández Arriaga","33 35 62 70 74","cpm.academia.tlq@gmail.com"]
["SECRETARIA_DE_SEGURIDAD_Y_PROTECCION_CIUDADANASUBDIRECCION DE PROFESIONALIZACION Y ACREDITACION POLICIAL3Formación Inicial Policía de Proximidad","SECRETARIA_DE_SEGURIDAD_Y_PROTECCION_CIUDADANASUBDIRECCION DE PROFESIONALIZACION Y ACREDITACION POLICIAL3","SECRETARIA_DE_SEGURIDAD_Y_PROTECCION_CIUDADANA","SUBDIRECCION DE PROFESIONALIZACION Y ACREDITACION POLICIAL",{"$f":"COUNTIF($D$4:D241,D241:D241)","v":3},"Formación Inicial Policía de Proximidad","Curso de Formación Inicial Policía de Proximidad","Número de personas incorporadas al curso",0,80,"Fabiola Araceli Hernández Arriaga","33 35 62 70 74","cpm.academia.tlq@gmail.com"]
["SECRETARIA_DE_SEGURIDAD_Y_PROTECCION_CIUDADANASUBDIRECCION DE PROFESIONALIZACION Y ACREDITACION POLICIAL4Convocatoria para Selección de Personal Operativo","SECRETARIA_DE_SEGURIDAD_Y_PROTECCION_CIUDADANASUBDIRECCION DE PROFESIONALIZACION Y ACREDITACION POLICIAL4","SECRETARIA_DE_SEGURIDAD_Y_PROTECCION_CIUDADANA","SUBDIRECCION DE PROFESIONALIZACION Y ACREDITACION POLICIAL",{"$f":"COUNTIF($D$4:D242,D242:D242)","v":4},"Convocatoria para Selección de Personal Operativo","PORCENTAJE DE AVANCE EN LA CONVOCATORIA DE RECLUTAMENTO Y SELECCIÓN DE PERSONAL","NUMÉRO DE ACCIONES PARA DESARROLLAR LA CONVOCATORIA","0/5",5,"Fabiola Araceli Hernández Arriaga","33 35 62 70 74","cpm.academia.tlq@gmail.com"]
["SECRETARIA_DE_SEGURIDAD_Y_PROTECCION_CIUDADANASUBDIRECCION DE PREVENCION AL DELITO1Trotando Ando Por La Vida Y La Familia","SECRETARIA_DE_SEGURIDAD_Y_PROTECCION_CIUDADANASUBDIRECCION DE PREVENCION AL DELITO1","SECRETARIA_DE_SEGURIDAD_Y_PROTECCION_CIUDADANA","SUBDIRECCION DE PREVENCION AL DELITO",{"$f":"COUNTIF($D$4:D243,D243:D243)","v":1},"Trotando Ando Por La Vida Y La Familia","Numero de participantes en la carrera atlética Trotando ando por la vida y la familia","Personas que participen en la carrera",0,1000,"Lic. José de Jesús Godoy Serrano","33-35-62-70-76","tlaquepaque.prevencion.social@gmail.com"]
["SECRETARIA_DE_SEGURIDAD_Y_PROTECCION_CIUDADANASUBDIRECCION DE PREVENCION AL DELITO2Cascareando Por La Prevención","SECRETARIA_DE_SEGURIDAD_Y_PROTECCION_CIUDADANASUBDIRECCION DE PREVENCION AL DELITO2","SECRETARIA_DE_SEGURIDAD_Y_PROTECCION_CIUDADANA","SUBDIRECCION DE PREVENCION AL DELITO",{"$f":"COUNTIF($D$4:D244,D244:D244)","v":2},"Cascareando Por La Prevención","Número de escuelas trabajadas en el programa Cascareando por la prevención","Número de escuelas",8,8,"Lic. José de Jesús Godoy Serrano","33-35-62-70-76","tlaquepaque.prevencion.social@gmail.com"]
["SECRETARIA_DE_SEGURIDAD_Y_PROTECCION_CIUDADANASUBDIRECCION DE PREVENCION AL DELITO3Gabinete Psicológico","SECRETARIA_DE_SEGURIDAD_Y_PROTECCION_CIUDADANASUBDIRECCION DE PREVENCION AL DELITO3","SECRETARIA_DE_SEGURIDAD_Y_PROTECCION_CIUDADANA","SUBDIRECCION DE PREVENCION AL DELITO",{"$f":"COUNTIF($D$4:D245,D245:D245)","v":3},"Gabinete Psicológico","Número de elementos operativos y familiares atendidos psicológicamente","Personas atendidas",100,110,"Lic. José de Jesús Godoy Serrano","33-35-62-70-76","tlaquepaque.prevencion.social@gmail.com"]
["SECRETARIA_DE_SEGURIDAD_Y_PROTECCION_CIUDADANASUBDIRECCION DE PREVENCION AL DELITO4Asipt","SECRETARIA_DE_SEGURIDAD_Y_PROTECCION_CIUDADANASUBDIRECCION DE PREVENCION AL DELITO4","SECRETARIA_DE_SEGURIDAD_Y_PROTECCION_CIUDADANA","SUBDIRECCION DE PREVENCION AL DELITO",{"$f":"COUNTIF($D$4:D246,D246:D246)","v":4},"Asipt","Número de elementos operativos y familiares atendidos en acompañamientos y situaciones emergentes","Elementos atendidos",21,25,"Lic. José de Jesús Godoy Serrano","33-35-62-70-76","tlaquepaque.prevencion.social@gmail.com"]
["SECRETARIA_DE_SEGURIDAD_Y_PROTECCION_CIUDADANASUBDIRECCION DE PREVENCION AL DELITO5Centro De Atención A Niños, Niñas Y Adolescentes De Tlaquepaque","SECRETARIA_DE_SEGURIDAD_Y_PROTECCION_CIUDADANASUBDIRECCION DE PREVENCION AL DELITO5","SECRETARIA_DE_SEGURIDAD_Y_PROTECCION_CIUDADANA","SUBDIRECCION DE PREVENCION AL DELITO",{"$f":"COUNTIF($D$4:D247,D247:D247)","v":5},"Centro De Atención A Niños, Niñas Y Adolescentes De Tlaquepaque","Número de atenciones de niñas, niños y adolescentes en conflicto con la ley","Niños, Niñas y Adolescentes en conflicto con la ley",47,55,"Lic. José de Jesús Godoy Serrano","33-35-62-70-76","tlaquepaque.prevencion.social@gmail.com"]
["SECRETARIA_DE_SEGURIDAD_Y_PROTECCION_CIUDADANASUBDIRECCION DE PREVENCION AL DELITO6Centro De Atención A Niños, Niñas Y Adolescentes De Tlaquepaque","SECRETARIA_DE_SEGURIDAD_Y_PROTECCION_CIUDADANASUBDIRECCION DE PREVENCION AL DELITO6","SECRETARIA_DE_SEGURIDAD_Y_PROTECCION_CIUDADANA","SUBDIRECCION DE PREVENCION AL DELITO",{"$f":"COUNTIF($D$4:D248,D248:D248)","v":6},"Centro De Atención A Niños, Niñas Y Adolescentes De Tlaquepaque","Número de personas que requieran atención psicológica derivadas de servicios de CANNAT y de los casos detectados de los centros educativos","Personas que requieran atención psicológica derivadas de servicios de CANNAT y casos detectados de centros educativos",300,350,"Lic. José de Jesús Godoy Serrano","33-35-62-70-76","tlaquepaque.prevencion.social@gmail.com"]
["SECRETARIA_DE_SEGURIDAD_Y_PROTECCION_CIUDADANASUBDIRECCION DE PREVENCION AL DELITO7Programas Preventivos","SECRETARIA_DE_SEGURIDAD_Y_PROTECCION_CIUDADANASUBDIRECCION DE PREVENCION AL DELITO7","SECRETARIA_DE_SEGURIDAD_Y_PROTECCION_CIUDADANA","SUBDIRECCION DE PREVENCION AL DELITO",{"$f":"COUNTIF($D$4:D249,D249:D249)","v":7},"Programas Preventivos","Número de personas atendidas mediante la aplicación de programas preventivos","Personas atendidas",24700,27000,"Lic. José de Jesús Godoy Serrano","33-35-62-70-76","tlaquepaque.prevencion.social@gmail.com"]
["OPDCOMUCAT1Capacitaciones Preventivas en Adicciones","OPDCOMUCAT1","OPD","COMUCAT",{"$f":"COUNTIF($D$4:D250,D250:D250)","v":1},"Capacitaciones Preventivas en Adicciones","Personas Capacitadas","Personas",220000,240000,"Dr. Francisco López Rosas/Tatiana López",3338601965,"comucattlaquepaque2024@gmail.com"]
["OPDCOMUCAT2Atención Terapéutica","OPDCOMUCAT2","OPD","COMUCAT",{"$f":"COUNTIF($D$4:D251,D251:D251)","v":2},"Atención Terapéutica","Personas con tratamientos completos/tratamientos otorgados a personas","Usuarios",25000,30000,"Dr. Francisco López Rosas/Tatiana López",3338601965,"comucattlaquepaque2024@gmail.com"]
["OPDCOMUCAT3Espacios COMUCAT","OPDCOMUCAT3","OPD","COMUCAT",{"$f":"COUNTIF($D$4:D252,D252:D252)","v":3},"Espacios COMUCAT","Unidades de Atención","Espacio terapéutico","-",400,"Dr. Francisco López Rosas/Michel Alejandro Rivas",3338601965,"comucattlaquepaque2024@gmail.com"]
["OPDCOMUCAT4Red de Apoyo para Establecimientos especializado en Adicciones","OPDCOMUCAT4","OPD","COMUCAT",{"$f":"COUNTIF($D$4:D253,D253:D253)","v":4},"Red de Apoyo para Establecimientos especializado en Adicciones","Establecimiento especializados en adicciones","Establecimientos",4000,5500,"Dr. Francisco López Rosas/Michel Alejandro Rivas",3338601965,"comucattlaquepaque2024@gmail.com"]
["OPDSistema de Desarrollo Integral de la Familia (DIF) de Tlaquepaque1Área Alimentaria","OPDSistema de Desarrollo Integral de la Familia (DIF) de Tlaquepaque1","OPD","Sistema de Desarrollo Integral de la Familia (DIF) de Tlaquepaque",{"$f":"COUNTIF($D$4:D254,D254:D254)","v":1},"Área Alimentaria","Raciones de Alimentos","Cantidad de Raciones Entregadas","-",152513000,"Bertha Elizabeth Sánchez García",3315781002]
["OPDSistema de Desarrollo Integral de la Familia (DIF) de Tlaquepaque2Área Alimentaria","OPDSistema de Desarrollo Integral de la Familia (DIF) de Tlaquepaque2","OPD","Sistema de Desarrollo Integral de la Familia (DIF) de Tlaquepaque",{"$f":"COUNTIF($D$4:D255,D255:D255)","v":2},"Área Alimentaria","Dotaciones Alimentarias","Cantidad de Despensas","-",3098400,"Bertha Elizabeth Sánchez García",3315781002]
["OPDSistema de Desarrollo Integral de la Familia (DIF) de Tlaquepaque3Área Alimentaria","OPDSistema de Desarrollo Integral de la Familia (DIF) de Tlaquepaque3","OPD","Sistema de Desarrollo Integral de la Familia (DIF) de Tlaquepaque",{"$f":"COUNTIF($D$4:D256,D256:D256)","v":3},"Área Alimentaria","Capacitaciones de Orientación Alimentaria","Cantidad de Beneficiarios que reciben","-",1291000,"Bertha Elizabeth Sánchez García",3315781002]
["OPDSistema de Desarrollo Integral de la Familia (DIF) de Tlaquepaque4Psicología","OPDSistema de Desarrollo Integral de la Familia (DIF) de Tlaquepaque4","OPD","Sistema de Desarrollo Integral de la Familia (DIF) de Tlaquepaque",{"$f":"COUNTIF($D$4:D257,D257:D257)","v":4},"Psicología","Sesiones psicológicas Otorgadas","Numero de Sesiones",1304000,1320000,"Lic. Leonardo Anatolio Salazar Marrero/ Lic. Lucia Alejandra Villaseñor Gómez",3336802559,"areapsicologiatlaq@gmail.com"]
["OPDSistema de Desarrollo Integral de la Familia (DIF) de Tlaquepaque5Talleres de Esperanza","OPDSistema de Desarrollo Integral de la Familia (DIF) de Tlaquepaque5","OPD","Sistema de Desarrollo Integral de la Familia (DIF) de Tlaquepaque",{"$f":"COUNTIF($D$4:D258,D258:D258)","v":5},"Talleres de Esperanza","Porcentaje de personas inscritas a talleres de esperanza","Personas Inscritas","-",106000,"Mario Herrera Gallardo",3325681978,"mherrada93@gmail.com"]
["OPDSistema de Desarrollo Integral de la Familia (DIF) de Tlaquepaque6Talleres de Esperanza","OPDSistema de Desarrollo Integral de la Familia (DIF) de Tlaquepaque6","OPD","Sistema de Desarrollo Integral de la Familia (DIF) de Tlaquepaque",{"$f":"COUNTIF($D$4:D259,D259:D259)","v":6},"Talleres de Esperanza","Porcentaje de atención a personas en talleres","Sesiones de atención brindadas a madres solteras y jóvenes","-",320000,"Mario Herrera Gallardo",3325681978,"mherrada93@gmail.com"]
["OPDSistema de Desarrollo Integral de la Familia (DIF) de Tlaquepaque7Talleres de Esperanza","OPDSistema de Desarrollo Integral de la Familia (DIF) de Tlaquepaque7","OPD","Sistema de Desarrollo Integral de la Familia (DIF) de Tlaquepaque",{"$f":"COUNTIF($D$4:D260,D260:D260)","v":7},"Talleres de Esperanza","Porcentaje de personas Graduadas en talleres","Madres solteras o jóvenes graduados","-",106000,"Mario Herrera Gallardo",3325681978,"mherrada93@gmail.com"]
[{"$f":"B261&F261","v":"OPDSistema de Desarrollo Integral de la Familia (DIF) de Tlaquepaque8Programa de Atención a la Discapacidad"},"OPDSistema de Desarrollo Integral de la Familia (DIF) de Tlaquepaque8","OPD","Sistema de Desarrollo Integral de la Familia (DIF) de Tlaquepaque",{"$f":"COUNTIF($D$4:D261,D261:D261)","v":8},"Programa de Atención a la Discapacidad","Porcentaje de Atención a personas con discapacidad","Sesiones de atención brindadas a personas con discapacidad",400000,400000,"María del Carmen González Chávez/Ana Bertha González Rodríguez",3338380716,"discapacidad.tlaquepaque@gmail.com"]
["OPDSistema de Desarrollo Integral de la Familia (DIF) de Tlaquepaque9Programa de Atención a la Discapacidad","OPDSistema de Desarrollo Integral de la Familia (DIF) de Tlaquepaque9","OPD","Sistema de Desarrollo Integral de la Familia (DIF) de Tlaquepaque",{"$f":"COUNTIF($D$4:D262,D262:D262)","v":9},"Programa de Atención a la Discapacidad","Porcentaje de Capacitación y sensibilización sobre cultura de discapacidad a servidores públicos y ciudadanía","Personas capacitadas y sensibilizadas",50000,50000,"María del Carmen González Chávez/Ana Bertha González Rodríguez",3338380716,"discapacidad.tlaquepaque@gmail.com"]
["OPDSistema de Desarrollo Integral de la Familia (DIF) de Tlaquepaque10Inclusión y Derechos Humanos de las Personas con Discapacidad","OPDSistema de Desarrollo Integral de la Familia (DIF) de Tlaquepaque10","OPD","Sistema de Desarrollo Integral de la Familia (DIF) de Tlaquepaque",{"$f":"COUNTIF($D$4:D263,D263:D263)","v":10},"Inclusión y Derechos Humanos de las Personas con Discapacidad","Porcentaje de Atención","Personas capacitadas y sensibilizadas","-",50000,"María del Carmen González Chávez/Ana Bertha González Rodríguez",3338380716,"discapacidad.tlaquepaque@gmail.com"]
["OPDSistema de Desarrollo Integral de la Familia (DIF) de Tlaquepaque11Protección y Atención ante casos de Violencia Familia","OPDSistema de Desarrollo Integral de la Familia (DIF) de Tlaquepaque11","OPD","Sistema de Desarrollo Integral de la Familia (DIF) de Tlaquepaque",{"$f":"COUNTIF($D$4:D264,D264:D264)","v":11},"Protección y Atención ante casos de Violencia Familia","Personas Atendidas que soliciten la Atención Psicológica y asesoría jurídica","Numero de personas atendidas por el grupo interdisciplinario",180000,250000,"Carmen Yakarar López Ramírez",3330440444,"auvi.diftlaquepaque@gmail.com"]
["OPDSistema de Desarrollo Integral de la Familia (DIF) de Tlaquepaque12Procuraduría de Protección de NNA","OPDSistema de Desarrollo Integral de la Familia (DIF) de Tlaquepaque12","OPD","Sistema de Desarrollo Integral de la Familia (DIF) de Tlaquepaque",{"$f":"COUNTIF($D$4:D265,D265:D265)","v":12},"Procuraduría de Protección de NNA","Asesorías Familiar / Jurídico / C. Identidad","Numero de Personas Atendidas",950,1200,"Lic. Daysi Itzel Martínez Barajas",3314850872,"daf.diftlaquepaque@gmail.com"]
["OPDSistema de Desarrollo Integral de la Familia (DIF) de Tlaquepaque13Procuraduría de Protección de NNA","OPDSistema de Desarrollo Integral de la Familia (DIF) de Tlaquepaque13","OPD","Sistema de Desarrollo Integral de la Familia (DIF) de Tlaquepaque",{"$f":"COUNTIF($D$4:D266,D266:D266)","v":13},"Procuraduría de Protección de NNA","Atención a reportes de violencia y/o abuso","Numero de Reportes Atendidos",450,500,"Lic. Daysi Itzel Martínez Barajas",3314850872,"daf.diftlaquepaque@gmail.com"]
["OPDSistema de Desarrollo Integral de la Familia (DIF) de Tlaquepaque14Procuraduría de Protección de NNA","OPDSistema de Desarrollo Integral de la Familia (DIF) de Tlaquepaque14","OPD","Sistema de Desarrollo Integral de la Familia (DIF) de Tlaquepaque",{"$f":"COUNTIF($D$4:D267,D267:D267)","v":14},"Procuraduría de Protección de NNA","Servicio de platicas prematrimoniales","Numero de constancias Expedidas",3000,3500,"Lic. Daysi Itzel Martínez Barajas",3314850872,"daf.diftlaquepaque@gmail.com"]
["OPDSistema de Desarrollo Integral de la Familia (DIF) de Tlaquepaque15Albergue Vista Hermosa","OPDSistema de Desarrollo Integral de la Familia (DIF) de Tlaquepaque15","OPD","Sistema de Desarrollo Integral de la Familia (DIF) de Tlaquepaque",{"$f":"COUNTIF($D$4:D268,D268:D268)","v":15},"Albergue Vista Hermosa","Porcentaje de menores que requieren ser albergados","Numero de menores que recibimos (Estancia) en el albergue de vista hermosa",0,150,"Lic. Daysi Itzel Martínez Barajas",3314850872,"daf.diftlaquepaque@gmail.com"]
["OPDSistema de Desarrollo Integral de la Familia (DIF) de Tlaquepaque16Protección y Restitución de Derechos de Niñas. Niños y Adolescentes","OPDSistema de Desarrollo Integral de la Familia (DIF) de Tlaquepaque16","OPD","Sistema de Desarrollo Integral de la Familia (DIF) de Tlaquepaque",{"$f":"COUNTIF($D$4:D269,D269:D269)","v":16},"Protección y Restitución de Derechos de Niñas. Niños y Adolescentes","Porcentaje de Servicios a niñas, niños y adolescentes","Numero de niñas, niños y adolescentes",120,150,"Hannia Itzel Parada González",3336571095,"tuteladederechos12@gmail.com"]
["OPDSistema de Desarrollo Integral de la Familia (DIF) de Tlaquepaque17Área Médica",{"$f":"C270&D270&E270","v":"OPDSistema de Desarrollo Integral de la Familia (DIF) de Tlaquepaque17"},"OPD","Sistema de Desarrollo Integral de la Familia (DIF) de Tlaquepaque",{"$f":"COUNTIF($D$4:D270,D270:D270)","v":17},"Área Médica","Porcentaje de servicios médicos otorgados","Numero de servicios otorgados",29500,29700,"Dr. Jaime Ramos Martínez",3322553580,"amedicadiftlaq@gmail.com"]
["OPDSistema de Desarrollo Integral de la Familia (DIF) de Tlaquepaque18Área Médica","OPDSistema de Desarrollo Integral de la Familia (DIF) de Tlaquepaque18","OPD","Sistema de Desarrollo Integral de la Familia (DIF) de Tlaquepaque",{"$f":"COUNTIF($D$4:D271,D271:D271)","v":18},"Área Médica","Porcentaje de Capacitación sobre salud a la población en general, brindados","Numero de Capacitaciones Brindadas",60,65,"Dr. Jaime Ramos Martínez",3322553580,"amedicadiftlaq@gmail.com"]
["OPDSistema de Desarrollo Integral de la Familia (DIF) de Tlaquepaque19Área Médica","OPDSistema de Desarrollo Integral de la Familia (DIF) de Tlaquepaque19","OPD","Sistema de Desarrollo Integral de la Familia (DIF) de Tlaquepaque",{"$f":"COUNTIF($D$4:D272,D272:D272)","v":19},"Área Médica","Porcentaje de Capacitación para el personal medico, recibidas","Capacitaciones recibidas",8,13,"Dr. Jaime Ramos Martínez",3322553580,"amedicadiftlaq@gmail.com"]
["OPDSistema de Desarrollo Integral de la Familia (DIF) de Tlaquepaque20Laboratorio Clínico","OPDSistema de Desarrollo Integral de la Familia (DIF) de Tlaquepaque20","OPD","Sistema de Desarrollo Integral de la Familia (DIF) de Tlaquepaque",{"$f":"COUNTIF($D$4:D273,D273:D273)","v":20},"Laboratorio Clínico","Porcentaje de Servicios Otorgados","Número de servicios otorgados",0,500,"Dr. Jaime Ramos Martínez",3322553580,"amedicadiftlaq@gmail.com"]
["OPDSistema de Desarrollo Integral de la Familia (DIF) de Tlaquepaque21Laboratorio Clínico","OPDSistema de Desarrollo Integral de la Familia (DIF) de Tlaquepaque21","OPD","Sistema de Desarrollo Integral de la Familia (DIF) de Tlaquepaque",{"$f":"COUNTIF($D$4:D274,D274:D274)","v":21},"Laboratorio Clínico","Porcentaje de capacitaciones para el personal medico, recibidas","Capacitaciones recibidas",0,2,"Dr. Jaime Ramos Martínez",3322553580,"amedicadiftlaq@gmail.com"]
["OPDSistema de Desarrollo Integral de la Familia (DIF) de Tlaquepaque22Por una Gestión Responsable","OPDSistema de Desarrollo Integral de la Familia (DIF) de Tlaquepaque22","OPD","Sistema de Desarrollo Integral de la Familia (DIF) de Tlaquepaque",{"$f":"COUNTIF($D$4:D275,D275:D275)","v":22},"Por una Gestión Responsable","Porcentaje de orientación Otorgadas","Numero de orientaciones otorgadas en CDC",0,100,"Dr. Jaime Ramos Martínez",3322553580,"amedicadiftlaq@gmail.com"]
["OPDSistema de Desarrollo Integral de la Familia (DIF) de Tlaquepaque23Por una Gestión Responsable","OPDSistema de Desarrollo Integral de la Familia (DIF) de Tlaquepaque23","OPD","Sistema de Desarrollo Integral de la Familia (DIF) de Tlaquepaque",{"$f":"COUNTIF($D$4:D276,D276:D276)","v":23},"Por una Gestión Responsable","Porcentaje de capacitaciones sobre salud a la población en general, brindadas","Número de Capacitaciones Brindadas",0,40,"Dr. Jaime Ramos Martínez",3322553580,"amedicadiftlaq@gmail.com"]
["OPDSistema de Desarrollo Integral de la Familia (DIF) de Tlaquepaque24Rehabilitación","OPDSistema de Desarrollo Integral de la Familia (DIF) de Tlaquepaque24","OPD","Sistema de Desarrollo Integral de la Familia (DIF) de Tlaquepaque",{"$f":"COUNTIF($D$4:D277,D277:D277)","v":24},"Rehabilitación","Porcentaje de Servicios Otorgados","Numero de Servicios Otorgados terapias de rehabilitación",0,1800,"Dr. Jaime Ramos Martínez",3322553580,"amedicadiftlaq@gmail.com"]
["OPDSistema de Desarrollo Integral de la Familia (DIF) de Tlaquepaque25Rehabilitación","OPDSistema de Desarrollo Integral de la Familia (DIF) de Tlaquepaque25","OPD","Sistema de Desarrollo Integral de la Familia (DIF) de Tlaquepaque",{"$f":"COUNTIF($D$4:D278,D278:D278)","v":25},"Rehabilitación","Porcentaje de Capacitaciones para el personal terapeutas recibidas","Capacitaciones recibidas",0,5,"Dr. Jaime Ramos Martínez",3322553580,"amedicadiftlaq@gmail.com"]
["OPDSistema de Desarrollo Integral de la Familia (DIF) de Tlaquepaque26Atención a la Población en Condiciones de Emergencia","OPDSistema de Desarrollo Integral de la Familia (DIF) de Tlaquepaque26","OPD","Sistema de Desarrollo Integral de la Familia (DIF) de Tlaquepaque",{"$f":"COUNTIF($D$4:D279,D279:D279)","v":26},"Atención a la Población en Condiciones de Emergencia","Atención a familias que enfrentan una contingencia (inundación, explosión, incendio, etc.)","Familias Atendidas",97,150,"Lic. Karla Paola Palafox Pérez",3221506285,"diftlaquepaque.apce@gmail.com"]
["OPDSistema de Desarrollo Integral de la Familia (DIF) de Tlaquepaque27Fortalecimiento Sociofamiliar","OPDSistema de Desarrollo Integral de la Familia (DIF) de Tlaquepaque27","OPD","Sistema de Desarrollo Integral de la Familia (DIF) de Tlaquepaque",{"$f":"COUNTIF($D$4:D280,D280:D280)","v":27},"Fortalecimiento Sociofamiliar","Servicios y tramites de apoyo asistencia otorgados","Actividades realizadas para llevar a cabo su atención",3692,3000,"C. Tania Carolina Martínez Jiménez/ C. Cindy Guadalupe Núñez Gutiérrez",3317618910,"diftlaquepaque.ts@gmail.com"]
["OPDSistema de Desarrollo Integral de la Familia (DIF) de Tlaquepaque28Fortalecimiento Sociofamiliar","OPDSistema de Desarrollo Integral de la Familia (DIF) de Tlaquepaque28","OPD","Sistema de Desarrollo Integral de la Familia (DIF) de Tlaquepaque",{"$f":"COUNTIF($D$4:D281,D281:D281)","v":28},"Fortalecimiento Sociofamiliar","Apoyos entregados","Personas",1208,1400,"C. Tania Carolina Martínez Jiménez/ C. Cindy Guadalupe Núñez Gutiérrez",3317618910,"diftlaquepaque.ts@gmail.com"]
["OPDSistema de Desarrollo Integral de la Familia (DIF) de Tlaquepaque29Fortalecimiento Sociofamiliar","OPDSistema de Desarrollo Integral de la Familia (DIF) de Tlaquepaque29","OPD","Sistema de Desarrollo Integral de la Familia (DIF) de Tlaquepaque",{"$f":"COUNTIF($D$4:D282,D282:D282)","v":29},"Fortalecimiento Sociofamiliar","Personas Atendidas","Personas",2063,2000,"C. Tania Carolina Martínez Jiménez/ C. Cindy Guadalupe Núñez Gutiérrez",3317618910,"diftlaquepaque.ts@gmail.com"]
["OPDSistema de Desarrollo Integral de la Familia (DIF) de Tlaquepaque30Atención Integral a personas a Adultos Mayores","OPDSistema de Desarrollo Integral de la Familia (DIF) de Tlaquepaque30","OPD","Sistema de Desarrollo Integral de la Familia (DIF) de Tlaquepaque",{"$f":"COUNTIF($D$4:D283,D283:D283)","v":30},"Atención Integral a personas a Adultos Mayores","Porcentaje de Atenciones a personas adultas mayores en grupos de convivencia","Atenciones Brindadas a personas adultas mayores en los grupos de convivencia",2000,2500,"Lic. Jenifer Solano Gutiérrez",3336803199,"diftlaquepaque.am@gmail.com"]
["OPDSistema de Desarrollo Integral de la Familia (DIF) de Tlaquepaque31Atención Integral a personas a Adultos Mayores","OPDSistema de Desarrollo Integral de la Familia (DIF) de Tlaquepaque31","OPD","Sistema de Desarrollo Integral de la Familia (DIF) de Tlaquepaque",{"$f":"COUNTIF($D$4:D284,D284:D284)","v":31},"Atención Integral a personas a Adultos Mayores","Porcentaje de atenciones a Personas adultas mayores en eventos recreativos, culturales y deportivos","Atenciones brindadas a personas adultas mayores en eventos recreativos, culturales y deportivos",1800,1890,"Lic. Jenifer Solano Gutiérrez",3336803199,"diftlaquepaque.am@gmail.com"]
["OPDSistema de Desarrollo Integral de la Familia (DIF) de Tlaquepaque32Atención Integral a personas a Adultos Mayores","OPDSistema de Desarrollo Integral de la Familia (DIF) de Tlaquepaque32","OPD","Sistema de Desarrollo Integral de la Familia (DIF) de Tlaquepaque",{"$f":"COUNTIF($D$4:D285,D285:D285)","v":32},"Atención Integral a personas a Adultos Mayores","Porcentaje de Orientaciones a personas adultas mayores en carta de vinculación a la actividad productiva","Numero de personas Adultas mayores con tramite finalizado",0,25,"Lic. Jenifer Solano Gutiérrez",3336803199,"diftlaquepaque.am@gmail.com"]
["OPDSistema de Desarrollo Integral de la Familia (DIF) de Tlaquepaque33CDC","OPDSistema de Desarrollo Integral de la Familia (DIF) de Tlaquepaque33","OPD","Sistema de Desarrollo Integral de la Familia (DIF) de Tlaquepaque",{"$f":"COUNTIF($D$4:D286,D286:D286)","v":33},"CDC","Porcentaje de Campañas Promovidas para dar a conocer los cursos y talleres","Numero de campañas promovida",6,100,"Lic. Jenifer Solano Gutiérrez",3336803199,"diftlaquepaque.am@gmail.com"]
["OPDSistema de Desarrollo Integral de la Familia (DIF) de Tlaquepaque34CDC","OPDSistema de Desarrollo Integral de la Familia (DIF) de Tlaquepaque34","OPD","Sistema de Desarrollo Integral de la Familia (DIF) de Tlaquepaque",{"$f":"COUNTIF($D$4:D287,D287:D287)","v":34},"CDC","Porcentaje de atención a adolescentes, personas adultas y personas adultas mayores en cursos de educación básica y media superior","Sesiones de atención a adolescentes, personas adultas y/o personas adultas mayores",0,0,"Lic. Jenifer Solano Gutiérrez",3336803199,"diftlaquepaque.am@gmail.com"]
["OPDSistema de Desarrollo Integral de la Familia (DIF) de Tlaquepaque35CDC","OPDSistema de Desarrollo Integral de la Familia (DIF) de Tlaquepaque35","OPD","Sistema de Desarrollo Integral de la Familia (DIF) de Tlaquepaque",{"$f":"COUNTIF($D$4:D288,D288:D288)","v":35},"CDC","Porcentaje de personas que recibieron capacitación y actualización de oficios y habilidades técnicas para el empleo y el emprendimiento en las colonias prioritarias.","Personas que recibieron",1000,1500,"Lic. Jenifer Solano Gutiérrez",3336803199,"diftlaquepaque.am@gmail.com"]
["OPDSistema de Desarrollo Integral de la Familia (DIF) de Tlaquepaque36Clínica Deportiva Prevención de Adicciones","OPDSistema de Desarrollo Integral de la Familia (DIF) de Tlaquepaque36","OPD","Sistema de Desarrollo Integral de la Familia (DIF) de Tlaquepaque",{"$f":"COUNTIF($D$4:D289,D289:D289)","v":36},"Clínica Deportiva Prevención de Adicciones","Porcentaje de niñas, niños y adolescentes beneficiados mediante el programa clínicas deportivas prevención a adicciones","Numero de niñas, niños y adolescentes atendidos en el programa clínicas deportivas de prevención de adicciones",25,30,"Maribel Pizaña Pedroza",3314636880,"preverp.diftlaquepaque@gmail.com"]
["OPDSistema de Desarrollo Integral de la Familia (DIF) de Tlaquepaque37Prevención de Embarazo Adolescente","OPDSistema de Desarrollo Integral de la Familia (DIF) de Tlaquepaque37","OPD","Sistema de Desarrollo Integral de la Familia (DIF) de Tlaquepaque",{"$f":"COUNTIF($D$4:D290,D290:D290)","v":37},"Prevención de Embarazo Adolescente","Porcentaje de niñas, niños y adolescentes beneficiados de fortalecimiento al acceso a la educación","Numero de niñas, niños y adolescentes beneficiados de fortalecimiento al acceso a la educación",1000,1100,"Maribel Pizaña Pedroza",3314636880,"preverp.diftlaquepaque@gmail.com"]
["OPDSistema de Desarrollo Integral de la Familia (DIF) de Tlaquepaque38Crecer sin Violencia","OPDSistema de Desarrollo Integral de la Familia (DIF) de Tlaquepaque38","OPD","Sistema de Desarrollo Integral de la Familia (DIF) de Tlaquepaque",{"$f":"COUNTIF($D$4:D291,D291:D291)","v":38},"Crecer sin Violencia","Porcentaje de niñas, niños y adolescentes beneficiados de fortalecimiento al acceso a la educación","Numero de niñas, niños y adolescentes beneficiados de fortalecimiento al acceso a la educación",700,750,"Maribel Pizaña Pedroza",3314636880,"preverp.diftlaquepaque@gmail.com"]
["OPDSistema de Desarrollo Integral de la Familia (DIF) de Tlaquepaque39Situación de Calle","OPDSistema de Desarrollo Integral de la Familia (DIF) de Tlaquepaque39","OPD","Sistema de Desarrollo Integral de la Familia (DIF) de Tlaquepaque",{"$f":"COUNTIF($D$4:D292,D292:D292)","v":39},"Situación de Calle","Porcentaje de niñas, niños y adolescentes mediante el programa con educación mediante el programa con educación me reconozco, aprendo y me voy de campamento","Numero de niñas, niños y adolescentes atendidos en el programa con educación me reconozco, aprendo y me voy de campamento",200,250,"Maribel Pizaña Pedroza",3314636880,"preverp.diftlaquepaque@gmail.com"]
["OPDSistema de Desarrollo Integral de la Familia (DIF) de Tlaquepaque40Mejoramiento Educativo","OPDSistema de Desarrollo Integral de la Familia (DIF) de Tlaquepaque40","OPD","Sistema de Desarrollo Integral de la Familia (DIF) de Tlaquepaque",{"$f":"COUNTIF($D$4:D293,D293:D293)","v":40},"Mejoramiento Educativo","Selección de personas en las áreas de psicología, ingles y educación física","Niños con estas materias en su CAIC´S",237,456,"Pravda Cristina López Arvizu",3317428376,"caic.diftlaquepaque2022@gmail.com"]
["OPDSistema de Desarrollo Integral de la Familia (DIF) de Tlaquepaque41Prevención y Detención de abuso Sexual","OPDSistema de Desarrollo Integral de la Familia (DIF) de Tlaquepaque41","OPD","Sistema de Desarrollo Integral de la Familia (DIF) de Tlaquepaque",{"$f":"COUNTIF($D$4:D294,D294:D294)","v":41},"Prevención y Detención de abuso Sexual","Capacitaciones para directoras de CAIC´S","Numero de directoras que recibieron capacitación",0,9,"Pravda Cristina López Arvizu",3317428376,"caic.diftlaquepaque2022@gmail.com"]
["OPDSistema de Desarrollo Integral de la Familia (DIF) de Tlaquepaque42Prevención y Detención de abuso Sexual","OPDSistema de Desarrollo Integral de la Familia (DIF) de Tlaquepaque42","OPD","Sistema de Desarrollo Integral de la Familia (DIF) de Tlaquepaque",{"$f":"COUNTIF($D$4:D295,D295:D295)","v":42},"Prevención y Detención de abuso Sexual","Capacitaciones para maestras de CAIC'S","Numero de maestras que recibieron capacitación",0,27,"Pravda Cristina López Arvizu",3317428376,"caic.diftlaquepaque2022@gmail.com"]
["OPDIMJUVET1Beca Joven","OPDIMJUVET1","OPD","IMJUVET",{"$f":"COUNTIF($D$4:D296,D296:D296)","v":1},"Beca Joven","jóvenes apoyados","numero de jóvenes brillantes",0,100,"FERNANDO ANTONIO ALVAREZ ESTEVES",332464264041,"jovenestlaq@gmail.com"]
["OPDIMJUVET2Cabildo Juvenil","OPDIMJUVET2","OPD","IMJUVET",{"$f":"COUNTIF($D$4:D297,D297:D297)","v":2},"Cabildo Juvenil","numero de etapas realizadas","numero de etapas",3,3,"FERNANDO ANTONIO ALVAREZ ESTEVES",332464264041,"jovenestlaq@gmail.com"]
["OPDIMJUVET3Cine en tu Barrio","OPDIMJUVET3","OPD","IMJUVET",{"$f":"COUNTIF($D$4:D298,D298:D298)","v":3},"Cine en tu Barrio","porcentaje de jóvenes que asistan a las funciones del cine","numero de jóvenes participantes",1000,1000,"FERNANDO ANTONIO ALVAREZ ESTEVES",332464264041,"jovenestlaq@gmail.com"]
["OPDIMJUVET4Coloquios Juveniles","OPDIMJUVET4","OPD","IMJUVET",{"$f":"COUNTIF($D$4:D299,D299:D299)","v":4},"Coloquios Juveniles","porcentaje de jóvenes que asistan a las charlas","numero de jóvenes participantes",3500,3700,"FERNANDO ANTONIO ALVAREZ ESTEVES",332464264041,"jovenestlaq@gmail.com"]
["OPDIMJUVET5Cultiva-T","OPDIMJUVET5","OPD","IMJUVET",{"$f":"COUNTIF($D$4:D300,D300:D300)","v":5},"Cultiva-T","numero de asistentes en los diferentes ramos de talleres","numero de jóvenes participantes",0,300,"FERNANDO ANTONIO ALVAREZ ESTEVES",332464264041,"jovenestlaq@gmail.com"]
["OPDIMJUVET6Cultura en tu escuela","OPDIMJUVET6","OPD","IMJUVET",{"$f":"COUNTIF($D$4:D301,D301:D301)","v":6},"Cultura en tu escuela","numero de escuelas visitadas","numero de escuelas",0,17,"FERNANDO ANTONIO ALVAREZ ESTEVES",332464264041,"jovenestlaq@gmail.com"]
["OPDIMJUVET7Enchula tu barrio","OPDIMJUVET7","OPD","IMJUVET",{"$f":"COUNTIF($D$4:D302,D302:D302)","v":7},"Enchula tu barrio","lugares reobrados","lugares recuperados",0,10,"FERNANDO ANTONIO ALVAREZ ESTEVES",332464264041,"jovenestlaq@gmail.com"]
["OPDIMJUVET8Festival Juventudes Tlaquepaque","OPDIMJUVET8","OPD","IMJUVET",{"$f":"COUNTIF($D$4:D303,D303:D303)","v":8},"Festival Juventudes Tlaquepaque","porcentaje de avance del proyecto","porcentaje de avance",0,3,"FERNANDO ANTONIO ALVAREZ ESTEVES",332464264041,"jovenestlaq@gmail.com"]
["OPDIMJUVET9Jóvenes con arte","OPDIMJUVET9","OPD","IMJUVET",{"$f":"COUNTIF($D$4:D304,D304:D304)","v":9},"Jóvenes con arte","porcentaje de jóvenes que asistan a los talleres","numero de asistentes a las clases",0,60,"FERNANDO ANTONIO ALVAREZ ESTEVES",332464264041,"jovenestlaq@gmail.com"]
["OPDIMJUVET10Jóvenes Con-Ciencia","OPDIMJUVET10","OPD","IMJUVET",{"$f":"COUNTIF($D$4:D305,D305:D305)","v":10},"Jóvenes Con-Ciencia","porcentaje de jóvenes que asistan a las charlas","numero de jóvenes participantes",3500,3650,"FERNANDO ANTONIO ALVAREZ ESTEVES",332464264041,"jovenestlaq@gmail.com"]
["OPDIMJUVET11Juventudes Emprendedoras","OPDIMJUVET11","OPD","IMJUVET",{"$f":"COUNTIF($D$4:D306,D306:D306)","v":11},"Juventudes Emprendedoras","numero de asistentes en las exposiciones de los productos y/o servicios de los jóvenes","numero de jóvenes participantes",0,90,"FERNANDO ANTONIO ALVAREZ ESTEVES",332464264041,"jovenestlaq@gmail.com"]
["OPDIMJUVET12Juventudes con historia","OPDIMJUVET12","OPD","IMJUVET",{"$f":"COUNTIF($D$4:D307,D307:D307)","v":12},"Juventudes con historia","porcentaje de jóvenes que asistan a las charlas","numero de jóvenes participantes",3500,3650,"FERNANDO ANTONIO ALVAREZ ESTEVES",332464264041,"jovenestlaq@gmail.com"]
["OPDIMJUVET13Juventudes a la cancha","OPDIMJUVET13","OPD","IMJUVET",{"$f":"COUNTIF($D$4:D308,D308:D308)","v":13},"Juventudes a la cancha","numero de torneos relazados al momento","torneos realizados",0,8,"FERNANDO ANTONIO ALVAREZ ESTEVES",332464264041,"jovenestlaq@gmail.com"]
["OPDIMJUVET14Oportunidad joven","OPDIMJUVET14","OPD","IMJUVET",{"$f":"COUNTIF($D$4:D309,D309:D309)","v":14},"Oportunidad joven","porcentaje del avance de convenios","numero de convenios",0,40,"FERNANDO ANTONIO ALVAREZ ESTEVES",332464264041,"jovenestlaq@gmail.com"]
["OPDIMJUVET15Conoce tus derechos","OPDIMJUVET15","OPD","IMJUVET",{"$f":"COUNTIF($D$4:D310,D310:D310)","v":15},"Conoce tus derechos","porcentaje de jóvenes que asistan a las charlas","numero de jóvenes participantes",3500,3500,"FERNANDO ANTONIO ALVAREZ ESTEVES",332464264041,"jovenestlaq@gmail.com"]
["OPDIMJUVET16Premio de las juventudes","OPDIMJUVET16","OPD","IMJUVET",{"$f":"COUNTIF($D$4:D311,D311:D311)","v":16},"Premio de las juventudes","numero de participantes jóvenes","porcentaje de jóvenes",2000,2150,"FERNANDO ANTONIO ALVAREZ ESTEVES",332464264041,"jovenestlaq@gmail.com"]
["OPDIMJUVET17Servicio Social Integral","OPDIMJUVET17","OPD","IMJUVET",{"$f":"COUNTIF($D$4:D312,D312:D312)","v":17},"Servicio Social Integral","numero de convenios","numero convenios",50,60,"FERNANDO ANTONIO ALVAREZ ESTEVES",332464264041,"jovenestlaq@gmail.com"]
["OPDIMJUVET18Suetertón & Juguetón","OPDIMJUVET18","OPD","IMJUVET",{"$f":"COUNTIF($D$4:D313,D313:D313)","v":18},"Suetertón & Juguetón","juguetes y suéteres donados","numero de suéteres y juguetes",0,200,"FERNANDO ANTONIO ALVAREZ ESTEVES",332464264041,"jovenestlaq@gmail.com"]
["OPDIMJUVET19Tlaque-Can","OPDIMJUVET19","OPD","IMJUVET",{"$f":"COUNTIF($D$4:D314,D314:D314)","v":19},"Tlaque-Can","numero de los confirmados para el evento","cuantas mascotas se llevan en el evento",0,350,"FERNANDO ANTONIO ALVAREZ ESTEVES",332464264041,"jovenestlaq@gmail.com"]
["OPDIMMUJERES1Enfoque Transversal con Perspectiva de Género","OPDIMMUJERES1","OPD","IMMUJERES",{"$f":"COUNTIF($D$4:D315,D315:D315)","v":1},"Enfoque Transversal con Perspectiva de Género","Porcentaje de acciones con perspectiva de genero reportadas","Numero de Acciones",52,52,"Diana Elizabeth Quirarte de la Torre","3335627010 Ext 220","tlaquepaqueinmujeres@gmail.com"]
["OPDIMMUJERES2Enfoque Transversal con Perspectiva de Género","OPDIMMUJERES2","OPD","IMMUJERES",{"$f":"COUNTIF($D$4:D316,D316:D316)","v":2},"Enfoque Transversal con Perspectiva de Género","Instrumentos normativos y programáticos Observados para incorporar la perspectiva de Genero","Numero de instrumentos",3,4,"Diana Elizabeth Quirarte de la Torre","3335627010 Ext 220","tlaquepaqueinmujeres@gmail.com"]
["OPDIMMUJERES3Enfoque Transversal con Perspectiva de Género","OPDIMMUJERES3","OPD","IMMUJERES",{"$f":"COUNTIF($D$4:D317,D317:D317)","v":3},"Enfoque Transversal con Perspectiva de Género","Porcentaje formatos prestablecidos y utilizados en planeación de la APM con perspectiva de Genero y lenguaje incluyente","Numero de Formatos (Anexos PBR)",80,80,"Diana Elizabeth Quirarte de la Torre","3335627010 Ext 220","tlaquepaqueinmujeres@gmail.com"]
["OPDIMMUJERES4Enfoque Transversal con Perspectiva de Género","OPDIMMUJERES4","OPD","IMMUJERES",{"$f":"COUNTIF($D$4:D318,D318:D318)","v":4},"Enfoque Transversal con Perspectiva de Género","Porcentaje mujeres beneficiadas por incorporación de  perspectiva de genero a los anexos de planeación","Personas Beneficiadas",30000,30100,"Diana Elizabeth Quirarte de la Torre","3335627010 Ext 220","tlaquepaqueinmujeres@gmail.com"]
["OPDIMMUJERES5Libres por la igualdad","OPDIMMUJERES5","OPD","IMMUJERES",{"$f":"COUNTIF($D$4:D319,D319:D319)","v":5},"Libres por la igualdad","Porcentaje acciones de promoción de la igualdad Sustantiva","Numero de Acciones",21,25,"Diana Elizabeth Quirarte de la Torre","3335627010 Ext 220","tlaquepaqueinmujeres@gmail.com"]
["OPDIMMUJERES6Libres por la igualdad","OPDIMMUJERES6","OPD","IMMUJERES",{"$f":"COUNTIF($D$4:D320,D320:D320)","v":6},"Libres por la igualdad","Porcentaje de personas beneficiadas por las acciones de promoción","Numero de personas Beneficiadas",21000,1500,"Diana Elizabeth Quirarte de la Torre","3335627010 Ext 220","tlaquepaqueinmujeres@gmail.com"]
["OPDIMMUJERES7Libres por la igualdad","OPDIMMUJERES7","OPD","IMMUJERES",{"$f":"COUNTIF($D$4:D321,D321:D321)","v":7},"Libres por la igualdad","Eventos Conmemorativos para promover y reconocer los derechos de las mujeres en sus diversidad","Numero de eventos",2,2,"Diana Elizabeth Quirarte de la Torre","3335627010 Ext 220","tlaquepaqueinmujeres@gmail.com"]
["OPDIMMUJERES8Vivir sin violencia","OPDIMMUJERES8","OPD","IMMUJERES",{"$f":"COUNTIF($D$4:D322,D322:D322)","v":8},"Vivir sin violencia","Porcentaje de atenciones de primer contacto","Numero de Mujeres Atendidas",425,430,"Diana Elizabeth Quirarte de la Torre","3335627010 Ext 220","tlaquepaqueinmujeres@gmail.com"]
["OPDIMMUJERES9Vivir sin violencia","OPDIMMUJERES9","OPD","IMMUJERES",{"$f":"COUNTIF($D$4:D323,D323:D323)","v":9},"Vivir sin violencia","Porcentaje de Acciones de prevención de la violencia de generó en la comunidad","Numero de Acciones",30,40,"Diana Elizabeth Quirarte de la Torre","3335627010 Ext 220","tlaquepaqueinmujeres@gmail.com"]
["OPDIMMUJERES10Vivir sin violencia","OPDIMMUJERES10","OPD","IMMUJERES",{"$f":"COUNTIF($D$4:D324,D324:D324)","v":10},"Vivir sin violencia","Porcentaje de acciones de actualización o profesionalización para personal del servicio publico en materia de atención a victimas","Numero de Acciones",12,15,"Diana Elizabeth Quirarte de la Torre","3335627010 Ext 220","tlaquepaqueinmujeres@gmail.com"]
[{"$f":"B325&F325","v":"OPDIMMUJERES11Vivir sin violencia"},"OPDIMMUJERES11","OPD","IMMUJERES",{"$f":"COUNTIF($D$4:D325,D325:D325)","v":11},"Vivir sin violencia","Porcentaje de personas Beneficiadas con las acciones de prevención, atención y profesionalización en Materia de Violencia contra las mujeres","Numero de personas Beneficiadas",3000,3450,"Diana Elizabeth Quirarte de la Torre","3335627010 Ext 220","tlaquepaqueinmujeres@gmail.com"]
["OPDIMMUJERES12Vivir sin violencia","OPDIMMUJERES12","OPD","IMMUJERES",{"$f":"COUNTIF($D$4:D326,D326:D326)","v":12},"Vivir sin violencia","Porcentaje de eventos conmemorativos de fechas o acciones contra la violencia de genero","Número de Eventos",1,1,"Diana Elizabeth Quirarte de la Torre","3335627010 Ext 220","tlaquepaqueinmujeres@gmail.com"]
["OPDCOMUDE1Administración y Gestión Institucional","OPDCOMUDE1","OPD","COMUDE",{"$f":"COUNTIF($D$4:D327,D327:D327)","v":1},"Administración y Gestión Institucional","Porcentaje de convenios elaborados para el programa de Administración y Gestión Institucional.","Número de convenios elaborados",241,250,"Jorge Luis Martínez Avilés",3335627081,"jorgemartinez@comudetlaquepaque.com"]
["OPDCOMUDE2Macro Eventos","OPDCOMUDE2","OPD","COMUDE",{"$f":"COUNTIF($D$4:D328,D328:D328)","v":2},"Macro Eventos","Porcentaje de Macro Eventos Realizados.","Número de Macro Eventos Realizados",18,20,"Marco Abel Palencia Suarez",3335627087,"marcopalencia@comudetlaquepaque.com"]
["OPDCOMUDE3Vía recreactiva metropolitana San Pedro Tlaquepaque","OPDCOMUDE3","OPD","COMUDE",{"$f":"COUNTIF($D$4:D329,D329:D329)","v":3},"Vía recreactiva metropolitana San Pedro Tlaquepaque","Porcentaje de Jornadas","Número de jornadas",55,55,"Jesús Lozano Castañeda",3335627081,"jesuslozano@comudetlaquepaque.com"]
["OPDCOMUDE4Infraestructura","OPDCOMUDE4","OPD","COMUDE",{"$f":"COUNTIF($D$4:D330,D330:D330)","v":4},"Infraestructura","Porcentaje de Intervenciones en el programa de Mantenimiento de Espacios Públicos realizadas.","Número de intervenciones realizadas.",120,140,"Roberto Ríos",3335627081,"robertorios@comudetlaquepaque.com"]
["OPDCOMUDE5Tlaquepaque Acude","OPDCOMUDE5","OPD","COMUDE",{"$f":"COUNTIF($D$4:D331,D331:D331)","v":5},"Tlaquepaque Acude","Porcentaje de Escuelas y talleres de activación física implementados.","Número de escuelas y talleres de activación física implementados.",130,150,"Gustavo Mitre Anaya",3335627087,"gustavomitre@comudetlaquepaque.com"]
["OPDCOMUDE6Tlaquepaque Acude","OPDCOMUDE6","OPD","COMUDE",{"$f":"COUNTIF($D$4:D332,D332:D332)","v":6},"Tlaquepaque Acude","Porcentaje de Ligas deportivas implementados.","Número ligas deportivas implementados.",37,40,"Gustavo Mitre Anaya",3335627087,"gustavomitre@comudetlaquepaque.com"]
["OPDPREMIO NACIONAL DE LA CERÁMICA1Premio Nacional de la Cerámica","OPDPREMIO NACIONAL DE LA CERÁMICA1","OPD","PREMIO NACIONAL DE LA CERÁMICA",{"$f":"COUNTIF($D$4:D333,D333:D333)","v":1},"Premio Nacional de la Cerámica","CONVOCAR A LOS ARTESANOS DE TODA LA REPÙBLICA, PARA DAR A CONOCER SU TALENTO E INSPIRACIÒN AL PARTICIPAR CON SUS OBRAS EN EL CERTAMEN DEL PREMIO NACIONAL DE LA CERÀMICA",0,0,1,"DAVID GALLEGOS","33-36-39-56-46","pantaleonpanduromuseo@gmail.com"]

{"sheet":"Hoja1","index":5,"n_rows":272,"n_cols":17,"rows_kept":272,"cut":false,"hidden":true,"merged":[]}
[]
[]
[null,null,"OFICIALIA_MAYOR","DEPARTAMENTO DE CAPACITACION Y SERVICIO SOCIAL","Capacitación en materia de Derechos Humanos",null,null,null,null,null,null,null,null,null,null,"OFICIALIA_MAYOR","DEPARTAMENTO DE CAPACITACION Y SERVICIO SOCIAL"]
[null,null,"OFICIALIA_MAYOR","DEPARTAMENTO DE CAPACITACION Y SERVICIO SOCIAL","Certificación en el ECO385",null,null,null,null,null,null,null,null,null,null,"OFICIALIA_MAYOR","DEPARTAMENTO DE INCIDENCIAS Y CALCULO DE NOMINA"]
[null,null,"OFICIALIA_MAYOR","DEPARTAMENTO DE CAPACITACION Y SERVICIO SOCIAL","Desarrollo Académico Básico de las y los servidores públicos de la Secretaría de Servicios Públicos y Medio Ambiente",null,null,null,null,null,null,null,null,null,null,"OFICIALIA_MAYOR","DIRECCION DE DESARROLLO ORGANIZACIONAL"]
[null,null,"OFICIALIA_MAYOR","DEPARTAMENTO DE CAPACITACION Y SERVICIO SOCIAL","Difusión de Protocolos",null,null,null,null,null,null,null,null,null,null,"OFICINA_DE_PRESIDENCIA","DIRECCION DE ATENCION Y VINCULACION CIUDADANA"]
[null,null,"OFICIALIA_MAYOR","DEPARTAMENTO DE CAPACITACION Y SERVICIO SOCIAL","Fortalecimiento y Desarrollo de Habilidades Blandas y Desarrollo Humano",null,null,null,null,null,null,null,null,null,null,"OFICINA_DE_PRESIDENCIA","DIRECCION DE COMUNICACION ESTRATEGICA"]
[null,null,"OFICIALIA_MAYOR","DEPARTAMENTO DE CAPACITACION Y SERVICIO SOCIAL","Fortalecimiento y Desarrollo de Habilidades Técnicas",null,null,null,null,null,null,null,null,null,null,"OFICINA_DE_PRESIDENCIA","SUBDIRECCION DE GESTION DE PARTICIPACION TERRITORIAL"]
[null,null,"OFICIALIA_MAYOR","DEPARTAMENTO DE CAPACITACION Y SERVICIO SOCIAL","Promoción de estilos de vida y entornos laboral, alimentaria y físicamente saludable para el personal",null,null,null,null,null,null,null,null,null,null,"OFICINA_DE_PRESIDENCIA","UNIDAD DE TRANSPARENCIA"]
[null,null,"OFICIALIA_MAYOR","DEPARTAMENTO DE CAPACITACION Y SERVICIO SOCIAL","Tlaquepaque Universitario",null,null,null,null,null,null,null,null,null,null,"OPD","COMUCAT"]
[null,null,"OFICIALIA_MAYOR","DEPARTAMENTO DE INCIDENCIAS Y CALCULO DE NOMINA","Pago de Nóminas",null,null,null,null,null,null,null,null,null,null,"OPD","COMUDE"]
[null,null,"OFICIALIA_MAYOR","DIRECCION DE DESARROLLO ORGANIZACIONAL","Armonización Organizativa",null,null,null,null,null,null,null,null,null,null,"OPD","IMJUVET"]
[null,null,"OFICIALIA_MAYOR","DIRECCION DE DESARROLLO ORGANIZACIONAL","Elaboración de Manuales Administrativos",null,null,null,null,null,null,null,null,null,null,"OPD","IMMUJERES"]
[null,null,"OFICINA_DE_PRESIDENCIA","DIRECCION DE ATENCION Y VINCULACION CIUDADANA","Atención a Reportes de Servicios Públicos, Información sobre Ayudas Sociales y Reportes en General",null,null,null,null,null,null,null,null,null,null,"OPD","PREMIO NACIONAL DE LA CERÁMICA"]
[null,null,"OFICINA_DE_PRESIDENCIA","DIRECCION DE COMUNICACION ESTRATEGICA","Campañas en Redes Sociales",null,null,null,null,null,null,null,null,null,null,"OPD","Sistema de Desarrollo Integral de la Familia (DIF) de Tlaquepaque"]
[null,null,"OFICINA_DE_PRESIDENCIA","SUBDIRECCION DE GESTION DE PARTICIPACION TERRITORIAL","Actualizacion de Organizaciones Vecinales",null,null,null,null,null,null,null,null,null,null,"SECRETARIA_DE_ADMINISTRACION_Y_FINANZAS","DEPARTAMENTO DE BIENES MUEBLES"]
[null,null,"OFICINA_DE_PRESIDENCIA","SUBDIRECCION DE GESTION DE PARTICIPACION TERRITORIAL","Atencion y capacitacion a organizaciones vecinales en materia de participacion ciudadana",null,null,null,null,null,null,null,null,null,null,"SECRETARIA_DE_ADMINISTRACION_Y_FINANZAS","DEPARTAMENTO DE REDES Y TELECOMUNICACIONES"]
[null,null,"OFICINA_DE_PRESIDENCIA","SUBDIRECCION DE GESTION DE PARTICIPACION TERRITORIAL","Socializando y perifoneando para la cuidadania",null,null,null,null,null,null,null,null,null,null,"SECRETARIA_DE_ADMINISTRACION_Y_FINANZAS","DEPARTAMENTO DE SERVICIOS GENERALES"]
[null,null,"OFICINA_DE_PRESIDENCIA","UNIDAD DE TRANSPARENCIA","Programa de Transparencia y Atención de solicitudes de acceso a la información y protección de datos personales",null,null,null,null,null,null,null,null,null,null,"SECRETARIA_DE_ADMINISTRACION_Y_FINANZAS","DEPARTAMENTO DE SOPORTE Y MANTENIMIENTO"]
[null,null,"OPD","COMUCAT","Atención Terapéutica",null,null,null,null,null,null,null,null,null,null,"SECRETARIA_DE_ADMINISTRACION_Y_FINANZAS","DEPARTAMENTO DE TALLER MUNICIPAL"]
[null,null,"OPD","COMUCAT","Capacitaciones Preventivas en Adicciones",null,null,null,null,null,null,null,null,null,null,"SECRETARIA_DE_ADMINISTRACION_Y_FINANZAS","DIRECCION DE CATASTRO"]
[null,null,"OPD","COMUCAT","Espacios COMUCAT",null,null,null,null,null,null,null,null,null,null,"SECRETARIA_DE_ADMINISTRACION_Y_FINANZAS","DIRECCION DE CONTABILIDAD Y GLOSA"]
[null,null,"OPD","COMUCAT","Red de Apoyo para Establecimientos especializado en Adicciones",null,null,null,null,null,null,null,null,null,null,"SECRETARIA_DE_ADMINISTRACION_Y_FINANZAS","DIRECCION DE EGRESOS"]
[null,null,"OPD","COMUDE","Administración y Gestión Institucional",null,null,null,null,null,null,null,null,null,null,"SECRETARIA_DE_ADMINISTRACION_Y_FINANZAS","DIRECCION DE INGRESOS"]
[null,null,"OPD","COMUDE","Infraestructura",null,null,null,null,null,null,null,null,null,null,"SECRETARIA_DE_ADMINISTRACION_Y_FINANZAS","DIRECCION DE RECURSOS MATERIALES"]
[null,null,"OPD","COMUDE","Macro Eventos",null,null,null,null,null,null,null,null,null,null,"SECRETARIA_DE_ADMINISTRACION_Y_FINANZAS","SUBDIRECCION DE COMPRAS Y ADQUISICIONES"]
[null,null,"OPD","COMUDE","Tlaquepaque Acude",null,null,null,null,null,null,null,null,null,null,"SECRETARIA_DE_ADMINISTRACION_Y_FINANZAS","SUBDIRECCION DE CONTROL DE PAGOS"]
[null,null,"OPD","COMUDE","Vía recreactiva metropolitana San Pedro Tlaquepaque",null,null,null,null,null,null,null,null,null,null,"SECRETARIA_DE_ADMINISTRACION_Y_FINANZAS","SUBDIRECCION DE PATRIMONIO"]
[null,null,"OPD","IMJUVET","Beca Joven",null,null,null,null,null,null,null,null,null,null,"SECRETARIA_DE_BIENESTAR","DIRECCION DE EDUCACION"]
[null,null,"OPD","IMJUVET","Cabildo Juvenil",null,null,null,null,null,null,null,null,null,null,"SECRETARIA_DE_BIENESTAR","DIRECCION DE PROGRAMAS SOCIALES PARA EL BIENESTAR"]
[null,null,"OPD","IMJUVET","Cine en tu Barrio",null,null,null,null,null,null,null,null,null,null,"SECRETARIA_DE_BIENESTAR","SUBDIRECCION DE DESARROLLO Y ATENCION AL SECTOR AGROPECUARIO"]
[null,null,"OPD","IMJUVET","Coloquios Juveniles",null,null,null,null,null,null,null,null,null,null,"SECRETARIA_DE_CONTRALORIA_MUNICIPAL_Y_COMBATE_A_LA_CORRUPCION","DIRECCION DE AUDITORIA A OBRA PUBLICA Y SERVICIOS"]
[null,null,"OPD","IMJUVET","Conoce tus derechos",null,null,null,null,null,null,null,null,null,null,"SECRETARIA_DE_CONTRALORIA_MUNICIPAL_Y_COMBATE_A_LA_CORRUPCION","DIRECCION DE AUDITORIA GUBERNAMENTAL Y COMBATE A LA CORRUPCION"]
[null,null,"OPD","IMJUVET","Cultiva-T",null,null,null,null,null,null,null,null,null,null,"SECRETARIA_DE_CONTRALORIA_MUNICIPAL_Y_COMBATE_A_LA_CORRUPCION","DIRECCION DE RESPONSABILIDADES Y EVOLUCION PATRIMONIAL"]
[null,null,"OPD","IMJUVET","Cultura en tu escuela",null,null,null,null,null,null,null,null,null,null,"SECRETARIA_DE_CONTRALORIA_MUNICIPAL_Y_COMBATE_A_LA_CORRUPCION","SUBDIRECCION DE AUDITORIA FINANCIERA Y DE DESEMPEÑO"]
[null,null,"OPD","IMJUVET","Enchula tu barrio",null,null,null,null,null,null,null,null,null,null,"SECRETARIA_DE_FOMENTO_ECONOMICO_Y_CULTURAL","DIRECCIÓN DE CEMENTERIOS"]
[null,null,"OPD","IMJUVET","Festival Juventudes Tlaquepaque",null,null,null,null,null,null,null,null,null,null,"SECRETARIA_DE_FOMENTO_ECONOMICO_Y_CULTURAL","DIRECCION DE CULTURA"]
[null,null,"OPD","IMJUVET","Jóvenes con arte",null,null,null,null,null,null,null,null,null,null,"SECRETARIA_DE_FOMENTO_ECONOMICO_Y_CULTURAL","DIRECCION DE DESARROLLO ARTESANAL Y TURISTICO"]
[null,null,"OPD","IMJUVET","Jóvenes Con-Ciencia",null,null,null,null,null,null,null,null,null,null,"SECRETARIA_DE_FOMENTO_ECONOMICO_Y_CULTURAL","DIRECCION DE GESTION EMPRESARIAL E INDUSTRIAL"]
[null,null,"OPD","IMJUVET","Juventudes a la cancha",null,null,null,null,null,null,null,null,null,null,"SECRETARIA_DE_FOMENTO_ECONOMICO_Y_CULTURAL","DIRECCION DEL CENTRO HISTORICO"]
[null,null,"OPD","IMJUVET","Juventudes con historia",null,null,null,null,null,null,null,null,null,null,"SECRETARIA_DE_FOMENTO_ECONOMICO_Y_CULTURAL","SUBDIRECCION DE BIBLIOTECAS"]
[null,null,"OPD","IMJUVET","Juventudes Emprendedoras",null,null,null,null,null,null,null,null,null,null,"SECRETARIA_DE_FOMENTO_ECONOMICO_Y_CULTURAL","SUBDIRECCION DE MUSEOS"]
[null,null,"OPD","IMJUVET","Oportunidad joven",null,null,null,null,null,null,null,null,null,null,"SECRETARIA_DE_GOBERNANZA_Y_TERRITORIO","DELEGACION SAN SEBASTIANITO"]
[null,null,"OPD","IMJUVET","Premio de las juventudes",null,null,null,null,null,null,null,null,null,null,"SECRETARIA_DE_GOBERNANZA_Y_TERRITORIO","DEPARTAMENTO DE ASUNTOS RELIGIOSOS"]
[null,null,"OPD","IMJUVET","Servicio Social Integral",null,null,null,null,null,null,null,null,null,null,"SECRETARIA_DE_GOBERNANZA_Y_TERRITORIO","DEPARTAMENTO DE OFICINA DE PASAPORTES"]
[null,null,"OPD","IMJUVET","Suetertón & Juguetón",null,null,null,null,null,null,null,null,null,null,"SECRETARIA_DE_GOBERNANZA_Y_TERRITORIO","DIRECCION DE ARCHIVO MUNICIPAL"]
[null,null,"OPD","IMJUVET","Tlaque-Can",null,null,null,null,null,null,null,null,null,null,"SECRETARIA_DE_GOBERNANZA_Y_TERRITORIO","DIRECCION DE DELEGACIONES Y AGENCIAS"]
[null,null,"OPD","IMMUJERES","Enfoque Transversal con Perspectiva de Género",null,null,null,null,null,null,null,null,null,null,"SECRETARIA_DE_GOBERNANZA_Y_TERRITORIO","DIRECCION DE INSPECCION Y VIGILANCIA"]
[null,null,"OPD","IMMUJERES","Libres por la igualdad",null,null,null,null,null,null,null,null,null,null,"SECRETARIA_DE_GOBERNANZA_Y_TERRITORIO","DIRECCION DE PADRON Y LICENCIAS"]
[null,null,"OPD","IMMUJERES","Vivir sin violencia",null,null,null,null,null,null,null,null,null,null,"SECRETARIA_DE_GOBERNANZA_Y_TERRITORIO","DIRECCION DE PADRON Y LICENCIAS 1"]
[null,null,"OPD","PREMIO NACIONAL DE LA CERÁMICA","Premio Nacional de la Cerámica",null,null,null,null,null,null,null,null,null,null,"SECRETARIA_DE_GOBERNANZA_Y_TERRITORIO","SUBDIRECCION DE ATENCION E INSPECCION A TIANGUIS Y ESPACIOS ABIERTOS"]
[null,null,"OPD","Sistema de Desarrollo Integral de la Familia (DIF) de Tlaquepaque","Albergue Vista Hermosa",null,null,null,null,null,null,null,null,null,null,"SECRETARIA_DE_GOBERNANZA_Y_TERRITORIO","SUBDIRECCION DE ATENCION E INSPECCION DE MERCADOS"]
[null,null,"OPD","Sistema de Desarrollo Integral de la Familia (DIF) de Tlaquepaque","Área Alimentaria",null,null,null,null,null,null,null,null,null,null,"SECRETARIA_DE_GOBERNANZA_Y_TERRITORIO","SUBDIRECCION DE INSPECCION AMBIENTAL"]
[null,null,"OPD","Sistema de Desarrollo Integral de la Familia (DIF) de Tlaquepaque","Área Médica",null,null,null,null,null,null,null,null,null,null,"SECRETARIA_DE_LA_CONSEJERIA_JURIDICA","DEPARTAMENTO DE RECLUTAMIENTO MILITAR"]
[null,null,"OPD","Sistema de Desarrollo Integral de la Familia (DIF) de Tlaquepaque","Atención a la Población en Condiciones de Emergencia",null,null,null,null,null,null,null,null,null,null,"SECRETARIA_DE_LA_CONSEJERIA_JURIDICA","DIRECCION DE APOYO A CABILDO"]
[null,null,"OPD","Sistema de Desarrollo Integral de la Familia (DIF) de Tlaquepaque","Atención Integral a personas a Adultos Mayores",null,null,null,null,null,null,null,null,null,null,"SECRETARIA_DE_LA_CONSEJERIA_JURIDICA","DIRECCION DE DERECHOS HUMANOS"]
[null,null,"OPD","Sistema de Desarrollo Integral de la Familia (DIF) de Tlaquepaque","CDC",null,null,null,null,null,null,null,null,null,null,"SECRETARIA_DE_LA_CONSEJERIA_JURIDICA","DIRECCION DE MEDIACION Y JUZGADOS CIVICOS MUNICIPALES"]
[null,null,"OPD","Sistema de Desarrollo Integral de la Familia (DIF) de Tlaquepaque","Clínica Deportiva Prevención de Adicciones",null,null,null,null,null,null,null,null,null,null,"SECRETARIA_DE_LA_CONSEJERIA_JURIDICA","DIRECCION DE REGISTRO CIVIL"]
[null,null,"OPD","Sistema de Desarrollo Integral de la Familia (DIF) de Tlaquepaque","Crecer sin Violencia",null,null,null,null,null,null,null,null,null,null,"SECRETARIA_DE_LA_CONSEJERIA_JURIDICA","DIRECCION LEGAL-CONSULTIVA"]
[null,null,"OPD","Sistema de Desarrollo Integral de la Familia (DIF) de Tlaquepaque","Fortalecimiento Sociofamiliar",null,null,null,null,null,null,null,null,null,null,"SECRETARIA_DE_LA_CONSEJERIA_JURIDICA","OFICINA DEL REGISTRO CIVIL NO. 1"]
[null,null,"OPD","Sistema de Desarrollo Integral de la Familia (DIF) de Tlaquepaque","Inclusión y Derechos Humanos de las Personas con Discapacidad",null,null,null,null,null,null,null,null,null,null,"SECRETARIA_DE_LA_CONSEJERIA_JURIDICA","SECRETARIA DE LA CONSEJERIA JURIDICA"]
[null,null,"OPD","Sistema de Desarrollo Integral de la Familia (DIF) de Tlaquepaque","Laboratorio Clínico",null,null,null,null,null,null,null,null,null,null,"SECRETARIA_DE_OBRAS_PUBLICAS","DIRECCION DE CONSTRUCCION Y MANTENIMIENTO"]
[null,null,"OPD","Sistema de Desarrollo Integral de la Familia (DIF) de Tlaquepaque","Mejoramiento Educativo",null,null,null,null,null,null,null,null,null,null,"SECRETARIA_DE_OBRAS_PUBLICAS","DIRECCION DE PRESUPUESTOS Y CONTRATACION DE OBRA PUBLICA"]
[null,null,"OPD","Sistema de Desarrollo Integral de la Familia (DIF) de Tlaquepaque","Por una Gestión Responsable",null,null,null,null,null,null,null,null,null,null,"SECRETARIA_DE_OBRAS_PUBLICAS","SUBDIRECCION DE INSPECCION DE CONTROL DE LA EDIFICACION Y ORDENAMIENTO TERRITORIAL"]
[null,null,"OPD","Sistema de Desarrollo Integral de la Familia (DIF) de Tlaquepaque","Prevención de Embarazo Adolescente",null,null,null,null,null,null,null,null,null,null,"SECRETARIA_DE_OBRAS_PUBLICAS","SUBDIRECCION DE MANTENIMIENTO"]
[null,null,"OPD","Sistema de Desarrollo Integral de la Familia (DIF) de Tlaquepaque","Prevención y Detención de abuso Sexual",null,null,null,null,null,null,null,null,null,null,"SECRETARIA_DE_PLANIFICACION_ANALISIS_Y_GESTION_URBANA","DEPARTAMENTO DE EVALUACION DE PROYECTOS Y PROGRAMAS"]
[null,null,"OPD","Sistema de Desarrollo Integral de la Familia (DIF) de Tlaquepaque","Procuraduría de Protección de NNA",null,null,null,null,null,null,null,null,null,null,"SECRETARIA_DE_PLANIFICACION_ANALISIS_Y_GESTION_URBANA","DEPARTAMENTO DE GESTION TERRITORIAL SUELO Y VIVIENDA"]
[null,null,"OPD","Sistema de Desarrollo Integral de la Familia (DIF) de Tlaquepaque","Programa de Atención a la Discapacidad",null,null,null,null,null,null,null,null,null,null,"SECRETARIA_DE_PLANIFICACION_ANALISIS_Y_GESTION_URBANA","DEPARTAMENTO DE INDICADORES Y METAS PARA RESULTADOS"]
[null,null,"OPD","Sistema de Desarrollo Integral de la Familia (DIF) de Tlaquepaque","Protección y Atención ante casos de Violencia Familia",null,null,null,null,null,null,null,null,null,null,"SECRETARIA_DE_PLANIFICACION_ANALISIS_Y_GESTION_URBANA","DEPARTAMENTO DE PLANEACION URBANA"]
[null,null,"OPD","Sistema de Desarrollo Integral de la Familia (DIF) de Tlaquepaque","Protección y Restitución de Derechos de Niñas. Niños y Adolescentes",null,null,null,null,null,null,null,null,null,null,"SECRETARIA_DE_PLANIFICACION_ANALISIS_Y_GESTION_URBANA","DEPARTAMENTO DEL SISTEMA DE EVALUACION DEL DESEMPEÑO"]
[null,null,"OPD","Sistema de Desarrollo Integral de la Familia (DIF) de Tlaquepaque","Psicología",null,null,null,null,null,null,null,null,null,null,"SECRETARIA_DE_PLANIFICACION_ANALISIS_Y_GESTION_URBANA","DIRECCION DE GESTION DEL DESEMPEÑO, EVALUACION DE RESULTADOS Y TABLERO DE CONTROL"]
[null,null,"OPD","Sistema de Desarrollo Integral de la Familia (DIF) de Tlaquepaque","Rehabilitación",null,null,null,null,null,null,null,null,null,null,"SECRETARIA_DE_PLANIFICACION_ANALISIS_Y_GESTION_URBANA","DIRECCION DE GESTION TERRITORIAL Y PLANEACION URBANA"]
[null,null,"OPD","Sistema de Desarrollo Integral de la Familia (DIF) de Tlaquepaque","Situación de Calle",null,null,null,null,null,null,null,null,null,null,"SECRETARIA_DE_PLANIFICACION_ANALISIS_Y_GESTION_URBANA","DIRECCION DEL BANCO INTEGRADO DE PROYECTOS Y PROGRAMAS"]
[null,null,"OPD","Sistema de Desarrollo Integral de la Familia (DIF) de Tlaquepaque","Talleres de Esperanza",null,null,null,null,null,null,null,null,null,null,"SECRETARIA_DE_PLANIFICACION_ANALISIS_Y_GESTION_URBANA","SECRETARIA DE PLANIFICACION, ANALISIS Y GESTION URBANA"]
[null,null,"SECRETARIA_DE_ADMINISTRACION_Y_FINANZAS","DEPARTAMENTO DE BIENES MUEBLES","Actualización y control de los inventarios de los bienes muebles.",null,null,null,null,null,null,null,null,null,null,"SECRETARIA_DE_SALUD","DEPARTAMENTO DE TRABAJO SOCIAL"]
[null,null,"SECRETARIA_DE_ADMINISTRACION_Y_FINANZAS","DEPARTAMENTO DE REDES Y TELECOMUNICACIONES","Instalación de Cámaras de Seguridad",null,null,null,null,null,null,null,null,null,null,"SECRETARIA_DE_SALUD","DIRECCION DE SALUD PUBLICA"]
[null,null,"SECRETARIA_DE_ADMINISTRACION_Y_FINANZAS","DEPARTAMENTO DE SERVICIOS GENERALES","Recursos Humanos eficiente",null,null,null,null,null,null,null,null,null,null,"SECRETARIA_DE_SALUD","DIRECCION DE URGENCIAS MEDICAS"]
[null,null,"SECRETARIA_DE_ADMINISTRACION_Y_FINANZAS","DEPARTAMENTO DE SOPORTE Y MANTENIMIENTO","Sistema de control de servicios",null,null,null,null,null,null,null,null,null,null,"SECRETARIA_DE_SALUD","SUBDIRECCION DE ENSEÑANZA"]
[null,null,"SECRETARIA_DE_ADMINISTRACION_Y_FINANZAS","DEPARTAMENTO DE TALLER MUNICIPAL","Mantenimiento preventivo y correctivo del parque vehicular",null,null,null,null,null,null,null,null,null,null,"SECRETARIA_DE_SALUD","SUBDIRECCION DE SALUD ANIMAL"]
[null,null,"SECRETARIA_DE_ADMINISTRACION_Y_FINANZAS","DIRECCION DE CATASTRO","Tramites y Servicios",null,null,null,null,null,null,null,null,null,null,"SECRETARIA_DE_SEGURIDAD_Y_PROTECCION_CIUDADANA","DEPARTAMENTO DE AREA DE PREVENCION"]
[null,null,"SECRETARIA_DE_ADMINISTRACION_Y_FINANZAS","DIRECCION DE CONTABILIDAD Y GLOSA","Programa de elaboración y presentación de Cuentas Públicas",null,null,null,null,null,null,null,null,null,null,"SECRETARIA_DE_SEGURIDAD_Y_PROTECCION_CIUDADANA","DIRECCION ADMINISTRATIVA"]
[null,null,"SECRETARIA_DE_ADMINISTRACION_Y_FINANZAS","DIRECCION DE EGRESOS","Porcentaje De Presupuesto Ejercido De Acuerdo Con Criterios De Eficiencia, Austeridad Y Ahorro",null,null,null,null,null,null,null,null,null,null,"SECRETARIA_DE_SEGURIDAD_Y_PROTECCION_CIUDADANA","DIRECCION DE ATENCION A LA VIOLENCIA DE GENERO"]
[null,null,"SECRETARIA_DE_ADMINISTRACION_Y_FINANZAS","DIRECCION DE INGRESOS","Programa De Apoyo A Adultos Mayores",null,null,null,null,null,null,null,null,null,null,"SECRETARIA_DE_SEGURIDAD_Y_PROTECCION_CIUDADANA","DIRECCION DE BOMBEROS Y PROTECCION CIVIL"]
[null,null,"SECRETARIA_DE_ADMINISTRACION_Y_FINANZAS","DIRECCION DE INGRESOS","Programa de Convenios",null,null,null,null,null,null,null,null,null,null,"SECRETARIA_DE_SEGURIDAD_Y_PROTECCION_CIUDADANA","DIRECCION OPERATIVA"]
[null,null,"SECRETARIA_DE_ADMINISTRACION_Y_FINANZAS","DIRECCION DE INGRESOS","Programa Integral de Recaudación",null,null,null,null,null,null,null,null,null,null,"SECRETARIA_DE_SEGURIDAD_Y_PROTECCION_CIUDADANA","SUBDIRECCION DE GESTION GENERAL DEL RIESGO"]
[null,null,"SECRETARIA_DE_ADMINISTRACION_Y_FINANZAS","DIRECCION DE RECURSOS MATERIALES","Administración y control de los Recursos Materiales",null,null,null,null,null,null,null,null,null,null,"SECRETARIA_DE_SEGURIDAD_Y_PROTECCION_CIUDADANA","SUBDIRECCION DE PLANEACION ESTRATEGICA"]
[null,null,"SECRETARIA_DE_ADMINISTRACION_Y_FINANZAS","SUBDIRECCION DE COMPRAS Y ADQUISICIONES","Capacitación para Adquisiciones",null,null,null,null,null,null,null,null,null,null,"SECRETARIA_DE_SEGURIDAD_Y_PROTECCION_CIUDADANA","SUBDIRECCION DE PREVENCION AL DELITO"]
[null,null,"SECRETARIA_DE_ADMINISTRACION_Y_FINANZAS","SUBDIRECCION DE COMPRAS Y ADQUISICIONES","Licitaciones Ejecutadas",null,null,null,null,null,null,null,null,null,null,"SECRETARIA_DE_SEGURIDAD_Y_PROTECCION_CIUDADANA","SUBDIRECCION DE PROFESIONALIZACION Y ACREDITACION POLICIAL"]
[null,null,"SECRETARIA_DE_ADMINISTRACION_Y_FINANZAS","SUBDIRECCION DE CONTROL DE PAGOS","Optimizar el proceso de pagos",null,null,null,null,null,null,null,null,null,null,"SECRETARIA_DE_SEGURIDAD_Y_PROTECCION_CIUDADANA","SUBDIRECCION DE VIALIDAD"]
[null,null,"SECRETARIA_DE_ADMINISTRACION_Y_FINANZAS","SUBDIRECCION DE PATRIMONIO","Administración de Bienes Inmuebles",null,null,null,null,null,null,null,null,null,null,"SECRETARIA_DE_SEGURIDAD_Y_PROTECCION_CIUDADANA","SUBDIRECCION DE VINCULACION CIUDADANA"]
[null,null,"SECRETARIA_DE_BIENESTAR","DIRECCION DE EDUCACION","Abrigando Tu Bienestar",null,null,null,null,null,null,null,null,null,null,"SECRETARIA_DE_SEGURIDAD_Y_PROTECCION_CIUDADANA","SUBDIRECCION JURIDICA Y DE DERECHOS HUMANOS"]
[null,null,"SECRETARIA_DE_BIENESTAR","DIRECCION DE EDUCACION","Actividades Extraescolares",null,null,null,null,null,null,null,null,null,null,"SECRETARIA_DE_SEGURIDAD_Y_PROTECCION_CIUDADANA","SUBDIRECCION OPERATIVA"]
[null,null,"SECRETARIA_DE_BIENESTAR","DIRECCION DE EDUCACION","Cabildo Infantil Y Juvenil",null,null,null,null,null,null,null,null,null,null,"SECRETARIA_DE_SERVICIOS_PUBLICOS_Y_MEDIO_AMBIENTE","DEPARTAMENTO DE REGULACION AMBIENTAL"]
[null,null,"SECRETARIA_DE_BIENESTAR","DIRECCION DE EDUCACION","Educación Y Capacitación Para El Medio Ambiente",null,null,null,null,null,null,null,null,null,null,"SECRETARIA_DE_SERVICIOS_PUBLICOS_Y_MEDIO_AMBIENTE","DIRECCION DE AGUA POTABLE, DRENAJE Y ALCANTARILLADO"]
[null,null,"SECRETARIA_DE_BIENESTAR","DIRECCION DE EDUCACION","Feria de la oferta educativa media superior y superior",null,null,null,null,null,null,null,null,null,null,"SECRETARIA_DE_SERVICIOS_PUBLICOS_Y_MEDIO_AMBIENTE","DIRECCION DE ALUMBRADO PUBLICO"]
[null,null,"SECRETARIA_DE_BIENESTAR","DIRECCION DE PROGRAMAS SOCIALES PARA EL BIENESTAR","Aprendiendo con Bienestar",null,null,null,null,null,null,null,null,null,null,"SECRETARIA_DE_SERVICIOS_PUBLICOS_Y_MEDIO_AMBIENTE","DIRECCION DE ASEO PUBLICO"]
[null,null,"SECRETARIA_DE_BIENESTAR","DIRECCION DE PROGRAMAS SOCIALES PARA EL BIENESTAR","Bienestar Incluyente",null,null,null,null,null,null,null,null,null,null,"SECRETARIA_DE_SERVICIOS_PUBLICOS_Y_MEDIO_AMBIENTE","DIRECCION DE RASTRO"]
[null,null,"SECRETARIA_DE_BIENESTAR","DIRECCION DE PROGRAMAS SOCIALES PARA EL BIENESTAR","Líderes de Esperanza",null,null,null,null,null,null,null,null,null,null,"SECRETARIA_DE_SERVICIOS_PUBLICOS_Y_MEDIO_AMBIENTE","DIRECCION DE SALUD AMBIENTAL Y CAMBIO CLIMATICO MEDIO AMBIENTE"]
[null,null,"SECRETARIA_DE_BIENESTAR","DIRECCION DE PROGRAMAS SOCIALES PARA EL BIENESTAR","Raíces de Esperanza",null,null,null,null,null,null,null,null,null,null,"SECRETARIA_DE_SERVICIOS_PUBLICOS_Y_MEDIO_AMBIENTE","DIRECCION MEDIO AMBIENTE (DE SALUD AMBIENTAL Y CAMBIO CLIMATICO"]
[null,null,"SECRETARIA_DE_BIENESTAR","SUBDIRECCION DE DESARROLLO Y ATENCION AL SECTOR AGROPECUARIO","Conservación y mejoramiento de suelos agrícolas",null,null,null,null,null,null,null,null,null,null,"SECRETARIA_DE_SERVICIOS_PUBLICOS_Y_MEDIO_AMBIENTE","SUBDIRECCION DE SERVICIOS ECOSISTEMICOS Y GESTION DEL CAMBIO CLIMATICO DE\nPARQUES, JARDINES Y GESTIÓN\nDEL CAMBIO CLIMÁTICO"]
[null,null,"SECRETARIA_DE_BIENESTAR","SUBDIRECCION DE DESARROLLO Y ATENCION AL SECTOR AGROPECUARIO","Hidroponía",null,null,null,null,null,null,null,null,null,null,"SECRETARIA_DE_SERVICIOS_PUBLICOS_Y_MEDIO_AMBIENTE","SUBDIRECCION DE\nPARQUES, JARDINES Y GESTIÓN\nDEL CAMBIO CLIMÁTICO DE SERVICIOS ECOSISTEMICOS Y GESTION DEL CAMBIO CLIMATICO"]
[null,null,"SECRETARIA_DE_BIENESTAR","SUBDIRECCION DE DESARROLLO Y ATENCION AL SECTOR AGROPECUARIO","Pozos de absorción Tecnificados.",null,null,null,null,null,null,null,null,null,null,"SINDICATURA","DEPARTAMENTO DE CONTRATOS Y CONVENIOS"]
[null,null,"SECRETARIA_DE_BIENESTAR","SUBDIRECCION DE DESARROLLO Y ATENCION AL SECTOR AGROPECUARIO","Procesadora de composta orgánica.",null,null,null,null,null,null,null,null,null,null,"SINDICATURA","DEPARTAMENTO DE MEJORA REGULATORIA"]
[null,null,"SECRETARIA_DE_BIENESTAR","SUBDIRECCION DE DESARROLLO Y ATENCION AL SECTOR AGROPECUARIO","Rehabilitación Permanente De Caminos Rurales",null,null,null,null,null,null,null,null,null,null,"SINDICATURA","DIRECCION JURIDICA"]
[null,null,"SECRETARIA_DE_CONTRALORIA_MUNICIPAL_Y_COMBATE_A_LA_CORRUPCION","DIRECCION DE AUDITORIA A OBRA PUBLICA Y SERVICIOS","Análisis documental de expedientes de obras",null,null,null,null,null,null,null,null,null,null,"SINDICATURA","SINDICATURA"]
[null,null,"SECRETARIA_DE_CONTRALORIA_MUNICIPAL_Y_COMBATE_A_LA_CORRUPCION","DIRECCION DE AUDITORIA A OBRA PUBLICA Y SERVICIOS","Control documental de expedientes de obras"]
[null,null,"SECRETARIA_DE_CONTRALORIA_MUNICIPAL_Y_COMBATE_A_LA_CORRUPCION","DIRECCION DE AUDITORIA GUBERNAMENTAL Y COMBATE A LA CORRUPCION","Auditorías"]
[null,null,"SECRETARIA_DE_CONTRALORIA_MUNICIPAL_Y_COMBATE_A_LA_CORRUPCION","DIRECCION DE AUDITORIA GUBERNAMENTAL Y COMBATE A LA CORRUPCION","Visitas de Inspección"]
[null,null,"SECRETARIA_DE_CONTRALORIA_MUNICIPAL_Y_COMBATE_A_LA_CORRUPCION","DIRECCION DE RESPONSABILIDADES Y EVOLUCION PATRIMONIAL","Educación e Innovación Tecnológica"]
[null,null,"SECRETARIA_DE_CONTRALORIA_MUNICIPAL_Y_COMBATE_A_LA_CORRUPCION","SUBDIRECCION DE AUDITORIA FINANCIERA Y DE DESEMPEÑO","Auditorías"]
[null,null,"SECRETARIA_DE_CONTRALORIA_MUNICIPAL_Y_COMBATE_A_LA_CORRUPCION","SUBDIRECCION DE AUDITORIA FINANCIERA Y DE DESEMPEÑO","Procedimientos de aclaración derivados de entrega recepción"]
[null,null,"SECRETARIA_DE_CONTRALORIA_MUNICIPAL_Y_COMBATE_A_LA_CORRUPCION","SUBDIRECCION DE AUDITORIA FINANCIERA Y DE DESEMPEÑO","Visitas de Inspección"]
[null,null,"SECRETARIA_DE_FOMENTO_ECONOMICO_Y_CULTURAL","DIRECCIÓN DE CEMENTERIOS","Digitalización Administrativa"]
[null,null,"SECRETARIA_DE_FOMENTO_ECONOMICO_Y_CULTURAL","DIRECCION DE CULTURA","Amigos de Refugio"]
[null,null,"SECRETARIA_DE_FOMENTO_ECONOMICO_Y_CULTURAL","DIRECCION DE CULTURA","Cultura en tu colonia"]
[null,null,"SECRETARIA_DE_FOMENTO_ECONOMICO_Y_CULTURAL","DIRECCION DE CULTURA","Cultura Por La Paz"]
[null,null,"SECRETARIA_DE_FOMENTO_ECONOMICO_Y_CULTURAL","DIRECCION DE CULTURA","Ferias, Festivales Y Exposiciones"]
[null,null,"SECRETARIA_DE_FOMENTO_ECONOMICO_Y_CULTURAL","DIRECCION DE CULTURA","Formacion Continua"]
[null,null,"SECRETARIA_DE_FOMENTO_ECONOMICO_Y_CULTURAL","DIRECCION DE DESARROLLO ARTESANAL Y TURISTICO","Capacitación"]
[null,null,"SECRETARIA_DE_FOMENTO_ECONOMICO_Y_CULTURAL","DIRECCION DE DESARROLLO ARTESANAL Y TURISTICO","Festivales, Eventos, Ferías y Exposiciones"]
[null,null,"SECRETARIA_DE_FOMENTO_ECONOMICO_Y_CULTURAL","DIRECCION DE DESARROLLO ARTESANAL Y TURISTICO","Padrón Artesanal y Credencialización"]
[null,null,"SECRETARIA_DE_FOMENTO_ECONOMICO_Y_CULTURAL","DIRECCION DE DESARROLLO ARTESANAL Y TURISTICO","Permanencia Pueblo Mágico"]
[null,null,"SECRETARIA_DE_FOMENTO_ECONOMICO_Y_CULTURAL","DIRECCION DE DESARROLLO ARTESANAL Y TURISTICO","Rescatando nuestras Tradiciones"]
[null,null,"SECRETARIA_DE_FOMENTO_ECONOMICO_Y_CULTURAL","DIRECCION DE GESTION EMPRESARIAL E INDUSTRIAL","Capacitación Permanente Empresarial, Cooperativas bienes y/o Servicios y Talleres Autoempleo"]
[null,null,"SECRETARIA_DE_FOMENTO_ECONOMICO_Y_CULTURAL","DIRECCION DE GESTION EMPRESARIAL E INDUSTRIAL","Empleo a Tu Alcance"]
[null,null,"SECRETARIA_DE_FOMENTO_ECONOMICO_Y_CULTURAL","DIRECCION DE GESTION EMPRESARIAL E INDUSTRIAL","Expo Emprende y Transforma 2025"]
[null,null,"SECRETARIA_DE_FOMENTO_ECONOMICO_Y_CULTURAL","DIRECCION DE GESTION EMPRESARIAL E INDUSTRIAL","Mujeres Empresarias en Tlaquepaque"]
[null,null,"SECRETARIA_DE_FOMENTO_ECONOMICO_Y_CULTURAL","DIRECCION DE GESTION EMPRESARIAL E INDUSTRIAL","Vinculación directa con empresas"]
[null,null,"SECRETARIA_DE_FOMENTO_ECONOMICO_Y_CULTURAL","DIRECCION DEL CENTRO HISTORICO","Agenda del Espacio Público"]
[null,null,"SECRETARIA_DE_FOMENTO_ECONOMICO_Y_CULTURAL","DIRECCION DEL CENTRO HISTORICO","Mantenimiento y Conservación del Centro Histórico"]
[null,null,"SECRETARIA_DE_FOMENTO_ECONOMICO_Y_CULTURAL","SUBDIRECCION DE BIBLIOTECAS","Talleres De Fomento A Cultura"]
[null,null,"SECRETARIA_DE_FOMENTO_ECONOMICO_Y_CULTURAL","SUBDIRECCION DE MUSEOS","Exposiciones Temporales"]
[null,null,"SECRETARIA_DE_FOMENTO_ECONOMICO_Y_CULTURAL","SUBDIRECCION DE MUSEOS","Museo Itinerante"]
[null,null,"SECRETARIA_DE_FOMENTO_ECONOMICO_Y_CULTURAL","SUBDIRECCION DE MUSEOS","Museos a la Calle"]
[null,null,"SECRETARIA_DE_FOMENTO_ECONOMICO_Y_CULTURAL","SUBDIRECCION DE MUSEOS","Xvlvii Premio Nacional De La Cerámica"]
[null,null,"SECRETARIA_DE_GOBERNANZA_Y_TERRITORIO","DELEGACION SAN SEBASTIANITO","VISITAS A COLONIAS"]
[null,null,"SECRETARIA_DE_GOBERNANZA_Y_TERRITORIO","DEPARTAMENTO DE ASUNTOS RELIGIOSOS","Servicio de atención a las necesidades de las distintas asociaciones religiosas del municipio"]
[null,null,"SECRETARIA_DE_GOBERNANZA_Y_TERRITORIO","DEPARTAMENTO DE OFICINA DE PASAPORTES","Trámite de Pasaporte Mexicano en Oficinas de Enlace de Tlaquepaque"]
[null,null,"SECRETARIA_DE_GOBERNANZA_Y_TERRITORIO","DIRECCION DE ARCHIVO MUNICIPAL","Campaña de divulgación cultural histórica del Archivo Muicipal a escuelas de educación básica en Tlaquepaque"]
[null,null,"SECRETARIA_DE_GOBERNANZA_Y_TERRITORIO","DIRECCION DE ARCHIVO MUNICIPAL","Programa de capacitación para la clasificación, organización, transferencia, resguardo y consulta de información oficial"]
[null,null,"SECRETARIA_DE_GOBERNANZA_Y_TERRITORIO","DIRECCION DE ARCHIVO MUNICIPAL","Proyecto de digitalización para el Archivo Municipal"]
[null,null,"SECRETARIA_DE_GOBERNANZA_Y_TERRITORIO","DIRECCION DE DELEGACIONES Y AGENCIAS","Actividades Administrativas"]
[null,null,"SECRETARIA_DE_GOBERNANZA_Y_TERRITORIO","DIRECCION DE DELEGACIONES Y AGENCIAS","Atención a Solicitudes Ciudadanas"]
[null,null,"SECRETARIA_DE_GOBERNANZA_Y_TERRITORIO","DIRECCION DE DELEGACIONES Y AGENCIAS","Brigadas de Mantenimiento y Recuperación de Espacios Públicos"]
[null,null,"SECRETARIA_DE_GOBERNANZA_Y_TERRITORIO","DIRECCION DE DELEGACIONES Y AGENCIAS","Festividades Tradicionales Cívicas"]
[null,null,"SECRETARIA_DE_GOBERNANZA_Y_TERRITORIO","DIRECCION DE INSPECCION Y VIGILANCIA","Verificación De Giros Comerciales Rezagados En El Municipio De San Pedro Tlaquepaque"]
[null,null,"SECRETARIA_DE_GOBERNANZA_Y_TERRITORIO","DIRECCION DE PADRON Y LICENCIAS","Servicio eficaz de trámite de licencias municipal presencial y en línea"]
[null,null,"SECRETARIA_DE_GOBERNANZA_Y_TERRITORIO","DIRECCION DE PADRON Y LICENCIAS 1","Regularizacion de licencias en base a la ley de hacienda"]
[null,null,"SECRETARIA_DE_GOBERNANZA_Y_TERRITORIO","SUBDIRECCION DE ATENCION E INSPECCION A TIANGUIS Y ESPACIOS ABIERTOS","Actualizar los padrones de los comerciantes de tianguis"]
[null,null,"SECRETARIA_DE_GOBERNANZA_Y_TERRITORIO","SUBDIRECCION DE ATENCION E INSPECCION A TIANGUIS Y ESPACIOS ABIERTOS","Regularizar comercio en espacio abierto en la colonia San Martín de las Flores"]
[null,null,"SECRETARIA_DE_GOBERNANZA_Y_TERRITORIO","SUBDIRECCION DE ATENCION E INSPECCION DE MERCADOS","Recuperación de locales abandonados en merados municipales"]
[null,null,"SECRETARIA_DE_GOBERNANZA_Y_TERRITORIO","SUBDIRECCION DE INSPECCION AMBIENTAL","Verificación y regularización de residuos peligrosos y emisiones en talleres de laminado y pintura"]
[null,null,"SECRETARIA_DE_LA_CONSEJERIA_JURIDICA","DEPARTAMENTO DE RECLUTAMIENTO MILITAR","Cartillas Militares"]
[null,null,"SECRETARIA_DE_LA_CONSEJERIA_JURIDICA","DIRECCION DE APOYO A CABILDO","Apoyo Asuntos derivados por Secretaría"]
[null,null,"SECRETARIA_DE_LA_CONSEJERIA_JURIDICA","DIRECCION DE APOYO A CABILDO","Consolidar El Sistema De Información De Acuerdos Del Pleno"]
[null,null,"SECRETARIA_DE_LA_CONSEJERIA_JURIDICA","DIRECCION DE APOYO A CABILDO","Integración, Dictaminación de Iniciativas"]
[null,null,"SECRETARIA_DE_LA_CONSEJERIA_JURIDICA","DIRECCION DE APOYO A CABILDO","Participación En Sesiones Del Ayuntamiento"]
[null,null,"SECRETARIA_DE_LA_CONSEJERIA_JURIDICA","DIRECCION DE APOYO A CABILDO","Sitio Web de Actas y Acuerdos"]
[null,null,"SECRETARIA_DE_LA_CONSEJERIA_JURIDICA","DIRECCION DE DERECHOS HUMANOS","Atención a los grupos vulnerables."]
[null,null,"SECRETARIA_DE_LA_CONSEJERIA_JURIDICA","DIRECCION DE MEDIACION Y JUZGADOS CIVICOS MUNICIPALES","Atención y desahogo de los MASC"]
[null,null,"SECRETARIA_DE_LA_CONSEJERIA_JURIDICA","DIRECCION DE MEDIACION Y JUZGADOS CIVICOS MUNICIPALES","Calificación de Actas de Infracción"]
[null,null,"SECRETARIA_DE_LA_CONSEJERIA_JURIDICA","DIRECCION DE MEDIACION Y JUZGADOS CIVICOS MUNICIPALES","Difusión de la Cultura de Paz en conflictos comunitarios"]
[null,null,"SECRETARIA_DE_LA_CONSEJERIA_JURIDICA","DIRECCION DE MEDIACION Y JUZGADOS CIVICOS MUNICIPALES","La Mediación Con Rumbo A Tu Colonia"]
[null,null,"SECRETARIA_DE_LA_CONSEJERIA_JURIDICA","DIRECCION DE MEDIACION Y JUZGADOS CIVICOS MUNICIPALES","Orientación y Asesoría Jurídica"]
[null,null,"SECRETARIA_DE_LA_CONSEJERIA_JURIDICA","DIRECCION DE MEDIACION Y JUZGADOS CIVICOS MUNICIPALES","Servicio de trabajo social y psicología a Juzgados Cívicos Municipales"]
[null,null,"SECRETARIA_DE_LA_CONSEJERIA_JURIDICA","DIRECCION DE REGISTRO CIVIL","Celebración de Matrimonios en Lugares emblemáticos"]
[null,null,"SECRETARIA_DE_LA_CONSEJERIA_JURIDICA","DIRECCION LEGAL-CONSULTIVA","Consultas Y Asesoría Jurídica"]
[null,null,"SECRETARIA_DE_LA_CONSEJERIA_JURIDICA","DIRECCION LEGAL-CONSULTIVA","Opiniones Jurídicas"]
[null,null,"SECRETARIA_DE_LA_CONSEJERIA_JURIDICA","OFICINA DEL REGISTRO CIVIL NO. 1","Campaña de Integración Familiar 2025"]
[null,null,"SECRETARIA_DE_LA_CONSEJERIA_JURIDICA","SECRETARIA DE LA CONSEJERIA JURIDICA","Atención Y Orientación Jurídica A La Ciudadanía"]
[null,null,"SECRETARIA_DE_LA_CONSEJERIA_JURIDICA","SECRETARIA DE LA CONSEJERIA JURIDICA","Capacitación Jurídica Al Gobierno Municipal"]
[null,null,"SECRETARIA_DE_LA_CONSEJERIA_JURIDICA","SECRETARIA DE LA CONSEJERIA JURIDICA","Participación Comisiones, Comités Y Grupos De Trabajo"]
[null,null,"SECRETARIA_DE_LA_CONSEJERIA_JURIDICA","SECRETARIA DE LA CONSEJERIA JURIDICA","Revisión Documentos Para Firma Presidenta"]
[null,null,"SECRETARIA_DE_OBRAS_PUBLICAS","DIRECCION DE CONSTRUCCION Y MANTENIMIENTO","Programa De Urbanización"]
[null,null,"SECRETARIA_DE_OBRAS_PUBLICAS","DIRECCION DE PRESUPUESTOS Y CONTRATACION DE OBRA PUBLICA","Programa Fortalecimiento institucional financiero y operativo, para la provisión de los servicios públicos municipales bajo criterios de calidad, eficiencia y oportunidad."]
[null,null,"SECRETARIA_DE_OBRAS_PUBLICAS","DIRECCION DE PRESUPUESTOS Y CONTRATACION DE OBRA PUBLICA","Programa para la gestión sustentable de la infraestructura básica."]
[null,null,"SECRETARIA_DE_OBRAS_PUBLICAS","DIRECCION DE PRESUPUESTOS Y CONTRATACION DE OBRA PUBLICA","Programa para la gestión sustentable de la infraestructura y movilidad segura."]
[null,null,"SECRETARIA_DE_OBRAS_PUBLICAS","DIRECCION DE PRESUPUESTOS Y CONTRATACION DE OBRA PUBLICA","Programa para la recuperación del espacio público y regeneración del tejido social"]
[null,null,"SECRETARIA_DE_OBRAS_PUBLICAS","SUBDIRECCION DE INSPECCION DE CONTROL DE LA EDIFICACION Y ORDENAMIENTO TERRITORIAL","Programa de Inspección y Vigilancia de Tramites y Licencias de Construcción."]
[null,null,"SECRETARIA_DE_OBRAS_PUBLICAS","SUBDIRECCION DE INSPECCION DE CONTROL DE LA EDIFICACION Y ORDENAMIENTO TERRITORIAL","Trámites y Servicios"]
[null,null,"SECRETARIA_DE_OBRAS_PUBLICAS","SUBDIRECCION DE MANTENIMIENTO","Intervenciones Al Entorno Urbano"]
[null,null,"SECRETARIA_DE_OBRAS_PUBLICAS","SUBDIRECCION DE MANTENIMIENTO","Mantenimiento a Edificios y Espacios Públicos"]
[null,null,"SECRETARIA_DE_OBRAS_PUBLICAS","SUBDIRECCION DE MANTENIMIENTO","Mantenimiento A Escuelas"]
[null,null,"SECRETARIA_DE_OBRAS_PUBLICAS","SUBDIRECCION DE MANTENIMIENTO","Programa Permanente De Mantenimiento De Vialidades"]
[null,null,"SECRETARIA_DE_OBRAS_PUBLICAS","SUBDIRECCION DE MANTENIMIENTO","Señalización Horizontal y Vertical"]
[null,null,"SECRETARIA_DE_PLANIFICACION_ANALISIS_Y_GESTION_URBANA","DEPARTAMENTO DE EVALUACION DE PROYECTOS Y PROGRAMAS","Dictamen de evaluación de solicitud de obras"]
[null,null,"SECRETARIA_DE_PLANIFICACION_ANALISIS_Y_GESTION_URBANA","DEPARTAMENTO DE GESTION TERRITORIAL SUELO Y VIVIENDA","Mejoramiento de la atencion al publico asi como fiscalización de la Auditoria Superior del Estado"]
[null,null,"SECRETARIA_DE_PLANIFICACION_ANALISIS_Y_GESTION_URBANA","DEPARTAMENTO DE INDICADORES Y METAS PARA RESULTADOS","Servicio de Acompañamiento para la gestión del sistema de Planeación Municipal"]
[null,null,"SECRETARIA_DE_PLANIFICACION_ANALISIS_Y_GESTION_URBANA","DEPARTAMENTO DE PLANEACION URBANA","Planes parciales y reglamentos municipales actualizados"]
[null,null,"SECRETARIA_DE_PLANIFICACION_ANALISIS_Y_GESTION_URBANA","DEPARTAMENTO DEL SISTEMA DE EVALUACION DEL DESEMPEÑO","Seguimiento y Evaluación a la Administración Pública Municipal"]
[null,null,"SECRETARIA_DE_PLANIFICACION_ANALISIS_Y_GESTION_URBANA","DEPARTAMENTO DEL SISTEMA DE EVALUACION DEL DESEMPEÑO","Seguimiento y Evaluación a los Programas Sociales"]
[null,null,"SECRETARIA_DE_PLANIFICACION_ANALISIS_Y_GESTION_URBANA","DIRECCION DE GESTION DEL DESEMPEÑO, EVALUACION DE RESULTADOS Y TABLERO DE CONTROL","Coordinación de actividades de los departamentos de la Dirección de Desempeño, Resultados y Tablero de Control"]
[null,null,"SECRETARIA_DE_PLANIFICACION_ANALISIS_Y_GESTION_URBANA","DIRECCION DE GESTION DEL DESEMPEÑO, EVALUACION DE RESULTADOS Y TABLERO DE CONTROL","Gestión para el sistema integral para la planeación y evaluación de la auditoria publica municipal"]
[null,null,"SECRETARIA_DE_PLANIFICACION_ANALISIS_Y_GESTION_URBANA","DIRECCION DE GESTION DEL DESEMPEÑO, EVALUACION DE RESULTADOS Y TABLERO DE CONTROL","Seguimiento y Evaluación a los Fondos de Origen Federal"]
[null,null,"SECRETARIA_DE_PLANIFICACION_ANALISIS_Y_GESTION_URBANA","DIRECCION DE GESTION TERRITORIAL Y PLANEACION URBANA","Regularización de predios efectiva"]
[null,null,"SECRETARIA_DE_PLANIFICACION_ANALISIS_Y_GESTION_URBANA","DIRECCION DEL BANCO INTEGRADO DE PROYECTOS Y PROGRAMAS","Banco integrado de proyectos y programas"]
[null,null,"SECRETARIA_DE_PLANIFICACION_ANALISIS_Y_GESTION_URBANA","DIRECCION DEL BANCO INTEGRADO DE PROYECTOS Y PROGRAMAS","Seguimiento de Mesas de gestión Metropolitana ante el IMEPLAN"]
[null,null,"SECRETARIA_DE_PLANIFICACION_ANALISIS_Y_GESTION_URBANA","SECRETARIA DE PLANIFICACION, ANALISIS Y GESTION URBANA","Coordinación de actividades de las direcciones que integran la Secretaría de Planificación, Análisis y Gestión Urbana"]
[null,null,"SECRETARIA_DE_SALUD","DEPARTAMENTO DE TRABAJO SOCIAL","Vinculación De Asistencia Social"]
[null,null,"SECRETARIA_DE_SALUD","DIRECCION DE SALUD PUBLICA","Ferias de la Salud Tlaquepaque"]
[null,null,"SECRETARIA_DE_SALUD","DIRECCION DE URGENCIAS MEDICAS","Atención Urgente En Sala De Choque"]
[null,null,"SECRETARIA_DE_SALUD","SUBDIRECCION DE ENSEÑANZA","Enseñanza Continua"]
[null,null,"SECRETARIA_DE_SALUD","SUBDIRECCION DE SALUD ANIMAL","Campañas de esterilización y vacunación antirrábica gratuitas"]
[null,null,"SECRETARIA_DE_SEGURIDAD_Y_PROTECCION_CIUDADANA","DEPARTAMENTO DE AREA DE PREVENCION","Programa permanente de prevención de riesgos mediante la capacitación a la población en general"]
[null,null,"SECRETARIA_DE_SEGURIDAD_Y_PROTECCION_CIUDADANA","DIRECCION ADMINISTRATIVA","Programa permanente de seguimiento para la administración eficiente de los recursos humanos y materiales de la Secretaría"]
[null,null,"SECRETARIA_DE_SEGURIDAD_Y_PROTECCION_CIUDADANA","DIRECCION DE ATENCION A LA VIOLENCIA DE GENERO","Atención a las violencias en el ámbito familiar y seguimiento a Medidas/Ordenes de Protección emitidas en razón de Género."]
[null,null,"SECRETARIA_DE_SEGURIDAD_Y_PROTECCION_CIUDADANA","DIRECCION DE ATENCION A LA VIOLENCIA DE GENERO","Prevención Comunitaria de las Violencias en el ámbito familiar y por razón de género."]
[null,null,"SECRETARIA_DE_SEGURIDAD_Y_PROTECCION_CIUDADANA","DIRECCION DE BOMBEROS Y PROTECCION CIVIL","Programa De Actualización Del Atlas Municipal De Riesgos De San Pedro Tlaquepaque"]
[null,null,"SECRETARIA_DE_SEGURIDAD_Y_PROTECCION_CIUDADANA","DIRECCION DE BOMBEROS Y PROTECCION CIVIL","Programa de profesionalización, actualización, especializada y salud integral para el personal de la Dirección de Bomberos y Protección Civil"]
[null,null,"SECRETARIA_DE_SEGURIDAD_Y_PROTECCION_CIUDADANA","DIRECCION DE BOMBEROS Y PROTECCION CIVIL","Programa del consejo municipal de Protección Civil de San Pedro Tlaquepaque"]
[null,null,"SECRETARIA_DE_SEGURIDAD_Y_PROTECCION_CIUDADANA","DIRECCION OPERATIVA","Certificación De Personal Y Oficiales Caninos K-9"]
[null,null,"SECRETARIA_DE_SEGURIDAD_Y_PROTECCION_CIUDADANA","DIRECCION OPERATIVA","Unidad de Proximidad Policial"]
[null,null,"SECRETARIA_DE_SEGURIDAD_Y_PROTECCION_CIUDADANA","SUBDIRECCION DE GESTION GENERAL DEL RIESGO","Programa de evaluación y dictaminación de riesgos hidrometeorológicos"]
[null,null,"SECRETARIA_DE_SEGURIDAD_Y_PROTECCION_CIUDADANA","SUBDIRECCION DE GESTION GENERAL DEL RIESGO","Programa de Gestión Integral del Riesgo mediante visitas de inspección a inmuebles"]
[null,null,"SECRETARIA_DE_SEGURIDAD_Y_PROTECCION_CIUDADANA","SUBDIRECCION DE GESTION GENERAL DEL RIESGO","Programa permanente de auxilio a la población para casos de emergencia y/o desastres en San Pedro Tlaquepaque"]
[null,null,"SECRETARIA_DE_SEGURIDAD_Y_PROTECCION_CIUDADANA","SUBDIRECCION DE PLANEACION ESTRATEGICA","Actualización de Requisitos de Permanencia"]
[null,null,"SECRETARIA_DE_SEGURIDAD_Y_PROTECCION_CIUDADANA","SUBDIRECCION DE PLANEACION ESTRATEGICA","Coordinación de la Política Transversal de Reconstrucción del Tejido Social"]
[null,null,"SECRETARIA_DE_SEGURIDAD_Y_PROTECCION_CIUDADANA","SUBDIRECCION DE PLANEACION ESTRATEGICA","Credencialización de Personal Operativo"]
[null,null,"SECRETARIA_DE_SEGURIDAD_Y_PROTECCION_CIUDADANA","SUBDIRECCION DE PLANEACION ESTRATEGICA","Elaboración de documentos y/o diagnósticos basados en evidencias"]
[null,null,"SECRETARIA_DE_SEGURIDAD_Y_PROTECCION_CIUDADANA","SUBDIRECCION DE PLANEACION ESTRATEGICA","Mantenimiento Preventivo de Armas"]
[null,null,"SECRETARIA_DE_SEGURIDAD_Y_PROTECCION_CIUDADANA","SUBDIRECCION DE PLANEACION ESTRATEGICA","Sendero Seguro"]
[null,null,"SECRETARIA_DE_SEGURIDAD_Y_PROTECCION_CIUDADANA","SUBDIRECCION DE PREVENCION AL DELITO","Asipt"]
[null,null,"SECRETARIA_DE_SEGURIDAD_Y_PROTECCION_CIUDADANA","SUBDIRECCION DE PREVENCION AL DELITO","Cascareando Por La Prevención"]
[null,null,"SECRETARIA_DE_SEGURIDAD_Y_PROTECCION_CIUDADANA","SUBDIRECCION DE PREVENCION AL DELITO","Centro De Atención A Niños, Niñas Y Adolescentes De Tlaquepaque"]
[null,null,"SECRETARIA_DE_SEGURIDAD_Y_PROTECCION_CIUDADANA","SUBDIRECCION DE PREVENCION AL DELITO","Gabinete Psicológico"]
[null,null,"SECRETARIA_DE_SEGURIDAD_Y_PROTECCION_CIUDADANA","SUBDIRECCION DE PREVENCION AL DELITO","Programas Preventivos"]
[null,null,"SECRETARIA_DE_SEGURIDAD_Y_PROTECCION_CIUDADANA","SUBDIRECCION DE PREVENCION AL DELITO","Trotando Ando Por La Vida Y La Familia"]
[null,null,"SECRETARIA_DE_SEGURIDAD_Y_PROTECCION_CIUDADANA","SUBDIRECCION DE PROFESIONALIZACION Y ACREDITACION POLICIAL","Convocatoria para Selección de Personal Operativo"]
[null,null,"SECRETARIA_DE_SEGURIDAD_Y_PROTECCION_CIUDADANA","SUBDIRECCION DE PROFESIONALIZACION Y ACREDITACION POLICIAL","Formación Inicial Policía de Proximidad"]
[null,null,"SECRETARIA_DE_SEGURIDAD_Y_PROTECCION_CIUDADANA","SUBDIRECCION DE PROFESIONALIZACION Y ACREDITACION POLICIAL","Profesionalización Continua"]
[null,null,"SECRETARIA_DE_SEGURIDAD_Y_PROTECCION_CIUDADANA","SUBDIRECCION DE PROFESIONALIZACION Y ACREDITACION POLICIAL","Selección Y Reclutamiento Para Plazas Operativas"]
[null,null,"SECRETARIA_DE_SEGURIDAD_Y_PROTECCION_CIUDADANA","SUBDIRECCION DE VIALIDAD","Programa Volanta"]
[null,null,"SECRETARIA_DE_SEGURIDAD_Y_PROTECCION_CIUDADANA","SUBDIRECCION DE VINCULACION CIUDADANA","Programa De Participación Ciudadana (Línea Segura)"]
[null,null,"SECRETARIA_DE_SEGURIDAD_Y_PROTECCION_CIUDADANA","SUBDIRECCION JURIDICA Y DE DERECHOS HUMANOS","Evaluaciones De Control De Confianza"]
[null,null,"SECRETARIA_DE_SEGURIDAD_Y_PROTECCION_CIUDADANA","SUBDIRECCION OPERATIVA","Programa permanente de operativos de prevención de accidentes"]
[null,null,"SECRETARIA_DE_SERVICIOS_PUBLICOS_Y_MEDIO_AMBIENTE","DEPARTAMENTO DE REGULACION AMBIENTAL","Creadores De Esperanza Para El Medio Ambiente"]
[null,null,"SECRETARIA_DE_SERVICIOS_PUBLICOS_Y_MEDIO_AMBIENTE","DEPARTAMENTO DE REGULACION AMBIENTAL","Gobierno Con Buen Papel"]
[null,null,"SECRETARIA_DE_SERVICIOS_PUBLICOS_Y_MEDIO_AMBIENTE","DEPARTAMENTO DE REGULACION AMBIENTAL","Sembrando Esperanza"]
[null,null,"SECRETARIA_DE_SERVICIOS_PUBLICOS_Y_MEDIO_AMBIENTE","DIRECCION DE AGUA POTABLE, DRENAJE Y ALCANTARILLADO","Actualización de Datos de Redes Hidrosanitarias"]
[null,null,"SECRETARIA_DE_SERVICIOS_PUBLICOS_Y_MEDIO_AMBIENTE","DIRECCION DE AGUA POTABLE, DRENAJE Y ALCANTARILLADO","Entrega del Vital Líquido"]
[null,null,"SECRETARIA_DE_SERVICIOS_PUBLICOS_Y_MEDIO_AMBIENTE","DIRECCION DE AGUA POTABLE, DRENAJE Y ALCANTARILLADO","Estudio de Factibiloidades de Redes Hidrosanitarias"]
[null,null,"SECRETARIA_DE_SERVICIOS_PUBLICOS_Y_MEDIO_AMBIENTE","DIRECCION DE AGUA POTABLE, DRENAJE Y ALCANTARILLADO","Gestión Y Puesta En Marcha Del Laboratorio De Análisis De Agua Potable"]
[null,null,"SECRETARIA_DE_SERVICIOS_PUBLICOS_Y_MEDIO_AMBIENTE","DIRECCION DE AGUA POTABLE, DRENAJE Y ALCANTARILLADO","Padrón Único de Usuarios"]
[null,null,"SECRETARIA_DE_SERVICIOS_PUBLICOS_Y_MEDIO_AMBIENTE","DIRECCION DE AGUA POTABLE, DRENAJE Y ALCANTARILLADO","Recepción, Distribución, Dosificación, Monitoreo de cloro residual de Agua Potable"]
[null,null,"SECRETARIA_DE_SERVICIOS_PUBLICOS_Y_MEDIO_AMBIENTE","DIRECCION DE AGUA POTABLE, DRENAJE Y ALCANTARILLADO","Servicio Medido"]
[null,null,"SECRETARIA_DE_SERVICIOS_PUBLICOS_Y_MEDIO_AMBIENTE","DIRECCION DE AGUA POTABLE, DRENAJE Y ALCANTARILLADO","Trabajos emergentes de redes hidrosanitarias"]
[null,null,"SECRETARIA_DE_SERVICIOS_PUBLICOS_Y_MEDIO_AMBIENTE","DIRECCION DE ALUMBRADO PUBLICO","Mantenimiento y reparación de luminarias a la red de alumbrado publico."]
[null,null,"SECRETARIA_DE_SERVICIOS_PUBLICOS_Y_MEDIO_AMBIENTE","DIRECCION DE ALUMBRADO PUBLICO","Sustitución de luminarias a la red de alumbrado publico."]
[null,null,"SECRETARIA_DE_SERVICIOS_PUBLICOS_Y_MEDIO_AMBIENTE","DIRECCION DE ASEO PUBLICO","Fortalecimiento y adiestramiento al personal operativo"]
[null,null,"SECRETARIA_DE_SERVICIOS_PUBLICOS_Y_MEDIO_AMBIENTE","DIRECCION DE ASEO PUBLICO","Plataforma de Atención Ciudadana (Reportes)"]
[null,null,"SECRETARIA_DE_SERVICIOS_PUBLICOS_Y_MEDIO_AMBIENTE","DIRECCION DE ASEO PUBLICO","Programa De Operativos De Limpieza"]
[null,null,"SECRETARIA_DE_SERVICIOS_PUBLICOS_Y_MEDIO_AMBIENTE","DIRECCION DE ASEO PUBLICO","Servicio de fumigación para prevención del dengue y otras plagas"]
[null,null,"SECRETARIA_DE_SERVICIOS_PUBLICOS_Y_MEDIO_AMBIENTE","DIRECCION DE ASEO PUBLICO","Servicio de recolección de residuos urbanos"]
[null,null,"SECRETARIA_DE_SERVICIOS_PUBLICOS_Y_MEDIO_AMBIENTE","DIRECCION DE RASTRO","Capacitación Continua"]
[null,null,"SECRETARIA_DE_SERVICIOS_PUBLICOS_Y_MEDIO_AMBIENTE","DIRECCION DE RASTRO","Inspección Cárnica"]
[null,null,"SECRETARIA_DE_SERVICIOS_PUBLICOS_Y_MEDIO_AMBIENTE","DIRECCION DE RASTRO","Participación en campañas"]
[null,null,"SECRETARIA_DE_SERVICIOS_PUBLICOS_Y_MEDIO_AMBIENTE","DIRECCION DE SALUD AMBIENTAL Y CAMBIO CLIMATICO MEDIO AMBIENTE","Denuncia Ambiental Ciudadana"]
[null,null,"SECRETARIA_DE_SERVICIOS_PUBLICOS_Y_MEDIO_AMBIENTE","DIRECCION DE SALUD AMBIENTAL Y CAMBIO CLIMATICO MEDIO AMBIENTE","Registro De Fuentes Fijas Municipales"]
[null,null,"SECRETARIA_DE_SERVICIOS_PUBLICOS_Y_MEDIO_AMBIENTE","DIRECCION DE SALUD AMBIENTAL Y CAMBIO CLIMATICO MEDIO AMBIENTE","Retiro de bienes en estado de abandono en la vía pública"]
[null,null,"SECRETARIA_DE_SERVICIOS_PUBLICOS_Y_MEDIO_AMBIENTE","DIRECCION DE SALUD AMBIENTAL Y CAMBIO CLIMATICO MEDIO AMBIENTE","Servicio de dictaminación ambiental"]
[null,null,"SECRETARIA_DE_SERVICIOS_PUBLICOS_Y_MEDIO_AMBIENTE","DIRECCION MEDIO AMBIENTE (DE SALUD AMBIENTAL Y CAMBIO CLIMATICO","Registro de ladrilleros"]
[null,null,"SECRETARIA_DE_SERVICIOS_PUBLICOS_Y_MEDIO_AMBIENTE","SUBDIRECCION DE SERVICIOS ECOSISTEMICOS Y GESTION DEL CAMBIO CLIMATICO DE\nPARQUES, JARDINES Y GESTIÓN\nDEL CAMBIO CLIMÁTICO","Adopta un árbol y dale vida al planeta"]
[null,null,"SECRETARIA_DE_SERVICIOS_PUBLICOS_Y_MEDIO_AMBIENTE","SUBDIRECCION DE SERVICIOS ECOSISTEMICOS Y GESTION DEL CAMBIO CLIMATICO DE\nPARQUES, JARDINES Y GESTIÓN\nDEL CAMBIO CLIMÁTICO","Operativo De Podas Preventivas"]
[null,null,"SECRETARIA_DE_SERVICIOS_PUBLICOS_Y_MEDIO_AMBIENTE","SUBDIRECCION DE SERVICIOS ECOSISTEMICOS Y GESTION DEL CAMBIO CLIMATICO DE\nPARQUES, JARDINES Y GESTIÓN\nDEL CAMBIO CLIMÁTICO","Operativo de Reforestación"]
[null,null,"SECRETARIA_DE_SERVICIOS_PUBLICOS_Y_MEDIO_AMBIENTE","SUBDIRECCION DE SERVICIOS ECOSISTEMICOS Y GESTION DEL CAMBIO CLIMATICO DE\nPARQUES, JARDINES Y GESTIÓN\nDEL CAMBIO CLIMÁTICO","Operativos de derribos secos"]
[null,null,"SECRETARIA_DE_SERVICIOS_PUBLICOS_Y_MEDIO_AMBIENTE","SUBDIRECCION DE SERVICIOS ECOSISTEMICOS Y GESTION DEL CAMBIO CLIMATICO DE\nPARQUES, JARDINES Y GESTIÓN\nDEL CAMBIO CLIMÁTICO","Trituración de material orgánico para la elaboración de composta"]
[null,null,"SECRETARIA_DE_SERVICIOS_PUBLICOS_Y_MEDIO_AMBIENTE","SUBDIRECCION DE\nPARQUES, JARDINES Y GESTIÓN\nDEL CAMBIO CLIMÁTICO DE SERVICIOS ECOSISTEMICOS Y GESTION DEL CAMBIO CLIMATICO","Operativo Mantenimiento De Áreas Verdes"]
[null,null,"SINDICATURA","DEPARTAMENTO DE CONTRATOS Y CONVENIOS","Servicio de Revisión Contratos"]
[null,null,"SINDICATURA","DEPARTAMENTO DE MEJORA REGULATORIA","Catálogo Municipal de Trámites y Servicios"]
[null,null,"SINDICATURA","DIRECCION JURIDICA","Servicios de asesoramiento legal y jurídico a la población que presenta vulnerabilidad legal e indefensión de su patrimonio"]
[null,null,"SINDICATURA","SINDICATURA","Actualización de los instrumentos de control de Archivo de Tramite de la Sindicatura"]
[null,null,"SINDICATURA","SINDICATURA","Presentación de Iniciativas de modificación de normatividad"]